Workbook

Sheet Instructions
A1: ='DNSP Inputs O & M'!$A$3 -> Jemena
A3: Instructions
A5: This model is to be used for the setting of Public Lighting Tariffs for the Regulatory Period 2016 to 2020 based on forecast inflation rates and Real Pre Tax WACC.
A7: Distributor data input fields are shaded | C7: and located in tabs "DNSP Inputs General" , "DNSP Inputs O & M" and "DNSP Inputs Capex"
A8: NOTE : All Distributor data input fields have been populated with test data in this model.
A12: This model will also to be used for the annual Public Lighting Tariff Approvals in the Regulatory Period 2016 to 2020 based on actual inflation rates and Real Pre Tax WACC.
A14: Modifications by Jemena are shaded
A15: These modifications either represent a change in the calculation formula or a new input
H70: =G70 -> 0 | I70: =H70 -> 0 | J70: =I70 -> 0 | K70: =J70 -> 0 | L70: =K70 -> 0

Sheet DNSP Inputs General
A1: ='DNSP Inputs O & M'!$A$3 -> Jemena
E2: 2009 | F2: 2010 | G2: 2011 | H2: 2012 | I2: 2013 | J2: 2014 | K2: 2015 | L2: 2016 | M2: 2017 | N2: 2018 | O2: 2019 | P2: 2020
A3: Capital Expenditue | E3: Nominal $ - Actual | K3: Real 2015 $ - Forecast
A4: (Net of customer contributions)
A6: Poles and Brackets | E6: ='[1]Input|Total'!N$84 -> 82127 | F6: ='[1]Input|Total'!O$84 -> 138408.8836 | G6: ='[1]Input|Total'!P$84 -> 240569.2298 | H6: ='[1]Input|Total'!Q$84 -> 377.0936847 | I6: ='[1]Input|Total'!R$84 -> 464412.5602 | J6: ='[1]Input|Total'!S$84 -> 728309.1598 | K6: ='[2]Calc|Asset base'!O25 -> 446763.9946 | L6: ='Capex 2016-2020'!B20 -> 456042.3849 | M6: ='Capex 2016-2020'!C20 -> 469607.6551 | N6: ='Capex 2016-2020'!D20 -> 476813.2315 | O6: ='Capex 2016-2020'!E20 -> 460897.052 | P6: ='Capex 2016-2020'!F20 -> 456736.9713
A8: Existing Lights
A9: Luminaires | E9: ='[1]Input|Total'!N$85 -> 584487 | F9: ='[1]Input|Total'!O$85 -> 160929.5545 | G9: ='[1]Input|Total'!P$85 -> 415008.1449 | H9: ='[1]Input|Total'!Q$85 -> 203015.002 | I9: ='[1]Input|Total'!R$85 -> 457113.916 | J9: ='[1]Input|Total'!S$85 -> 459265.214 | K9: ='[2]Calc|Asset base'!O26 -> -1151949.305 | L9: =SUM('Capex 2016-2020'!B9:B11)-'Capex 2016-2020'!B27 -> 316160.9808 | M9: =SUM('Capex 2016-2020'!C9:C11)-'Capex 2016-2020'!C27 -> 328710.1221 | N9: =SUM('Capex 2016-2020'!D9:D11)-'Capex 2016-2020'!D27 -> 335536.2523 | O9: =SUM('Capex 2016-2020'!E9:E11)-'Capex 2016-2020'!E27 -> 323485.6567 | P9: =SUM('Capex 2016-2020'!F9:F11)-'Capex 2016-2020'!F27 -> 321456.5057
A11: Energy Efficient Lights
A12: Luminaires and Ballasts | E12: ='[1]Input|Total'!N$86 -> 0 | F12: ='[1]Input|Total'!O$86 -> 137050.5593 | G12: ='[1]Input|Total'!P$86 -> 39381.39129 | H12: ='[1]Input|Total'!Q$86 -> 321713.6016 | I12: ='[1]Input|Total'!R$86 -> 1127.370805 | J12: ='[1]Input|Total'!S$86 -> 3240.069195 | K12: ='[2]Calc|Asset base'!O27 -> 218756.5314 | L12: =SUM('Capex 2016-2020'!B12:B13) -> 228860.141 | M12: =SUM('Capex 2016-2020'!C12:C13) -> 240987.149 | N12: =SUM('Capex 2016-2020'!D12:D13) -> 249583.1416 | O12: =SUM('Capex 2016-2020'!E12:E13) -> 244204.9074 | P12: =SUM('Capex 2016-2020'!F12:F13) -> 245730.6097
A14: Total Net Capex | E14: =SUM(E6,E9,E12) -> 666614 | F14: =SUM(F6,F9,F12) -> 436388.9974 | G14: =SUM(G6,G9,G12) -> 694958.7659 | H14: 525105.6972 | I14: 922653.847 | J14: 1190814.443 | K14: -486428.7788 | L14: 1001063.507 | M14: 1039304.926 | N14: 1061932.625 | O14: 1028587.616 | P14: 1023924.087
G17: 2011 | H17: 2012 | I17: 2013 | J17: 2014 | K17: 2015 | L17: 2016 | M17: 2017 | N17: 2018 | O17: 2019 | P17: 2020
A18: Operating and Maintenance Expenditure | G18: Nominal $ - Actual | K18: Real 2015 $ - Forecast
A20: Total O & M | F20: check RIN | G20: 2525965.799 | H20: 3432769.624 | I20: 2915803.923 | J20: 2282681.454 | K20: 2378435.314 | L20: ='Cashflow Summary'!K80 -> 5265381.997 | M20: ='Cashflow Summary'!L80 -> 5410189.208 | N20: ='Cashflow Summary'!M80 -> 5531998.869 | O20: ='Cashflow Summary'!N80 -> 5542565.044 | P20: ='Cashflow Summary'!O80 -> 5611277.444
A24: WACC
A25: Regulatoy Period | B25: 2016 | C25: 2017 | D25: 2018 | E25: 2019 | F25: 2020
A26: Real Pre Tax WACC | B26: ='[2]Input|General'!P$13 -> 0.05723161849 | C26: ='[2]Input|General'!Q$13 -> 0.05723161849 | D26: ='[2]Input|General'!R$13 -> 0.05723161849 | E26: ='[2]Input|General'!S$13 -> 0.05723161849 | F26: ='[2]Input|General'!T$13 -> 0.05723161849
A29: CPI Index | B29: CPI Index | C29: Actual CPI | D29: F'cast CPI
A30: 2014-09-30 | B30: 106.4
A31: 2015-09-30 | C31: =IF(B31="","",B31/B30-1) ->  | D31: ='[2]Input|Escalators'!P$24 -> 0.02523941457
A32: 2016-09-30 | D32: ='[2]Input|Escalators'!Q$24 -> 0.02523941457
A33: 2017-09-30 | D33: ='[2]Input|Escalators'!R$24 -> 0.02523941457
A34: 2018-09-30 | D34: ='[2]Input|Escalators'!S$24 -> 0.02523941457
A35: 2019-09-30 | D35: ='[2]Input|Escalators'!T$24 -> 0.02523941457
A38: Number Of Lights | E38: =K$2 -> 2015 | F38: =G$2 -> 2011 | G38: 2012 | H38: 2013 | I38: 2014 | J38: 2015 | K38: 2016 | L38: 2017 | M38: 2018 | N38: 2019 | O38: 2020
E39: Actual Prices | F39: Actual Volumes | J39: Forecast Volumes
A40: Existing Lights | B40: Reference Light | D40: Price Factor
A41: Mercury Vapour 80 watt | B41: =A$41 -> Mercury Vapour 80 watt | D41: 1 | E41: 48.83 | F41: ='[2]Input|General'!K21 -> 43472.6 | G41: ='[2]Input|General'!L21 -> 41124.85 | H41: ='[2]Input|General'!M21 -> 45947 | I41: ='[2]Input|General'!N21 -> 35373 | J41: ='[2]Input|General'!O21 -> 13619.0208 | K41: ='[2]Input|General'!P21 -> 13422.9069 | L41: ='[2]Input|General'!Q21 -> 13229.61704 | M41: ='[2]Input|General'!R21 -> 13039.11056 | N41: ='[2]Input|General'!S21 -> 12851.34736 | O41: ='[2]Input|General'!T21 -> 12666.28796
A42: Sodium High Pressure 150 watt | B42: =$A42 -> Sodium High Pressure 150 watt | D42: 1 | E42: 91.54 | F42: ='[2]Input|General'!K22 -> 14085 | G42: ='[2]Input|General'!L22 -> 14085 | H42: ='[2]Input|General'!M22 -> 15110 | I42: ='[2]Input|General'!N22 -> 15248 | J42: ='[2]Input|General'!O22 -> 15491.35529 | K42: ='[2]Input|General'!P22 -> 15707.2076 | L42: ='[2]Input|General'!Q22 -> 15920.07047 | M42: ='[2]Input|General'!R22 -> 16130.38213 | N42: ='[2]Input|General'!S22 -> 16338.51658 | O42: ='[2]Input|General'!T22 -> 16544.793
A43: Sodium High Pressure 250 watt | B43: =A$43 -> Sodium High Pressure 250 watt | D43: 1 | E43: 93.95 | F43: ='[2]Input|General'!K23 -> 4192 | G43: ='[2]Input|General'!L23 -> 4192 | H43: ='[2]Input|General'!M23 -> 4706 | I43: ='[2]Input|General'!N23 -> 4722 | J43: ='[2]Input|General'!O23 -> 4732.459821 | K43: ='[2]Input|General'!P23 -> 4742.405991 | L43: ='[2]Input|General'!Q23 -> 4751.863732 | M43: ='[2]Input|General'!R23 -> 4760.857031 | N43: ='[2]Input|General'!S23 -> 4769.408695 | O43: ='[2]Input|General'!T23 -> 4777.540411
A44: 55W Ind | B44: =A$41 -> Mercury Vapour 80 watt | D44: 1.25 | E44: 61.03 | F44: ='[2]Input|General'!K24 -> 0 | G44: ='[2]Input|General'!L24 -> 0 | H44: ='[2]Input|General'!M24 -> 0 | I44: ='[2]Input|General'!N24 -> 0 | J44: ='[2]Input|General'!O24 -> 0 | K44: ='[2]Input|General'!P24 -> 0 | L44: ='[2]Input|General'!Q24 -> 0 | M44: ='[2]Input|General'!R24 -> 0 | N44: ='[2]Input|General'!S24 -> 0 | O44: ='[2]Input|General'!T24 -> 0
A45: Fluorescent 20 watt | B45: Mercury Vapour 80 watt | D45: 1.25 | E45: 61.03 | F45: ='[2]Input|General'!K25 -> 3 | G45: ='[2]Input|General'!L25 -> 2 | H45: ='[2]Input|General'!M25 -> 2 | I45: ='[2]Input|General'!N25 -> 13 | J45: ='[2]Input|General'!O25 -> 0 | K45: ='[2]Input|General'!P25 -> 0 | L45: ='[2]Input|General'!Q25 -> 0 | M45: ='[2]Input|General'!R25 -> 0 | N45: ='[2]Input|General'!S25 -> 0 | O45: ='[2]Input|General'!T25 -> 0
A46: Fluorescent 40 watt | B46: Mercury Vapour 80 watt | D46: 1.25 | E46: 61.03 | F46: ='[2]Input|General'!K26 -> 173 | G46: ='[2]Input|General'!L26 -> 120 | H46: ='[2]Input|General'!M26 -> 54 | I46: ='[2]Input|General'!N26 -> 34 | J46: ='[2]Input|General'!O26 -> 21.40740741 | K46: ='[2]Input|General'!P26 -> 0 | L46: ='[2]Input|General'!Q26 -> 0 | M46: ='[2]Input|General'!R26 -> 0 | N46: ='[2]Input|General'!S26 -> 0 | O46: ='[2]Input|General'!T26 -> 0
A47: Fluorescent 80 watt | B47: Mercury Vapour 80 watt | D47: 1.25 | E47: 61.03 | F47: ='[2]Input|General'!K27 -> 7 | G47: ='[2]Input|General'!L27 -> 6 | H47: ='[2]Input|General'!M27 -> 0 | I47: ='[2]Input|General'!N27 -> 0 | J47: ='[2]Input|General'!O27 -> 0 | K47: ='[2]Input|General'!P27 -> 0 | L47: ='[2]Input|General'!Q27 -> 0 | M47: ='[2]Input|General'!R27 -> 0 | N47: ='[2]Input|General'!S27 -> 0 | O47: ='[2]Input|General'!T27 -> 0
A48: Mercury Vapour 50 watt | B48: Mercury Vapour 80 watt | D48: 1.25 | E48: 61.03 | F48: ='[2]Input|General'!K28 -> 76 | G48: ='[2]Input|General'!L28 -> 66 | H48: ='[2]Input|General'!M28 -> 36 | I48: ='[2]Input|General'!N28 -> 17 | J48: ='[2]Input|General'!O28 -> 17 | K48: ='[2]Input|General'!P28 -> 0 | L48: ='[2]Input|General'!Q28 -> 0 | M48: ='[2]Input|General'!R28 -> 0 | N48: ='[2]Input|General'!S28 -> 0 | O48: ='[2]Input|General'!T28 -> 0
A49: Mercury Vapour 125 watt | B49: Mercury Vapour 80 watt | D49: 1.47 | E49: 71.77 | F49: ='[2]Input|General'!K29 -> 407 | G49: ='[2]Input|General'!L29 -> 378 | H49: ='[2]Input|General'!M29 -> 469 | I49: ='[2]Input|General'!N29 -> 365 | J49: ='[2]Input|General'!O29 -> 359.744 | K49: ='[2]Input|General'!P29 -> 354.5636864 | L49: ='[2]Input|General'!Q29 -> 349.4579693 | M49: ='[2]Input|General'!R29 -> 344.4257746 | N49: ='[2]Input|General'!S29 -> 339.4660434 | O49: ='[2]Input|General'!T29 -> 334.5777324
A50: Mercury Vapour 250 watt | B50: =A$43 -> Sodium High Pressure 250 watt | D50: 0.96 | E50: 90.19 | F50: ='[2]Input|General'!K30 -> 199 | G50: ='[2]Input|General'!L30 -> 199 | H50: ='[2]Input|General'!M30 -> 191 | I50: ='[2]Input|General'!N30 -> 163 | J50: ='[2]Input|General'!O30 -> 139.104712 | K50: ='[2]Input|General'!P30 -> 118.7123982 | L50: ='[2]Input|General'!Q30 -> 101.3095336 | M50: ='[2]Input|General'!R30 -> 86.4578742 | N50: ='[2]Input|General'!S30 -> 73.78342144 | O50: ='[2]Input|General'!T30 -> 62.96700364
A51: Mercury Vapour 400 watt | B51: =A$43 -> Sodium High Pressure 250 watt | D51: 1.08 | E51: 101.47 | F51: ='[2]Input|General'!K31 -> 184 | G51: ='[2]Input|General'!L31 -> 184 | H51: ='[2]Input|General'!M31 -> 224 | I51: ='[2]Input|General'!N31 -> 213 | J51: ='[2]Input|General'!O31 -> 202.5401786 | K51: ='[2]Input|General'!P31 -> 192.5940091 | L51: ='[2]Input|General'!Q31 -> 183.1362676 | M51: ='[2]Input|General'!R31 -> 174.1429687 | N51: ='[2]Input|General'!S31 -> 165.5913051 | O51: ='[2]Input|General'!T31 -> 157.4595892
A52: Sodium High Pressure 50 watt | B52: =A$42 -> Sodium High Pressure 150 watt | D52: 1.25 | E52: 112.91 | F52: ='[2]Input|General'!K32 -> 0 | G52: ='[2]Input|General'!L32 -> 0 | H52: ='[2]Input|General'!M32 -> 4 | I52: ='[2]Input|General'!N32 -> 4 | J52: ='[2]Input|General'!O32 -> 0 | K52: ='[2]Input|General'!P32 -> 0 | L52: ='[2]Input|General'!Q32 -> 0 | M52: ='[2]Input|General'!R32 -> 0 | N52: ='[2]Input|General'!S32 -> 0 | O52: ='[2]Input|General'!T32 -> 0
A53: Sodium Low Pressure 90 watt | B53: =A$42 -> Sodium High Pressure 150 watt | D53: 1.06 | E53: 97.03 | F53: ='[2]Input|General'!K33 -> 10 | G53: ='[2]Input|General'!L33 -> 10 | H53: ='[2]Input|General'!M33 -> 14 | I53: ='[2]Input|General'!N33 -> 11 | J53: ='[2]Input|General'!O33 -> 0 | K53: ='[2]Input|General'!P33 -> 0 | L53: ='[2]Input|General'!Q33 -> 0 | M53: ='[2]Input|General'!R33 -> 0 | N53: ='[2]Input|General'!S33 -> 0 | O53: ='[2]Input|General'!T33 -> 0
A54: Sodium High Pressure 100 watt | B54: =A$42 -> Sodium High Pressure 150 watt | D54: 1.37 | E54: 125.41 | F54: ='[2]Input|General'!K34 -> 960 | G54: ='[2]Input|General'!L34 -> 960 | H54: ='[2]Input|General'!M34 -> 1189 | I54: ='[2]Input|General'!N34 -> 1182 | J54: ='[2]Input|General'!O34 -> 1164.9792 | K54: ='[2]Input|General'!P34 -> 1148.2035 | L54: ='[2]Input|General'!Q34 -> 1131.669369 | M54: ='[2]Input|General'!R34 -> 1115.37333 | N54: ='[2]Input|General'!S34 -> 1099.311954 | O54: ='[2]Input|General'!T34 -> 1083.481862
A55: Sodium High Pressure 400 watt | B55: =A$43 -> Sodium High Pressure 250 watt | D55: 1.33 | E55: 124.96 | F55: ='[2]Input|General'!K35 -> 273 | G55: ='[2]Input|General'!L35 -> 273 | H55: ='[2]Input|General'!M35 -> 296 | I55: ='[2]Input|General'!N35 -> 288 | J55: ='[2]Input|General'!O35 -> 288 | K55: ='[2]Input|General'!P35 -> 288 | L55: ='[2]Input|General'!Q35 -> 288 | M55: ='[2]Input|General'!R35 -> 288 | N55: ='[2]Input|General'!S35 -> 288 | O55: ='[2]Input|General'!T35 -> 288
A56: Metal Halide 70 watt | B56: =A$41 -> Mercury Vapour 80 watt | D56: 2.57 | E56: 125.48 | F56: ='[2]Input|General'!K36 -> 13 | G56: ='[2]Input|General'!L36 -> 12 | H56: ='[2]Input|General'!M36 -> 12 | I56: ='[2]Input|General'!N36 -> 12 | J56: ='[2]Input|General'!O36 -> 12 | K56: ='[2]Input|General'!P36 -> 12 | L56: ='[2]Input|General'!Q36 -> 12 | M56: ='[2]Input|General'!R36 -> 12 | N56: ='[2]Input|General'!S36 -> 12 | O56: ='[2]Input|General'!T36 -> 12
A57: Metal Halide 150 watt | B57: =A$42 -> Sodium High Pressure 150 watt | D57: 2.22 | E57: 203.22 | F57: ='[2]Input|General'!K37 -> 16 | G57: ='[2]Input|General'!L37 -> 16 | H57: ='[2]Input|General'!M37 -> 40 | I57: ='[2]Input|General'!N37 -> 33 | J57: ='[2]Input|General'!O37 -> 33 | K57: ='[2]Input|General'!P37 -> 33 | L57: ='[2]Input|General'!Q37 -> 33 | M57: ='[2]Input|General'!R37 -> 33 | N57: ='[2]Input|General'!S37 -> 33 | O57: ='[2]Input|General'!T37 -> 33
A58: Metal Halide 250 watt | B58: =A$43 -> Sodium High Pressure 250 watt | D58: 2.15 | E58: 202 | F58: ='[2]Input|General'!K38 -> 29 | G58: ='[2]Input|General'!L38 -> 29 | H58: ='[2]Input|General'!M38 -> 74 | I58: ='[2]Input|General'!N38 -> 72 | J58: ='[2]Input|General'!O38 -> 72 | K58: ='[2]Input|General'!P38 -> 72 | L58: ='[2]Input|General'!Q38 -> 72 | M58: ='[2]Input|General'!R38 -> 72 | N58: ='[2]Input|General'!S38 -> 72 | O58: ='[2]Input|General'!T38 -> 72
A59: Incandescent 100 watt | B59: =A$41 -> Mercury Vapour 80 watt | D59: 1.56 | E59: 76.17 | F59: ='[2]Input|General'!K39 -> 5 | G59: ='[2]Input|General'!L39 -> 4 | H59: ='[2]Input|General'!M39 -> 0 | I59: ='[2]Input|General'!N39 -> 0 | J59: ='[2]Input|General'!O39 -> 0 | K59: ='[2]Input|General'!P39 -> 0 | L59: ='[2]Input|General'!Q39 -> 0 | M59: ='[2]Input|General'!R39 -> 0 | N59: ='[2]Input|General'!S39 -> 0 | O59: ='[2]Input|General'!T39 -> 0
A60: Incandescent 150 watt | B60: =A$41 -> Mercury Vapour 80 watt | D60: 1.95 | E60: 95.21 | F60: ='[2]Input|General'!K40 -> 2 | G60: ='[2]Input|General'!L40 -> 0 | H60: ='[2]Input|General'!M40 -> 3 | I60: ='[2]Input|General'!N40 -> 1 | J60: ='[2]Input|General'!O40 -> 0 | K60: ='[2]Input|General'!P40 -> 0 | L60: ='[2]Input|General'!Q40 -> 0 | M60: ='[2]Input|General'!R40 -> 0 | N60: ='[2]Input|General'!S40 -> 0 | O60: ='[2]Input|General'!T40 -> 0
A61: Sodium High Pressure 250 watt (24 hrs) | B61: =A$43 -> Sodium High Pressure 250 watt | D61: =1.56 -> 1.56 | E61: 144.62 | F61: ='[2]Input|General'!K41 -> 0 | G61: ='[2]Input|General'!L41 -> 0 | H61: ='[2]Input|General'!M41 -> 0 | I61: ='[2]Input|General'!N41 -> 0 | J61: ='[2]Input|General'!O41 -> 0 | K61: ='[2]Input|General'!P41 -> 0 | L61: ='[2]Input|General'!Q41 -> 0 | M61: ='[2]Input|General'!R41 -> 0 | N61: ='[2]Input|General'!S41 -> 0 | O61: ='[2]Input|General'!T41 -> 0
A62: Metal Halide 100 watt | B62: =A$42 -> Sodium High Pressure 150 watt | D62: 2.22 | E62: 200.52 | F62: ='[2]Input|General'!K42 -> 0 | G62: ='[2]Input|General'!L42 -> 0 | H62: ='[2]Input|General'!M42 -> 0 | I62: ='[2]Input|General'!N42 -> 0 | J62: ='[2]Input|General'!O42 -> 0 | K62: ='[2]Input|General'!P42 -> 0 | L62: ='[2]Input|General'!Q42 -> 0 | M62: ='[2]Input|General'!R42 -> 0 | N62: ='[2]Input|General'!S42 -> 0 | O62: ='[2]Input|General'!T42 -> 0
A65: Total Existing Lights | F65: =SUM(F41:F64) -> 64106.6 | G65: 61660.85 | H65: 68371 | I65: 57751 | J65: 36152.61141 | K65: 36091.59409 | L65: 36072.12438 | M65: 36055.74966 | N65: 36042.42536 | O65: 36032.10756
A67: Energy Efficient Lights | B67: Reference Light | D67: Price Factor
A68: T5 2X14W | B68: =A68 -> T5 2X14W | D68: 1 | E68: 30.01 | F68: ='[2]Input|General'!K51 -> 585 | G68: ='[2]Input|General'!L51 -> 1177 | H68: ='[2]Input|General'!M51 -> 1535 | I68: ='[2]Input|General'!N51 -> 12536 | J68: ='[2]Input|General'!O51 -> 34586.13259 | K68: ='[2]Input|General'!P51 -> 35086.08 | L68: ='[2]Input|General'!Q51 -> 35564.62 | M68: ='[2]Input|General'!R51 -> 36043.16 | N68: ='[2]Input|General'!S51 -> 36521.7 | O68: ='[2]Input|General'!T51 -> 37000.24
A69: T5 (2x24W) | B69: T5 2X14W | D69: ='[2]Input|General'!H52 -> 1.126245847 | F69: ='[2]Input|General'!K52 -> 0 | G69: ='[2]Input|General'!L52 -> 0 | H69: ='[2]Input|General'!M52 -> 22 | I69: ='[2]Input|General'!N52 -> 332 | J69: ='[2]Input|General'!O52 -> 333 | K69: ='[2]Input|General'!P52 -> 333 | L69: ='[2]Input|General'!Q52 -> 333 | M69: ='[2]Input|General'!R52 -> 333 | N69: ='[2]Input|General'!S52 -> 333 | O69: ='[2]Input|General'!T52 -> 333
A70: LED 18W | B70: T5 2X14W | D70: ='[2]Input|General'!H53 -> 0.38888 | F70: ='[2]Input|General'!K53 -> 0 | G70: ='[2]Input|General'!L53 -> 0 | H70: ='[2]Input|General'!M53 -> 0 | I70: ='[2]Input|General'!N53 -> 0 | J70: ='[2]Input|General'!O53 -> 221.256 | K70: ='[2]Input|General'!P53 -> 456.3259136 | L70: ='[2]Input|General'!Q53 -> 671.2556204 | M70: ='[2]Input|General'!R53 -> 883.0903395 | N70: ='[2]Input|General'!S53 -> 1091.874639 | O70: ='[2]Input|General'!T53 -> 1297.652444
A71: Compact Fluoro 32W | B71: T5 2X14W | D71: ='[2]Input|General'!H54 -> 0.8625368732 | F71: ='[2]Input|General'!K54 -> 0 | G71: ='[2]Input|General'!L54 -> 0 | H71: ='[2]Input|General'!M54 -> 1 | I71: ='[2]Input|General'!N54 -> 8 | J71: ='[2]Input|General'!O54 -> 8 | K71: ='[2]Input|General'!P54 -> 8 | L71: ='[2]Input|General'!Q54 -> 8 | M71: ='[2]Input|General'!R54 -> 8 | N71: ='[2]Input|General'!S54 -> 8 | O71: ='[2]Input|General'!T54 -> 8
A72: Compact Fluoro 42W | B72: T5 2X14W | D72: ='[2]Input|General'!H55 -> 0.9727574751 | F72: ='[2]Input|General'!K55 -> 0 | G72: ='[2]Input|General'!L55 -> 0 | H72: ='[2]Input|General'!M55 -> 101 | I72: ='[2]Input|General'!N55 -> 68 | J72: ='[2]Input|General'!O55 -> 68 | K72: ='[2]Input|General'!P55 -> 68 | L72: ='[2]Input|General'!Q55 -> 68 | M72: ='[2]Input|General'!R55 -> 68 | N72: ='[2]Input|General'!S55 -> 68 | O72: ='[2]Input|General'!T55 -> 68
A75: Total Energy Efficient Lights | F75: =SUM(F68:F74) -> 585 | G75: 1177 | H75: 1659 | I75: 12944 | J75: 35216.38859 | K75: 35951.40591 | L75: 36644.87562 | M75: 37335.25034 | N75: 38022.57464 | O75: 38706.89244
A77: Total Number of Lights | F77: =SUM(F65,F75) -> 64691.6 | G77: 62837.85 | H77: 70030 | I77: 70695 | J77: 71369 | K77: 72043 | L77: 72717 | M77: 73391 | N77: 74065 | O77: 74739
A80: Input | Cost escalators | K80: =K$2 -> 2015 | L80: 2016 | M80: 2017 | N80: 2018 | O80: 2019 | P80: 2020
A82: Annual rate of change
A83: Internal labour | K83: ='[2]Input|Escalators'!O60 -> 0.004766106207 | L83: ='[2]Input|Escalators'!P60 -> 0.008816962507 | M83: ='[2]Input|Escalators'!Q60 -> 0.01347581205 | N83: ='[2]Input|Escalators'!R60 -> 0.01755629708 | O83: ='[2]Input|Escalators'!S60 -> 0.02110900407 | P83: ='[2]Input|Escalators'!T60 -> 0.01811556059
A84: External labour | K84: ='[2]Input|Escalators'!O61 -> 0.007811158929 | L84: ='[2]Input|Escalators'!P61 -> 0.01187467435 | M84: ='[2]Input|Escalators'!Q61 -> 0.0162885771 | N84: ='[2]Input|Escalators'!R61 -> 0.01488361865 | O84: ='[2]Input|Escalators'!S61 -> 0.01606284787 | P84: ='[2]Input|Escalators'!T61 -> 0.01915527012
A85: Aluminium | K85: ='[2]Input|Escalators'!O62 -> 0.09520163803 | L85: ='[2]Input|Escalators'!P62 -> 0.07984691499 | M85: ='[2]Input|Escalators'!Q62 -> 0.08234162511 | N85: ='[2]Input|Escalators'!R62 -> 0.05148094233 | O85: ='[2]Input|Escalators'!S62 -> -0.0701393431 | P85: ='[2]Input|Escalators'!T62 -> -0.05211510301
A86: Copper | K86: ='[2]Input|Escalators'!O63 -> 0.004438388578 | L86: ='[2]Input|Escalators'!P63 -> 0.03463395085 | M86: ='[2]Input|Escalators'!Q63 -> 0.07676878109 | N86: ='[2]Input|Escalators'!R63 -> 0.02132896785 | O86: ='[2]Input|Escalators'!S63 -> -0.09989708197 | P86: ='[2]Input|Escalators'!T63 -> -0.06094804003
A87: Steel | K87: ='[2]Input|Escalators'!O64 -> 0.04805131906 | L87: ='[2]Input|Escalators'!P64 -> 0.04718870378 | M87: ='[2]Input|Escalators'!Q64 -> 0.02993675602 | N87: ='[2]Input|Escalators'!R64 -> 0.02707786342 | O87: ='[2]Input|Escalators'!S64 -> -0.1101122287 | P87: ='[2]Input|Escalators'!T64 -> -0.03358230538
A88: Oil | K88: ='[2]Input|Escalators'!O65 -> -0.01912651975 | L88: ='[2]Input|Escalators'!P65 -> -0.01110430108 | M88: ='[2]Input|Escalators'!Q65 -> 0.04318123139 | N88: ='[2]Input|Escalators'!R65 -> 0.02543762154 | O88: ='[2]Input|Escalators'!S65 -> -0.07661255452 | P88: ='[2]Input|Escalators'!T65 -> -0.04969903066
A89: Concrete | K89: ='[2]Input|Escalators'!O66 -> -0.01121085595 | L89: ='[2]Input|Escalators'!P66 -> -0.0095 | M89: ='[2]Input|Escalators'!Q66 -> -0.02 | N89: ='[2]Input|Escalators'!R66 -> -0.049 | O89: ='[2]Input|Escalators'!S66 -> -0.032 | P89: ='[2]Input|Escalators'!T66 -> 0.013
A90: Wood | K90: ='[2]Input|Escalators'!O67 -> 0.025 | L90: ='[2]Input|Escalators'!P67 -> 0.0215 | M90: ='[2]Input|Escalators'!Q67 -> 0.017 | N90: ='[2]Input|Escalators'!R67 -> 0.009 | O90: ='[2]Input|Escalators'!S67 -> 0.022 | P90: ='[2]Input|Escalators'!T67 -> 0.039
A91: General | K91: ='[2]Input|Escalators'!O68 -> 0.02372566166 | L91: ='[2]Input|Escalators'!P68 -> 0.02709421143 | M91: ='[2]Input|Escalators'!Q68 -> 0.03820473227 | N91: ='[2]Input|Escalators'!R68 -> 0.01422089919 | O91: ='[2]Input|Escalators'!S68 -> -0.06112686805 | P91: ='[2]Input|Escalators'!T68 -> -0.02405741318
A92: Other | K92: ='[2]Input|Escalators'!O69 -> 0 | L92: ='[2]Input|Escalators'!P69 -> 0 | M92: ='[2]Input|Escalators'!Q69 -> 0 | N92: ='[2]Input|Escalators'!R69 -> 0 | O92: ='[2]Input|Escalators'!S69 -> 0 | P92: ='[2]Input|Escalators'!T69 -> 0
A94: Annual rate of change
A95: Internal labour | K95: 1 | L95: =K95*(1+L83) -> 1.008816963 | M95: =L95*(1+M83) -> 1.02241159 | N95: 1.040361352 | O95: 1.062322344 | P95: 1.081566909
A96: External labour | K96: 1 | L96: =K96*(1+L84) -> 1.011874674 | M96: 1.028356673 | N96: 1.043662342 | O96: 1.060426531 | P96: 1.080739288
A97: Aluminium | K97: 1 | L97: =K97*(1+L85) -> 1.079846915 | M97: 1.168763265 | N97: 1.228932299 | O97: 1.142735795 | P97: 1.083182001
A98: Copper | K98: 1 | L98: =K98*(1+L86) -> 1.034633951 | M98: 1.114061538 | N98: 1.137823321 | O98: 1.024158091 | P98: 0.961737663
A99: Steel | K99: 1 | L99: =K99*(1+L87) -> 1.047188704 | M99: 1.078538137 | N99: 1.107742645 | O99: 0.9857666334 | P99: 0.9526623173
A100: Oil | K100: 1 | L100: =K100*(1+L88) -> 0.9888956989 | M100: 1.031597433 | N100: 1.057838818 | O100: 0.9767950839 | P100: 0.9282493151
A101: Concrete | K101: 1 | L101: =K101*(1+L89) -> 0.9905 | M101: 0.97069 | N101: 0.92312619 | O101: 0.8935861519 | P101: 0.9052027719
A102: Wood | K102: 1 | L102: =K102*(1+L90) -> 1.0215 | M102: 1.0388655 | N102: 1.048215289 | O102: 1.071276026 | P102: 1.113055791
A103: General | K103: 1 | L103: =K103*(1+L91) -> 1.027094211 | M103: 1.066334071 | N103: 1.0814983 | O103: 1.015389696 | P103: 0.9909620468
A104: Other | K104: 1 | L104: =K104*(1+L92) -> 1 | M104: 1 | N104: 1 | O104: 1 | P104: 1
A107: Input | Traffic management costs per day (for major road lights only) | J107: =J$2 -> 2014 | K107: =K$2 -> 2015 | L107: 2016 | M107: 2017 | N107: 2018 | O107: 2019 | P107: 2020
A109: Traffic management crew costs per day (dollar per day) | J109: 1200
A110: % of major road lights requiring dedicated traffic management crew | J110: 0.38
A111: Traffic management costs | J111: =J109*J110 -> 456 | K111: =J111*(1+'DNSP Inputs General'!K$84) -> 459.5618885 | L111: =K111*(1+'DNSP Inputs General'!L$84) -> 465.0190362 | M111: =L111*(1+'DNSP Inputs General'!M$84) -> 472.5935347 | N111: =M111*(1+'DNSP Inputs General'!N$84) -> 479.6274366 | O111: =N111*(1+'DNSP Inputs General'!O$84) -> 487.3316192 | P111: =O111*(1+'DNSP Inputs General'!P$84) -> 496.666588

Sheet DNSP Inputs O & M
A1: Public Lighting Cost Build-up Model
A3: Jemena | C3: O & M Data Inputs
C5: Real 2015 $
A7: Input parameters | C7: 2015 | D7: 2016 | E7: 2017 | F7: 2018 | G7: 2019 | H7: 2020
A9: Inputs - all lamps
A11: Material premium for rural areas | C11: 0.05 | D11: =C11 -> 0.05 | E11: =D11 -> 0.05 | F11: 0.05 | G11: 0.05 | H11: 0.05
A12: Labour rate (per hour) | C12: 89.64428472 | D12: =C12*(1+'DNSP Inputs General'!L$83) -> 90.43467502 | E12: =D12*(1+'DNSP Inputs General'!M$83) -> 91.6533557 | F12: =E12*(1+'DNSP Inputs General'!N$83) -> 93.26244924 | G12: =F12*(1+'DNSP Inputs General'!O$83) -> 95.23112666 | H12: =G12*(1+'DNSP Inputs General'!P$83) -> 96.95629191
A13: Labour rate for night patrols (per hour) | C13: 103.0909274 | D13: =C13*(1+'DNSP Inputs General'!L$83) -> 103.9998763 | E13: =D13*(1+'DNSP Inputs General'!M$83) -> 105.4013591 | F13: =E13*(1+'DNSP Inputs General'!N$83) -> 107.2518166 | G13: =F13*(1+'DNSP Inputs General'!O$83) -> 109.5157957 | H13: =G13*(1+'DNSP Inputs General'!P$83) -> 111.4997357
A14: Elevated platform vehicle (per hour) - urban MV,urban T5 | C14: 39.70489021 | D14: =C14*(1+'DNSP Inputs General'!L$91) -> 40.7806629 | E14: =D14*(1+'DNSP Inputs General'!M$91) -> 42.33867721 | F14: =E14*(1+'DNSP Inputs General'!N$91) -> 42.94077127 | G14: =F14*(1+'DNSP Inputs General'!O$91) -> 40.31593641 | H14: =G14*(1+'DNSP Inputs General'!P$91) -> 39.34603927
A15: Elevated platform vehicle (per hour) - rural MV, rural T5, S-HP | C15: 51.04914455 | D15: =C15*(1+'DNSP Inputs General'!L$91) -> 52.43228087 | E15: =D15*(1+'DNSP Inputs General'!M$91) -> 54.43544212 | F15: =E15*(1+'DNSP Inputs General'!N$91) -> 55.20956306 | G15: =F15*(1+'DNSP Inputs General'!O$91) -> 51.83477538 | H15: =G15*(1+'DNSP Inputs General'!P$91) -> 50.58776477
A16: Patrol vehicle (per hour) | C16: 11.34425434 | D16: =C16*(1+'DNSP Inputs General'!L$91) -> 11.65161797 | E16: =D16*(1+'DNSP Inputs General'!M$91) -> 12.09676492 | F16: =E16*(1+'DNSP Inputs General'!N$91) -> 12.26879179 | G16: =F16*(1+'DNSP Inputs General'!O$91) -> 11.51883897 | H16: =G16*(1+'DNSP Inputs General'!P$91) -> 11.2417255
A17: Number of hours in a day | C17: 8 | D17: 8 | E17: 8 | F17: 8 | G17: 8 | H17: 8
A18: Indirect overheads | C18: 0.25 | D18: 0.25 | E18: 0.25 | F18: 0.25 | G18: 0.25 | H18: 0.25
A22: Inputs - MV80
A24: Depreciation period | B24: years | C24: 20 | D24: =C24 -> 20 | E24: =D24 -> 20 | F24: =E24 -> 20 | G24: =F24 -> 20 | H24: =G24 -> 20
A25: Lamps - bulk change | B25: years | C25: 4 | D25: 4 | E25: 4 | F25: 4 | G25: 4 | H25: 4
A26: PE cells - bulk change | B26: years | C26: 8 | D26: 8 | E26: 8 | F26: 8 | G26: 8 | H26: 8
A27: Proportion of lamps that fail between bulk change | C27: 0.196 | D27: 0.256 | E27: =D27 -> 0.256 | F27: 0.256 | G27: 0.256 | H27: 0.256
A28: Proportion of total maintenance calls out between bulk change
A29: Unit cost - lamp | C29: 5.543170982 | D29: =C29*(1+'DNSP Inputs General'!L$91) -> 5.693358829 | E29: =D29*(1+'DNSP Inputs General'!M$91) -> 5.910872079 | F29: =E29*(1+'DNSP Inputs General'!N$91) -> 5.994929995 | G29: =F29*(1+'DNSP Inputs General'!O$91) -> 5.6284787 | H29: =G29*(1+'DNSP Inputs General'!P$91) -> 5.493072062
A30: Unit cost - PE cell | C30: 22.37888504 | D30: =C30*(1+'DNSP Inputs General'!L$91) -> 22.98522328 | E30: =D30*(1+'DNSP Inputs General'!M$91) -> 23.86336758 | F30: =E30*(1+'DNSP Inputs General'!N$91) -> 24.20272613 | G30: =F30*(1+'DNSP Inputs General'!O$91) -> 22.72328928 | H30: =G30*(1+'DNSP Inputs General'!P$91) -> 22.17662572
A31: Unit cost - luminaire | C31: 192.3128576 | D31: =C31*(1+'DNSP Inputs General'!L$91) -> 197.5234228 | E31: =D31*(1+'DNSP Inputs General'!M$91) -> 205.0697523 | F31: =E31*(1+'DNSP Inputs General'!N$91) -> 207.9860286 | G31: =F31*(1+'DNSP Inputs General'!O$91) -> 195.2724941 | H31: =G31*(1+'DNSP Inputs General'!P$91) -> 190.574743
A32: Unit cost - miscellaneous materials (bulk lamp) | C32: 1.212947699 | D32: =C32*(1+'DNSP Inputs General'!L$91) -> 1.24581156 | E32: =D32*(1+'DNSP Inputs General'!M$91) -> 1.293407457 | F32: =E32*(1+'DNSP Inputs General'!N$91) -> 1.311800874 | G32: =F32*(1+'DNSP Inputs General'!O$91) -> 1.231614595 | H32: =G32*(1+'DNSP Inputs General'!P$91) -> 1.201985134
A33: Unit cost - miscellaneous materials (repair) | C33: 12.12947699 | D33: =C33*(1+'DNSP Inputs General'!L$91) -> 12.4581156 | E33: =D33*(1+'DNSP Inputs General'!M$91) -> 12.93407457 | F33: =E33*(1+'DNSP Inputs General'!N$91) -> 13.11800874 | G33: =F33*(1+'DNSP Inputs General'!O$91) -> 12.31614595 | H33: =G33*(1+'DNSP Inputs General'!P$91) -> 12.01985134
A34: Number of men in crew | C34: 2 | D34: 2 | E34: 2 | F34: 2 | G34: 2 | H34: 2
A35: Number of bulk lamp changes in 1 day - urban | C35: 90 | D35: ='[2]Input|Costs'!P37 -> 65 | E35: ='[2]Input|Costs'!Q37 -> 65 | F35: ='[2]Input|Costs'!R37 -> 65 | G35: ='[2]Input|Costs'!S37 -> 65 | H35: ='[2]Input|Costs'!T37 -> 65
A36: Number of bulk lamp changes in 1 day - rural | C36: 75 | D36: ='[2]Input|Costs'!P38 -> 55 | E36: ='[2]Input|Costs'!Q38 -> 55 | F36: ='[2]Input|Costs'!R38 -> 55 | G36: ='[2]Input|Costs'!S38 -> 55 | H36: ='[2]Input|Costs'!T38 -> 55
A37: Number of repairs in 1 day - urban | C37: 30 | D37: ='[2]Input|Costs'!P39 -> 10 | E37: ='[2]Input|Costs'!Q39 -> 10 | F37: ='[2]Input|Costs'!R39 -> 10 | G37: ='[2]Input|Costs'!S39 -> 10 | H37: ='[2]Input|Costs'!T39 -> 10
A38: Number of repairs in 1 day - rural | C38: 25 | D38: ='[2]Input|Costs'!P40 -> 9 | E38: ='[2]Input|Costs'!Q40 -> 9 | F38: ='[2]Input|Costs'!R40 -> 9 | G38: ='[2]Input|Costs'!S40 -> 9 | H38: ='[2]Input|Costs'!T40 -> 9
A39: % of repairs - lamps | C39: 0.6 | D39: 0.6 | E39: 0.6 | F39: 0.6 | G39: 0.6 | H39: 0.6
A40: % of repairs - PE cells | C40: 0.5 | D40: 0.5 | E40: 0.5 | F40: 0.5 | G40: 0.5 | H40: 0.5
A41: % of repairs - luminaires | C41: 0.15 | D41: 0.15 | E41: 0.15 | F41: 0.15 | G41: 0.15 | H41: 0.15
A42: % of repairs - other | C42: 0.1 | D42: 0.1 | E42: 0.1 | F42: 0.1 | G42: 0.1 | H42: 0.1
A44: Other Maintenance and Repair costs
A45: Traffic control costs | C45: 3441.865179 | D45: 0 | E45: =D45 -> 0 | F45: 0 | G45: 0 | H45: 0
A46: Other costs : Describe……………………………………. | C46: 0 | D46: 0 | E46: 0 | F46: 0 | G46: 0 | H46: 0
C47: =SUM(C45:C46) -> 3441.865179 | D47: 0 | E47: 0 | F47: 0 | G47: 0 | H47: 0
A48: Number of Lights | C48: ='DNSP Inputs General'!J41 -> 13619.0208 | D48: ='DNSP Inputs General'!K41 -> 13422.9069 | E48: ='DNSP Inputs General'!L41 -> 13229.61704 | F48: ='DNSP Inputs General'!M41 -> 13039.11056 | G48: ='DNSP Inputs General'!N41 -> 12851.34736 | H48: ='DNSP Inputs General'!O41 -> 12666.28796
A49: Unit Cost | C49: =IF(C48=0,0,C47/C48) -> 0.252724864 | D49: 0 | E49: 0 | F49: 0 | G49: 0 | H49: 0
A51: Location of selected public lighting assets within distributors' areas (%)
A52: Urban | C52: 0.97 | D52: 0.97 | E52: 0.97 | F52: 0.97 | G52: 0.97 | H52: 0.97
A53: Rural | C53: 0.03 | D53: 0.03 | E53: 0.03 | F53: 0.03 | G53: 0.03 | H53: 0.03
A57: Inputs - S-HP150
A59: Depreciation period | B59: years | C59: 20 | D59: =C59 -> 20 | E59: =D59 -> 20 | F59: =E59 -> 20 | G59: =F59 -> 20 | H59: =G59 -> 20
A60: Number of patrols per year | C60: 3 | D60: 3 | E60: 3 | F60: 3 | G60: 3 | H60: 3
A61: Lamps - frequency of replacement | B61: years | C61: 5 | D61: 5 | E61: 5 | F61: 5 | G61: 5 | H61: 5
A62: PE cells - frequency of replacement | B62: years | C62: 10 | D62: 10 | E62: 10 | F62: 10 | G62: 10 | H62: 10
A63: Proportion of lamps that fail between bulk change
A64: Proportion of total maintenance calls out between bulk change
A65: Unit cost - lamp | C65: 40.08792144 | D65: =C65*(1+'DNSP Inputs General'!L$91) -> 41.17407206 | E65: =D65*(1+'DNSP Inputs General'!M$91) -> 42.74711646 | F65: =E65*(1+'DNSP Inputs General'!N$91) -> 43.35501889 | G65: =F65*(1+'DNSP Inputs General'!O$91) -> 40.70486237 | H65: =G65*(1+'DNSP Inputs General'!P$91) -> 39.72560868
A66: Unit cost - PE cell | C66: 21.77241119 | D66: =C66*(1+'DNSP Inputs General'!L$91) -> 22.3623175 | E66: =D66*(1+'DNSP Inputs General'!M$91) -> 23.21666385 | F66: =E66*(1+'DNSP Inputs General'!N$91) -> 23.54682569 | G66: =F66*(1+'DNSP Inputs General'!O$91) -> 22.10748198 | H66: =G66*(1+'DNSP Inputs General'!P$91) -> 21.57563315
A67: Unit cost - miscellaneous materials | C67: 2.425895397 | D67: =C67*(1+'DNSP Inputs General'!L$91) -> 2.49162312 | E67: =D67*(1+'DNSP Inputs General'!M$91) -> 2.586814914 | F67: =E67*(1+'DNSP Inputs General'!N$91) -> 2.623601748 | G67: =F67*(1+'DNSP Inputs General'!O$91) -> 2.46322919 | H67: =G67*(1+'DNSP Inputs General'!P$91) -> 2.403970268
A68: Number of men in crew - road patrols | C68: 2 | D68: 2 | E68: 2 | F68: 2 | G68: 2 | H68: 2
A69: Number of men in crew - repairs | C69: 2 | D69: 2 | E69: 2 | F69: 2 | G69: 2 | H69: 2
A70: Number of lamps patrolled in 1 day - urban | C70: 2500 | D70: 2500 | E70: 2500 | F70: 2500 | G70: 2500 | H70: 2500
A71: Number of lamps patrolled in 1 day - rural | C71: 2000 | D71: 2000 | E71: 2000 | F71: 2000 | G71: 2000 | H71: 2000
A72: Number of repairs in 1 day - urban | C72: 20 | D72: 8 | E72: =D72 -> 8 | F72: 8 | G72: 8 | H72: 8
A73: Number of repairs in 1 day - rural | C73: 16 | D73: 7 | E73: =D73 -> 7 | F73: 7 | G73: 7 | H73: 7
A75: Other Maintenance and Repair costs
A76: Traffic control costs | C76: 73423.27712 | D76: 0 | E76: 0 | F76: 0 | G76: 0 | H76: 0
A77: Other costs : Describe……………………………………. | C77: 0 | D77: 0 | E77: 0 | F77: 0 | G77: 0 | H77: 0
C78: =SUM(C76:C77) -> 73423.27712 | D78: 0 | E78: 0 | F78: 0 | G78: 0 | H78: 0
A79: Number of Lights | C79: ='DNSP Inputs General'!J42 -> 15491.35529 | D79: ='DNSP Inputs General'!K42 -> 15707.2076 | E79: ='DNSP Inputs General'!L42 -> 15920.07047 | F79: ='DNSP Inputs General'!M42 -> 16130.38213 | G79: ='DNSP Inputs General'!N42 -> 16338.51658 | H79: ='DNSP Inputs General'!O42 -> 16544.793
A80: Trafffic control unit cost - urban | D80: ='DNSP Inputs General'!L$111/D$72/D$61*(1+D$61/D$62) -> 17.43821386 | E80: ='DNSP Inputs General'!M$111/E$72/E$61*(1+E$61/E$62) -> 17.72225755 | F80: ='DNSP Inputs General'!N$111/F$72/F$61*(1+F$61/F$62) -> 17.98602887 | G80: ='DNSP Inputs General'!O$111/G$72/G$61*(1+G$61/G$62) -> 18.27493572 | H80: ='DNSP Inputs General'!P$111/H$72/H$61*(1+H$61/H$62) -> 18.62499705
A81: Trafffic control unit cost - rural | D81: ='DNSP Inputs General'!L$111/D$73/D$61*(1+D$61/D$62) -> 19.92938727 | E81: ='DNSP Inputs General'!M$111/E$73/E$61*(1+E$61/E$62) -> 20.25400863 | F81: ='DNSP Inputs General'!N$111/F$73/F$61*(1+F$61/F$62) -> 20.55546157 | G81: ='DNSP Inputs General'!O$111/G$73/G$61*(1+G$61/G$62) -> 20.88564082 | H81: ='DNSP Inputs General'!P$111/H$73/H$61*(1+H$61/H$62) -> 21.28571091
A82: Location of selected public lighting assets within distributors' areas (%)
A83: Urban | C83: 0.95 | D83: 0.95 | E83: 0.95 | F83: 0.95 | G83: 0.95 | H83: 0.95
A84: Rural | C84: 0.05 | D84: 0.05 | E84: 0.05 | F84: 0.05 | G84: 0.05 | H84: 0.05
A88: Inputs - S-HP250
A90: Depreciation period | B90: years | C90: =C59 -> 20 | D90: 20 | E90: 20 | F90: 20 | G90: 20 | H90: 20
A91: Number of patrols per year | C91: 3 | D91: 3 | E91: 3 | F91: 3 | G91: 3 | H91: 3
A92: Lamps - frequency of replacement | B92: years | C92: 5 | D92: 5 | E92: 5 | F92: 5 | G92: 5 | H92: 5
A93: PE cells - frequency of replacement | B93: years | C93: 10 | D93: 10 | E93: 10 | F93: 10 | G93: 10 | H93: 10
A94: Proportion of lamps that fail between bulk change
A95: Proportion of total maintenance calls out between bulk change
A96: Unit cost - lamp | C96: 40.28199307 | D96: =C96*(1+'DNSP Inputs General'!L$91) -> 41.37340191 | E96: =D96*(1+'DNSP Inputs General'!M$91) -> 42.95406165 | F96: =E96*(1+'DNSP Inputs General'!N$91) -> 43.56490703 | G96: =F96*(1+'DNSP Inputs General'!O$91) -> 40.90192071 | H96: =G96*(1+'DNSP Inputs General'!P$91) -> 39.9179263
A97: Unit cost - PE cell | C97: 21.77241119 | D97: =C97*(1+'DNSP Inputs General'!L$91) -> 22.3623175 | E97: =D97*(1+'DNSP Inputs General'!M$91) -> 23.21666385 | F97: =E97*(1+'DNSP Inputs General'!N$91) -> 23.54682569 | G97: =F97*(1+'DNSP Inputs General'!O$91) -> 22.10748198 | H97: =G97*(1+'DNSP Inputs General'!P$91) -> 21.57563315
A98: Unit cost - miscellaneous materials | C98: 2.425895397 | D98: =C98*(1+'DNSP Inputs General'!L$91) -> 2.49162312 | E98: =D98*(1+'DNSP Inputs General'!M$91) -> 2.586814914 | F98: =E98*(1+'DNSP Inputs General'!N$91) -> 2.623601748 | G98: =F98*(1+'DNSP Inputs General'!O$91) -> 2.46322919 | H98: =G98*(1+'DNSP Inputs General'!P$91) -> 2.403970268
A99: Number of men in crew - road patrols | C99: =C68 -> 2 | D99: 2 | E99: 2 | F99: 2 | G99: 2 | H99: 2
A100: Number of men in crew - repairs | C100: 2 | D100: 2 | E100: 2 | F100: 2 | G100: 2 | H100: 2
A101: Number of lamps patrolled in 1 day - urban | C101: 2500 | D101: 2500 | E101: 2500 | F101: 2500 | G101: 2500 | H101: 2500
A102: Number of lamps patrolled in 1 day - rural | C102: 2000 | D102: 2000 | E102: 2000 | F102: 2000 | G102: 2000 | H102: 2000
A103: Number of repairs in 1 day - urban | C103: 20 | D103: 8 | E103: 8 | F103: 8 | G103: 8 | H103: 8
A104: Number of repairs in 1 day - rural | C104: 16 | D104: 7 | E104: 7 | F104: 7 | G104: 7 | H104: 7
A106: Other Maintenance and Repair costs
A107: Traffic control costs | C107: 0 | D107: 0 | E107: 0 | F107: 0 | G107: 0 | H107: 0
A108: Other costs : Describe……………………………………. | C108: 0 | D108: 0 | E108: 0 | F108: 0 | G108: 0 | H108: 0
C109: =SUM(C107:C108) -> 0 | D109: 0 | E109: 0 | F109: 0 | G109: 0 | H109: 0
A110: Number of Lights | C110: ='DNSP Inputs General'!J43 -> 4732.459821 | D110: ='DNSP Inputs General'!K43 -> 4742.405991 | E110: ='DNSP Inputs General'!L43 -> 4751.863732 | F110: ='DNSP Inputs General'!M43 -> 4760.857031 | G110: ='DNSP Inputs General'!N43 -> 4769.408695 | H110: ='DNSP Inputs General'!O43 -> 4777.540411
A111: Trafffic control unit cost - urban | D111: ='DNSP Inputs General'!L$111/D$103/D$92*(1+D$92/D$93) -> 17.43821386 | E111: ='DNSP Inputs General'!M$111/E$103/E$92*(1+E$92/E$93) -> 17.72225755 | F111: ='DNSP Inputs General'!N$111/F$103/F$92*(1+F$92/F$93) -> 17.98602887 | G111: ='DNSP Inputs General'!O$111/G$103/G$92*(1+G$92/G$93) -> 18.27493572 | H111: ='DNSP Inputs General'!P$111/H$103/H$92*(1+H$92/H$93) -> 18.62499705
A112: Trafffic control unit cost - rural | D112: ='DNSP Inputs General'!L$111/D$104/D$92*(1+D$92/D$93) -> 19.92938727 | E112: ='DNSP Inputs General'!M$111/E$104/E$92*(1+E$92/E$93) -> 20.25400863 | F112: ='DNSP Inputs General'!N$111/F$104/F$92*(1+F$92/F$93) -> 20.55546157 | G112: ='DNSP Inputs General'!O$111/G$104/G$92*(1+G$92/G$93) -> 20.88564082 | H112: ='DNSP Inputs General'!P$111/H$104/H$92*(1+H$92/H$93) -> 21.28571091
A113: Location of selected public lighting assets within distributors' areas (%)
A114: Urban | C114: 0.92 | D114: 0.92 | E114: 0.92 | F114: 0.92 | G114: 0.92 | H114: 0.92
A115: Rural | C115: 0.08 | D115: 0.08 | E115: 0.08 | F115: 0.08 | G115: 0.08 | H115: 0.08
A119: Dedicated street lighting poles
A121: Period of inspection | B121: years | C121: 5 | D121: 5 | E121: 5 | F121: 5 | G121: 5 | H121: 5
A122: Pole inspection rate | B122: per day | C122: 75 | D122: 75 | E122: 75 | F122: 75 | G122: 75 | H122: 75
A123: Depreciation of dedicated street lighting pole & bracket | B123: years | C123: 35 | D123: =C123 -> 35 | E123: =D123 -> 35 | F123: =E123 -> 35 | G123: =F123 -> 35 | H123: =G123 -> 35
A124: Proportion of lights on dedicated poles | C124: 0.1908204 | D124: 0.3383266143 | E124: =D124 -> 0.3383266143 | F124: 0.3383266143 | G124: 0.3383266143 | H124: 0.3383266143
A128: Other direct costs
A129: Call centre
A130: Number of calls | C130: 4222 | D130: 4222 | E130: 4222 | F130: 4222 | G130: 4222 | H130: 4222
A131: Average cost per call $ | C131: 11.34425434 | D131: 11.34425434 | E131: 11.34425434 | F131: 11.34425434 | G131: 11.34425434 | H131: 11.34425434
C132: =C130*C131 -> 47895.44184 | D132: 47895.44184 | E132: 47895.44184 | F132: 47895.44184 | G132: 47895.44184 | H132: 47895.44184
A134: GIS and other | C134: 113442.5434 | D134: 113442.5434 | E134: 113442.5434 | F134: 113442.5434 | G134: 113442.5434 | H134: 113442.5434
A135: Complaints handling | C135: 34032.76303 | D135: 34032.76303 | E135: 34032.76303 | F135: 34032.76303 | G135: 34032.76303 | H135: 34032.76303
A136: Account management | D136: 150000 | E136: =D136 -> 150000 | F136: 150000 | G136: 150000 | H136: 150000
A139: ENERGY EFFICIENT LIGHTS
A141: Inputs - T5 (2 X 14W)
A143: Depreciation period | B143: years | C143: 20 | D143: =C143 -> 20 | E143: =D143 -> 20 | F143: =E143 -> 20 | G143: =F143 -> 20 | H143: =G143 -> 20
A144: Lamps - bulk change | B144: years | C144: 4 | D144: 4 | E144: 4 | F144: 4 | G144: 4 | H144: 4
A145: PE cells - bulk change | B145: years | C145: 8 | D145: 8 | E145: 8 | F145: 8 | G145: 8 | H145: 8
A146: Ballast unit life | B146: years | C146: 20 | D146: =C146 -> 20 | E146: =D146 -> 20 | F146: =E146 -> 20 | G146: =F146 -> 20 | H146: =G146 -> 20
A147: Proportion of luminaires that fail between bulk change | C147: 0.114 | D147: 0.256 | E147: =D147 -> 0.256 | F147: 0.256 | G147: 0.256 | H147: 0.256
A148: Proportion of total maintenance calls out between bulk change
A149: Unit cost - lamp | C149: 9.703581588 | D149: =C149*(1+'DNSP Inputs General'!L$91) -> 9.96649248 | E149: =D149*(1+'DNSP Inputs General'!M$91) -> 10.34725966 | F149: =E149*(1+'DNSP Inputs General'!N$91) -> 10.49440699 | G149: =F149*(1+'DNSP Inputs General'!O$91) -> 9.852916761 | H149: =G149*(1+'DNSP Inputs General'!P$91) -> 9.615881072
A150: Unit cost - PE cell | C150: 16.37479393 | D150: =C150*(1+'DNSP Inputs General'!L$91) -> 16.81845606 | E150: =D150*(1+'DNSP Inputs General'!M$91) -> 17.46100067 | F150: =E150*(1+'DNSP Inputs General'!N$91) -> 17.7093118 | G150: =F150*(1+'DNSP Inputs General'!O$91) -> 16.62679703 | H150: =G150*(1+'DNSP Inputs General'!P$91) -> 16.22679931
A151: Unit cost - luminaire | C151: 234.0989058 | D151: =C151*(1+'DNSP Inputs General'!L$91) -> 240.4416311 | E151: =D151*(1+'DNSP Inputs General'!M$91) -> 249.6276392 | F151: =E151*(1+'DNSP Inputs General'!N$91) -> 253.1775687 | G151: =F151*(1+'DNSP Inputs General'!O$91) -> 237.7016169 | H151: =G151*(1+'DNSP Inputs General'!P$91) -> 231.9831309
A152: Unit cost - miscellaneous materials (bulk lamp) | C152: 1.212947699 | D152: =C152*(1+'DNSP Inputs General'!L$91) -> 1.24581156 | E152: =D152*(1+'DNSP Inputs General'!M$91) -> 1.293407457 | F152: =E152*(1+'DNSP Inputs General'!N$91) -> 1.311800874 | G152: =F152*(1+'DNSP Inputs General'!O$91) -> 1.231614595 | H152: =G152*(1+'DNSP Inputs General'!P$91) -> 1.201985134
A153: Unit cost - miscellaneous materials (repair) | C153: 12.12947699 | D153: =C153*(1+'DNSP Inputs General'!L$91) -> 12.4581156 | E153: =D153*(1+'DNSP Inputs General'!M$91) -> 12.93407457 | F153: =E153*(1+'DNSP Inputs General'!N$91) -> 13.11800874 | G153: =F153*(1+'DNSP Inputs General'!O$91) -> 12.31614595 | H153: =G153*(1+'DNSP Inputs General'!P$91) -> 12.01985134
A154: Number of men in crew | C154: 2 | D154: 2 | E154: 2 | F154: 2 | G154: 2 | H154: 2
A155: Number of bulk lamp changes in 1 day - urban | C155: 77 | D155: 50 | E155: =D155 -> 50 | F155: 50 | G155: 50 | H155: 50
A156: Number of bulk lamp changes in 1 day - rural | C156: 64 | D156: 42 | E156: =D156 -> 42 | F156: 42 | G156: 42 | H156: 42
A157: Number of repairs in 1 day - urban | C157: 26 | D157: 10 | E157: =D157 -> 10 | F157: 10 | G157: 10 | H157: 10
A158: Number of repairs in 1 day - rural | C158: 21 | D158: 9 | E158: =D158 -> 9 | F158: 9 | G158: 9 | H158: 9
A159: % of repairs - lamps | C159: 0.6 | D159: 0.6 | E159: 0.6 | F159: 0.6 | G159: 0.6 | H159: 0.6
A160: % of repairs - PE cells | C160: 0.5 | D160: 0.5 | E160: 0.5 | F160: 0.5 | G160: 0.5 | H160: 0.5
A161: % of repairs - luminaires | C161: 0.15 | D161: 0.15 | E161: 0.15 | F161: 0.15 | G161: 0.15 | H161: 0.15
A162: % of repairs - other | C162: 0.1 | D162: 0.1 | E162: 0.1 | F162: 0.1 | G162: 0.1 | H162: 0.1
A164: Other Maintenance and Repair costs
A165: Traffic control costs | C165: 1663.049276 | D165: 0 | E165: 0 | F165: 0 | G165: 0 | H165: 0
A166: Other costs : Describe……………………………………. | C166: 0 | D166: 0 | E166: 0 | F166: 0 | G166: 0 | H166: 0
C167: =SUM(C165:C166) -> 1663.049276 | D167: 0 | E167: 0 | F167: 0 | G167: 0 | H167: 0
A168: Number of Lights | C168: ='DNSP Inputs General'!J68 -> 34586.13259 | D168: ='DNSP Inputs General'!K68 -> 35086.08 | E168: ='DNSP Inputs General'!L68 -> 35564.62 | F168: ='DNSP Inputs General'!M68 -> 36043.16 | G168: ='DNSP Inputs General'!N68 -> 36521.7 | H168: ='DNSP Inputs General'!O68 -> 37000.24
A169: Unit Cost | C169: =IF(C168=0,0,C167/C168) -> 0.04808427979 | D169: 0 | E169: 0 | F169: 0 | G169: 0 | H169: 0
A171: Location of selected public lighting assets within distributors' areas (%)
A172: Urban | C172: 0.97 | D172: 0.97 | E172: 0.97 | F172: 0.97 | G172: 0.97 | H172: 0.97
A173: Rural | C173: 0.03 | D173: 0.03 | E173: 0.03 | F173: 0.03 | G173: 0.03 | H173: 0.03
A176: Inputs - LED 18W
A178: Depreciation period | D178: 20 | E178: =D178 -> 20 | F178: 20 | G178: 20 | H178: 20
A179: Lamps - bulk change | D179: ='[2]Input|Costs'!O209 -> 0 | E179: =D179 -> 0 | F179: 0 | G179: 0 | H179: 0
A180: PE cells - bulk change | D180: ='[2]Input|Costs'!O210 -> 8 | E180: =D180 -> 8 | F180: 8 | G180: 8 | H180: 8
A181: Ballast unit life | D181: =C146 -> 20 | E181: =D181 -> 20 | F181: 20 | G181: 20 | H181: 20
A182: Proportion of light failure between bulk change | D182: ='[2]Input|Costs'!O211 -> 0.1 | E182: =D182 -> 0.1 | F182: 0.1 | G182: 0.1 | H182: 0.1
A183: Proportion of total maintenance calls out between bulk change
A184: Unit cost - lamp | D184: ='[2]Input|Costs'!O212*(1+'DNSP Inputs General'!L$91) -> 0 | E184: =D184*(1+'DNSP Inputs General'!M$91) -> 0 | F184: =E184*(1+'DNSP Inputs General'!N$91) -> 0 | G184: =F184*(1+'DNSP Inputs General'!O$91) -> 0 | H184: =G184*(1+'DNSP Inputs General'!P$91) -> 0
A185: Unit cost - PE cell | D185: ='[2]Input|Costs'!O213*(1+'DNSP Inputs General'!L$91) -> 15.90519239 | E185: =D185*(1+'DNSP Inputs General'!M$91) -> 16.512846 | F185: =E185*(1+'DNSP Inputs General'!N$91) -> 16.74767352 | G185: =F185*(1+'DNSP Inputs General'!O$91) -> 15.72394069 | H185: =G185*(1+'DNSP Inputs General'!P$91) -> 15.34566335
A186: Unit cost - luminaire | D186: ='[2]Input|Costs'!O214*(1+'DNSP Inputs General'!L$91) -> 314.6194988 | E186: =D186*(1+'DNSP Inputs General'!M$91) -> 326.6394526 | F186: =E186*(1+'DNSP Inputs General'!N$91) -> 331.2845593 | G186: =F186*(1+'DNSP Inputs General'!O$91) -> 311.0341717 | H186: =G186*(1+'DNSP Inputs General'!P$91) -> 303.5514942
A187: Unit cost - miscellaneous materials (bulk lamp) | D187: =C32*(1+'DNSP Inputs General'!L$91) -> 1.24581156 | E187: =D187*(1+'DNSP Inputs General'!M$91) -> 1.293407457 | F187: =E187*(1+'DNSP Inputs General'!N$91) -> 1.311800874 | G187: =F187*(1+'DNSP Inputs General'!O$91) -> 1.231614595 | H187: =G187*(1+'DNSP Inputs General'!P$91) -> 1.201985134
A188: Unit cost - miscellaneous materials (repair) | D188: =C33*(1+'DNSP Inputs General'!L$91) -> 12.4581156 | E188: =D188*(1+'DNSP Inputs General'!M$91) -> 12.93407457 | F188: =E188*(1+'DNSP Inputs General'!N$91) -> 13.11800874 | G188: =F188*(1+'DNSP Inputs General'!O$91) -> 12.31614595 | H188: =G188*(1+'DNSP Inputs General'!P$91) -> 12.01985134
A189: Number of men in crew | D189: =C154 -> 2 | E189: =D189 -> 2 | F189: 2 | G189: 2 | H189: 2
A190: Number of PE cell changes in 1 day - urban | D190: =C155 -> 77 | E190: =D190 -> 77 | F190: 77 | G190: 77 | H190: 77
A191: Number of PE cell changes in 1 day - rural | D191: =C156 -> 64 | E191: =D191 -> 64 | F191: 64 | G191: 64 | H191: 64
A192: Number of repairs in 1 day - urban | D192: =C157 -> 26 | E192: =D192 -> 26 | F192: 26 | G192: 26 | H192: 26
A193: Number of repairs in 1 day - rural | D193: =C158 -> 21 | E193: =D193 -> 21 | F193: 21 | G193: 21 | H193: 21
A194: % of repairs - lamps | D194: 0 | E194: 0 | F194: 0 | G194: 0 | H194: 0
A195: % of repairs - PE cells | D195: 0.5 | E195: =D195 -> 0.5 | F195: 0.5 | G195: 0.5 | H195: 0.5
A196: % of repairs - luminaires | D196: 0.15 | E196: 0.15 | F196: 0.15 | G196: 0.15 | H196: 0.15
A197: % of repairs - other | D197: 0.1 | E197: 0.1 | F197: 0.1 | G197: 0.1 | H197: 0.1
A199: Other Maintenance and Repair costs
A200: Traffic control costs | D200: 0 | E200: 0 | F200: 0 | G200: 0 | H200: 0
A201: Other costs : Describe……………………………………. | D201: 0 | E201: 0 | F201: 0 | G201: 0 | H201: 0
D202: =SUM(D200:D201) -> 0 | E202: 0 | F202: 0 | G202: 0 | H202: 0
A203: Number of Lights | D203: ='DNSP Inputs General'!K70 -> 456.3259136 | E203: ='DNSP Inputs General'!L70 -> 671.2556204 | F203: ='DNSP Inputs General'!M70 -> 883.0903395 | G203: ='DNSP Inputs General'!N70 -> 1091.874639 | H203: ='DNSP Inputs General'!O70 -> 1297.652444
A204: Unit Cost | D204: =IF(D203=0,0,D202/D203) -> 0 | E204: 0 | F204: 0 | G204: 0 | H204: 0
A206: Location of selected public lighting assets within distributors' areas (%)
A207: Urban | D207: 1 | E207: =D207 -> 1 | F207: 1 | G207: 1 | H207: 1
A208: Rural | D208: 0 | E208: =D208 -> 0 | F208: 0 | G208: 0 | H208: 0

Sheet DNSP Inputs Capex
A1: Public Lighting Cost Build-up Model
A3: ='DNSP Inputs O & M'!$A$3 -> Jemena | C3: Capex Data Inputs
C5: Real 2015 $
A7: Input parameters | C7: 2015 | D7: 2016 | E7: 2017 | F7: 2018 | G7: 2019 | H7: 2020
A9: Inputs - all lamps
A11: Material premium for rural areas | C11: ='DNSP Inputs O & M'!C11 -> 0.05 | D11: ='DNSP Inputs O & M'!D11 -> 0.05 | E11: ='DNSP Inputs O & M'!E11 -> 0.05 | F11: ='DNSP Inputs O & M'!F11 -> 0.05 | G11: ='DNSP Inputs O & M'!G11 -> 0.05 | H11: ='DNSP Inputs O & M'!H11 -> 0.05
A12: Labour rate (per hour) | C12: ='DNSP Inputs O & M'!C12 -> 89.64428472 | D12: ='DNSP Inputs O & M'!D12 -> 90.43467502 | E12: ='DNSP Inputs O & M'!E12 -> 91.6533557 | F12: ='DNSP Inputs O & M'!F12 -> 93.26244924 | G12: ='DNSP Inputs O & M'!G12 -> 95.23112666 | H12: ='DNSP Inputs O & M'!H12 -> 96.95629191
A13: Elevated platform vehicle (per hour) - urban MV,urban T5 | C13: ='DNSP Inputs O & M'!C14 -> 39.70489021 | D13: ='DNSP Inputs O & M'!D14 -> 40.7806629 | E13: ='DNSP Inputs O & M'!E14 -> 42.33867721 | F13: ='DNSP Inputs O & M'!F14 -> 42.94077127 | G13: ='DNSP Inputs O & M'!G14 -> 40.31593641 | H13: ='DNSP Inputs O & M'!H14 -> 39.34603927
A14: Elevated platform vehicle (per hour) - rural MV, rural T5, S-HP | C14: ='DNSP Inputs O & M'!C15 -> 51.04914455 | D14: ='DNSP Inputs O & M'!D15 -> 52.43228087 | E14: ='DNSP Inputs O & M'!E15 -> 54.43544212 | F14: ='DNSP Inputs O & M'!F15 -> 55.20956306 | G14: ='DNSP Inputs O & M'!G15 -> 51.83477538 | H14: ='DNSP Inputs O & M'!H15 -> 50.58776477
A15: Number of hours in a day | C15: ='DNSP Inputs O & M'!C17 -> 8 | D15: ='DNSP Inputs O & M'!D17 -> 8 | E15: ='DNSP Inputs O & M'!E17 -> 8 | F15: ='DNSP Inputs O & M'!F17 -> 8 | G15: ='DNSP Inputs O & M'!G17 -> 8 | H15: ='DNSP Inputs O & M'!H17 -> 8
A16: Indirect overheads | C16: ='DNSP Inputs O & M'!C18 -> 0.25 | D16: ='DNSP Inputs O & M'!D18 -> 0.25 | E16: ='DNSP Inputs O & M'!E18 -> 0.25 | F16: ='DNSP Inputs O & M'!F18 -> 0.25 | G16: ='DNSP Inputs O & M'!G18 -> 0.25 | H16: ='DNSP Inputs O & M'!H18 -> 0.25 | J16: Note: JEN has applied indirect overheads to capex activities similar to opex activities in "DNSP Inputs O &M" worksheet
A19: Inputs -MV80
A21: Unit cost - luminaire | C21: ='DNSP Inputs O & M'!C31 -> 192.3128576 | D21: ='DNSP Inputs O & M'!D31 -> 197.5234228 | E21: ='DNSP Inputs O & M'!E31 -> 205.0697523 | F21: ='DNSP Inputs O & M'!F31 -> 207.9860286 | G21: ='DNSP Inputs O & M'!G31 -> 195.2724941 | H21: ='DNSP Inputs O & M'!H31 -> 190.574743
A22: Unit cost - miscellaneous materials (bulk lamp) | C22: ='DNSP Inputs O & M'!C32 -> 1.212947699 | D22: ='DNSP Inputs O & M'!D32 -> 1.24581156 | E22: ='DNSP Inputs O & M'!E32 -> 1.293407457 | F22: ='DNSP Inputs O & M'!F32 -> 1.311800874 | G22: ='DNSP Inputs O & M'!G32 -> 1.231614595 | H22: ='DNSP Inputs O & M'!H32 -> 1.201985134
A23: Number of men in crew | C23: ='DNSP Inputs O & M'!C34 -> 2 | D23: ='DNSP Inputs O & M'!D34 -> 2 | E23: ='DNSP Inputs O & M'!E34 -> 2 | F23: ='DNSP Inputs O & M'!F34 -> 2 | G23: ='DNSP Inputs O & M'!G34 -> 2 | H23: ='DNSP Inputs O & M'!H34 -> 2
A24: Number of luminaires replaced per day - urban | C24: ='[2]Input|Costs'!$O$340 -> 16 | D24: =C24 -> 16 | E24: =D24 -> 16 | F24: 16 | G24: 16 | H24: 16
A25: Number of luminaires replaced per day - rural | C25: ='[2]Input|Costs'!$O$346 -> 13 | D25: =C25 -> 13 | E25: 13 | F25: 13 | G25: 13 | H25: 13
A27: Other Capex unit costs Describe :……………………… | C27: 0 | D27: 0 | E27: 0 | F27: 0 | G27: 0 | H27: 0
A29: Forecast Quantities to be replaced
A30: Number of luminaires replaced per year - urban | D30: ='[2]Input|Costs'!P319 -> 189 | E30: ='[2]Input|Costs'!Q319 -> 186 | F30: ='[2]Input|Costs'!R319 -> 183 | G30: ='[2]Input|Costs'!S319 -> 180 | H30: ='[2]Input|Costs'!T319 -> 178
A31: Number of luminaires replaced per year - rural | D31: ='[2]Input|Costs'!P327 -> 6 | E31: ='[2]Input|Costs'!Q327 -> 6 | F31: ='[2]Input|Costs'!R327 -> 6 | G31: ='[2]Input|Costs'!S327 -> 6 | H31: ='[2]Input|Costs'!T327 -> 6
A33: MV80 Lights replaced with T5 Energy Efficient Lights
A34: Number of Lights MV80 replaced with T5 per year | D34: ='[2]Input|Costs'!P334 -> 196.1138995 | E34: ='[2]Input|Costs'!Q334 -> 193.2898594 | F34: ='[2]Input|Costs'!R334 -> 190.5064854 | G34: ='[2]Input|Costs'!S334 -> 187.763192 | H34: ='[2]Input|Costs'!T334 -> 185.059402
A38: Inputs - S-HP150
A40: Unit cost - luminaire | C40: 227.5975062 | D40: =227.597506158061*(1+'DNSP Inputs General'!L$91) -> 233.7640811 | E40: =D40*(1+'DNSP Inputs General'!M$91) -> 242.6949752 | F40: =E40*(1+'DNSP Inputs General'!N$91) -> 246.146316 | G40: =F40*(1+'DNSP Inputs General'!O$91) -> 231.1001626 | H40: =G40*(1+'DNSP Inputs General'!P$91) -> 225.5404905
A41: Unit cost - miscellaneous materials | C41: ='DNSP Inputs O & M'!C67 -> 2.425895397 | D41: ='DNSP Inputs O & M'!D67 -> 2.49162312 | E41: ='DNSP Inputs O & M'!E67 -> 2.586814914 | F41: ='DNSP Inputs O & M'!F67 -> 2.623601748 | G41: ='DNSP Inputs O & M'!G67 -> 2.46322919 | H41: ='DNSP Inputs O & M'!H67 -> 2.403970268
A42: Number of men in crew - repairs | C42: ='DNSP Inputs O & M'!C69 -> 2 | D42: ='DNSP Inputs O & M'!D69 -> 2 | E42: ='DNSP Inputs O & M'!E69 -> 2 | F42: ='DNSP Inputs O & M'!F69 -> 2 | G42: ='DNSP Inputs O & M'!G69 -> 2 | H42: ='DNSP Inputs O & M'!H69 -> 2
A43: Number of luminaires replaced per day - urban | C43: ='[2]Input|Costs'!$O$341 -> 16 | D43: =C43 -> 16 | E43: =D43 -> 16 | F43: 16 | G43: 16 | H43: 16
A44: Number of luminaires replaced per day - rural | C44: ='[2]Input|Costs'!$O$347 -> 13 | D44: =C44 -> 13 | E44: 13 | F44: 13 | G44: 13 | H44: 13
A46: Other Capex unit costs Describe :……………………… | C46: 0 | D46: 0 | E46: 0 | F46: 0 | G46: 0 | H46: 0
A48: Forecast Quantities to be replaced
A49: Number of luminaires replaced per year - urban | D49: ='[2]Input|Costs'!P320 -> 413 | E49: ='[2]Input|Costs'!Q320 -> 419 | F49: ='[2]Input|Costs'!R320 -> 425 | G49: ='[2]Input|Costs'!S320 -> 430 | H49: ='[2]Input|Costs'!T320 -> 436
A50: Number of luminaires replaced per year - rural | D50: ='[2]Input|Costs'!P328 -> 22 | E50: ='[2]Input|Costs'!Q328 -> 22 | F50: ='[2]Input|Costs'!R328 -> 22 | G50: ='[2]Input|Costs'!S328 -> 23 | H50: ='[2]Input|Costs'!T328 -> 23
A54: Inputs - S-HP250
A56: Unit cost - luminaire | C56: 230.9937597 | D56: =230.993759714033*(1+'DNSP Inputs General'!L$91) -> 237.2523535 | E56: =D56*(1+'DNSP Inputs General'!M$91) -> 246.3165161 | F56: =E56*(1+'DNSP Inputs General'!N$91) -> 249.8193585 | G56: =F56*(1+'DNSP Inputs General'!O$91) -> 234.5486835 | H56: =G56*(1+'DNSP Inputs General'!P$91) -> 228.9060489
A57: Unit cost - miscellaneous materials | C57: ='DNSP Inputs O & M'!C98 -> 2.425895397 | D57: ='DNSP Inputs O & M'!D98 -> 2.49162312 | E57: ='DNSP Inputs O & M'!E98 -> 2.586814914 | F57: ='DNSP Inputs O & M'!F98 -> 2.623601748 | G57: ='DNSP Inputs O & M'!G98 -> 2.46322919 | H57: ='DNSP Inputs O & M'!H98 -> 2.403970268
A58: Number of men in crew - repairs | C58: ='DNSP Inputs O & M'!C100 -> 2 | D58: ='DNSP Inputs O & M'!D100 -> 2 | E58: ='DNSP Inputs O & M'!E100 -> 2 | F58: ='DNSP Inputs O & M'!F100 -> 2 | G58: ='DNSP Inputs O & M'!G100 -> 2 | H58: ='DNSP Inputs O & M'!H100 -> 2
A59: Number of luminaires replaced per day - urban | C59: ='[2]Input|Costs'!$O$342 -> 16 | D59: =D43 -> 16 | E59: 16 | F59: 16 | G59: 16 | H59: 16
A60: Number of luminaires replaced per day - rural | C60: ='[2]Input|Costs'!$O$348 -> 13 | D60: =D44 -> 13 | E60: 13 | F60: 13 | G60: 13 | H60: 13
A62: Other Capex unit costs Describe :……………………… | C62: 0 | D62: 0 | E62: 0 | F62: 0 | G62: 0 | H62: 0
A64: Forecast Quantities to be replaced
A65: Number of luminaires replaced per year - urban | D65: ='[2]Input|Costs'!P321 -> 121 | E65: ='[2]Input|Costs'!Q321 -> 121 | F65: ='[2]Input|Costs'!R321 -> 121 | G65: ='[2]Input|Costs'!S321 -> 121 | H65: ='[2]Input|Costs'!T321 -> 121
A66: Number of luminaires replaced per year - rural | D66: ='[2]Input|Costs'!P329 -> 10 | E66: ='[2]Input|Costs'!Q329 -> 11 | F66: ='[2]Input|Costs'!R329 -> 11 | G66: ='[2]Input|Costs'!S329 -> 11 | H66: ='[2]Input|Costs'!T329 -> 11
A70: Dedicated street lighting poles
A72: Cost of pole & bracket | C72: 598.1859349 | D72: ='[2]Input|Costs'!O286*(1+'DNSP Inputs General'!L$91) -> 619.0488601 | E72: =D72*(1+'DNSP Inputs General'!M$91) -> 642.6994561 | F72: =E72*(1+'DNSP Inputs General'!N$91) -> 651.8392203 | G72: =F72*(1+'DNSP Inputs General'!O$91) -> 611.9943303 | H72: =G72*(1+'DNSP Inputs General'!P$91) -> 597.2713298
A73: Number of poles & brackets replaced per day | C73: 4 | D73: 4 | E73: 4 | F73: 4 | G73: 4 | H73: 4
A74: Cost of bracket on non-dedicated poles | C74: 47.85487479 | D74: =47.8548747910055*(1+'DNSP Inputs General'!L$91) -> 49.15146489 | E74: =D74*(1+'DNSP Inputs General'!M$91) -> 51.02928344 | F74: =E74*(1+'DNSP Inputs General'!N$91) -> 51.75496574 | G74: =F74*(1+'DNSP Inputs General'!O$91) -> 48.59134678 | H74: =G74*(1+'DNSP Inputs General'!P$91) -> 47.42236467
A75: Number of brackets replaced per day | C75: 20 | D75: 20 | E75: 20 | F75: 20 | G75: 20 | H75: 20
A77: Other poles & brackets Capex unit costs Describe :………………… | C77: 0 | D77: 0 | E77: 0 | F77: 0 | G77: 0 | H77: 0
A80: Forecast Quantities to be replaced
A81: Number of poles & brackets replaced per year - urban | D81: ='[2]Input|Costs'!P324 -> 321 | E81: ='[2]Input|Costs'!Q324 -> 321 | F81: ='[2]Input|Costs'!R324 -> 321 | G81: ='[2]Input|Costs'!S324 -> 321 | H81: ='[2]Input|Costs'!T324 -> 321
A82: Number of poles & brackets replaced per year - rural | D82: ='[2]Input|Costs'!P332 -> 17 | E82: ='[2]Input|Costs'!Q332 -> 17 | F82: ='[2]Input|Costs'!R332 -> 17 | G82: ='[2]Input|Costs'!S332 -> 17 | H82: ='[2]Input|Costs'!T332 -> 17
A84: Brackets on non-dedicated poles :
A85: Number of brackets replaced per year - urban | D85: ='[2]Input|Costs'!P325 -> 33 | E85: ='[2]Input|Costs'!Q325 -> 33 | F85: ='[2]Input|Costs'!R325 -> 33 | G85: ='[2]Input|Costs'!S325 -> 33 | H85: ='[2]Input|Costs'!T325 -> 33
A86: Number of brackets replaced per year - rural | D86: ='[2]Input|Costs'!P333 -> 2 | E86: ='[2]Input|Costs'!Q333 -> 2 | F86: ='[2]Input|Costs'!R333 -> 2 | G86: ='[2]Input|Costs'!S333 -> 2 | H86: ='[2]Input|Costs'!T333 -> 2
A90: Luminaire Replacements - Other Light types (excluding T5s)
A91: Number of luminaires replaced per year | D91: 0 | E91: 0 | F91: 0 | G91: 0 | H91: 0
A92: Forecast Capex | D92: 0 | E92: 0 | F92: 0 | G92: 0 | H92: 0
A95: Inputs -T5
A97: Unit cost - luminaire | D97: ='DNSP Inputs O & M'!D151 -> 240.4416311 | E97: ='DNSP Inputs O & M'!E151 -> 249.6276392 | F97: ='DNSP Inputs O & M'!F151 -> 253.1775687 | G97: ='DNSP Inputs O & M'!G151 -> 237.7016169 | H97: ='DNSP Inputs O & M'!H151 -> 231.9831309
A98: Unit cost - miscellaneous materials (bulk lamp) | D98: ='DNSP Inputs O & M'!D152 -> 1.24581156 | E98: ='DNSP Inputs O & M'!E152 -> 1.293407457 | F98: ='DNSP Inputs O & M'!F152 -> 1.311800874 | G98: ='DNSP Inputs O & M'!G152 -> 1.231614595 | H98: ='DNSP Inputs O & M'!H152 -> 1.201985134
A99: Number of men in crew | D99: ='DNSP Inputs O & M'!D154 -> 2 | E99: ='DNSP Inputs O & M'!E154 -> 2 | F99: ='DNSP Inputs O & M'!F154 -> 2 | G99: ='DNSP Inputs O & M'!G154 -> 2 | H99: ='DNSP Inputs O & M'!H154 -> 2
A100: Number of luminaires replaced per day - urban | D100: ='[2]Input|Costs'!$O$343 -> 16 | E100: ='[2]Input|Costs'!$O$343 -> 16 | F100: ='[2]Input|Costs'!$O$343 -> 16 | G100: ='[2]Input|Costs'!$O$343 -> 16 | H100: ='[2]Input|Costs'!$O$343 -> 16
A101: Number of luminaires replaced per day - rural | D101: ='[2]Input|Costs'!$O$349 -> 13 | E101: ='[2]Input|Costs'!$O$349 -> 13 | F101: ='[2]Input|Costs'!$O$349 -> 13 | G101: ='[2]Input|Costs'!$O$349 -> 13 | H101: ='[2]Input|Costs'!$O$349 -> 13
A103: Other Capex unit costs Describe :……………………… | D103: ='DNSP Inputs O & M'!D166 -> 0 | E103: ='DNSP Inputs O & M'!E166 -> 0 | F103: ='DNSP Inputs O & M'!F166 -> 0 | G103: ='DNSP Inputs O & M'!G166 -> 0 | H103: ='DNSP Inputs O & M'!H166 -> 0
A105: Forecast Quantities to be replaced
A106: Number of luminaires replaced per year - urban | D106: ='[2]Input|Costs'!P322 -> 494 | E106: ='[2]Input|Costs'!Q322 -> 501 | F106: ='[2]Input|Costs'!R322 -> 507 | G106: ='[2]Input|Costs'!S322 -> 514 | H106: ='[2]Input|Costs'!T322 -> 521
A107: Number of luminaires replaced per year - rural | D107: ='[2]Input|Costs'!P330 -> 15 | E107: ='[2]Input|Costs'!Q330 -> 15 | F107: ='[2]Input|Costs'!R330 -> 16 | G107: ='[2]Input|Costs'!S330 -> 16 | H107: ='[2]Input|Costs'!T330 -> 16
A110: Inputs -LED18W
A112: Unit cost - luminaire | D112: ='DNSP Inputs O & M'!D186 -> 314.6194988 | E112: ='DNSP Inputs O & M'!E186 -> 326.6394526 | F112: ='DNSP Inputs O & M'!F186 -> 331.2845593 | G112: ='DNSP Inputs O & M'!G186 -> 311.0341717 | H112: ='DNSP Inputs O & M'!H186 -> 303.5514942
A113: Unit cost - miscellaneous materials (PE cell) | D113: ='DNSP Inputs O & M'!D187 -> 1.24581156 | E113: ='DNSP Inputs O & M'!E187 -> 1.293407457 | F113: ='DNSP Inputs O & M'!F187 -> 1.311800874 | G113: ='DNSP Inputs O & M'!G187 -> 1.231614595 | H113: ='DNSP Inputs O & M'!H187 -> 1.201985134
A114: Number of men in crew | D114: ='DNSP Inputs O & M'!D189 -> 2 | E114: ='DNSP Inputs O & M'!E189 -> 2 | F114: ='DNSP Inputs O & M'!F189 -> 2 | G114: ='DNSP Inputs O & M'!G189 -> 2 | H114: ='DNSP Inputs O & M'!H189 -> 2
A115: Number of luminaires replaced per day - urban | D115: ='[2]Input|Costs'!$O$344 -> 16 | E115: ='[2]Input|Costs'!$O$344 -> 16 | F115: ='[2]Input|Costs'!$O$344 -> 16 | G115: ='[2]Input|Costs'!$O$344 -> 16 | H115: ='[2]Input|Costs'!$O$344 -> 16
A116: Number of luminaires replaced per day - rural | D116: ='[2]Input|Costs'!$O$350 -> 13 | E116: ='[2]Input|Costs'!$O$350 -> 13 | F116: ='[2]Input|Costs'!$O$350 -> 13 | G116: ='[2]Input|Costs'!$O$350 -> 13 | H116: ='[2]Input|Costs'!$O$350 -> 13
A118: Other Capex unit costs Describe :……………………… | D118: ='DNSP Inputs O & M'!D201 -> 0 | E118: ='DNSP Inputs O & M'!E201 -> 0 | F118: ='DNSP Inputs O & M'!F201 -> 0 | G118: ='DNSP Inputs O & M'!G201 -> 0 | H118: ='DNSP Inputs O & M'!H201 -> 0
A120: Forecast Quantities to be replaced
A121: Number of luminaires replaced per year - urban | D121: 7 | E121: 10 | F121: 13 | G121: 16 | H121: 19
A122: Number of luminaires replaced per year - rural | D122: 0 | E122: 0 | F122: 0 | G122: 0 | H122: 0

Sheet PL Tariffs
A1: ='DNSP Inputs O & M'!$A$3 -> Jemena | E1: Global Check | F1: =IF(SUM('Toal RAB'!F1,'Depn & WACC Post 2004'!F1,'Cashflow Summary'!F1)<1,"Ok","Error") -> Ok
A3: Public Lighting Tariffs | C3: Nominal Prices | J3: Nominal Price Movement | P3: Real Price Movement (Implied X Factor)
C4: Actual
A5: ='DNSP Inputs General'!A$40 -> Existing Lights | C5: ='DNSP Inputs General'!K$2 -> 2015 | D5: ='DNSP Inputs General'!L$2 -> 2016 | E5: ='DNSP Inputs General'!M$2 -> 2017 | F5: ='DNSP Inputs General'!N$2 -> 2018 | G5: ='DNSP Inputs General'!O$2 -> 2019 | H5: ='DNSP Inputs General'!P$2 -> 2020 | J5: =D5 -> 2016 | K5: =E5 -> 2017 | L5: 2018 | M5: 2019 | N5: 2020 | P5: =J5 -> 2016 | Q5: =K5 -> 2017 | R5: 2018 | S5: 2019 | T5: 2020
A6: ='DNSP Inputs General'!A41 -> Mercury Vapour 80 watt | C6: ='DNSP Inputs General'!E41 -> 48.83 | D6: ='Charges Summary'!D$31 -> 59.81866535 | E6: ='Charges Summary'!E$31 -> 62.58864324 | F6: ='Charges Summary'!F$31 -> 65.21284768 | G6: ='Charges Summary'!G$31 -> 66.75946203 | H6: ='Charges Summary'!H$31 -> 68.8175161 | J6: =IF(C6=0,"",D6/C6-1) -> 0.2250392249 | K6: =IF(D6=0,"",E6/D6-1) -> 0.04630624699 | L6: =IF(E6=0,"",F6/E6-1) -> 0.04192780514 | M6: =IF(F6=0,"",G6/F6-1) -> 0.02371640564 | N6: =IF(G6=0,"",H6/G6-1) -> 0.03082790073 | P6: =IF(C6=0,"",(D6/'Charges Summary'!D$4)/C6-1) -> 0.1948811248 | Q6: =IF(D6=0,"",(E6/'Charges Summary'!E$4)/(D6/'Charges Summary'!D$4)-1) -> 0.02054820769 | R6: =IF(E6=0,"",(F6/'Charges Summary'!F$4)/(E6/'Charges Summary'!E$4)-1) -> 0.01627755462 | S6: =IF(F6=0,"",(G6/'Charges Summary'!G$4)/(F6/'Charges Summary'!F$4)-1) -> -0.001485515389 | T6: =IF(G6=0,"",(H6/'Charges Summary'!H$4)/(G6/'Charges Summary'!G$4)-1) -> 0.00545090842
A7: ='DNSP Inputs General'!A42 -> Sodium High Pressure 150 watt | C7: ='DNSP Inputs General'!E42 -> 91.54 | D7: ='Charges Summary'!D$55 -> 157.4884384 | E7: ='Charges Summary'!E$55 -> 164.6380303 | F7: ='Charges Summary'!F$55 -> 171.503321 | G7: ='Charges Summary'!G$55 -> 175.9328761 | H7: ='Charges Summary'!H$55 -> 181.8014446 | J7: 0.7204330176 | K7: 0.0453975665 | L7: 0.04169930064 | M7: 0.02582780929 | N7: 0.0333568611 | P7: =IF(C7=0,"",(D7/'Charges Summary'!D$4)/C7-1) -> 0.678079279 | Q7: =IF(D7=0,"",(E7/'Charges Summary'!E$4)/(D7/'Charges Summary'!D$4)-1) -> 0.01966189716 | R7: =IF(E7=0,"",(F7/'Charges Summary'!F$4)/(E7/'Charges Summary'!E$4)-1) -> 0.01605467546 | S7: =IF(F7=0,"",(G7/'Charges Summary'!G$4)/(F7/'Charges Summary'!F$4)-1) -> 0.0005739095772 | T7: =IF(G7=0,"",(H7/'Charges Summary'!H$4)/(G7/'Charges Summary'!G$4)-1) -> 0.007917610669
A8: ='DNSP Inputs General'!A43 -> Sodium High Pressure 250 watt | C8: ='DNSP Inputs General'!E43 -> 93.95 | D8: ='Charges Summary'!D$71 -> 159.0645225 | E8: ='Charges Summary'!E$71 -> 166.2703632 | F8: ='Charges Summary'!F$71 -> 173.1920403 | G8: ='Charges Summary'!G$71 -> 177.6654254 | H8: ='Charges Summary'!H$71 -> 183.5822755 | J8: 0.6930763443 | K8: 0.04530136883 | L8: 0.04162904937 | M8: 0.02582904523 | N8: 0.03330332927 | P8: =IF(C8=0,"",(D8/'Charges Summary'!D$4)/C8-1) -> 0.6513960742 | Q8: =IF(D8=0,"",(E8/'Charges Summary'!E$4)/(D8/'Charges Summary'!D$4)-1) -> 0.01956806768 | R8: =IF(E8=0,"",(F8/'Charges Summary'!F$4)/(E8/'Charges Summary'!E$4)-1) -> 0.01598615364 | S8: =IF(F8=0,"",(G8/'Charges Summary'!G$4)/(F8/'Charges Summary'!F$4)-1) -> 0.0005751150967 | T8: =IF(G8=0,"",(H8/'Charges Summary'!H$4)/(G8/'Charges Summary'!G$4)-1) -> 0.007865396693
A9: ='DNSP Inputs General'!A44 -> 55W Ind | C9: ='DNSP Inputs General'!E44 -> 61.03 | D9: =IF('DNSP Inputs General'!$B44='DNSP Inputs General'!$A$41,D$6,IF('DNSP Inputs General'!$B44='DNSP Inputs General'!$A$42,D$7,D$8))*'DNSP Inputs General'!$D44 -> 74.77333169 | E9: =IF('DNSP Inputs General'!$B44='DNSP Inputs General'!$A$41,E$6,IF('DNSP Inputs General'!$B44='DNSP Inputs General'!$A$42,E$7,E$8))*'DNSP Inputs General'!$D44 -> 78.23580405 | F9: =IF('DNSP Inputs General'!$B44='DNSP Inputs General'!$A$41,F$6,IF('DNSP Inputs General'!$B44='DNSP Inputs General'!$A$42,F$7,F$8))*'DNSP Inputs General'!$D44 -> 81.5160596 | G9: =IF('DNSP Inputs General'!$B44='DNSP Inputs General'!$A$41,G$6,IF('DNSP Inputs General'!$B44='DNSP Inputs General'!$A$42,G$7,G$8))*'DNSP Inputs General'!$D44 -> 83.44932754 | H9: =IF('DNSP Inputs General'!$B44='DNSP Inputs General'!$A$41,H$6,IF('DNSP Inputs General'!$B44='DNSP Inputs General'!$A$42,H$7,H$8))*'DNSP Inputs General'!$D44 -> 86.02189512 | J9: 0.2251897704 | K9: 0.04630624699 | L9: 0.04192780514 | M9: 0.02371640564 | N9: 0.03082790073 | P9: =IF(C9=0,"",(D9/'Charges Summary'!D$4)/C9-1) -> 0.1950279642 | Q9: =IF(D9=0,"",(E9/'Charges Summary'!E$4)/(D9/'Charges Summary'!D$4)-1) -> 0.02054820769 | R9: =IF(E9=0,"",(F9/'Charges Summary'!F$4)/(E9/'Charges Summary'!E$4)-1) -> 0.01627755462 | S9: =IF(F9=0,"",(G9/'Charges Summary'!G$4)/(F9/'Charges Summary'!F$4)-1) -> -0.001485515389 | T9: =IF(G9=0,"",(H9/'Charges Summary'!H$4)/(G9/'Charges Summary'!G$4)-1) -> 0.00545090842
A10: ='DNSP Inputs General'!A45 -> Fluorescent 20 watt | C10: ='DNSP Inputs General'!E45 -> 61.03 | D10: =IF('DNSP Inputs General'!$B45='DNSP Inputs General'!$A$41,D$6,IF('DNSP Inputs General'!$B45='DNSP Inputs General'!$A$42,D$7,D$8))*'DNSP Inputs General'!$D45 -> 74.77333169 | E10: =IF('DNSP Inputs General'!$B45='DNSP Inputs General'!$A$41,E$6,IF('DNSP Inputs General'!$B45='DNSP Inputs General'!$A$42,E$7,E$8))*'DNSP Inputs General'!$D45 -> 78.23580405 | F10: =IF('DNSP Inputs General'!$B45='DNSP Inputs General'!$A$41,F$6,IF('DNSP Inputs General'!$B45='DNSP Inputs General'!$A$42,F$7,F$8))*'DNSP Inputs General'!$D45 -> 81.5160596 | G10: =IF('DNSP Inputs General'!$B45='DNSP Inputs General'!$A$41,G$6,IF('DNSP Inputs General'!$B45='DNSP Inputs General'!$A$42,G$7,G$8))*'DNSP Inputs General'!$D45 -> 83.44932754 | H10: =IF('DNSP Inputs General'!$B45='DNSP Inputs General'!$A$41,H$6,IF('DNSP Inputs General'!$B45='DNSP Inputs General'!$A$42,H$7,H$8))*'DNSP Inputs General'!$D45 -> 86.02189512 | J10: 0.2251897704 | K10: 0.04630624699 | L10: 0.04192780514 | M10: 0.02371640564 | N10: 0.03082790073 | P10: =IF(C10=0,"",(D10/'Charges Summary'!D$4)/C10-1) -> 0.1950279642 | Q10: =IF(D10=0,"",(E10/'Charges Summary'!E$4)/(D10/'Charges Summary'!D$4)-1) -> 0.02054820769 | R10: =IF(E10=0,"",(F10/'Charges Summary'!F$4)/(E10/'Charges Summary'!E$4)-1) -> 0.01627755462 | S10: =IF(F10=0,"",(G10/'Charges Summary'!G$4)/(F10/'Charges Summary'!F$4)-1) -> -0.001485515389 | T10: =IF(G10=0,"",(H10/'Charges Summary'!H$4)/(G10/'Charges Summary'!G$4)-1) -> 0.00545090842
A11: ='DNSP Inputs General'!A46 -> Fluorescent 40 watt | C11: ='DNSP Inputs General'!E46 -> 61.03 | D11: =IF('DNSP Inputs General'!$B46='DNSP Inputs General'!$A$41,D$6,IF('DNSP Inputs General'!$B46='DNSP Inputs General'!$A$42,D$7,D$8))*'DNSP Inputs General'!$D46 -> 74.77333169 | E11: =IF('DNSP Inputs General'!$B46='DNSP Inputs General'!$A$41,E$6,IF('DNSP Inputs General'!$B46='DNSP Inputs General'!$A$42,E$7,E$8))*'DNSP Inputs General'!$D46 -> 78.23580405 | F11: =IF('DNSP Inputs General'!$B46='DNSP Inputs General'!$A$41,F$6,IF('DNSP Inputs General'!$B46='DNSP Inputs General'!$A$42,F$7,F$8))*'DNSP Inputs General'!$D46 -> 81.5160596 | G11: =IF('DNSP Inputs General'!$B46='DNSP Inputs General'!$A$41,G$6,IF('DNSP Inputs General'!$B46='DNSP Inputs General'!$A$42,G$7,G$8))*'DNSP Inputs General'!$D46 -> 83.44932754 | H11: =IF('DNSP Inputs General'!$B46='DNSP Inputs General'!$A$41,H$6,IF('DNSP Inputs General'!$B46='DNSP Inputs General'!$A$42,H$7,H$8))*'DNSP Inputs General'!$D46 -> 86.02189512 | J11: 0.2251897704 | K11: 0.04630624699 | L11: 0.04192780514 | M11: 0.02371640564 | N11: 0.03082790073 | P11: =IF(C11=0,"",(D11/'Charges Summary'!D$4)/C11-1) -> 0.1950279642 | Q11: =IF(D11=0,"",(E11/'Charges Summary'!E$4)/(D11/'Charges Summary'!D$4)-1) -> 0.02054820769 | R11: =IF(E11=0,"",(F11/'Charges Summary'!F$4)/(E11/'Charges Summary'!E$4)-1) -> 0.01627755462 | S11: =IF(F11=0,"",(G11/'Charges Summary'!G$4)/(F11/'Charges Summary'!F$4)-1) -> -0.001485515389 | T11: =IF(G11=0,"",(H11/'Charges Summary'!H$4)/(G11/'Charges Summary'!G$4)-1) -> 0.00545090842
A12: ='DNSP Inputs General'!A47 -> Fluorescent 80 watt | C12: ='DNSP Inputs General'!E47 -> 61.03 | D12: =IF('DNSP Inputs General'!$B47='DNSP Inputs General'!$A$41,D$6,IF('DNSP Inputs General'!$B47='DNSP Inputs General'!$A$42,D$7,D$8))*'DNSP Inputs General'!$D47 -> 74.77333169 | E12: =IF('DNSP Inputs General'!$B47='DNSP Inputs General'!$A$41,E$6,IF('DNSP Inputs General'!$B47='DNSP Inputs General'!$A$42,E$7,E$8))*'DNSP Inputs General'!$D47 -> 78.23580405 | F12: =IF('DNSP Inputs General'!$B47='DNSP Inputs General'!$A$41,F$6,IF('DNSP Inputs General'!$B47='DNSP Inputs General'!$A$42,F$7,F$8))*'DNSP Inputs General'!$D47 -> 81.5160596 | G12: =IF('DNSP Inputs General'!$B47='DNSP Inputs General'!$A$41,G$6,IF('DNSP Inputs General'!$B47='DNSP Inputs General'!$A$42,G$7,G$8))*'DNSP Inputs General'!$D47 -> 83.44932754 | H12: =IF('DNSP Inputs General'!$B47='DNSP Inputs General'!$A$41,H$6,IF('DNSP Inputs General'!$B47='DNSP Inputs General'!$A$42,H$7,H$8))*'DNSP Inputs General'!$D47 -> 86.02189512 | J12: 0.2251897704 | K12: 0.04630624699 | L12: 0.04192780514 | M12: 0.02371640564 | N12: 0.03082790073 | P12: =IF(C12=0,"",(D12/'Charges Summary'!D$4)/C12-1) -> 0.1950279642 | Q12: =IF(D12=0,"",(E12/'Charges Summary'!E$4)/(D12/'Charges Summary'!D$4)-1) -> 0.02054820769 | R12: =IF(E12=0,"",(F12/'Charges Summary'!F$4)/(E12/'Charges Summary'!E$4)-1) -> 0.01627755462 | S12: =IF(F12=0,"",(G12/'Charges Summary'!G$4)/(F12/'Charges Summary'!F$4)-1) -> -0.001485515389 | T12: =IF(G12=0,"",(H12/'Charges Summary'!H$4)/(G12/'Charges Summary'!G$4)-1) -> 0.00545090842
A13: ='DNSP Inputs General'!A48 -> Mercury Vapour 50 watt | C13: ='DNSP Inputs General'!E48 -> 61.03 | D13: =IF('DNSP Inputs General'!$B48='DNSP Inputs General'!$A$41,D$6,IF('DNSP Inputs General'!$B48='DNSP Inputs General'!$A$42,D$7,D$8))*'DNSP Inputs General'!$D48 -> 74.77333169 | E13: =IF('DNSP Inputs General'!$B48='DNSP Inputs General'!$A$41,E$6,IF('DNSP Inputs General'!$B48='DNSP Inputs General'!$A$42,E$7,E$8))*'DNSP Inputs General'!$D48 -> 78.23580405 | F13: =IF('DNSP Inputs General'!$B48='DNSP Inputs General'!$A$41,F$6,IF('DNSP Inputs General'!$B48='DNSP Inputs General'!$A$42,F$7,F$8))*'DNSP Inputs General'!$D48 -> 81.5160596 | G13: =IF('DNSP Inputs General'!$B48='DNSP Inputs General'!$A$41,G$6,IF('DNSP Inputs General'!$B48='DNSP Inputs General'!$A$42,G$7,G$8))*'DNSP Inputs General'!$D48 -> 83.44932754 | H13: =IF('DNSP Inputs General'!$B48='DNSP Inputs General'!$A$41,H$6,IF('DNSP Inputs General'!$B48='DNSP Inputs General'!$A$42,H$7,H$8))*'DNSP Inputs General'!$D48 -> 86.02189512 | J13: 0.2251897704 | K13: 0.04630624699 | L13: 0.04192780514 | M13: 0.02371640564 | N13: 0.03082790073 | P13: =IF(C13=0,"",(D13/'Charges Summary'!D$4)/C13-1) -> 0.1950279642 | Q13: =IF(D13=0,"",(E13/'Charges Summary'!E$4)/(D13/'Charges Summary'!D$4)-1) -> 0.02054820769 | R13: =IF(E13=0,"",(F13/'Charges Summary'!F$4)/(E13/'Charges Summary'!E$4)-1) -> 0.01627755462 | S13: =IF(F13=0,"",(G13/'Charges Summary'!G$4)/(F13/'Charges Summary'!F$4)-1) -> -0.001485515389 | T13: =IF(G13=0,"",(H13/'Charges Summary'!H$4)/(G13/'Charges Summary'!G$4)-1) -> 0.00545090842
A14: ='DNSP Inputs General'!A49 -> Mercury Vapour 125 watt | C14: ='DNSP Inputs General'!E49 -> 71.77 | D14: =IF('DNSP Inputs General'!$B49='DNSP Inputs General'!$A$41,D$6,IF('DNSP Inputs General'!$B49='DNSP Inputs General'!$A$42,D$7,D$8))*'DNSP Inputs General'!$D49 -> 87.93343807 | E14: =IF('DNSP Inputs General'!$B49='DNSP Inputs General'!$A$41,E$6,IF('DNSP Inputs General'!$B49='DNSP Inputs General'!$A$42,E$7,E$8))*'DNSP Inputs General'!$D49 -> 92.00530557 | F14: =IF('DNSP Inputs General'!$B49='DNSP Inputs General'!$A$41,F$6,IF('DNSP Inputs General'!$B49='DNSP Inputs General'!$A$42,F$7,F$8))*'DNSP Inputs General'!$D49 -> 95.86288609 | G14: =IF('DNSP Inputs General'!$B49='DNSP Inputs General'!$A$41,G$6,IF('DNSP Inputs General'!$B49='DNSP Inputs General'!$A$42,G$7,G$8))*'DNSP Inputs General'!$D49 -> 98.13640918 | H14: =IF('DNSP Inputs General'!$B49='DNSP Inputs General'!$A$41,H$6,IF('DNSP Inputs General'!$B49='DNSP Inputs General'!$A$42,H$7,H$8))*'DNSP Inputs General'!$D49 -> 101.1617487 | J14: 0.2252116214 | K14: 0.04630624699 | L14: 0.04192780514 | M14: 0.02371640564 | N14: 0.03082790073 | P14: =IF(C14=0,"",(D14/'Charges Summary'!D$4)/C14-1) -> 0.1950492772 | Q14: =IF(D14=0,"",(E14/'Charges Summary'!E$4)/(D14/'Charges Summary'!D$4)-1) -> 0.02054820769 | R14: =IF(E14=0,"",(F14/'Charges Summary'!F$4)/(E14/'Charges Summary'!E$4)-1) -> 0.01627755462 | S14: =IF(F14=0,"",(G14/'Charges Summary'!G$4)/(F14/'Charges Summary'!F$4)-1) -> -0.001485515389 | T14: =IF(G14=0,"",(H14/'Charges Summary'!H$4)/(G14/'Charges Summary'!G$4)-1) -> 0.00545090842
A15: ='DNSP Inputs General'!A50 -> Mercury Vapour 250 watt | C15: ='DNSP Inputs General'!E50 -> 90.19 | D15: =IF('DNSP Inputs General'!$B50='DNSP Inputs General'!$A$41,D$6,IF('DNSP Inputs General'!$B50='DNSP Inputs General'!$A$42,D$7,D$8))*'DNSP Inputs General'!$D50 -> 152.7019416 | E15: =IF('DNSP Inputs General'!$B50='DNSP Inputs General'!$A$41,E$6,IF('DNSP Inputs General'!$B50='DNSP Inputs General'!$A$42,E$7,E$8))*'DNSP Inputs General'!$D50 -> 159.6195486 | F15: =IF('DNSP Inputs General'!$B50='DNSP Inputs General'!$A$41,F$6,IF('DNSP Inputs General'!$B50='DNSP Inputs General'!$A$42,F$7,F$8))*'DNSP Inputs General'!$D50 -> 166.2643587 | G15: =IF('DNSP Inputs General'!$B50='DNSP Inputs General'!$A$41,G$6,IF('DNSP Inputs General'!$B50='DNSP Inputs General'!$A$42,G$7,G$8))*'DNSP Inputs General'!$D50 -> 170.5588083 | H15: =IF('DNSP Inputs General'!$B50='DNSP Inputs General'!$A$41,H$6,IF('DNSP Inputs General'!$B50='DNSP Inputs General'!$A$42,H$7,H$8))*'DNSP Inputs General'!$D50 -> 176.2389845 | J15: 0.693113889 | K15: 0.04530136883 | L15: 0.04162904937 | M15: 0.02582904523 | N15: 0.03330332927 | P15: =IF(C15=0,"",(D15/'Charges Summary'!D$4)/C15-1) -> 0.6514326946 | Q15: =IF(D15=0,"",(E15/'Charges Summary'!E$4)/(D15/'Charges Summary'!D$4)-1) -> 0.01956806768 | R15: =IF(E15=0,"",(F15/'Charges Summary'!F$4)/(E15/'Charges Summary'!E$4)-1) -> 0.01598615364 | S15: =IF(F15=0,"",(G15/'Charges Summary'!G$4)/(F15/'Charges Summary'!F$4)-1) -> 0.0005751150967 | T15: =IF(G15=0,"",(H15/'Charges Summary'!H$4)/(G15/'Charges Summary'!G$4)-1) -> 0.007865396693
A16: ='DNSP Inputs General'!A51 -> Mercury Vapour 400 watt | C16: ='DNSP Inputs General'!E51 -> 101.47 | D16: =IF('DNSP Inputs General'!$B51='DNSP Inputs General'!$A$41,D$6,IF('DNSP Inputs General'!$B51='DNSP Inputs General'!$A$42,D$7,D$8))*'DNSP Inputs General'!$D51 -> 171.7896844 | E16: =IF('DNSP Inputs General'!$B51='DNSP Inputs General'!$A$41,E$6,IF('DNSP Inputs General'!$B51='DNSP Inputs General'!$A$42,E$7,E$8))*'DNSP Inputs General'!$D51 -> 179.5719922 | F16: =IF('DNSP Inputs General'!$B51='DNSP Inputs General'!$A$41,F$6,IF('DNSP Inputs General'!$B51='DNSP Inputs General'!$A$42,F$7,F$8))*'DNSP Inputs General'!$D51 -> 187.0474035 | G16: =IF('DNSP Inputs General'!$B51='DNSP Inputs General'!$A$41,G$6,IF('DNSP Inputs General'!$B51='DNSP Inputs General'!$A$42,G$7,G$8))*'DNSP Inputs General'!$D51 -> 191.8786594 | H16: =IF('DNSP Inputs General'!$B51='DNSP Inputs General'!$A$41,H$6,IF('DNSP Inputs General'!$B51='DNSP Inputs General'!$A$42,H$7,H$8))*'DNSP Inputs General'!$D51 -> 198.2688576 | J16: 0.6930096024 | K16: 0.04530136883 | L16: 0.04162904937 | M16: 0.02582904523 | N16: 0.03330332927 | P16: =IF(C16=0,"",(D16/'Charges Summary'!D$4)/C16-1) -> 0.6513309753 | Q16: =IF(D16=0,"",(E16/'Charges Summary'!E$4)/(D16/'Charges Summary'!D$4)-1) -> 0.01956806768 | R16: =IF(E16=0,"",(F16/'Charges Summary'!F$4)/(E16/'Charges Summary'!E$4)-1) -> 0.01598615364 | S16: =IF(F16=0,"",(G16/'Charges Summary'!G$4)/(F16/'Charges Summary'!F$4)-1) -> 0.0005751150967 | T16: =IF(G16=0,"",(H16/'Charges Summary'!H$4)/(G16/'Charges Summary'!G$4)-1) -> 0.007865396693
A17: ='DNSP Inputs General'!A52 -> Sodium High Pressure 50 watt | C17: ='DNSP Inputs General'!E52 -> 112.91 | D17: =IF('DNSP Inputs General'!$B52='DNSP Inputs General'!$A$41,D$6,IF('DNSP Inputs General'!$B52='DNSP Inputs General'!$A$42,D$7,D$8))*'DNSP Inputs General'!$D52 -> 196.860548 | E17: =IF('DNSP Inputs General'!$B52='DNSP Inputs General'!$A$41,E$6,IF('DNSP Inputs General'!$B52='DNSP Inputs General'!$A$42,E$7,E$8))*'DNSP Inputs General'!$D52 -> 205.7975379 | F17: =IF('DNSP Inputs General'!$B52='DNSP Inputs General'!$A$41,F$6,IF('DNSP Inputs General'!$B52='DNSP Inputs General'!$A$42,F$7,F$8))*'DNSP Inputs General'!$D52 -> 214.3791513 | G17: =IF('DNSP Inputs General'!$B52='DNSP Inputs General'!$A$41,G$6,IF('DNSP Inputs General'!$B52='DNSP Inputs General'!$A$42,G$7,G$8))*'DNSP Inputs General'!$D52 -> 219.9160951 | H17: =IF('DNSP Inputs General'!$B52='DNSP Inputs General'!$A$41,H$6,IF('DNSP Inputs General'!$B52='DNSP Inputs General'!$A$42,H$7,H$8))*'DNSP Inputs General'!$D52 -> 227.2518057 | J17: 0.7435173859 | K17: 0.0453975665 | L17: 0.04169930064 | M17: 0.02582780929 | N17: 0.0333568611 | P17: =IF(C17=0,"",(D17/'Charges Summary'!D$4)/C17-1) -> 0.7005953547 | Q17: =IF(D17=0,"",(E17/'Charges Summary'!E$4)/(D17/'Charges Summary'!D$4)-1) -> 0.01966189716 | R17: =IF(E17=0,"",(F17/'Charges Summary'!F$4)/(E17/'Charges Summary'!E$4)-1) -> 0.01605467546 | S17: =IF(F17=0,"",(G17/'Charges Summary'!G$4)/(F17/'Charges Summary'!F$4)-1) -> 0.0005739095772 | T17: =IF(G17=0,"",(H17/'Charges Summary'!H$4)/(G17/'Charges Summary'!G$4)-1) -> 0.007917610669
A18: ='DNSP Inputs General'!A53 -> Sodium Low Pressure 90 watt | C18: ='DNSP Inputs General'!E53 -> 97.03 | D18: =IF('DNSP Inputs General'!$B53='DNSP Inputs General'!$A$41,D$6,IF('DNSP Inputs General'!$B53='DNSP Inputs General'!$A$42,D$7,D$8))*'DNSP Inputs General'!$D53 -> 166.9377447 | E18: =IF('DNSP Inputs General'!$B53='DNSP Inputs General'!$A$41,E$6,IF('DNSP Inputs General'!$B53='DNSP Inputs General'!$A$42,E$7,E$8))*'DNSP Inputs General'!$D53 -> 174.5163121 | F18: =IF('DNSP Inputs General'!$B53='DNSP Inputs General'!$A$41,F$6,IF('DNSP Inputs General'!$B53='DNSP Inputs General'!$A$42,F$7,F$8))*'DNSP Inputs General'!$D53 -> 181.7935203 | G18: =IF('DNSP Inputs General'!$B53='DNSP Inputs General'!$A$41,G$6,IF('DNSP Inputs General'!$B53='DNSP Inputs General'!$A$42,G$7,G$8))*'DNSP Inputs General'!$D53 -> 186.4888486 | H18: =IF('DNSP Inputs General'!$B53='DNSP Inputs General'!$A$41,H$6,IF('DNSP Inputs General'!$B53='DNSP Inputs General'!$A$42,H$7,H$8))*'DNSP Inputs General'!$D53 -> 192.7095313 | J18: 0.7204755719 | K18: 0.0453975665 | L18: 0.04169930064 | M18: 0.02582780929 | N18: 0.0333568611 | P18: =IF(C18=0,"",(D18/'Charges Summary'!D$4)/C18-1) -> 0.6781207856 | Q18: =IF(D18=0,"",(E18/'Charges Summary'!E$4)/(D18/'Charges Summary'!D$4)-1) -> 0.01966189716 | R18: =IF(E18=0,"",(F18/'Charges Summary'!F$4)/(E18/'Charges Summary'!E$4)-1) -> 0.01605467546 | S18: =IF(F18=0,"",(G18/'Charges Summary'!G$4)/(F18/'Charges Summary'!F$4)-1) -> 0.0005739095772 | T18: =IF(G18=0,"",(H18/'Charges Summary'!H$4)/(G18/'Charges Summary'!G$4)-1) -> 0.007917610669
A19: ='DNSP Inputs General'!A54 -> Sodium High Pressure 100 watt | C19: ='DNSP Inputs General'!E54 -> 125.41 | D19: =IF('DNSP Inputs General'!$B54='DNSP Inputs General'!$A$41,D$6,IF('DNSP Inputs General'!$B54='DNSP Inputs General'!$A$42,D$7,D$8))*'DNSP Inputs General'!$D54 -> 215.7591607 | E19: =IF('DNSP Inputs General'!$B54='DNSP Inputs General'!$A$41,E$6,IF('DNSP Inputs General'!$B54='DNSP Inputs General'!$A$42,E$7,E$8))*'DNSP Inputs General'!$D54 -> 225.5541015 | F19: =IF('DNSP Inputs General'!$B54='DNSP Inputs General'!$A$41,F$6,IF('DNSP Inputs General'!$B54='DNSP Inputs General'!$A$42,F$7,F$8))*'DNSP Inputs General'!$D54 -> 234.9595498 | G19: =IF('DNSP Inputs General'!$B54='DNSP Inputs General'!$A$41,G$6,IF('DNSP Inputs General'!$B54='DNSP Inputs General'!$A$42,G$7,G$8))*'DNSP Inputs General'!$D54 -> 241.0280402 | H19: =IF('DNSP Inputs General'!$B54='DNSP Inputs General'!$A$41,H$6,IF('DNSP Inputs General'!$B54='DNSP Inputs General'!$A$42,H$7,H$8))*'DNSP Inputs General'!$D54 -> 249.0679791 | J19: 0.7204302739 | K19: 0.0453975665 | L19: 0.04169930064 | M19: 0.02582780929 | N19: 0.0333568611 | P19: =IF(C19=0,"",(D19/'Charges Summary'!D$4)/C19-1) -> 0.6780766028 | Q19: =IF(D19=0,"",(E19/'Charges Summary'!E$4)/(D19/'Charges Summary'!D$4)-1) -> 0.01966189716 | R19: =IF(E19=0,"",(F19/'Charges Summary'!F$4)/(E19/'Charges Summary'!E$4)-1) -> 0.01605467546 | S19: =IF(F19=0,"",(G19/'Charges Summary'!G$4)/(F19/'Charges Summary'!F$4)-1) -> 0.0005739095772 | T19: =IF(G19=0,"",(H19/'Charges Summary'!H$4)/(G19/'Charges Summary'!G$4)-1) -> 0.007917610669
A20: ='DNSP Inputs General'!A55 -> Sodium High Pressure 400 watt | C20: ='DNSP Inputs General'!E55 -> 124.96 | D20: =IF('DNSP Inputs General'!$B55='DNSP Inputs General'!$A$41,D$6,IF('DNSP Inputs General'!$B55='DNSP Inputs General'!$A$42,D$7,D$8))*'DNSP Inputs General'!$D55 -> 211.555815 | E20: =IF('DNSP Inputs General'!$B55='DNSP Inputs General'!$A$41,E$6,IF('DNSP Inputs General'!$B55='DNSP Inputs General'!$A$42,E$7,E$8))*'DNSP Inputs General'!$D55 -> 221.139583 | F20: =IF('DNSP Inputs General'!$B55='DNSP Inputs General'!$A$41,F$6,IF('DNSP Inputs General'!$B55='DNSP Inputs General'!$A$42,F$7,F$8))*'DNSP Inputs General'!$D55 -> 230.3454136 | G20: =IF('DNSP Inputs General'!$B55='DNSP Inputs General'!$A$41,G$6,IF('DNSP Inputs General'!$B55='DNSP Inputs General'!$A$42,G$7,G$8))*'DNSP Inputs General'!$D55 -> 236.2950157 | H20: =IF('DNSP Inputs General'!$B55='DNSP Inputs General'!$A$41,H$6,IF('DNSP Inputs General'!$B55='DNSP Inputs General'!$A$42,H$7,H$8))*'DNSP Inputs General'!$D55 -> 244.1644264 | J20: 0.6929882762 | K20: 0.04530136883 | L20: 0.04162904937 | M20: 0.02582904523 | N20: 0.03330332927 | P20: =IF(C20=0,"",(D20/'Charges Summary'!D$4)/C20-1) -> 0.6513101741 | Q20: =IF(D20=0,"",(E20/'Charges Summary'!E$4)/(D20/'Charges Summary'!D$4)-1) -> 0.01956806768 | R20: =IF(E20=0,"",(F20/'Charges Summary'!F$4)/(E20/'Charges Summary'!E$4)-1) -> 0.01598615364 | S20: =IF(F20=0,"",(G20/'Charges Summary'!G$4)/(F20/'Charges Summary'!F$4)-1) -> 0.0005751150967 | T20: =IF(G20=0,"",(H20/'Charges Summary'!H$4)/(G20/'Charges Summary'!G$4)-1) -> 0.007865396693
A21: ='DNSP Inputs General'!A56 -> Metal Halide 70 watt | C21: ='DNSP Inputs General'!E56 -> 125.48 | D21: =IF('DNSP Inputs General'!$B56='DNSP Inputs General'!$A$41,D$6,IF('DNSP Inputs General'!$B56='DNSP Inputs General'!$A$42,D$7,D$8))*'DNSP Inputs General'!$D56 -> 153.73397 | E21: =IF('DNSP Inputs General'!$B56='DNSP Inputs General'!$A$41,E$6,IF('DNSP Inputs General'!$B56='DNSP Inputs General'!$A$42,E$7,E$8))*'DNSP Inputs General'!$D56 -> 160.8528131 | F21: =IF('DNSP Inputs General'!$B56='DNSP Inputs General'!$A$41,F$6,IF('DNSP Inputs General'!$B56='DNSP Inputs General'!$A$42,F$7,F$8))*'DNSP Inputs General'!$D56 -> 167.5970185 | G21: =IF('DNSP Inputs General'!$B56='DNSP Inputs General'!$A$41,G$6,IF('DNSP Inputs General'!$B56='DNSP Inputs General'!$A$42,G$7,G$8))*'DNSP Inputs General'!$D56 -> 171.5718174 | H21: =IF('DNSP Inputs General'!$B56='DNSP Inputs General'!$A$41,H$6,IF('DNSP Inputs General'!$B56='DNSP Inputs General'!$A$42,H$7,H$8))*'DNSP Inputs General'!$D56 -> 176.8610164 | J21: 0.2251671179 | K21: 0.04630624699 | L21: 0.04192780514 | M21: 0.02371640564 | N21: 0.03082790073 | P21: =IF(C21=0,"",(D21/'Charges Summary'!D$4)/C21-1) -> 0.1950058693 | Q21: =IF(D21=0,"",(E21/'Charges Summary'!E$4)/(D21/'Charges Summary'!D$4)-1) -> 0.02054820769 | R21: =IF(E21=0,"",(F21/'Charges Summary'!F$4)/(E21/'Charges Summary'!E$4)-1) -> 0.01627755462 | S21: =IF(F21=0,"",(G21/'Charges Summary'!G$4)/(F21/'Charges Summary'!F$4)-1) -> -0.001485515389 | T21: =IF(G21=0,"",(H21/'Charges Summary'!H$4)/(G21/'Charges Summary'!G$4)-1) -> 0.00545090842
A22: ='DNSP Inputs General'!A57 -> Metal Halide 150 watt | C22: ='DNSP Inputs General'!E57 -> 203.22 | D22: =IF('DNSP Inputs General'!$B57='DNSP Inputs General'!$A$41,D$6,IF('DNSP Inputs General'!$B57='DNSP Inputs General'!$A$42,D$7,D$8))*'DNSP Inputs General'!$D57 -> 349.6243333 | E22: =IF('DNSP Inputs General'!$B57='DNSP Inputs General'!$A$41,E$6,IF('DNSP Inputs General'!$B57='DNSP Inputs General'!$A$42,E$7,E$8))*'DNSP Inputs General'!$D57 -> 365.4964272 | F22: =IF('DNSP Inputs General'!$B57='DNSP Inputs General'!$A$41,F$6,IF('DNSP Inputs General'!$B57='DNSP Inputs General'!$A$42,F$7,F$8))*'DNSP Inputs General'!$D57 -> 380.7373726 | G22: =IF('DNSP Inputs General'!$B57='DNSP Inputs General'!$A$41,G$6,IF('DNSP Inputs General'!$B57='DNSP Inputs General'!$A$42,G$7,G$8))*'DNSP Inputs General'!$D57 -> 390.5709849 | H22: =IF('DNSP Inputs General'!$B57='DNSP Inputs General'!$A$41,H$6,IF('DNSP Inputs General'!$B57='DNSP Inputs General'!$A$42,H$7,H$8))*'DNSP Inputs General'!$D57 -> 403.599207 | J22: 0.7204228586 | K22: 0.0453975665 | L22: 0.04169930064 | M22: 0.02582780929 | N22: 0.0333568611 | P22: =IF(C22=0,"",(D22/'Charges Summary'!D$4)/C22-1) -> 0.6780693701 | Q22: =IF(D22=0,"",(E22/'Charges Summary'!E$4)/(D22/'Charges Summary'!D$4)-1) -> 0.01966189716 | R22: =IF(E22=0,"",(F22/'Charges Summary'!F$4)/(E22/'Charges Summary'!E$4)-1) -> 0.01605467546 | S22: =IF(F22=0,"",(G22/'Charges Summary'!G$4)/(F22/'Charges Summary'!F$4)-1) -> 0.0005739095772 | T22: =IF(G22=0,"",(H22/'Charges Summary'!H$4)/(G22/'Charges Summary'!G$4)-1) -> 0.007917610669
A23: ='DNSP Inputs General'!A58 -> Metal Halide 250 watt | C23: ='DNSP Inputs General'!E58 -> 202 | D23: =IF('DNSP Inputs General'!$B58='DNSP Inputs General'!$A$41,D$6,IF('DNSP Inputs General'!$B58='DNSP Inputs General'!$A$42,D$7,D$8))*'DNSP Inputs General'!$D58 -> 341.9887235 | E23: =IF('DNSP Inputs General'!$B58='DNSP Inputs General'!$A$41,E$6,IF('DNSP Inputs General'!$B58='DNSP Inputs General'!$A$42,E$7,E$8))*'DNSP Inputs General'!$D58 -> 357.4812808 | F23: =IF('DNSP Inputs General'!$B58='DNSP Inputs General'!$A$41,F$6,IF('DNSP Inputs General'!$B58='DNSP Inputs General'!$A$42,F$7,F$8))*'DNSP Inputs General'!$D58 -> 372.3628867 | G23: =IF('DNSP Inputs General'!$B58='DNSP Inputs General'!$A$41,G$6,IF('DNSP Inputs General'!$B58='DNSP Inputs General'!$A$42,G$7,G$8))*'DNSP Inputs General'!$D58 -> 381.9806645 | H23: =IF('DNSP Inputs General'!$B58='DNSP Inputs General'!$A$41,H$6,IF('DNSP Inputs General'!$B58='DNSP Inputs General'!$A$42,H$7,H$8))*'DNSP Inputs General'!$D58 -> 394.7018924 | J23: 0.6930134826 | K23: 0.04530136883 | L23: 0.04162904937 | M23: 0.02582904523 | N23: 0.03330332927 | P23: =IF(C23=0,"",(D23/'Charges Summary'!D$4)/C23-1) -> 0.65133476 | Q23: =IF(D23=0,"",(E23/'Charges Summary'!E$4)/(D23/'Charges Summary'!D$4)-1) -> 0.01956806768 | R23: =IF(E23=0,"",(F23/'Charges Summary'!F$4)/(E23/'Charges Summary'!E$4)-1) -> 0.01598615364 | S23: =IF(F23=0,"",(G23/'Charges Summary'!G$4)/(F23/'Charges Summary'!F$4)-1) -> 0.0005751150967 | T23: =IF(G23=0,"",(H23/'Charges Summary'!H$4)/(G23/'Charges Summary'!G$4)-1) -> 0.007865396693
A24: ='DNSP Inputs General'!A59 -> Incandescent 100 watt | C24: ='DNSP Inputs General'!E59 -> 76.17 | D24: =IF('DNSP Inputs General'!$B59='DNSP Inputs General'!$A$41,D$6,IF('DNSP Inputs General'!$B59='DNSP Inputs General'!$A$42,D$7,D$8))*'DNSP Inputs General'!$D59 -> 93.31711795 | E24: =IF('DNSP Inputs General'!$B59='DNSP Inputs General'!$A$41,E$6,IF('DNSP Inputs General'!$B59='DNSP Inputs General'!$A$42,E$7,E$8))*'DNSP Inputs General'!$D59 -> 97.63828346 | F24: =IF('DNSP Inputs General'!$B59='DNSP Inputs General'!$A$41,F$6,IF('DNSP Inputs General'!$B59='DNSP Inputs General'!$A$42,F$7,F$8))*'DNSP Inputs General'!$D59 -> 101.7320424 | G24: =IF('DNSP Inputs General'!$B59='DNSP Inputs General'!$A$41,G$6,IF('DNSP Inputs General'!$B59='DNSP Inputs General'!$A$42,G$7,G$8))*'DNSP Inputs General'!$D59 -> 104.1447608 | H24: =IF('DNSP Inputs General'!$B59='DNSP Inputs General'!$A$41,H$6,IF('DNSP Inputs General'!$B59='DNSP Inputs General'!$A$42,H$7,H$8))*'DNSP Inputs General'!$D59 -> 107.3553251 | J24: 0.2251164231 | K24: 0.04630624699 | L24: 0.04192780514 | M24: 0.02371640564 | N24: 0.03082790073 | P24: =IF(C24=0,"",(D24/'Charges Summary'!D$4)/C24-1) -> 0.1949564226 | Q24: =IF(D24=0,"",(E24/'Charges Summary'!E$4)/(D24/'Charges Summary'!D$4)-1) -> 0.02054820769 | R24: =IF(E24=0,"",(F24/'Charges Summary'!F$4)/(E24/'Charges Summary'!E$4)-1) -> 0.01627755462 | S24: =IF(F24=0,"",(G24/'Charges Summary'!G$4)/(F24/'Charges Summary'!F$4)-1) -> -0.001485515389 | T24: =IF(G24=0,"",(H24/'Charges Summary'!H$4)/(G24/'Charges Summary'!G$4)-1) -> 0.00545090842
A25: ='DNSP Inputs General'!A60 -> Incandescent 150 watt | C25: ='DNSP Inputs General'!E60 -> 95.21 | D25: =IF('DNSP Inputs General'!$B60='DNSP Inputs General'!$A$41,D$6,IF('DNSP Inputs General'!$B60='DNSP Inputs General'!$A$42,D$7,D$8))*'DNSP Inputs General'!$D60 -> 116.6463974 | E25: =IF('DNSP Inputs General'!$B60='DNSP Inputs General'!$A$41,E$6,IF('DNSP Inputs General'!$B60='DNSP Inputs General'!$A$42,E$7,E$8))*'DNSP Inputs General'!$D60 -> 122.0478543 | F25: =IF('DNSP Inputs General'!$B60='DNSP Inputs General'!$A$41,F$6,IF('DNSP Inputs General'!$B60='DNSP Inputs General'!$A$42,F$7,F$8))*'DNSP Inputs General'!$D60 -> 127.165053 | G25: =IF('DNSP Inputs General'!$B60='DNSP Inputs General'!$A$41,G$6,IF('DNSP Inputs General'!$B60='DNSP Inputs General'!$A$42,G$7,G$8))*'DNSP Inputs General'!$D60 -> 130.180951 | H25: =IF('DNSP Inputs General'!$B60='DNSP Inputs General'!$A$41,H$6,IF('DNSP Inputs General'!$B60='DNSP Inputs General'!$A$42,H$7,H$8))*'DNSP Inputs General'!$D60 -> 134.1941564 | J25: 0.2251485919 | K25: 0.04630624699 | L25: 0.04192780514 | M25: 0.02371640564 | N25: 0.03082790073 | P25: =IF(C25=0,"",(D25/'Charges Summary'!D$4)/C25-1) -> 0.1949877994 | Q25: =IF(D25=0,"",(E25/'Charges Summary'!E$4)/(D25/'Charges Summary'!D$4)-1) -> 0.02054820769 | R25: =IF(E25=0,"",(F25/'Charges Summary'!F$4)/(E25/'Charges Summary'!E$4)-1) -> 0.01627755462 | S25: =IF(F25=0,"",(G25/'Charges Summary'!G$4)/(F25/'Charges Summary'!F$4)-1) -> -0.001485515389 | T25: =IF(G25=0,"",(H25/'Charges Summary'!H$4)/(G25/'Charges Summary'!G$4)-1) -> 0.00545090842
A26: ='DNSP Inputs General'!A61 -> Sodium High Pressure 250 watt (24 hrs) | C26: ='DNSP Inputs General'!E61 -> 144.62 | D26: =IF('DNSP Inputs General'!$B61='DNSP Inputs General'!$A$41,D$6,IF('DNSP Inputs General'!$B61='DNSP Inputs General'!$A$42,D$7,D$8))*'DNSP Inputs General'!$D61 -> 248.1406552 | E26: =IF('DNSP Inputs General'!$B61='DNSP Inputs General'!$A$41,E$6,IF('DNSP Inputs General'!$B61='DNSP Inputs General'!$A$42,E$7,E$8))*'DNSP Inputs General'!$D61 -> 259.3817665 | F26: =IF('DNSP Inputs General'!$B61='DNSP Inputs General'!$A$41,F$6,IF('DNSP Inputs General'!$B61='DNSP Inputs General'!$A$42,F$7,F$8))*'DNSP Inputs General'!$D61 -> 270.1795829 | G26: =IF('DNSP Inputs General'!$B61='DNSP Inputs General'!$A$41,G$6,IF('DNSP Inputs General'!$B61='DNSP Inputs General'!$A$42,G$7,G$8))*'DNSP Inputs General'!$D61 -> 277.1580636 | H26: =IF('DNSP Inputs General'!$B61='DNSP Inputs General'!$A$41,H$6,IF('DNSP Inputs General'!$B61='DNSP Inputs General'!$A$42,H$7,H$8))*'DNSP Inputs General'!$D61 -> 286.3883498 | J26: 0.7158114727 | K26: 0.04530136883 | L26: 0.04162904937 | M26: 0.02582904523 | N26: 0.03330332927 | P26: =IF(C26=0,"",(D26/'Charges Summary'!D$4)/C26-1) -> 0.6735715076 | Q26: =IF(D26=0,"",(E26/'Charges Summary'!E$4)/(D26/'Charges Summary'!D$4)-1) -> 0.01956806768 | R26: =IF(E26=0,"",(F26/'Charges Summary'!F$4)/(E26/'Charges Summary'!E$4)-1) -> 0.01598615364 | S26: =IF(F26=0,"",(G26/'Charges Summary'!G$4)/(F26/'Charges Summary'!F$4)-1) -> 0.0005751150967 | T26: =IF(G26=0,"",(H26/'Charges Summary'!H$4)/(G26/'Charges Summary'!G$4)-1) -> 0.007865396693
A27: ='DNSP Inputs General'!A62 -> Metal Halide 100 watt | C27: ='DNSP Inputs General'!E62 -> 200.52 | D27: =IF('DNSP Inputs General'!$B62='DNSP Inputs General'!$A$41,D$6,IF('DNSP Inputs General'!$B62='DNSP Inputs General'!$A$42,D$7,D$8))*'DNSP Inputs General'!$D62 -> 349.6243333 | E27: =IF('DNSP Inputs General'!$B62='DNSP Inputs General'!$A$41,E$6,IF('DNSP Inputs General'!$B62='DNSP Inputs General'!$A$42,E$7,E$8))*'DNSP Inputs General'!$D62 -> 365.4964272 | F27: =IF('DNSP Inputs General'!$B62='DNSP Inputs General'!$A$41,F$6,IF('DNSP Inputs General'!$B62='DNSP Inputs General'!$A$42,F$7,F$8))*'DNSP Inputs General'!$D62 -> 380.7373726 | G27: =IF('DNSP Inputs General'!$B62='DNSP Inputs General'!$A$41,G$6,IF('DNSP Inputs General'!$B62='DNSP Inputs General'!$A$42,G$7,G$8))*'DNSP Inputs General'!$D62 -> 390.5709849 | H27: =IF('DNSP Inputs General'!$B62='DNSP Inputs General'!$A$41,H$6,IF('DNSP Inputs General'!$B62='DNSP Inputs General'!$A$42,H$7,H$8))*'DNSP Inputs General'!$D62 -> 403.599207 | J27: 0.7435883369 | K27: 0.0453975665 | L27: 0.04169930064 | M27: 0.02582780929 | N27: 0.0333568611 | P27: =IF(C27=0,"",(D27/'Charges Summary'!D$4)/C27-1) -> 0.7006645591 | Q27: =IF(D27=0,"",(E27/'Charges Summary'!E$4)/(D27/'Charges Summary'!D$4)-1) -> 0.01966189716 | R27: =IF(E27=0,"",(F27/'Charges Summary'!F$4)/(E27/'Charges Summary'!E$4)-1) -> 0.01605467546 | S27: =IF(F27=0,"",(G27/'Charges Summary'!G$4)/(F27/'Charges Summary'!F$4)-1) -> 0.0005739095772 | T27: =IF(G27=0,"",(H27/'Charges Summary'!H$4)/(G27/'Charges Summary'!G$4)-1) -> 0.007917610669
A30: ='DNSP Inputs General'!A$67 -> Energy Efficient Lights
A31: ='DNSP Inputs General'!A68 -> T5 2X14W | C31: ='DNSP Inputs General'!E68 -> 30.01 | D31: ='Charges Summary'!D$89 -> 56.68877547 | E31: ='Charges Summary'!E$89 -> 60.16894697 | F31: ='Charges Summary'!F$89 -> 63.46552184 | G31: ='Charges Summary'!G$89 -> 65.49889266 | H31: ='Charges Summary'!H$89 -> 68.14339872 | J31: =IF(C31=0,"",D31/C31-1) -> 0.8889961836 | K31: =IF(D31=0,"",E31/D31-1) -> 0.06139083917 | L31: =IF(E31=0,"",F31/E31-1) -> 0.05478864165 | M31: =IF(F31=0,"",G31/F31-1) -> 0.03203898377 | N31: =IF(G31=0,"",H31/G31-1) -> 0.04037482077 | P31: =IF(C31=0,"",(D31/'Charges Summary'!D$4)/C31-1) -> 0.8424927453 | Q31: =IF(D31=0,"",(E31/'Charges Summary'!E$4)/(D31/'Charges Summary'!D$4)-1) -> 0.03526144634 | R31: =IF(E31=0,"",(F31/'Charges Summary'!F$4)/(E31/'Charges Summary'!E$4)-1) -> 0.02882178218 | S31: =IF(F31=0,"",(G31/'Charges Summary'!G$4)/(F31/'Charges Summary'!F$4)-1) -> 0.006632176933 | T31: =IF(G31=0,"",(H31/'Charges Summary'!H$4)/(G31/'Charges Summary'!G$4)-1) -> 0.01476280173
A32: ='DNSP Inputs General'!A69 -> T5 (2x24W) | D32: =D$31*'DNSP Inputs General'!$D69 -> 63.84549795 | E32: =E$31*'DNSP Inputs General'!$D69 -> 67.76502665 | F32: =F$31*'DNSP Inputs General'!$D69 -> 71.47778041 | G32: =G$31*'DNSP Inputs General'!$D69 -> 73.76785586 | H32: =H$31*'DNSP Inputs General'!$D69 -> 76.74621982 | J32: =IF(C32=0,"",D32/C32-1) ->  | K32: =IF(D32=0,"",E32/D32-1) -> 0.06139083917 | L32: =IF(E32=0,"",F32/E32-1) -> 0.05478864165 | M32: =IF(F32=0,"",G32/F32-1) -> 0.03203898377 | N32: =IF(G32=0,"",H32/G32-1) -> 0.04037482077 | P32: =IF(C32=0,"",(D32/'Charges Summary'!D$4)/C32-1) ->  | Q32: =IF(D32=0,"",(E32/'Charges Summary'!E$4)/(D32/'Charges Summary'!D$4)-1) -> 0.03526144634 | R32: =IF(E32=0,"",(F32/'Charges Summary'!F$4)/(E32/'Charges Summary'!E$4)-1) -> 0.02882178218 | S32: =IF(F32=0,"",(G32/'Charges Summary'!G$4)/(F32/'Charges Summary'!F$4)-1) -> 0.006632176933 | T32: =IF(G32=0,"",(H32/'Charges Summary'!H$4)/(G32/'Charges Summary'!G$4)-1) -> 0.01476280173
A33: ='DNSP Inputs General'!A70 -> LED 18W | D33: =D$31*'DNSP Inputs General'!$D70 -> 22.045131 | E33: =E$31*'DNSP Inputs General'!$D70 -> 23.3985001 | F33: =F$31*'DNSP Inputs General'!$D70 -> 24.68047213 | G33: =G$31*'DNSP Inputs General'!$D70 -> 25.47120938 | H33: =H$31*'DNSP Inputs General'!$D70 -> 26.49960489 | K33: 0.06139083917 | L33: 0.05478864165 | M33: 0.03203898377 | N33: 0.04037482077 | P33: =IF(C33=0,"",(D33/'Charges Summary'!D$4)/C33-1) ->  | Q33: =IF(D33=0,"",(E33/'Charges Summary'!E$4)/(D33/'Charges Summary'!D$4)-1) -> 0.03526144634 | R33: =IF(E33=0,"",(F33/'Charges Summary'!F$4)/(E33/'Charges Summary'!E$4)-1) -> 0.02882178218 | S33: =IF(F33=0,"",(G33/'Charges Summary'!G$4)/(F33/'Charges Summary'!F$4)-1) -> 0.006632176933 | T33: =IF(G33=0,"",(H33/'Charges Summary'!H$4)/(G33/'Charges Summary'!G$4)-1) -> 0.01476280173
A34: ='DNSP Inputs General'!A71 -> Compact Fluoro 32W | D34: =D$31*'DNSP Inputs General'!$D71 -> 48.89615914 | E34: =E$31*'DNSP Inputs General'!$D71 -> 51.89793538 | F34: =F$31*'DNSP Inputs General'!$D71 -> 54.74135276 | G34: =G$31*'DNSP Inputs General'!$D71 -> 56.49521007 | H34: =H$31*'DNSP Inputs General'!$D71 -> 58.77619406 | K34: 0.06139083917 | L34: 0.05478864165 | M34: 0.03203898377 | N34: 0.04037482077 | P34: =IF(C34=0,"",(D34/'Charges Summary'!D$4)/C34-1) ->  | Q34: =IF(D34=0,"",(E34/'Charges Summary'!E$4)/(D34/'Charges Summary'!D$4)-1) -> 0.03526144634 | R34: =IF(E34=0,"",(F34/'Charges Summary'!F$4)/(E34/'Charges Summary'!E$4)-1) -> 0.02882178218 | S34: =IF(F34=0,"",(G34/'Charges Summary'!G$4)/(F34/'Charges Summary'!F$4)-1) -> 0.006632176933 | T34: =IF(G34=0,"",(H34/'Charges Summary'!H$4)/(G34/'Charges Summary'!G$4)-1) -> 0.01476280173
A35: ='DNSP Inputs General'!A72 -> Compact Fluoro 42W | D35: =D$31*'DNSP Inputs General'!$D72 -> 55.14443009 | E35: =E$31*'DNSP Inputs General'!$D72 -> 58.52979293 | F35: =F$31*'DNSP Inputs General'!$D72 -> 61.73656078 | G35: =G$31*'DNSP Inputs General'!$D72 -> 63.71453745 | H35: =H$31*'DNSP Inputs General'!$D72 -> 66.28700048 | K35: 0.06139083917 | L35: 0.05478864165 | M35: 0.03203898377 | N35: 0.04037482077 | P35: =IF(C35=0,"",(D35/'Charges Summary'!D$4)/C35-1) ->  | Q35: =IF(D35=0,"",(E35/'Charges Summary'!E$4)/(D35/'Charges Summary'!D$4)-1) -> 0.03526144634 | R35: =IF(E35=0,"",(F35/'Charges Summary'!F$4)/(E35/'Charges Summary'!E$4)-1) -> 0.02882178218 | S35: =IF(F35=0,"",(G35/'Charges Summary'!G$4)/(F35/'Charges Summary'!F$4)-1) -> 0.006632176933 | T35: =IF(G35=0,"",(H35/'Charges Summary'!H$4)/(G35/'Charges Summary'!G$4)-1) -> 0.01476280173

Sheet Cashflow Summary
A1: ='DNSP Inputs O & M'!$A$3 -> Jemena | E1: Check | F1: =SUM(C126,C132,C155) -> 9.662471712e-09
C2: ='DNSP Inputs General'!K$2 -> 2015 | D2: ='DNSP Inputs General'!L$2 -> 2016 | E2: ='DNSP Inputs General'!M$2 -> 2017 | F2: ='DNSP Inputs General'!N$2 -> 2018 | G2: ='DNSP Inputs General'!O$2 -> 2019 | H2: ='DNSP Inputs General'!P$2 -> 2020 | J2: =C2 -> 2015 | K2: =D2 -> 2016 | L2: 2017 | M2: 2018 | N2: 2019 | O2: 2020
A4: Public Lighting - Revenue | C4: Revenue - Nominal | J4: Revenue - Real 2015 $
C5: =C$2 -> 2015 | D5: =D$2 -> 2016 | E5: 2017 | F5: 2018 | G5: 2019 | H5: 2020 | J5: =J$2 -> 2015 | K5: 2016 | L5: 2017 | M5: 2018 | N5: 2019 | O5: 2020
A6: ='DNSP Inputs General'!A$40 -> Existing Lights
A7: ='DNSP Inputs General'!A$41 -> Mercury Vapour 80 watt | C7: =IF('PL Tariffs'!C6=0,"",'DNSP Inputs General'!J41*'PL Tariffs'!C6) -> 665016.7857 | D7: ='DNSP Inputs General'!K41*'PL Tariffs'!D6 -> 802940.3759 | E7: ='DNSP Inputs General'!L41*'PL Tariffs'!E6 -> 828023.7812 | F7: ='DNSP Inputs General'!M41*'PL Tariffs'!F6 -> 850317.5306 | G7: ='DNSP Inputs General'!N41*'PL Tariffs'!G6 -> 857949.0364 | H7: ='DNSP Inputs General'!O41*'PL Tariffs'!H6 -> 871662.4757 | J7: =C7 -> 665016.7857 | K7: =D7/'Charges Summary'!D$4 -> 783173.5344 | L7: =E7/'Charges Summary'!E$4 -> 787756.9114 | M7: =F7/'Charges Summary'!F$4 -> 789051.3204 | N7: =G7/'Charges Summary'!G$4 -> 776533.7124 | O7: =H7/'Charges Summary'!H$4 -> 769523.4886
A8: ='DNSP Inputs General'!A$42 -> Sodium High Pressure 150 watt | C8: =IF('PL Tariffs'!C7=0,"",'DNSP Inputs General'!J42*'PL Tariffs'!C7) -> 1418078.663 | D8: ='DNSP Inputs General'!K42*'PL Tariffs'!D7 -> 2473703.597 | E8: ='DNSP Inputs General'!L42*'PL Tariffs'!E7 -> 2621049.044 | F8: ='DNSP Inputs General'!M42*'PL Tariffs'!F7 -> 2766414.104 | G8: ='DNSP Inputs General'!N42*'PL Tariffs'!G7 -> 2874482.213 | H8: ='DNSP Inputs General'!O42*'PL Tariffs'!H7 -> 3007867.267 | J8: 1418078.663 | K8: =D8/'Charges Summary'!D$4 -> 2412805.792 | L8: =E8/'Charges Summary'!E$4 -> 2493587.197 | M8: =F8/'Charges Summary'!F$4 -> 2567091.26 | N8: =G8/'Charges Summary'!G$4 -> 2601707.385 | O8: =H8/'Charges Summary'!H$4 -> 2655413.738
A9: ='DNSP Inputs General'!A$43 -> Sodium High Pressure 250 watt | C9: =IF('PL Tariffs'!C8=0,"",'DNSP Inputs General'!J43*'PL Tariffs'!C8) -> 444614.6002 | D9: ='DNSP Inputs General'!K43*'PL Tariffs'!D8 -> 754348.5447 | E9: ='DNSP Inputs General'!L43*'PL Tariffs'!E8 -> 790094.1084 | F9: ='DNSP Inputs General'!M43*'PL Tariffs'!F8 -> 824542.5429 | G9: ='DNSP Inputs General'!N43*'PL Tariffs'!G8 -> 847359.0245 | H9: ='DNSP Inputs General'!O43*'PL Tariffs'!H8 -> 877071.74 | J9: 444614.6002 | K9: =D9/'Charges Summary'!D$4 -> 735777.9402 | L9: =E9/'Charges Summary'!E$4 -> 751671.762 | M9: =F9/'Charges Summary'!F$4 -> 765133.4458 | N9: =G9/'Charges Summary'!G$4 -> 766948.6428 | O9: =H9/'Charges Summary'!H$4 -> 774298.9103
A10: ='DNSP Inputs General'!A$44 -> 55W Ind | C10: =IF('PL Tariffs'!C9=0,"",'DNSP Inputs General'!J44*'PL Tariffs'!C9) -> 0 | D10: ='DNSP Inputs General'!K44*'PL Tariffs'!D9 -> 0 | E10: ='DNSP Inputs General'!L44*'PL Tariffs'!E9 -> 0 | F10: ='DNSP Inputs General'!M44*'PL Tariffs'!F9 -> 0 | G10: ='DNSP Inputs General'!N44*'PL Tariffs'!G9 -> 0 | H10: ='DNSP Inputs General'!O44*'PL Tariffs'!H9 -> 0 | J10: 0 | K10: =D10/'Charges Summary'!D$4 -> 0 | L10: =E10/'Charges Summary'!E$4 -> 0 | M10: =F10/'Charges Summary'!F$4 -> 0 | N10: =G10/'Charges Summary'!G$4 -> 0 | O10: =H10/'Charges Summary'!H$4 -> 0
A11: ='DNSP Inputs General'!A$45 -> Fluorescent 20 watt | C11: =IF('PL Tariffs'!C10=0,"",'DNSP Inputs General'!J45*'PL Tariffs'!C10) -> 0 | D11: ='DNSP Inputs General'!K45*'PL Tariffs'!D10 -> 0 | E11: ='DNSP Inputs General'!L45*'PL Tariffs'!E10 -> 0 | F11: ='DNSP Inputs General'!M45*'PL Tariffs'!F10 -> 0 | G11: ='DNSP Inputs General'!N45*'PL Tariffs'!G10 -> 0 | H11: ='DNSP Inputs General'!O45*'PL Tariffs'!H10 -> 0 | J11: 0 | K11: =D11/'Charges Summary'!D$4 -> 0 | L11: =E11/'Charges Summary'!E$4 -> 0 | M11: =F11/'Charges Summary'!F$4 -> 0 | N11: =G11/'Charges Summary'!G$4 -> 0 | O11: =H11/'Charges Summary'!H$4 -> 0
A12: ='DNSP Inputs General'!A$46 -> Fluorescent 40 watt | C12: =IF('PL Tariffs'!C11=0,"",'DNSP Inputs General'!J46*'PL Tariffs'!C11) -> 1306.494074 | D12: ='DNSP Inputs General'!K46*'PL Tariffs'!D11 -> 0 | E12: ='DNSP Inputs General'!L46*'PL Tariffs'!E11 -> 0 | F12: ='DNSP Inputs General'!M46*'PL Tariffs'!F11 -> 0 | G12: ='DNSP Inputs General'!N46*'PL Tariffs'!G11 -> 0 | H12: ='DNSP Inputs General'!O46*'PL Tariffs'!H11 -> 0 | J12: 1306.494074 | K12: =D12/'Charges Summary'!D$4 -> 0 | L12: =E12/'Charges Summary'!E$4 -> 0 | M12: =F12/'Charges Summary'!F$4 -> 0 | N12: =G12/'Charges Summary'!G$4 -> 0 | O12: =H12/'Charges Summary'!H$4 -> 0
A13: ='DNSP Inputs General'!A$47 -> Fluorescent 80 watt | C13: =IF('PL Tariffs'!C12=0,"",'DNSP Inputs General'!J47*'PL Tariffs'!C12) -> 0 | D13: ='DNSP Inputs General'!K47*'PL Tariffs'!D12 -> 0 | E13: ='DNSP Inputs General'!L47*'PL Tariffs'!E12 -> 0 | F13: ='DNSP Inputs General'!M47*'PL Tariffs'!F12 -> 0 | G13: ='DNSP Inputs General'!N47*'PL Tariffs'!G12 -> 0 | H13: ='DNSP Inputs General'!O47*'PL Tariffs'!H12 -> 0 | J13: 0 | K13: =D13/'Charges Summary'!D$4 -> 0 | L13: =E13/'Charges Summary'!E$4 -> 0 | M13: =F13/'Charges Summary'!F$4 -> 0 | N13: =G13/'Charges Summary'!G$4 -> 0 | O13: =H13/'Charges Summary'!H$4 -> 0
A14: ='DNSP Inputs General'!A$48 -> Mercury Vapour 50 watt | C14: =IF('PL Tariffs'!C13=0,"",'DNSP Inputs General'!J48*'PL Tariffs'!C13) -> 1037.51 | D14: ='DNSP Inputs General'!K48*'PL Tariffs'!D13 -> 0 | E14: ='DNSP Inputs General'!L48*'PL Tariffs'!E13 -> 0 | F14: ='DNSP Inputs General'!M48*'PL Tariffs'!F13 -> 0 | G14: ='DNSP Inputs General'!N48*'PL Tariffs'!G13 -> 0 | H14: ='DNSP Inputs General'!O48*'PL Tariffs'!H13 -> 0 | J14: 1037.51 | K14: =D14/'Charges Summary'!D$4 -> 0 | L14: =E14/'Charges Summary'!E$4 -> 0 | M14: =F14/'Charges Summary'!F$4 -> 0 | N14: =G14/'Charges Summary'!G$4 -> 0 | O14: =H14/'Charges Summary'!H$4 -> 0
A15: ='DNSP Inputs General'!A$49 -> Mercury Vapour 125 watt | C15: =IF('PL Tariffs'!C14=0,"",'DNSP Inputs General'!J49*'PL Tariffs'!C14) -> 25818.82688 | D15: ='DNSP Inputs General'!K49*'PL Tariffs'!D14 -> 31178.00396 | E15: ='DNSP Inputs General'!L49*'PL Tariffs'!E14 -> 32151.98725 | F15: ='DNSP Inputs General'!M49*'PL Tariffs'!F14 -> 33017.64879 | G15: ='DNSP Inputs General'!N49*'PL Tariffs'!G14 -> 33313.97854 | H15: ='DNSP Inputs General'!O49*'PL Tariffs'!H14 -> 33846.46847 | J15: 25818.82688 | K15: =D15/'Charges Summary'!D$4 -> 30410.46171 | L15: =E15/'Charges Summary'!E$4 -> 30588.43326 | M15: =F15/'Charges Summary'!F$4 -> 30638.69489 | N15: =G15/'Charges Summary'!G$4 -> 30152.63883 | O15: =H15/'Charges Summary'!H$4 -> 29880.43333
A16: ='DNSP Inputs General'!A$50 -> Mercury Vapour 250 watt | C16: =IF('PL Tariffs'!C15=0,"",'DNSP Inputs General'!J50*'PL Tariffs'!C15) -> 12545.85398 | D16: ='DNSP Inputs General'!K50*'PL Tariffs'!D15 -> 18127.61371 | E16: ='DNSP Inputs General'!L50*'PL Tariffs'!E15 -> 16170.98202 | F16: ='DNSP Inputs General'!M50*'PL Tariffs'!F15 -> 14374.86301 | G16: ='DNSP Inputs General'!N50*'PL Tariffs'!G15 -> 12584.41244 | H16: ='DNSP Inputs General'!O50*'PL Tariffs'!H15 -> 11097.24078 | J16: 12545.85398 | K16: =D16/'Charges Summary'!D$4 -> 17681.34686 | L16: =E16/'Charges Summary'!E$4 -> 15384.58573 | M16: =F16/'Charges Summary'!F$4 -> 13339.14006 | N16: =G16/'Charges Summary'!G$4 -> 11390.21095 | O16: =H16/'Charges Summary'!H$4 -> 9796.896935
A17: ='DNSP Inputs General'!A$51 -> Mercury Vapour 400 watt | C17: =IF('PL Tariffs'!C16=0,"",'DNSP Inputs General'!J51*'PL Tariffs'!C16) -> 20551.75192 | D17: ='DNSP Inputs General'!K51*'PL Tariffs'!D16 -> 33085.66403 | E17: ='DNSP Inputs General'!L51*'PL Tariffs'!E16 -> 32886.14441 | F17: ='DNSP Inputs General'!M51*'PL Tariffs'!F16 -> 32572.99014 | G17: ='DNSP Inputs General'!N51*'PL Tariffs'!G16 -> 31773.43762 | H17: ='DNSP Inputs General'!O51*'PL Tariffs'!H16 -> 31219.33286 | J17: 20551.75192 | K17: =D17/'Charges Summary'!D$4 -> 32271.15887 | L17: =E17/'Charges Summary'!E$4 -> 31286.8883 | M17: =F17/'Charges Summary'!F$4 -> 30226.07433 | N17: =G17/'Charges Summary'!G$4 -> 28758.288 | O17: =H17/'Charges Summary'!H$4 -> 27561.13818
A18: ='DNSP Inputs General'!A$52 -> Sodium High Pressure 50 watt | C18: =IF('PL Tariffs'!C17=0,"",'DNSP Inputs General'!J52*'PL Tariffs'!C17) -> 0 | D18: ='DNSP Inputs General'!K52*'PL Tariffs'!D17 -> 0 | E18: ='DNSP Inputs General'!L52*'PL Tariffs'!E17 -> 0 | F18: ='DNSP Inputs General'!M52*'PL Tariffs'!F17 -> 0 | G18: ='DNSP Inputs General'!N52*'PL Tariffs'!G17 -> 0 | H18: ='DNSP Inputs General'!O52*'PL Tariffs'!H17 -> 0 | J18: 0 | K18: =D18/'Charges Summary'!D$4 -> 0 | L18: =E18/'Charges Summary'!E$4 -> 0 | M18: =F18/'Charges Summary'!F$4 -> 0 | N18: =G18/'Charges Summary'!G$4 -> 0 | O18: =H18/'Charges Summary'!H$4 -> 0
A19: ='DNSP Inputs General'!A$53 -> Sodium Low Pressure 90 watt | C19: =IF('PL Tariffs'!C18=0,"",'DNSP Inputs General'!J53*'PL Tariffs'!C18) -> 0 | D19: ='DNSP Inputs General'!K53*'PL Tariffs'!D18 -> 0 | E19: ='DNSP Inputs General'!L53*'PL Tariffs'!E18 -> 0 | F19: ='DNSP Inputs General'!M53*'PL Tariffs'!F18 -> 0 | G19: ='DNSP Inputs General'!N53*'PL Tariffs'!G18 -> 0 | H19: ='DNSP Inputs General'!O53*'PL Tariffs'!H18 -> 0 | J19: 0 | K19: =D19/'Charges Summary'!D$4 -> 0 | L19: =E19/'Charges Summary'!E$4 -> 0 | M19: =F19/'Charges Summary'!F$4 -> 0 | N19: =G19/'Charges Summary'!G$4 -> 0 | O19: =H19/'Charges Summary'!H$4 -> 0
A20: ='DNSP Inputs General'!A$54 -> Sodium High Pressure 100 watt | C20: =IF('PL Tariffs'!C19=0,"",'DNSP Inputs General'!J54*'PL Tariffs'!C19) -> 146100.0415 | D20: ='DNSP Inputs General'!K54*'PL Tariffs'!D19 -> 247735.4233 | E20: ='DNSP Inputs General'!L54*'PL Tariffs'!E19 -> 255252.6677 | F20: ='DNSP Inputs General'!M54*'PL Tariffs'!F19 -> 262067.6155 | G20: ='DNSP Inputs General'!N54*'PL Tariffs'!G19 -> 264965.0059 | H20: ='DNSP Inputs General'!O54*'PL Tariffs'!H19 -> 269860.6378 | J20: 146100.0415 | K20: =D20/'Charges Summary'!D$4 -> 241636.6556 | L20: =E20/'Charges Summary'!E$4 -> 242839.7079 | M20: =F20/'Charges Summary'!F$4 -> 243185.3874 | N20: =G20/'Charges Summary'!G$4 -> 239821.0744 | O20: =H20/'Charges Summary'!H$4 -> 238239.118
A21: ='DNSP Inputs General'!A$55 -> Sodium High Pressure 400 watt | C21: =IF('PL Tariffs'!C20=0,"",'DNSP Inputs General'!J55*'PL Tariffs'!C20) -> 35988.48 | D21: ='DNSP Inputs General'!K55*'PL Tariffs'!D20 -> 60928.07472 | E21: ='DNSP Inputs General'!L55*'PL Tariffs'!E20 -> 63688.1999 | F21: ='DNSP Inputs General'!M55*'PL Tariffs'!F20 -> 66339.47912 | G21: ='DNSP Inputs General'!N55*'PL Tariffs'!G20 -> 68052.96453 | H21: ='DNSP Inputs General'!O55*'PL Tariffs'!H20 -> 70319.35481 | J21: 35988.48 | K21: =D21/'Charges Summary'!D$4 -> 59428.14317 | L21: =E21/'Charges Summary'!E$4 -> 60591.0371 | M21: =F21/'Charges Summary'!F$4 -> 61559.65473 | N21: =G21/'Charges Summary'!G$4 -> 61595.05862 | O21: =H21/'Charges Summary'!H$4 -> 62079.52819
A22: ='DNSP Inputs General'!A$56 -> Metal Halide 70 watt | C22: =IF('PL Tariffs'!C21=0,"",'DNSP Inputs General'!J56*'PL Tariffs'!C21) -> 1505.76 | D22: ='DNSP Inputs General'!K56*'PL Tariffs'!D21 -> 1844.807639 | E22: ='DNSP Inputs General'!L56*'PL Tariffs'!E21 -> 1930.233758 | F22: ='DNSP Inputs General'!M56*'PL Tariffs'!F21 -> 2011.164222 | G22: ='DNSP Inputs General'!N56*'PL Tariffs'!G21 -> 2058.861809 | H22: ='DNSP Inputs General'!O56*'PL Tariffs'!H21 -> 2122.332196 | J22: 1505.76 | K22: =D22/'Charges Summary'!D$4 -> 1799.392038 | L22: =E22/'Charges Summary'!E$4 -> 1836.366319 | M22: =F22/'Charges Summary'!F$4 -> 1866.257872 | N22: =G22/'Charges Summary'!G$4 -> 1863.485517 | O22: =H22/'Charges Summary'!H$4 -> 1873.643206
A23: ='DNSP Inputs General'!A$57 -> Metal Halide 150 watt | C23: =IF('PL Tariffs'!C22=0,"",'DNSP Inputs General'!J57*'PL Tariffs'!C22) -> 6706.26 | D23: ='DNSP Inputs General'!K57*'PL Tariffs'!D22 -> 11537.603 | E23: ='DNSP Inputs General'!L57*'PL Tariffs'!E22 -> 12061.3821 | F23: ='DNSP Inputs General'!M57*'PL Tariffs'!F22 -> 12564.3333 | G23: ='DNSP Inputs General'!N57*'PL Tariffs'!G22 -> 12888.8425 | H23: ='DNSP Inputs General'!O57*'PL Tariffs'!H22 -> 13318.77383 | J23: 6706.26 | K23: =D23/'Charges Summary'!D$4 -> 11253.56949 | L23: =E23/'Charges Summary'!E$4 -> 11474.83602 | M23: =F23/'Charges Summary'!F$4 -> 11659.06079 | N23: =G23/'Charges Summary'!G$4 -> 11665.75203 | O23: =H23/'Charges Summary'!H$4 -> 11758.11692
A24: ='DNSP Inputs General'!A$58 -> Metal Halide 250 watt | C24: =IF('PL Tariffs'!C23=0,"",'DNSP Inputs General'!J58*'PL Tariffs'!C23) -> 14544 | D24: ='DNSP Inputs General'!K58*'PL Tariffs'!D23 -> 24623.18809 | E24: ='DNSP Inputs General'!L58*'PL Tariffs'!E23 -> 25738.65222 | F24: ='DNSP Inputs General'!M58*'PL Tariffs'!F23 -> 26810.12784 | G24: ='DNSP Inputs General'!N58*'PL Tariffs'!G23 -> 27502.60784 | H24: ='DNSP Inputs General'!O58*'PL Tariffs'!H23 -> 28418.53625 | J24: 14544 | K24: =D24/'Charges Summary'!D$4 -> 24017.01275 | L24: =E24/'Charges Summary'!E$4 -> 24486.97928 | M24: =F24/'Charges Summary'!F$4 -> 24878.43189 | N24: =G24/'Charges Summary'!G$4 -> 24892.73985 | O24: =H24/'Charges Summary'!H$4 -> 25088.53113
A25: ='DNSP Inputs General'!A$59 -> Incandescent 100 watt | C25: =IF('PL Tariffs'!C24=0,"",'DNSP Inputs General'!J59*'PL Tariffs'!C24) -> 0 | D25: ='DNSP Inputs General'!K59*'PL Tariffs'!D24 -> 0 | E25: ='DNSP Inputs General'!L59*'PL Tariffs'!E24 -> 0 | F25: ='DNSP Inputs General'!M59*'PL Tariffs'!F24 -> 0 | G25: ='DNSP Inputs General'!N59*'PL Tariffs'!G24 -> 0 | H25: ='DNSP Inputs General'!O59*'PL Tariffs'!H24 -> 0 | J25: 0 | K25: =D25/'Charges Summary'!D$4 -> 0 | L25: =E25/'Charges Summary'!E$4 -> 0 | M25: =F25/'Charges Summary'!F$4 -> 0 | N25: =G25/'Charges Summary'!G$4 -> 0 | O25: =H25/'Charges Summary'!H$4 -> 0
A26: ='DNSP Inputs General'!A$60 -> Incandescent 150 watt | C26: =IF('PL Tariffs'!C25=0,"",'DNSP Inputs General'!J60*'PL Tariffs'!C25) -> 0 | D26: ='DNSP Inputs General'!K60*'PL Tariffs'!D25 -> 0 | E26: ='DNSP Inputs General'!L60*'PL Tariffs'!E25 -> 0 | F26: ='DNSP Inputs General'!M60*'PL Tariffs'!F25 -> 0 | G26: ='DNSP Inputs General'!N60*'PL Tariffs'!G25 -> 0 | H26: ='DNSP Inputs General'!O60*'PL Tariffs'!H25 -> 0 | J26: 0 | K26: =D26/'Charges Summary'!D$4 -> 0 | L26: =E26/'Charges Summary'!E$4 -> 0 | M26: =F26/'Charges Summary'!F$4 -> 0 | N26: =G26/'Charges Summary'!G$4 -> 0 | O26: =H26/'Charges Summary'!H$4 -> 0
A27: ='DNSP Inputs General'!A$61 -> Sodium High Pressure 250 watt (24 hrs) | C27: =IF('PL Tariffs'!C26=0,"",'DNSP Inputs General'!J61*'PL Tariffs'!C26) -> 0 | D27: ='DNSP Inputs General'!K61*'PL Tariffs'!D26 -> 0 | E27: ='DNSP Inputs General'!L61*'PL Tariffs'!E26 -> 0 | F27: ='DNSP Inputs General'!M61*'PL Tariffs'!F26 -> 0 | G27: ='DNSP Inputs General'!N61*'PL Tariffs'!G26 -> 0 | H27: ='DNSP Inputs General'!O61*'PL Tariffs'!H26 -> 0 | J27: 0 | K27: =D27/'Charges Summary'!D$4 -> 0 | L27: =E27/'Charges Summary'!E$4 -> 0 | M27: =F27/'Charges Summary'!F$4 -> 0 | N27: =G27/'Charges Summary'!G$4 -> 0 | O27: =H27/'Charges Summary'!H$4 -> 0
A28: ='DNSP Inputs General'!A$62 -> Metal Halide 100 watt | C28: =IF('PL Tariffs'!C27=0,"",'DNSP Inputs General'!J62*'PL Tariffs'!C27) -> 0 | D28: ='DNSP Inputs General'!K62*'PL Tariffs'!D27 -> 0 | E28: ='DNSP Inputs General'!L62*'PL Tariffs'!E27 -> 0 | F28: ='DNSP Inputs General'!M62*'PL Tariffs'!F27 -> 0 | G28: ='DNSP Inputs General'!N62*'PL Tariffs'!G27 -> 0 | H28: ='DNSP Inputs General'!O62*'PL Tariffs'!H27 -> 0 | J28: 0 | K28: =D28/'Charges Summary'!D$4 -> 0 | L28: =E28/'Charges Summary'!E$4 -> 0 | M28: =F28/'Charges Summary'!F$4 -> 0 | N28: =G28/'Charges Summary'!G$4 -> 0 | O28: =H28/'Charges Summary'!H$4 -> 0
A31: ='DNSP Inputs General'!A$67 -> Energy Efficient Lights
A32: ='DNSP Inputs General'!A$68 -> T5 2X14W | C32: =IF('PL Tariffs'!C31=0,"",'DNSP Inputs General'!J68*'PL Tariffs'!C31) -> 1037929.839 | D32: ='DNSP Inputs General'!K68*'PL Tariffs'!D31 -> 1988986.911 | E32: ='DNSP Inputs General'!L68*'PL Tariffs'!E31 -> 2139885.735 | F32: ='DNSP Inputs General'!M68*'PL Tariffs'!F31 -> 2287497.958 | G32: ='DNSP Inputs General'!N68*'PL Tariffs'!G31 -> 2392130.908 | H32: ='DNSP Inputs General'!O68*'PL Tariffs'!H31 -> 2521322.107 | J32: =C32 -> 1037929.839 | K32: =D32/'Charges Summary'!D$4 -> 1940021.894 | L32: =E32/'Charges Summary'!E$4 -> 2035822.902 | M32: =F32/'Charges Summary'!F$4 -> 2122681.492 | N32: =G32/'Charges Summary'!G$4 -> 2165128.948 | O32: =H32/'Charges Summary'!H$4 -> 2225880.588
A33: ='DNSP Inputs General'!A$69 -> T5 (2x24W) | D33: ='DNSP Inputs General'!K69*'PL Tariffs'!D32 -> 21260.55082 | E33: ='DNSP Inputs General'!L69*'PL Tariffs'!E32 -> 22565.75387 | F33: ='DNSP Inputs General'!M69*'PL Tariffs'!F32 -> 23802.10088 | G33: ='DNSP Inputs General'!N69*'PL Tariffs'!G32 -> 24564.696 | H33: ='DNSP Inputs General'!O69*'PL Tariffs'!H32 -> 25556.4912 | K33: =D33/'Charges Summary'!D$4 -> 20737.15711 | L33: =E33/'Charges Summary'!E$4 -> 21468.37927 | M33: =F33/'Charges Summary'!F$4 -> 22087.13622 | N33: =G33/'Charges Summary'!G$4 -> 22233.62201 | O33: =H33/'Charges Summary'!H$4 -> 22561.85257
A34: ='DNSP Inputs General'!A$70 -> LED 18W | D34: ='DNSP Inputs General'!K70*'PL Tariffs'!D33 -> 10059.76455 | E34: ='DNSP Inputs General'!L70*'PL Tariffs'!E33 -> 15706.3747 | F34: ='DNSP Inputs General'!M70*'PL Tariffs'!F33 -> 21795.08652 | G34: ='DNSP Inputs General'!N70*'PL Tariffs'!G33 -> 27811.36754 | H34: ='DNSP Inputs General'!O70*'PL Tariffs'!H33 -> 34387.27705 | K34: =D34/'Charges Summary'!D$4 -> 9812.112569 | L34: =E34/'Charges Summary'!E$4 -> 14942.57231 | M34: =F34/'Charges Summary'!F$4 -> 20224.7292 | N34: =G34/'Charges Summary'!G$4 -> 25172.19971 | O34: =H34/'Charges Summary'!H$4 -> 30357.87147
A35: ='DNSP Inputs General'!A$71 -> Compact Fluoro 32W | D35: ='DNSP Inputs General'!K71*'PL Tariffs'!D34 -> 391.1692731 | E35: ='DNSP Inputs General'!L71*'PL Tariffs'!E34 -> 415.183483 | F35: ='DNSP Inputs General'!M71*'PL Tariffs'!F34 -> 437.9308221 | G35: ='DNSP Inputs General'!N71*'PL Tariffs'!G34 -> 451.9616806 | H35: ='DNSP Inputs General'!O71*'PL Tariffs'!H34 -> 470.2095524 | K35: =D35/'Charges Summary'!D$4 -> 381.539441 | L35: =E35/'Charges Summary'!E$4 -> 394.9930735 | M35: =F35/'Charges Summary'!F$4 -> 406.3774778 | N35: =G35/'Charges Summary'!G$4 -> 409.0726451 | O35: =H35/'Charges Summary'!H$4 -> 415.1117035
A36: ='DNSP Inputs General'!A$72 -> Compact Fluoro 42W | D36: ='DNSP Inputs General'!K72*'PL Tariffs'!D35 -> 3749.821246 | E36: ='DNSP Inputs General'!L72*'PL Tariffs'!E35 -> 3980.025919 | F36: ='DNSP Inputs General'!M72*'PL Tariffs'!F35 -> 4198.086133 | G36: ='DNSP Inputs General'!N72*'PL Tariffs'!G35 -> 4332.588547 | H36: ='DNSP Inputs General'!O72*'PL Tariffs'!H35 -> 4507.516033 | K36: =D36/'Charges Summary'!D$4 -> 3657.507888 | L36: =E36/'Charges Summary'!E$4 -> 3786.476906 | M36: =F36/'Charges Summary'!F$4 -> 3895.609919 | N36: =G36/'Charges Summary'!G$4 -> 3921.446293 | O36: =H36/'Charges Summary'!H$4 -> 3979.337827
A37: Total Revenue | C37: =IF(SUM(C7:C36)=0,"",SUM(C7:C36)) -> 3831744.866 | D37: =SUM(D7:D36) -> 6484501.113 | E37: =SUM(E7:E36) -> 6861600.255 | F37: =SUM(F7:F36) -> 7228763.562 | G37: =SUM(G7:G36) -> 7482221.907 | H37: =SUM(H7:H36) -> 7803047.761 | J37: =IF(SUM(J7:J36)=0,"",SUM(J7:J36)) -> 3831744.866 | K37: =SUM(K7:K36) -> 6324865.218 | L37: =SUM(L7:L36) -> 6527920.028 | M37: =SUM(M7:M36) -> 6707924.073 | N37: =SUM(N7:N36) -> 6772194.277 | O37: =SUM(O7:O36) -> 6888708.304
A40: Public Lighting - O & M | D40: Forecast O & M - Nominal | K40: Forecast O & M - Real 2015 $
D41: =D$2 -> 2016 | E41: 2017 | F41: 2018 | G41: 2019 | H41: 2020 | K41: =K$2 -> 2016 | L41: 2017 | M41: 2018 | N41: 2019 | O41: 2020
A43: Unit cost
A44: ='DNSP Inputs General'!A$41 -> Mercury Vapour 80 watt | D44: =SUM('Charges Summary'!D25,'Charges Summary'!D8) -> 40.27134561 | E44: =SUM('Charges Summary'!E25,'Charges Summary'!E8) -> 42.08467599 | F44: =SUM('Charges Summary'!F25,'Charges Summary'!F8) -> 43.71652027 | G44: =SUM('Charges Summary'!G25,'Charges Summary'!G8) -> 44.30183794 | H44: =SUM('Charges Summary'!H25,'Charges Summary'!H8) -> 45.45425034
A45: ='DNSP Inputs General'!A$42 -> Sodium High Pressure 150 watt | D45: =SUM('Charges Summary'!D49,'Charges Summary'!D8) -> 135.5327845 | E45: =SUM('Charges Summary'!E49,'Charges Summary'!E8) -> 141.6547989 | F45: =SUM('Charges Summary'!F49,'Charges Summary'!F8) -> 147.4525485 | G45: =SUM('Charges Summary'!G49,'Charges Summary'!G8) -> 150.8487877 | H45: =SUM('Charges Summary'!H49,'Charges Summary'!H8) -> 155.7455597
A46: ='DNSP Inputs General'!A$43 -> Sodium High Pressure 250 watt | D46: =SUM('Charges Summary'!D65,'Charges Summary'!D8) -> 136.1056227 | E46: =SUM('Charges Summary'!E65,'Charges Summary'!E8) -> 142.2543383 | F46: =SUM('Charges Summary'!F65,'Charges Summary'!F8) -> 148.077156 | G46: =SUM('Charges Summary'!G65,'Charges Summary'!G8) -> 151.487224 | H46: =SUM('Charges Summary'!H65,'Charges Summary'!H8) -> 156.4047194
A48: ='DNSP Inputs General'!A$40 -> Existing Lights
A49: ='DNSP Inputs General'!A$41 -> Mercury Vapour 80 watt | D49: =D44*'DNSP Inputs General'!K41 -> 540558.5229 | E49: =E44*'DNSP Inputs General'!L41 -> 556764.1467 | F49: =F44*'DNSP Inputs General'!M41 -> 570024.5409 | G49: =G44*'DNSP Inputs General'!N41 -> 569338.3082 | H49: =H44*'DNSP Inputs General'!O41 -> 575736.6239 | K49: =D49/'Charges Summary'!D$4 -> 527251.0159 | L49: =E49/'Charges Summary'!E$4 -> 529688.657 | M49: =F49/'Charges Summary'!F$4 -> 528953.7149 | N49: =G49/'Charges Summary'!G$4 -> 515310.7835 | O49: =H49/'Charges Summary'!H$4 -> 508273.4059
A50: ='DNSP Inputs General'!A$42 -> Sodium High Pressure 150 watt | D50: =D45*'DNSP Inputs General'!K42 -> 2128841.583 | E50: =E45*'DNSP Inputs General'!L42 -> 2255154.38 | F50: =F45*'DNSP Inputs General'!M42 -> 2378465.952 | G50: =G45*'DNSP Inputs General'!N42 -> 2464645.419 | H50: =H45*'DNSP Inputs General'!O42 -> 2576778.045 | K50: =D50/'Charges Summary'!D$4 -> 2076433.614 | L50: =E50/'Charges Summary'!E$4 -> 2145486.023 | M50: =F50/'Charges Summary'!F$4 -> 2207095.153 | N50: =G50/'Charges Summary'!G$4 -> 2230762.173 | O50: =H50/'Charges Summary'!H$4 -> 2274838.353
A51: ='DNSP Inputs General'!A$43 -> Sodium High Pressure 250 watt | D51: =D46*'DNSP Inputs General'!K43 -> 645468.1205 | E51: =E46*'DNSP Inputs General'!L43 -> 675973.2312 | F51: =F46*'DNSP Inputs General'!M43 -> 704974.1695 | G51: =G46*'DNSP Inputs General'!N43 -> 722504.4835 | H51: =H46*'DNSP Inputs General'!O43 -> 747229.8675 | K51: =D51/'Charges Summary'!D$4 -> 629577.9419 | L51: =E51/'Charges Summary'!E$4 -> 643100.5931 | M51: =F51/'Charges Summary'!F$4 -> 654180.0907 | N51: =G51/'Charges Summary'!G$4 -> 653942.2099 | O51: =H51/'Charges Summary'!H$4 -> 659671.5477
A52: ='DNSP Inputs General'!A$44 -> 55W Ind | D52: =IF('DNSP Inputs General'!$B44='DNSP Inputs General'!$A$41,D$44,IF('DNSP Inputs General'!$B44='DNSP Inputs General'!$A$42,D$45,D$46))*'DNSP Inputs General'!$D44*'DNSP Inputs General'!K44 -> 0 | E52: =IF('DNSP Inputs General'!$B44='DNSP Inputs General'!$A$41,E$44,IF('DNSP Inputs General'!$B44='DNSP Inputs General'!$A$42,E$45,E$46))*'DNSP Inputs General'!$D44*'DNSP Inputs General'!L44 -> 0 | F52: =IF('DNSP Inputs General'!$B44='DNSP Inputs General'!$A$41,F$44,IF('DNSP Inputs General'!$B44='DNSP Inputs General'!$A$42,F$45,F$46))*'DNSP Inputs General'!$D44*'DNSP Inputs General'!M44 -> 0 | G52: =IF('DNSP Inputs General'!$B44='DNSP Inputs General'!$A$41,G$44,IF('DNSP Inputs General'!$B44='DNSP Inputs General'!$A$42,G$45,G$46))*'DNSP Inputs General'!$D44*'DNSP Inputs General'!N44 -> 0 | H52: =IF('DNSP Inputs General'!$B44='DNSP Inputs General'!$A$41,H$44,IF('DNSP Inputs General'!$B44='DNSP Inputs General'!$A$42,H$45,H$46))*'DNSP Inputs General'!$D44*'DNSP Inputs General'!O44 -> 0 | K52: =D52/'Charges Summary'!D$4 -> 0 | L52: =E52/'Charges Summary'!E$4 -> 0 | M52: =F52/'Charges Summary'!F$4 -> 0 | N52: =G52/'Charges Summary'!G$4 -> 0 | O52: =H52/'Charges Summary'!H$4 -> 0
A53: ='DNSP Inputs General'!A$45 -> Fluorescent 20 watt | D53: =IF('DNSP Inputs General'!$B45='DNSP Inputs General'!$A$41,D$44,IF('DNSP Inputs General'!$B45='DNSP Inputs General'!$A$42,D$45,D$46))*'DNSP Inputs General'!$D45*'DNSP Inputs General'!K45 -> 0 | E53: =IF('DNSP Inputs General'!$B45='DNSP Inputs General'!$A$41,E$44,IF('DNSP Inputs General'!$B45='DNSP Inputs General'!$A$42,E$45,E$46))*'DNSP Inputs General'!$D45*'DNSP Inputs General'!L45 -> 0 | F53: =IF('DNSP Inputs General'!$B45='DNSP Inputs General'!$A$41,F$44,IF('DNSP Inputs General'!$B45='DNSP Inputs General'!$A$42,F$45,F$46))*'DNSP Inputs General'!$D45*'DNSP Inputs General'!M45 -> 0 | G53: =IF('DNSP Inputs General'!$B45='DNSP Inputs General'!$A$41,G$44,IF('DNSP Inputs General'!$B45='DNSP Inputs General'!$A$42,G$45,G$46))*'DNSP Inputs General'!$D45*'DNSP Inputs General'!N45 -> 0 | H53: =IF('DNSP Inputs General'!$B45='DNSP Inputs General'!$A$41,H$44,IF('DNSP Inputs General'!$B45='DNSP Inputs General'!$A$42,H$45,H$46))*'DNSP Inputs General'!$D45*'DNSP Inputs General'!O45 -> 0 | K53: =D53/'Charges Summary'!D$4 -> 0 | L53: =E53/'Charges Summary'!E$4 -> 0 | M53: =F53/'Charges Summary'!F$4 -> 0 | N53: =G53/'Charges Summary'!G$4 -> 0 | O53: =H53/'Charges Summary'!H$4 -> 0
A54: ='DNSP Inputs General'!A$46 -> Fluorescent 40 watt | D54: =IF('DNSP Inputs General'!$B46='DNSP Inputs General'!$A$41,D$44,IF('DNSP Inputs General'!$B46='DNSP Inputs General'!$A$42,D$45,D$46))*'DNSP Inputs General'!$D46*'DNSP Inputs General'!K46 -> 0 | E54: =IF('DNSP Inputs General'!$B46='DNSP Inputs General'!$A$41,E$44,IF('DNSP Inputs General'!$B46='DNSP Inputs General'!$A$42,E$45,E$46))*'DNSP Inputs General'!$D46*'DNSP Inputs General'!L46 -> 0 | F54: =IF('DNSP Inputs General'!$B46='DNSP Inputs General'!$A$41,F$44,IF('DNSP Inputs General'!$B46='DNSP Inputs General'!$A$42,F$45,F$46))*'DNSP Inputs General'!$D46*'DNSP Inputs General'!M46 -> 0 | G54: =IF('DNSP Inputs General'!$B46='DNSP Inputs General'!$A$41,G$44,IF('DNSP Inputs General'!$B46='DNSP Inputs General'!$A$42,G$45,G$46))*'DNSP Inputs General'!$D46*'DNSP Inputs General'!N46 -> 0 | H54: =IF('DNSP Inputs General'!$B46='DNSP Inputs General'!$A$41,H$44,IF('DNSP Inputs General'!$B46='DNSP Inputs General'!$A$42,H$45,H$46))*'DNSP Inputs General'!$D46*'DNSP Inputs General'!O46 -> 0 | K54: =D54/'Charges Summary'!D$4 -> 0 | L54: =E54/'Charges Summary'!E$4 -> 0 | M54: =F54/'Charges Summary'!F$4 -> 0 | N54: =G54/'Charges Summary'!G$4 -> 0 | O54: =H54/'Charges Summary'!H$4 -> 0
A55: ='DNSP Inputs General'!A$47 -> Fluorescent 80 watt | D55: =IF('DNSP Inputs General'!$B47='DNSP Inputs General'!$A$41,D$44,IF('DNSP Inputs General'!$B47='DNSP Inputs General'!$A$42,D$45,D$46))*'DNSP Inputs General'!$D47*'DNSP Inputs General'!K47 -> 0 | E55: =IF('DNSP Inputs General'!$B47='DNSP Inputs General'!$A$41,E$44,IF('DNSP Inputs General'!$B47='DNSP Inputs General'!$A$42,E$45,E$46))*'DNSP Inputs General'!$D47*'DNSP Inputs General'!L47 -> 0 | F55: =IF('DNSP Inputs General'!$B47='DNSP Inputs General'!$A$41,F$44,IF('DNSP Inputs General'!$B47='DNSP Inputs General'!$A$42,F$45,F$46))*'DNSP Inputs General'!$D47*'DNSP Inputs General'!M47 -> 0 | G55: =IF('DNSP Inputs General'!$B47='DNSP Inputs General'!$A$41,G$44,IF('DNSP Inputs General'!$B47='DNSP Inputs General'!$A$42,G$45,G$46))*'DNSP Inputs General'!$D47*'DNSP Inputs General'!N47 -> 0 | H55: =IF('DNSP Inputs General'!$B47='DNSP Inputs General'!$A$41,H$44,IF('DNSP Inputs General'!$B47='DNSP Inputs General'!$A$42,H$45,H$46))*'DNSP Inputs General'!$D47*'DNSP Inputs General'!O47 -> 0 | K55: =D55/'Charges Summary'!D$4 -> 0 | L55: =E55/'Charges Summary'!E$4 -> 0 | M55: =F55/'Charges Summary'!F$4 -> 0 | N55: =G55/'Charges Summary'!G$4 -> 0 | O55: =H55/'Charges Summary'!H$4 -> 0
A56: ='DNSP Inputs General'!A$48 -> Mercury Vapour 50 watt | D56: =IF('DNSP Inputs General'!$B48='DNSP Inputs General'!$A$41,D$44,IF('DNSP Inputs General'!$B48='DNSP Inputs General'!$A$42,D$45,D$46))*'DNSP Inputs General'!$D48*'DNSP Inputs General'!K48 -> 0 | E56: =IF('DNSP Inputs General'!$B48='DNSP Inputs General'!$A$41,E$44,IF('DNSP Inputs General'!$B48='DNSP Inputs General'!$A$42,E$45,E$46))*'DNSP Inputs General'!$D48*'DNSP Inputs General'!L48 -> 0 | F56: =IF('DNSP Inputs General'!$B48='DNSP Inputs General'!$A$41,F$44,IF('DNSP Inputs General'!$B48='DNSP Inputs General'!$A$42,F$45,F$46))*'DNSP Inputs General'!$D48*'DNSP Inputs General'!M48 -> 0 | G56: =IF('DNSP Inputs General'!$B48='DNSP Inputs General'!$A$41,G$44,IF('DNSP Inputs General'!$B48='DNSP Inputs General'!$A$42,G$45,G$46))*'DNSP Inputs General'!$D48*'DNSP Inputs General'!N48 -> 0 | H56: =IF('DNSP Inputs General'!$B48='DNSP Inputs General'!$A$41,H$44,IF('DNSP Inputs General'!$B48='DNSP Inputs General'!$A$42,H$45,H$46))*'DNSP Inputs General'!$D48*'DNSP Inputs General'!O48 -> 0 | K56: =D56/'Charges Summary'!D$4 -> 0 | L56: =E56/'Charges Summary'!E$4 -> 0 | M56: =F56/'Charges Summary'!F$4 -> 0 | N56: =G56/'Charges Summary'!G$4 -> 0 | O56: =H56/'Charges Summary'!H$4 -> 0
A57: ='DNSP Inputs General'!A$49 -> Mercury Vapour 125 watt | D57: =IF('DNSP Inputs General'!$B49='DNSP Inputs General'!$A$41,D$44,IF('DNSP Inputs General'!$B49='DNSP Inputs General'!$A$42,D$45,D$46))*'DNSP Inputs General'!$D49*'DNSP Inputs General'!K49 -> 20989.77243 | E57: =IF('DNSP Inputs General'!$B49='DNSP Inputs General'!$A$41,E$44,IF('DNSP Inputs General'!$B49='DNSP Inputs General'!$A$42,E$45,E$46))*'DNSP Inputs General'!$D49*'DNSP Inputs General'!L49 -> 21619.03336 | F57: =IF('DNSP Inputs General'!$B49='DNSP Inputs General'!$A$41,F$44,IF('DNSP Inputs General'!$B49='DNSP Inputs General'!$A$42,F$45,F$46))*'DNSP Inputs General'!$D49*'DNSP Inputs General'!M49 -> 22133.93164 | G57: =IF('DNSP Inputs General'!$B49='DNSP Inputs General'!$A$41,G$44,IF('DNSP Inputs General'!$B49='DNSP Inputs General'!$A$42,G$45,G$46))*'DNSP Inputs General'!$D49*'DNSP Inputs General'!N49 -> 22107.28537 | H57: =IF('DNSP Inputs General'!$B49='DNSP Inputs General'!$A$41,H$44,IF('DNSP Inputs General'!$B49='DNSP Inputs General'!$A$42,H$45,H$46))*'DNSP Inputs General'!$D49*'DNSP Inputs General'!O49 -> 22355.73061 | K57: =D57/'Charges Summary'!D$4 -> 20473.04477 | L57: =E57/'Charges Summary'!E$4 -> 20567.69785 | M57: =F57/'Charges Summary'!F$4 -> 20539.16021 | N57: =G57/'Charges Summary'!G$4 -> 20009.40808 | O57: =H57/'Charges Summary'!H$4 -> 19736.14821
A58: ='DNSP Inputs General'!A$50 -> Mercury Vapour 250 watt | D58: =IF('DNSP Inputs General'!$B50='DNSP Inputs General'!$A$41,D$44,IF('DNSP Inputs General'!$B50='DNSP Inputs General'!$A$42,D$45,D$46))*'DNSP Inputs General'!$D50*'DNSP Inputs General'!K50 -> 15511.12789 | E58: =IF('DNSP Inputs General'!$B50='DNSP Inputs General'!$A$41,E$44,IF('DNSP Inputs General'!$B50='DNSP Inputs General'!$A$42,E$45,E$46))*'DNSP Inputs General'!$D50*'DNSP Inputs General'!L50 -> 13835.25184 | F58: =IF('DNSP Inputs General'!$B50='DNSP Inputs General'!$A$41,F$44,IF('DNSP Inputs General'!$B50='DNSP Inputs General'!$A$42,F$45,F$46))*'DNSP Inputs General'!$D50*'DNSP Inputs General'!M50 -> 12290.33868 | G58: =IF('DNSP Inputs General'!$B50='DNSP Inputs General'!$A$41,G$44,IF('DNSP Inputs General'!$B50='DNSP Inputs General'!$A$42,G$45,G$46))*'DNSP Inputs General'!$D50*'DNSP Inputs General'!N50 -> 10730.15587 | H58: =IF('DNSP Inputs General'!$B50='DNSP Inputs General'!$A$41,H$44,IF('DNSP Inputs General'!$B50='DNSP Inputs General'!$A$42,H$45,H$46))*'DNSP Inputs General'!$D50*'DNSP Inputs General'!O50 -> 9454.403075 | K58: =D58/'Charges Summary'!D$4 -> 15129.27387 | L58: =E58/'Charges Summary'!E$4 -> 13162.44232 | M58: =F58/'Charges Summary'!F$4 -> 11404.80775 | N58: =G58/'Charges Summary'!G$4 -> 9711.914597 | O58: =H58/'Charges Summary'!H$4 -> 8346.56239
A59: ='DNSP Inputs General'!A$51 -> Mercury Vapour 400 watt | D59: =IF('DNSP Inputs General'!$B51='DNSP Inputs General'!$A$41,D$44,IF('DNSP Inputs General'!$B51='DNSP Inputs General'!$A$42,D$45,D$46))*'DNSP Inputs General'!$D51*'DNSP Inputs General'!K51 -> 28310.17774 | E59: =IF('DNSP Inputs General'!$B51='DNSP Inputs General'!$A$41,E$44,IF('DNSP Inputs General'!$B51='DNSP Inputs General'!$A$42,E$45,E$46))*'DNSP Inputs General'!$D51*'DNSP Inputs General'!L51 -> 28136.08286 | F59: =IF('DNSP Inputs General'!$B51='DNSP Inputs General'!$A$41,F$44,IF('DNSP Inputs General'!$B51='DNSP Inputs General'!$A$42,F$45,F$46))*'DNSP Inputs General'!$D51*'DNSP Inputs General'!M51 -> 27849.5232 | G59: =IF('DNSP Inputs General'!$B51='DNSP Inputs General'!$A$41,G$44,IF('DNSP Inputs General'!$B51='DNSP Inputs General'!$A$42,G$45,G$46))*'DNSP Inputs General'!$D51*'DNSP Inputs General'!N51 -> 27091.7645 | H59: =IF('DNSP Inputs General'!$B51='DNSP Inputs General'!$A$41,H$44,IF('DNSP Inputs General'!$B51='DNSP Inputs General'!$A$42,H$45,H$46))*'DNSP Inputs General'!$D51*'DNSP Inputs General'!O51 -> 26597.6167 | K59: =D59/'Charges Summary'!D$4 -> 27613.23583 | L59: =E59/'Charges Summary'!E$4 -> 26767.82266 | M59: =F59/'Charges Summary'!F$4 -> 25842.9378 | N59: =G59/'Charges Summary'!G$4 -> 24520.88361 | O59: =H59/'Charges Summary'!H$4 -> 23480.98187
A60: ='DNSP Inputs General'!A$52 -> Sodium High Pressure 50 watt | D60: =IF('DNSP Inputs General'!$B52='DNSP Inputs General'!$A$41,D$44,IF('DNSP Inputs General'!$B52='DNSP Inputs General'!$A$42,D$45,D$46))*'DNSP Inputs General'!$D52*'DNSP Inputs General'!K52 -> 0 | E60: =IF('DNSP Inputs General'!$B52='DNSP Inputs General'!$A$41,E$44,IF('DNSP Inputs General'!$B52='DNSP Inputs General'!$A$42,E$45,E$46))*'DNSP Inputs General'!$D52*'DNSP Inputs General'!L52 -> 0 | F60: =IF('DNSP Inputs General'!$B52='DNSP Inputs General'!$A$41,F$44,IF('DNSP Inputs General'!$B52='DNSP Inputs General'!$A$42,F$45,F$46))*'DNSP Inputs General'!$D52*'DNSP Inputs General'!M52 -> 0 | G60: =IF('DNSP Inputs General'!$B52='DNSP Inputs General'!$A$41,G$44,IF('DNSP Inputs General'!$B52='DNSP Inputs General'!$A$42,G$45,G$46))*'DNSP Inputs General'!$D52*'DNSP Inputs General'!N52 -> 0 | H60: =IF('DNSP Inputs General'!$B52='DNSP Inputs General'!$A$41,H$44,IF('DNSP Inputs General'!$B52='DNSP Inputs General'!$A$42,H$45,H$46))*'DNSP Inputs General'!$D52*'DNSP Inputs General'!O52 -> 0 | K60: =D60/'Charges Summary'!D$4 -> 0 | L60: =E60/'Charges Summary'!E$4 -> 0 | M60: =F60/'Charges Summary'!F$4 -> 0 | N60: =G60/'Charges Summary'!G$4 -> 0 | O60: =H60/'Charges Summary'!H$4 -> 0
A61: ='DNSP Inputs General'!A$53 -> Sodium Low Pressure 90 watt | D61: =IF('DNSP Inputs General'!$B53='DNSP Inputs General'!$A$41,D$44,IF('DNSP Inputs General'!$B53='DNSP Inputs General'!$A$42,D$45,D$46))*'DNSP Inputs General'!$D53*'DNSP Inputs General'!K53 -> 0 | E61: =IF('DNSP Inputs General'!$B53='DNSP Inputs General'!$A$41,E$44,IF('DNSP Inputs General'!$B53='DNSP Inputs General'!$A$42,E$45,E$46))*'DNSP Inputs General'!$D53*'DNSP Inputs General'!L53 -> 0 | F61: =IF('DNSP Inputs General'!$B53='DNSP Inputs General'!$A$41,F$44,IF('DNSP Inputs General'!$B53='DNSP Inputs General'!$A$42,F$45,F$46))*'DNSP Inputs General'!$D53*'DNSP Inputs General'!M53 -> 0 | G61: =IF('DNSP Inputs General'!$B53='DNSP Inputs General'!$A$41,G$44,IF('DNSP Inputs General'!$B53='DNSP Inputs General'!$A$42,G$45,G$46))*'DNSP Inputs General'!$D53*'DNSP Inputs General'!N53 -> 0 | H61: =IF('DNSP Inputs General'!$B53='DNSP Inputs General'!$A$41,H$44,IF('DNSP Inputs General'!$B53='DNSP Inputs General'!$A$42,H$45,H$46))*'DNSP Inputs General'!$D53*'DNSP Inputs General'!O53 -> 0 | K61: =D61/'Charges Summary'!D$4 -> 0 | L61: =E61/'Charges Summary'!E$4 -> 0 | M61: =F61/'Charges Summary'!F$4 -> 0 | N61: =G61/'Charges Summary'!G$4 -> 0 | O61: =H61/'Charges Summary'!H$4 -> 0
A62: ='DNSP Inputs General'!A$54 -> Sodium High Pressure 100 watt | D62: =IF('DNSP Inputs General'!$B54='DNSP Inputs General'!$A$41,D$44,IF('DNSP Inputs General'!$B54='DNSP Inputs General'!$A$42,D$45,D$46))*'DNSP Inputs General'!$D54*'DNSP Inputs General'!K54 -> 213198.3279 | E62: =IF('DNSP Inputs General'!$B54='DNSP Inputs General'!$A$41,E$44,IF('DNSP Inputs General'!$B54='DNSP Inputs General'!$A$42,E$45,E$46))*'DNSP Inputs General'!$D54*'DNSP Inputs General'!L54 -> 219619.7637 | F62: =IF('DNSP Inputs General'!$B54='DNSP Inputs General'!$A$41,F$44,IF('DNSP Inputs General'!$B54='DNSP Inputs General'!$A$42,F$45,F$46))*'DNSP Inputs General'!$D54*'DNSP Inputs General'!M54 -> 225316.5568 | G62: =IF('DNSP Inputs General'!$B54='DNSP Inputs General'!$A$41,G$44,IF('DNSP Inputs General'!$B54='DNSP Inputs General'!$A$42,G$45,G$46))*'DNSP Inputs General'!$D54*'DNSP Inputs General'!N54 -> 227186.9296 | H62: =IF('DNSP Inputs General'!$B54='DNSP Inputs General'!$A$41,H$44,IF('DNSP Inputs General'!$B54='DNSP Inputs General'!$A$42,H$45,H$46))*'DNSP Inputs General'!$D54*'DNSP Inputs General'!O54 -> 231184.06 | K62: =D62/'Charges Summary'!D$4 -> 207949.7968 | L62: =E62/'Charges Summary'!E$4 -> 208939.6352 | M62: =F62/'Charges Summary'!F$4 -> 209082.2784 | N62: =G62/'Charges Summary'!G$4 -> 205627.9596 | O62: =H62/'Charges Summary'!H$4 -> 204094.5542
A63: ='DNSP Inputs General'!A$55 -> Sodium High Pressure 400 watt | D63: =IF('DNSP Inputs General'!$B55='DNSP Inputs General'!$A$41,D$44,IF('DNSP Inputs General'!$B55='DNSP Inputs General'!$A$42,D$45,D$46))*'DNSP Inputs General'!$D55*'DNSP Inputs General'!K55 -> 52133.89772 | E63: =IF('DNSP Inputs General'!$B55='DNSP Inputs General'!$A$41,E$44,IF('DNSP Inputs General'!$B55='DNSP Inputs General'!$A$42,E$45,E$46))*'DNSP Inputs General'!$D55*'DNSP Inputs General'!L55 -> 54489.10176 | F63: =IF('DNSP Inputs General'!$B55='DNSP Inputs General'!$A$41,F$44,IF('DNSP Inputs General'!$B55='DNSP Inputs General'!$A$42,F$45,F$46))*'DNSP Inputs General'!$D55*'DNSP Inputs General'!M55 -> 56719.47385 | G63: =IF('DNSP Inputs General'!$B55='DNSP Inputs General'!$A$41,G$44,IF('DNSP Inputs General'!$B55='DNSP Inputs General'!$A$42,G$45,G$46))*'DNSP Inputs General'!$D55*'DNSP Inputs General'!N55 -> 58025.6663 | H63: =IF('DNSP Inputs General'!$B55='DNSP Inputs General'!$A$41,H$44,IF('DNSP Inputs General'!$B55='DNSP Inputs General'!$A$42,H$45,H$46))*'DNSP Inputs General'!$D55*'DNSP Inputs General'!O55 -> 59909.26373 | K63: =D63/'Charges Summary'!D$4 -> 50850.46184 | L63: =E63/'Charges Summary'!E$4 -> 51839.29192 | M63: =F63/'Charges Summary'!F$4 -> 52632.78026 | N63: =G63/'Charges Summary'!G$4 -> 52519.30378 | O63: =H63/'Charges Summary'!H$4 -> 52889.26265
A64: ='DNSP Inputs General'!A$56 -> Metal Halide 70 watt | D64: =IF('DNSP Inputs General'!$B56='DNSP Inputs General'!$A$41,D$44,IF('DNSP Inputs General'!$B56='DNSP Inputs General'!$A$42,D$45,D$46))*'DNSP Inputs General'!$D56*'DNSP Inputs General'!K56 -> 1241.968299 | E64: =IF('DNSP Inputs General'!$B56='DNSP Inputs General'!$A$41,E$44,IF('DNSP Inputs General'!$B56='DNSP Inputs General'!$A$42,E$45,E$46))*'DNSP Inputs General'!$D56*'DNSP Inputs General'!L56 -> 1297.891408 | F64: =IF('DNSP Inputs General'!$B56='DNSP Inputs General'!$A$41,F$44,IF('DNSP Inputs General'!$B56='DNSP Inputs General'!$A$42,F$45,F$46))*'DNSP Inputs General'!$D56*'DNSP Inputs General'!M56 -> 1348.217485 | G64: =IF('DNSP Inputs General'!$B56='DNSP Inputs General'!$A$41,G$44,IF('DNSP Inputs General'!$B56='DNSP Inputs General'!$A$42,G$45,G$46))*'DNSP Inputs General'!$D56*'DNSP Inputs General'!N56 -> 1366.268682 | H64: =IF('DNSP Inputs General'!$B56='DNSP Inputs General'!$A$41,H$44,IF('DNSP Inputs General'!$B56='DNSP Inputs General'!$A$42,H$45,H$46))*'DNSP Inputs General'!$D56*'DNSP Inputs General'!O56 -> 1401.809081 | K64: =D64/'Charges Summary'!D$4 -> 1211.393437 | L64: =E64/'Charges Summary'!E$4 -> 1234.774834 | M64: =F64/'Charges Summary'!F$4 -> 1251.077096 | N64: =G64/'Charges Summary'!G$4 -> 1236.616217 | O64: =H64/'Charges Summary'!H$4 -> 1237.548987
A65: ='DNSP Inputs General'!A$57 -> Metal Halide 150 watt | D65: =IF('DNSP Inputs General'!$B57='DNSP Inputs General'!$A$41,D$44,IF('DNSP Inputs General'!$B57='DNSP Inputs General'!$A$42,D$45,D$46))*'DNSP Inputs General'!$D57*'DNSP Inputs General'!K57 -> 9929.131793 | E65: =IF('DNSP Inputs General'!$B57='DNSP Inputs General'!$A$41,E$44,IF('DNSP Inputs General'!$B57='DNSP Inputs General'!$A$42,E$45,E$46))*'DNSP Inputs General'!$D57*'DNSP Inputs General'!L57 -> 10377.63057 | F65: =IF('DNSP Inputs General'!$B57='DNSP Inputs General'!$A$41,F$44,IF('DNSP Inputs General'!$B57='DNSP Inputs General'!$A$42,F$45,F$46))*'DNSP Inputs General'!$D57*'DNSP Inputs General'!M57 -> 10802.3737 | G65: =IF('DNSP Inputs General'!$B57='DNSP Inputs General'!$A$41,G$44,IF('DNSP Inputs General'!$B57='DNSP Inputs General'!$A$42,G$45,G$46))*'DNSP Inputs General'!$D57*'DNSP Inputs General'!N57 -> 11051.18219 | H65: =IF('DNSP Inputs General'!$B57='DNSP Inputs General'!$A$41,H$44,IF('DNSP Inputs General'!$B57='DNSP Inputs General'!$A$42,H$45,H$46))*'DNSP Inputs General'!$D57*'DNSP Inputs General'!O57 -> 11409.9197 | K65: =D65/'Charges Summary'!D$4 -> 9684.695742 | L65: =E65/'Charges Summary'!E$4 -> 9872.965472 | M65: =F65/'Charges Summary'!F$4 -> 10024.0521 | N65: =G65/'Charges Summary'!G$4 -> 10002.47703 | O65: =H65/'Charges Summary'!H$4 -> 10072.93701
A66: ='DNSP Inputs General'!A$58 -> Metal Halide 250 watt | D66: =IF('DNSP Inputs General'!$B58='DNSP Inputs General'!$A$41,D$44,IF('DNSP Inputs General'!$B58='DNSP Inputs General'!$A$42,D$45,D$46))*'DNSP Inputs General'!$D58*'DNSP Inputs General'!K58 -> 21069.1504 | E66: =IF('DNSP Inputs General'!$B58='DNSP Inputs General'!$A$41,E$44,IF('DNSP Inputs General'!$B58='DNSP Inputs General'!$A$42,E$45,E$46))*'DNSP Inputs General'!$D58*'DNSP Inputs General'!L58 -> 22020.97158 | F66: =IF('DNSP Inputs General'!$B58='DNSP Inputs General'!$A$41,F$44,IF('DNSP Inputs General'!$B58='DNSP Inputs General'!$A$42,F$45,F$46))*'DNSP Inputs General'!$D58*'DNSP Inputs General'!M58 -> 22922.34376 | G66: =IF('DNSP Inputs General'!$B58='DNSP Inputs General'!$A$41,G$44,IF('DNSP Inputs General'!$B58='DNSP Inputs General'!$A$42,G$45,G$46))*'DNSP Inputs General'!$D58*'DNSP Inputs General'!N58 -> 23450.22228 | H66: =IF('DNSP Inputs General'!$B58='DNSP Inputs General'!$A$41,H$44,IF('DNSP Inputs General'!$B58='DNSP Inputs General'!$A$42,H$45,H$46))*'DNSP Inputs General'!$D58*'DNSP Inputs General'!O58 -> 24211.45057 | K66: =D66/'Charges Summary'!D$4 -> 20550.4686 | L66: =E66/'Charges Summary'!E$4 -> 20950.08978 | M66: =F66/'Charges Summary'!F$4 -> 21270.76646 | N66: =G66/'Charges Summary'!G$4 -> 21224.9066 | O66: =H66/'Charges Summary'!H$4 -> 21374.42006
A67: ='DNSP Inputs General'!A$59 -> Incandescent 100 watt | D67: =IF('DNSP Inputs General'!$B59='DNSP Inputs General'!$A$41,D$44,IF('DNSP Inputs General'!$B59='DNSP Inputs General'!$A$42,D$45,D$46))*'DNSP Inputs General'!$D59*'DNSP Inputs General'!K59 -> 0 | E67: =IF('DNSP Inputs General'!$B59='DNSP Inputs General'!$A$41,E$44,IF('DNSP Inputs General'!$B59='DNSP Inputs General'!$A$42,E$45,E$46))*'DNSP Inputs General'!$D59*'DNSP Inputs General'!L59 -> 0 | F67: =IF('DNSP Inputs General'!$B59='DNSP Inputs General'!$A$41,F$44,IF('DNSP Inputs General'!$B59='DNSP Inputs General'!$A$42,F$45,F$46))*'DNSP Inputs General'!$D59*'DNSP Inputs General'!M59 -> 0 | G67: =IF('DNSP Inputs General'!$B59='DNSP Inputs General'!$A$41,G$44,IF('DNSP Inputs General'!$B59='DNSP Inputs General'!$A$42,G$45,G$46))*'DNSP Inputs General'!$D59*'DNSP Inputs General'!N59 -> 0 | H67: =IF('DNSP Inputs General'!$B59='DNSP Inputs General'!$A$41,H$44,IF('DNSP Inputs General'!$B59='DNSP Inputs General'!$A$42,H$45,H$46))*'DNSP Inputs General'!$D59*'DNSP Inputs General'!O59 -> 0 | K67: =D67/'Charges Summary'!D$4 -> 0 | L67: =E67/'Charges Summary'!E$4 -> 0 | M67: =F67/'Charges Summary'!F$4 -> 0 | N67: =G67/'Charges Summary'!G$4 -> 0 | O67: =H67/'Charges Summary'!H$4 -> 0
A68: ='DNSP Inputs General'!A$60 -> Incandescent 150 watt | D68: =IF('DNSP Inputs General'!$B60='DNSP Inputs General'!$A$41,D$44,IF('DNSP Inputs General'!$B60='DNSP Inputs General'!$A$42,D$45,D$46))*'DNSP Inputs General'!$D60*'DNSP Inputs General'!K60 -> 0 | E68: =IF('DNSP Inputs General'!$B60='DNSP Inputs General'!$A$41,E$44,IF('DNSP Inputs General'!$B60='DNSP Inputs General'!$A$42,E$45,E$46))*'DNSP Inputs General'!$D60*'DNSP Inputs General'!L60 -> 0 | F68: =IF('DNSP Inputs General'!$B60='DNSP Inputs General'!$A$41,F$44,IF('DNSP Inputs General'!$B60='DNSP Inputs General'!$A$42,F$45,F$46))*'DNSP Inputs General'!$D60*'DNSP Inputs General'!M60 -> 0 | G68: =IF('DNSP Inputs General'!$B60='DNSP Inputs General'!$A$41,G$44,IF('DNSP Inputs General'!$B60='DNSP Inputs General'!$A$42,G$45,G$46))*'DNSP Inputs General'!$D60*'DNSP Inputs General'!N60 -> 0 | H68: =IF('DNSP Inputs General'!$B60='DNSP Inputs General'!$A$41,H$44,IF('DNSP Inputs General'!$B60='DNSP Inputs General'!$A$42,H$45,H$46))*'DNSP Inputs General'!$D60*'DNSP Inputs General'!O60 -> 0 | K68: =D68/'Charges Summary'!D$4 -> 0 | L68: =E68/'Charges Summary'!E$4 -> 0 | M68: =F68/'Charges Summary'!F$4 -> 0 | N68: =G68/'Charges Summary'!G$4 -> 0 | O68: =H68/'Charges Summary'!H$4 -> 0
A69: ='DNSP Inputs General'!A$61 -> Sodium High Pressure 250 watt (24 hrs) | D69: =IF('DNSP Inputs General'!$B61='DNSP Inputs General'!$A$41,D$44,IF('DNSP Inputs General'!$B61='DNSP Inputs General'!$A$42,D$45,D$46))*'DNSP Inputs General'!$D61*'DNSP Inputs General'!K61 -> 0 | E69: =IF('DNSP Inputs General'!$B61='DNSP Inputs General'!$A$41,E$44,IF('DNSP Inputs General'!$B61='DNSP Inputs General'!$A$42,E$45,E$46))*'DNSP Inputs General'!$D61*'DNSP Inputs General'!L61 -> 0 | F69: =IF('DNSP Inputs General'!$B61='DNSP Inputs General'!$A$41,F$44,IF('DNSP Inputs General'!$B61='DNSP Inputs General'!$A$42,F$45,F$46))*'DNSP Inputs General'!$D61*'DNSP Inputs General'!M61 -> 0 | G69: =IF('DNSP Inputs General'!$B61='DNSP Inputs General'!$A$41,G$44,IF('DNSP Inputs General'!$B61='DNSP Inputs General'!$A$42,G$45,G$46))*'DNSP Inputs General'!$D61*'DNSP Inputs General'!N61 -> 0 | H69: =IF('DNSP Inputs General'!$B61='DNSP Inputs General'!$A$41,H$44,IF('DNSP Inputs General'!$B61='DNSP Inputs General'!$A$42,H$45,H$46))*'DNSP Inputs General'!$D61*'DNSP Inputs General'!O61 -> 0 | K69: =D69/'Charges Summary'!D$4 -> 0 | L69: =E69/'Charges Summary'!E$4 -> 0 | M69: =F69/'Charges Summary'!F$4 -> 0 | N69: =G69/'Charges Summary'!G$4 -> 0 | O69: =H69/'Charges Summary'!H$4 -> 0
A70: ='DNSP Inputs General'!A$62 -> Metal Halide 100 watt | D70: =IF('DNSP Inputs General'!$B62='DNSP Inputs General'!$A$41,D$44,IF('DNSP Inputs General'!$B62='DNSP Inputs General'!$A$42,D$45,D$46))*'DNSP Inputs General'!$D62*'DNSP Inputs General'!K62 -> 0 | E70: =IF('DNSP Inputs General'!$B62='DNSP Inputs General'!$A$41,E$44,IF('DNSP Inputs General'!$B62='DNSP Inputs General'!$A$42,E$45,E$46))*'DNSP Inputs General'!$D62*'DNSP Inputs General'!L62 -> 0 | F70: =IF('DNSP Inputs General'!$B62='DNSP Inputs General'!$A$41,F$44,IF('DNSP Inputs General'!$B62='DNSP Inputs General'!$A$42,F$45,F$46))*'DNSP Inputs General'!$D62*'DNSP Inputs General'!M62 -> 0 | G70: =IF('DNSP Inputs General'!$B62='DNSP Inputs General'!$A$41,G$44,IF('DNSP Inputs General'!$B62='DNSP Inputs General'!$A$42,G$45,G$46))*'DNSP Inputs General'!$D62*'DNSP Inputs General'!N62 -> 0 | H70: =IF('DNSP Inputs General'!$B62='DNSP Inputs General'!$A$41,H$44,IF('DNSP Inputs General'!$B62='DNSP Inputs General'!$A$42,H$45,H$46))*'DNSP Inputs General'!$D62*'DNSP Inputs General'!O62 -> 0 | K70: =D70/'Charges Summary'!D$4 -> 0 | L70: =E70/'Charges Summary'!E$4 -> 0 | M70: =F70/'Charges Summary'!F$4 -> 0 | N70: =G70/'Charges Summary'!G$4 -> 0 | O70: =H70/'Charges Summary'!H$4 -> 0
A73: ='DNSP Inputs General'!A$67 -> Energy Efficient Lights
A74: ='DNSP Inputs General'!A$68 -> T5 2X14W | D74: =SUM('Charges Summary'!D83,'Charges Summary'!D8)*'DNSP Inputs General'!$D68*'DNSP Inputs General'!K68 -> 1690878.985 | E74: =SUM('Charges Summary'!E83,'Charges Summary'!E8)*'DNSP Inputs General'!$D68*'DNSP Inputs General'!L68 -> 1791722.889 | F74: =SUM('Charges Summary'!F83,'Charges Summary'!F8)*'DNSP Inputs General'!$D68*'DNSP Inputs General'!M68 -> 1887242.115 | G74: =SUM('Charges Summary'!G83,'Charges Summary'!G8)*'DNSP Inputs General'!$D68*'DNSP Inputs General'!N68 -> 1939822.489 | H74: =SUM('Charges Summary'!H83,'Charges Summary'!H8)*'DNSP Inputs General'!$D68*'DNSP Inputs General'!O68 -> 2017837.222 | K74: =D74/'Charges Summary'!D$4 -> 1649252.809 | L74: =E74/'Charges Summary'!E$4 -> 1704591.246 | M74: =F74/'Charges Summary'!F$4 -> 1751264.474 | N74: =G74/'Charges Summary'!G$4 -> 1755742.468 | O74: =H74/'Charges Summary'!H$4 -> 1781392.662
A75: ='DNSP Inputs General'!A$69 -> T5 (2x24W) | D75: =SUM('Charges Summary'!D83,'Charges Summary'!D8)*'DNSP Inputs General'!$D69*'DNSP Inputs General'!K69 -> 18074.03477 | E75: =SUM('Charges Summary'!E83,'Charges Summary'!E8)*'DNSP Inputs General'!$D69*'DNSP Inputs General'!L69 -> 18894.26948 | F75: =SUM('Charges Summary'!F83,'Charges Summary'!F8)*'DNSP Inputs General'!$D69*'DNSP Inputs General'!M69 -> 19637.31904 | G75: =SUM('Charges Summary'!G83,'Charges Summary'!G8)*'DNSP Inputs General'!$D69*'DNSP Inputs General'!N69 -> 19919.95905 | H75: =SUM('Charges Summary'!H83,'Charges Summary'!H8)*'DNSP Inputs General'!$D69*'DNSP Inputs General'!O69 -> 20453.09445 | K75: =D75/'Charges Summary'!D$4 -> 17629.08693 | L75: =E75/'Charges Summary'!E$4 -> 17975.43948 | M75: =F75/'Charges Summary'!F$4 -> 18222.43099 | N75: =G75/'Charges Summary'!G$4 -> 18029.64873 | O75: =H75/'Charges Summary'!H$4 -> 18056.45767
A76: ='DNSP Inputs General'!A$70 -> LED 18W | D76: =SUM('Charges Summary'!D83,'Charges Summary'!D8)*'DNSP Inputs General'!$D70*'DNSP Inputs General'!K70 -> 8552.014277 | E76: =SUM('Charges Summary'!E83,'Charges Summary'!E8)*'DNSP Inputs General'!$D70*'DNSP Inputs General'!L70 -> 13150.92231 | F76: =SUM('Charges Summary'!F83,'Charges Summary'!F8)*'DNSP Inputs General'!$D70*'DNSP Inputs General'!M70 -> 17981.4828 | G76: =SUM('Charges Summary'!G83,'Charges Summary'!G8)*'DNSP Inputs General'!$D70*'DNSP Inputs General'!N70 -> 22552.74409 | H76: =SUM('Charges Summary'!H83,'Charges Summary'!H8)*'DNSP Inputs General'!$D70*'DNSP Inputs General'!O70 -> 27520.45341 | K76: =D76/'Charges Summary'!D$4 -> 8341.4802 | L76: =E76/'Charges Summary'!E$4 -> 12511.3918 | M76: =F76/'Charges Summary'!F$4 -> 16685.89936 | N76: =G76/'Charges Summary'!G$4 -> 20412.59486 | O76: =H76/'Charges Summary'!H$4 -> 24295.68314
A77: ='DNSP Inputs General'!A$71 -> Compact Fluoro 32W | D77: =SUM('Charges Summary'!D83,'Charges Summary'!D8)*'DNSP Inputs General'!$D71*'DNSP Inputs General'!K71 -> 332.541104 | E77: =SUM('Charges Summary'!E83,'Charges Summary'!E8)*'DNSP Inputs General'!$D71*'DNSP Inputs General'!L71 -> 347.6324636 | F77: =SUM('Charges Summary'!F83,'Charges Summary'!F8)*'DNSP Inputs General'!$D71*'DNSP Inputs General'!M71 -> 361.3037066 | G77: =SUM('Charges Summary'!G83,'Charges Summary'!G8)*'DNSP Inputs General'!$D71*'DNSP Inputs General'!N71 -> 366.5039522 | H77: =SUM('Charges Summary'!H83,'Charges Summary'!H8)*'DNSP Inputs General'!$D71*'DNSP Inputs General'!O71 -> 376.3130201 | K77: =D77/'Charges Summary'!D$4 -> 324.3545842 | L77: =E77/'Charges Summary'!E$4 -> 330.7270661 | M77: =F77/'Charges Summary'!F$4 -> 335.271421 | N77: =G77/'Charges Summary'!G$4 -> 331.7244528 | O77: =H77/'Charges Summary'!H$4 -> 332.217706
A78: ='DNSP Inputs General'!A$72 -> Compact Fluoro 42W | D78: =SUM('Charges Summary'!D83,'Charges Summary'!D8)*'DNSP Inputs General'!$D72*'DNSP Inputs General'!K72 -> 3187.800737 | E78: =SUM('Charges Summary'!E83,'Charges Summary'!E8)*'DNSP Inputs General'!$D72*'DNSP Inputs General'!L72 -> 3332.46931 | F78: =SUM('Charges Summary'!F83,'Charges Summary'!F8)*'DNSP Inputs General'!$D72*'DNSP Inputs General'!M72 -> 3463.524383 | G78: =SUM('Charges Summary'!G83,'Charges Summary'!G8)*'DNSP Inputs General'!$D72*'DNSP Inputs General'!N72 -> 3513.374903 | H78: =SUM('Charges Summary'!H83,'Charges Summary'!H8)*'DNSP Inputs General'!$D72*'DNSP Inputs General'!O72 -> 3607.406448 | K78: =D78/'Charges Summary'!D$4 -> 3109.323239 | L78: =E78/'Charges Summary'!E$4 -> 3170.411033 | M78: =F78/'Charges Summary'!F$4 -> 3213.974062 | N78: =G78/'Charges Summary'!G$4 -> 3179.972167 | O78: =H78/'Charges Summary'!H$4 -> 3184.700583
A80: Total O & M | D80: =SUM(D49:D79) -> 5398277.156 | E80: =SUM(E49:E79) -> 5686735.667 | F80: =SUM(F49:F79) -> 5961533.167 | G80: =SUM(G49:G79) -> 6123672.756 | H80: =SUM(H49:H79) -> 6356063.279 | K80: =SUM(K49:K79) -> 5265381.997 | L80: =SUM(L49:L79) -> 5410189.208 | M80: =SUM(M49:M79) -> 5531998.869 | N80: =SUM(N49:N79) -> 5542565.044 | O80: =SUM(O49:O79) -> 5611277.444
A83: Public Lighting - Capital Charge | D83: Capital Charge - Nominal | K83: Capital Charge - Real 2015 $
D84: =D$2 -> 2016 | E84: 2017 | F84: 2018 | G84: 2019 | H84: 2020 | K84: =K$2 -> 2016 | L84: 2017 | M84: 2018 | N84: 2019 | O84: 2020
A86: Unit cost
A87: ='DNSP Inputs General'!A$41 -> Mercury Vapour 80 watt | D87: =SUM('Charges Summary'!D27,'Charges Summary'!D11) -> 19.54731974 | E87: =SUM('Charges Summary'!E27,'Charges Summary'!E11) -> 20.50396725 | F87: =SUM('Charges Summary'!F27,'Charges Summary'!F11) -> 21.49632741 | G87: =SUM('Charges Summary'!G27,'Charges Summary'!G11) -> 22.45762409 | H87: =SUM('Charges Summary'!H27,'Charges Summary'!H11) -> 23.36326576
A88: ='DNSP Inputs General'!A$42 -> Sodium High Pressure 150 watt | D88: =SUM('Charges Summary'!D51,'Charges Summary'!D11) -> 21.95565393 | E88: =SUM('Charges Summary'!E51,'Charges Summary'!E11) -> 22.98323142 | F88: =SUM('Charges Summary'!F51,'Charges Summary'!F11) -> 24.05077255 | G88: =SUM('Charges Summary'!G51,'Charges Summary'!G11) -> 25.08408839 | H88: =SUM('Charges Summary'!H51,'Charges Summary'!H11) -> 26.05588488
A89: ='DNSP Inputs General'!A$43 -> Sodium High Pressure 250 watt | D89: =SUM('Charges Summary'!D67,'Charges Summary'!D11) -> 22.95889984 | E89: =SUM('Charges Summary'!E67,'Charges Summary'!E11) -> 24.01602481 | F89: =SUM('Charges Summary'!F67,'Charges Summary'!F11) -> 25.11488427 | G89: =SUM('Charges Summary'!G67,'Charges Summary'!G11) -> 26.17820131 | H89: =SUM('Charges Summary'!H67,'Charges Summary'!H11) -> 27.17755609
A90: ='DNSP Inputs General'!A$68 -> T5 2X14W | D90: =SUM('Charges Summary'!D85,'Charges Summary'!D11) -> 8.496472861 | E90: =SUM('Charges Summary'!E85,'Charges Summary'!E11) -> 9.789584302 | F90: =SUM('Charges Summary'!F85,'Charges Summary'!F11) -> 11.10490431 | G90: =SUM('Charges Summary'!G85,'Charges Summary'!G11) -> 12.38464856 | H90: =SUM('Charges Summary'!H85,'Charges Summary'!H11) -> 13.60761134
A92: ='DNSP Inputs General'!A$40 -> Existing Lights
A93: ='DNSP Inputs General'!A$41 -> Mercury Vapour 80 watt | D93: =D87*'DNSP Inputs General'!K41 -> 262381.853 | E93: =E87*'DNSP Inputs General'!L41 -> 271259.6345 | F93: =F87*'DNSP Inputs General'!M41 -> 280292.9896 | G93: =G87*'DNSP Inputs General'!N41 -> 288610.7282 | H93: =H87*'DNSP Inputs General'!O41 -> 295925.8518 | K93: =D93/'Charges Summary'!D$4 -> 255922.5185 | L93: =E93/'Charges Summary'!E$4 -> 258068.2545 | M93: =F93/'Charges Summary'!F$4 -> 260097.6055 | N93: =G93/'Charges Summary'!G$4 -> 261222.929 | O93: =H93/'Charges Summary'!H$4 -> 261250.0827
A94: ='DNSP Inputs General'!A$42 -> Sodium High Pressure 150 watt | D94: =D88*'DNSP Inputs General'!K42 -> 344862.0143 | E94: =E88*'DNSP Inputs General'!L42 -> 365894.6637 | F94: =F88*'DNSP Inputs General'!M42 -> 387948.1516 | G94: =G88*'DNSP Inputs General'!N42 -> 409836.7939 | H94: =H88*'DNSP Inputs General'!O42 -> 431089.2217 | K94: =D94/'Charges Summary'!D$4 -> 336372.1774 | L94: =E94/'Charges Summary'!E$4 -> 348101.1738 | M94: =F94/'Charges Summary'!F$4 -> 359996.1076 | N94: =G94/'Charges Summary'!G$4 -> 370945.2119 | O94: =H94/'Charges Summary'!H$4 -> 380575.3844
A95: ='DNSP Inputs General'!A$43 -> Sodium High Pressure 250 watt | D95: =D89*'DNSP Inputs General'!K43 -> 108880.4241 | E95: =E89*'DNSP Inputs General'!L43 -> 114120.8773 | F95: =F89*'DNSP Inputs General'!M43 -> 119568.3733 | G95: =G89*'DNSP Inputs General'!N43 -> 124854.5409 | H95: =H89*'DNSP Inputs General'!O43 -> 129841.8725 | K95: =D95/'Charges Summary'!D$4 -> 106199.9983 | L95: =E95/'Charges Summary'!E$4 -> 108571.1689 | M95: =F95/'Charges Summary'!F$4 -> 110953.355 | N95: =G95/'Charges Summary'!G$4 -> 113006.4329 | O95: =H95/'Charges Summary'!H$4 -> 114627.3626
A96: ='DNSP Inputs General'!A$44 -> 55W Ind | D96: =IF('DNSP Inputs General'!$B44='DNSP Inputs General'!$A$41,D$87,IF('DNSP Inputs General'!$B44='DNSP Inputs General'!$A$42,D$88,D$89))*'DNSP Inputs General'!$D44*'DNSP Inputs General'!K44 -> 0 | E96: =IF('DNSP Inputs General'!$B44='DNSP Inputs General'!$A$41,E$87,IF('DNSP Inputs General'!$B44='DNSP Inputs General'!$A$42,E$88,E$89))*'DNSP Inputs General'!$D44*'DNSP Inputs General'!L44 -> 0 | F96: =IF('DNSP Inputs General'!$B44='DNSP Inputs General'!$A$41,F$87,IF('DNSP Inputs General'!$B44='DNSP Inputs General'!$A$42,F$88,F$89))*'DNSP Inputs General'!$D44*'DNSP Inputs General'!M44 -> 0 | G96: =IF('DNSP Inputs General'!$B44='DNSP Inputs General'!$A$41,G$87,IF('DNSP Inputs General'!$B44='DNSP Inputs General'!$A$42,G$88,G$89))*'DNSP Inputs General'!$D44*'DNSP Inputs General'!N44 -> 0 | H96: =IF('DNSP Inputs General'!$B44='DNSP Inputs General'!$A$41,H$87,IF('DNSP Inputs General'!$B44='DNSP Inputs General'!$A$42,H$88,H$89))*'DNSP Inputs General'!$D44*'DNSP Inputs General'!O44 -> 0 | K96: =D96/'Charges Summary'!D$4 -> 0 | L96: =E96/'Charges Summary'!E$4 -> 0 | M96: =F96/'Charges Summary'!F$4 -> 0 | N96: =G96/'Charges Summary'!G$4 -> 0 | O96: =H96/'Charges Summary'!H$4 -> 0
A97: ='DNSP Inputs General'!A$45 -> Fluorescent 20 watt | D97: =IF('DNSP Inputs General'!$B45='DNSP Inputs General'!$A$41,D$87,IF('DNSP Inputs General'!$B45='DNSP Inputs General'!$A$42,D$88,D$89))*'DNSP Inputs General'!$D45*'DNSP Inputs General'!K45 -> 0 | E97: =IF('DNSP Inputs General'!$B45='DNSP Inputs General'!$A$41,E$87,IF('DNSP Inputs General'!$B45='DNSP Inputs General'!$A$42,E$88,E$89))*'DNSP Inputs General'!$D45*'DNSP Inputs General'!L45 -> 0 | F97: =IF('DNSP Inputs General'!$B45='DNSP Inputs General'!$A$41,F$87,IF('DNSP Inputs General'!$B45='DNSP Inputs General'!$A$42,F$88,F$89))*'DNSP Inputs General'!$D45*'DNSP Inputs General'!M45 -> 0 | G97: =IF('DNSP Inputs General'!$B45='DNSP Inputs General'!$A$41,G$87,IF('DNSP Inputs General'!$B45='DNSP Inputs General'!$A$42,G$88,G$89))*'DNSP Inputs General'!$D45*'DNSP Inputs General'!N45 -> 0 | H97: =IF('DNSP Inputs General'!$B45='DNSP Inputs General'!$A$41,H$87,IF('DNSP Inputs General'!$B45='DNSP Inputs General'!$A$42,H$88,H$89))*'DNSP Inputs General'!$D45*'DNSP Inputs General'!O45 -> 0 | K97: =D97/'Charges Summary'!D$4 -> 0 | L97: =E97/'Charges Summary'!E$4 -> 0 | M97: =F97/'Charges Summary'!F$4 -> 0 | N97: =G97/'Charges Summary'!G$4 -> 0 | O97: =H97/'Charges Summary'!H$4 -> 0
A98: ='DNSP Inputs General'!A$46 -> Fluorescent 40 watt | D98: =IF('DNSP Inputs General'!$B46='DNSP Inputs General'!$A$41,D$87,IF('DNSP Inputs General'!$B46='DNSP Inputs General'!$A$42,D$88,D$89))*'DNSP Inputs General'!$D46*'DNSP Inputs General'!K46 -> 0 | E98: =IF('DNSP Inputs General'!$B46='DNSP Inputs General'!$A$41,E$87,IF('DNSP Inputs General'!$B46='DNSP Inputs General'!$A$42,E$88,E$89))*'DNSP Inputs General'!$D46*'DNSP Inputs General'!L46 -> 0 | F98: =IF('DNSP Inputs General'!$B46='DNSP Inputs General'!$A$41,F$87,IF('DNSP Inputs General'!$B46='DNSP Inputs General'!$A$42,F$88,F$89))*'DNSP Inputs General'!$D46*'DNSP Inputs General'!M46 -> 0 | G98: =IF('DNSP Inputs General'!$B46='DNSP Inputs General'!$A$41,G$87,IF('DNSP Inputs General'!$B46='DNSP Inputs General'!$A$42,G$88,G$89))*'DNSP Inputs General'!$D46*'DNSP Inputs General'!N46 -> 0 | H98: =IF('DNSP Inputs General'!$B46='DNSP Inputs General'!$A$41,H$87,IF('DNSP Inputs General'!$B46='DNSP Inputs General'!$A$42,H$88,H$89))*'DNSP Inputs General'!$D46*'DNSP Inputs General'!O46 -> 0 | K98: =D98/'Charges Summary'!D$4 -> 0 | L98: =E98/'Charges Summary'!E$4 -> 0 | M98: =F98/'Charges Summary'!F$4 -> 0 | N98: =G98/'Charges Summary'!G$4 -> 0 | O98: =H98/'Charges Summary'!H$4 -> 0
A99: ='DNSP Inputs General'!A$47 -> Fluorescent 80 watt | D99: =IF('DNSP Inputs General'!$B47='DNSP Inputs General'!$A$41,D$87,IF('DNSP Inputs General'!$B47='DNSP Inputs General'!$A$42,D$88,D$89))*'DNSP Inputs General'!$D47*'DNSP Inputs General'!K47 -> 0 | E99: =IF('DNSP Inputs General'!$B47='DNSP Inputs General'!$A$41,E$87,IF('DNSP Inputs General'!$B47='DNSP Inputs General'!$A$42,E$88,E$89))*'DNSP Inputs General'!$D47*'DNSP Inputs General'!L47 -> 0 | F99: =IF('DNSP Inputs General'!$B47='DNSP Inputs General'!$A$41,F$87,IF('DNSP Inputs General'!$B47='DNSP Inputs General'!$A$42,F$88,F$89))*'DNSP Inputs General'!$D47*'DNSP Inputs General'!M47 -> 0 | G99: =IF('DNSP Inputs General'!$B47='DNSP Inputs General'!$A$41,G$87,IF('DNSP Inputs General'!$B47='DNSP Inputs General'!$A$42,G$88,G$89))*'DNSP Inputs General'!$D47*'DNSP Inputs General'!N47 -> 0 | H99: =IF('DNSP Inputs General'!$B47='DNSP Inputs General'!$A$41,H$87,IF('DNSP Inputs General'!$B47='DNSP Inputs General'!$A$42,H$88,H$89))*'DNSP Inputs General'!$D47*'DNSP Inputs General'!O47 -> 0 | K99: =D99/'Charges Summary'!D$4 -> 0 | L99: =E99/'Charges Summary'!E$4 -> 0 | M99: =F99/'Charges Summary'!F$4 -> 0 | N99: =G99/'Charges Summary'!G$4 -> 0 | O99: =H99/'Charges Summary'!H$4 -> 0
A100: ='DNSP Inputs General'!A$48 -> Mercury Vapour 50 watt | D100: =IF('DNSP Inputs General'!$B48='DNSP Inputs General'!$A$41,D$87,IF('DNSP Inputs General'!$B48='DNSP Inputs General'!$A$42,D$88,D$89))*'DNSP Inputs General'!$D48*'DNSP Inputs General'!K48 -> 0 | E100: =IF('DNSP Inputs General'!$B48='DNSP Inputs General'!$A$41,E$87,IF('DNSP Inputs General'!$B48='DNSP Inputs General'!$A$42,E$88,E$89))*'DNSP Inputs General'!$D48*'DNSP Inputs General'!L48 -> 0 | F100: =IF('DNSP Inputs General'!$B48='DNSP Inputs General'!$A$41,F$87,IF('DNSP Inputs General'!$B48='DNSP Inputs General'!$A$42,F$88,F$89))*'DNSP Inputs General'!$D48*'DNSP Inputs General'!M48 -> 0 | G100: =IF('DNSP Inputs General'!$B48='DNSP Inputs General'!$A$41,G$87,IF('DNSP Inputs General'!$B48='DNSP Inputs General'!$A$42,G$88,G$89))*'DNSP Inputs General'!$D48*'DNSP Inputs General'!N48 -> 0 | H100: =IF('DNSP Inputs General'!$B48='DNSP Inputs General'!$A$41,H$87,IF('DNSP Inputs General'!$B48='DNSP Inputs General'!$A$42,H$88,H$89))*'DNSP Inputs General'!$D48*'DNSP Inputs General'!O48 -> 0 | K100: =D100/'Charges Summary'!D$4 -> 0 | L100: =E100/'Charges Summary'!E$4 -> 0 | M100: =F100/'Charges Summary'!F$4 -> 0 | N100: =G100/'Charges Summary'!G$4 -> 0 | O100: =H100/'Charges Summary'!H$4 -> 0
A101: ='DNSP Inputs General'!A$49 -> Mercury Vapour 125 watt | D101: =IF('DNSP Inputs General'!$B49='DNSP Inputs General'!$A$41,D$87,IF('DNSP Inputs General'!$B49='DNSP Inputs General'!$A$42,D$88,D$89))*'DNSP Inputs General'!$D49*'DNSP Inputs General'!K49 -> 10188.23153 | E101: =IF('DNSP Inputs General'!$B49='DNSP Inputs General'!$A$41,E$87,IF('DNSP Inputs General'!$B49='DNSP Inputs General'!$A$42,E$88,E$89))*'DNSP Inputs General'!$D49*'DNSP Inputs General'!L49 -> 10532.95389 | F101: =IF('DNSP Inputs General'!$B49='DNSP Inputs General'!$A$41,F$87,IF('DNSP Inputs General'!$B49='DNSP Inputs General'!$A$42,F$88,F$89))*'DNSP Inputs General'!$D49*'DNSP Inputs General'!M49 -> 10883.71715 | G101: =IF('DNSP Inputs General'!$B49='DNSP Inputs General'!$A$41,G$87,IF('DNSP Inputs General'!$B49='DNSP Inputs General'!$A$42,G$88,G$89))*'DNSP Inputs General'!$D49*'DNSP Inputs General'!N49 -> 11206.69317 | H101: =IF('DNSP Inputs General'!$B49='DNSP Inputs General'!$A$41,H$87,IF('DNSP Inputs General'!$B49='DNSP Inputs General'!$A$42,H$88,H$89))*'DNSP Inputs General'!$D49*'DNSP Inputs General'!O49 -> 11490.73786 | K101: =D101/'Charges Summary'!D$4 -> 9937.416941 | L101: =E101/'Charges Summary'!E$4 -> 10020.73541 | M101: =F101/'Charges Summary'!F$4 -> 10099.53468 | N101: =G101/'Charges Summary'!G$4 -> 10143.23075 | O101: =H101/'Charges Summary'!H$4 -> 10144.28513
A102: ='DNSP Inputs General'!A$50 -> Mercury Vapour 250 watt | D102: =IF('DNSP Inputs General'!$B50='DNSP Inputs General'!$A$41,D$87,IF('DNSP Inputs General'!$B50='DNSP Inputs General'!$A$42,D$88,D$89))*'DNSP Inputs General'!$D50*'DNSP Inputs General'!K50 -> 2616.485818 | E102: =IF('DNSP Inputs General'!$B50='DNSP Inputs General'!$A$41,E$87,IF('DNSP Inputs General'!$B50='DNSP Inputs General'!$A$42,E$88,E$89))*'DNSP Inputs General'!$D50*'DNSP Inputs General'!L50 -> 2335.730181 | F102: =IF('DNSP Inputs General'!$B50='DNSP Inputs General'!$A$41,F$87,IF('DNSP Inputs General'!$B50='DNSP Inputs General'!$A$42,F$88,F$89))*'DNSP Inputs General'!$D50*'DNSP Inputs General'!M50 -> 2084.524324 | G102: =IF('DNSP Inputs General'!$B50='DNSP Inputs General'!$A$41,G$87,IF('DNSP Inputs General'!$B50='DNSP Inputs General'!$A$42,G$88,G$89))*'DNSP Inputs General'!$D50*'DNSP Inputs General'!N50 -> 1854.256569 | H102: =IF('DNSP Inputs General'!$B50='DNSP Inputs General'!$A$41,H$87,IF('DNSP Inputs General'!$B50='DNSP Inputs General'!$A$42,H$88,H$89))*'DNSP Inputs General'!$D50*'DNSP Inputs General'!O50 -> 1642.837702 | K102: =D102/'Charges Summary'!D$4 -> 2552.07299 | L102: =E102/'Charges Summary'!E$4 -> 2222.143415 | M102: =F102/'Charges Summary'!F$4 -> 1934.332307 | N102: =G102/'Charges Summary'!G$4 -> 1678.296352 | O102: =H102/'Charges Summary'!H$4 -> 1450.334545
A103: ='DNSP Inputs General'!A$51 -> Mercury Vapour 400 watt | D103: =IF('DNSP Inputs General'!$B51='DNSP Inputs General'!$A$41,D$87,IF('DNSP Inputs General'!$B51='DNSP Inputs General'!$A$42,D$88,D$89))*'DNSP Inputs General'!$D51*'DNSP Inputs General'!K51 -> 4775.486289 | E103: =IF('DNSP Inputs General'!$B51='DNSP Inputs General'!$A$41,E$87,IF('DNSP Inputs General'!$B51='DNSP Inputs General'!$A$42,E$88,E$89))*'DNSP Inputs General'!$D51*'DNSP Inputs General'!L51 -> 4750.061557 | F103: =IF('DNSP Inputs General'!$B51='DNSP Inputs General'!$A$41,F$87,IF('DNSP Inputs General'!$B51='DNSP Inputs General'!$A$42,F$88,F$89))*'DNSP Inputs General'!$D51*'DNSP Inputs General'!M51 -> 4723.466945 | G103: =IF('DNSP Inputs General'!$B51='DNSP Inputs General'!$A$41,G$87,IF('DNSP Inputs General'!$B51='DNSP Inputs General'!$A$42,G$88,G$89))*'DNSP Inputs General'!$D51*'DNSP Inputs General'!N51 -> 4681.673121 | H103: =IF('DNSP Inputs General'!$B51='DNSP Inputs General'!$A$41,H$87,IF('DNSP Inputs General'!$B51='DNSP Inputs General'!$A$42,H$88,H$89))*'DNSP Inputs General'!$D51*'DNSP Inputs General'!O51 -> 4621.716163 | K103: =D103/'Charges Summary'!D$4 -> 4657.923038 | L103: =E103/'Charges Summary'!E$4 -> 4519.065643 | M103: =F103/'Charges Summary'!F$4 -> 4383.13653 | N103: =G103/'Charges Summary'!G$4 -> 4237.404385 | O103: =H103/'Charges Summary'!H$4 -> 4080.156304
A104: ='DNSP Inputs General'!A$52 -> Sodium High Pressure 50 watt | D104: =IF('DNSP Inputs General'!$B52='DNSP Inputs General'!$A$41,D$87,IF('DNSP Inputs General'!$B52='DNSP Inputs General'!$A$42,D$88,D$89))*'DNSP Inputs General'!$D52*'DNSP Inputs General'!K52 -> 0 | E104: =IF('DNSP Inputs General'!$B52='DNSP Inputs General'!$A$41,E$87,IF('DNSP Inputs General'!$B52='DNSP Inputs General'!$A$42,E$88,E$89))*'DNSP Inputs General'!$D52*'DNSP Inputs General'!L52 -> 0 | F104: =IF('DNSP Inputs General'!$B52='DNSP Inputs General'!$A$41,F$87,IF('DNSP Inputs General'!$B52='DNSP Inputs General'!$A$42,F$88,F$89))*'DNSP Inputs General'!$D52*'DNSP Inputs General'!M52 -> 0 | G104: =IF('DNSP Inputs General'!$B52='DNSP Inputs General'!$A$41,G$87,IF('DNSP Inputs General'!$B52='DNSP Inputs General'!$A$42,G$88,G$89))*'DNSP Inputs General'!$D52*'DNSP Inputs General'!N52 -> 0 | H104: =IF('DNSP Inputs General'!$B52='DNSP Inputs General'!$A$41,H$87,IF('DNSP Inputs General'!$B52='DNSP Inputs General'!$A$42,H$88,H$89))*'DNSP Inputs General'!$D52*'DNSP Inputs General'!O52 -> 0 | K104: =D104/'Charges Summary'!D$4 -> 0 | L104: =E104/'Charges Summary'!E$4 -> 0 | M104: =F104/'Charges Summary'!F$4 -> 0 | N104: =G104/'Charges Summary'!G$4 -> 0 | O104: =H104/'Charges Summary'!H$4 -> 0
A105: ='DNSP Inputs General'!A$53 -> Sodium Low Pressure 90 watt | D105: =IF('DNSP Inputs General'!$B53='DNSP Inputs General'!$A$41,D$87,IF('DNSP Inputs General'!$B53='DNSP Inputs General'!$A$42,D$88,D$89))*'DNSP Inputs General'!$D53*'DNSP Inputs General'!K53 -> 0 | E105: =IF('DNSP Inputs General'!$B53='DNSP Inputs General'!$A$41,E$87,IF('DNSP Inputs General'!$B53='DNSP Inputs General'!$A$42,E$88,E$89))*'DNSP Inputs General'!$D53*'DNSP Inputs General'!L53 -> 0 | F105: =IF('DNSP Inputs General'!$B53='DNSP Inputs General'!$A$41,F$87,IF('DNSP Inputs General'!$B53='DNSP Inputs General'!$A$42,F$88,F$89))*'DNSP Inputs General'!$D53*'DNSP Inputs General'!M53 -> 0 | G105: =IF('DNSP Inputs General'!$B53='DNSP Inputs General'!$A$41,G$87,IF('DNSP Inputs General'!$B53='DNSP Inputs General'!$A$42,G$88,G$89))*'DNSP Inputs General'!$D53*'DNSP Inputs General'!N53 -> 0 | H105: =IF('DNSP Inputs General'!$B53='DNSP Inputs General'!$A$41,H$87,IF('DNSP Inputs General'!$B53='DNSP Inputs General'!$A$42,H$88,H$89))*'DNSP Inputs General'!$D53*'DNSP Inputs General'!O53 -> 0 | K105: =D105/'Charges Summary'!D$4 -> 0 | L105: =E105/'Charges Summary'!E$4 -> 0 | M105: =F105/'Charges Summary'!F$4 -> 0 | N105: =G105/'Charges Summary'!G$4 -> 0 | O105: =H105/'Charges Summary'!H$4 -> 0
A106: ='DNSP Inputs General'!A$54 -> Sodium High Pressure 100 watt | D106: =IF('DNSP Inputs General'!$B54='DNSP Inputs General'!$A$41,D$87,IF('DNSP Inputs General'!$B54='DNSP Inputs General'!$A$42,D$88,D$89))*'DNSP Inputs General'!$D54*'DNSP Inputs General'!K54 -> 34537.09538 | E106: =IF('DNSP Inputs General'!$B54='DNSP Inputs General'!$A$41,E$87,IF('DNSP Inputs General'!$B54='DNSP Inputs General'!$A$42,E$88,E$89))*'DNSP Inputs General'!$D54*'DNSP Inputs General'!L54 -> 35632.90403 | F106: =IF('DNSP Inputs General'!$B54='DNSP Inputs General'!$A$41,F$87,IF('DNSP Inputs General'!$B54='DNSP Inputs General'!$A$42,F$88,F$89))*'DNSP Inputs General'!$D54*'DNSP Inputs General'!M54 -> 36751.05867 | G106: =IF('DNSP Inputs General'!$B54='DNSP Inputs General'!$A$41,G$87,IF('DNSP Inputs General'!$B54='DNSP Inputs General'!$A$42,G$88,G$89))*'DNSP Inputs General'!$D54*'DNSP Inputs General'!N54 -> 37778.07637 | H106: =IF('DNSP Inputs General'!$B54='DNSP Inputs General'!$A$41,H$87,IF('DNSP Inputs General'!$B54='DNSP Inputs General'!$A$42,H$88,H$89))*'DNSP Inputs General'!$D54*'DNSP Inputs General'!O54 -> 38676.57778 | K106: =D106/'Charges Summary'!D$4 -> 33686.85879 | L106: =E106/'Charges Summary'!E$4 -> 33900.07275 | M106: =F106/'Charges Summary'!F$4 -> 34103.10893 | N106: =G106/'Charges Summary'!G$4 -> 34193.1148 | O106: =H106/'Charges Summary'!H$4 -> 34144.56385
A107: ='DNSP Inputs General'!A$55 -> Sodium High Pressure 400 watt | D107: =IF('DNSP Inputs General'!$B55='DNSP Inputs General'!$A$41,D$87,IF('DNSP Inputs General'!$B55='DNSP Inputs General'!$A$42,D$88,D$89))*'DNSP Inputs General'!$D55*'DNSP Inputs General'!K55 -> 8794.176994 | E107: =IF('DNSP Inputs General'!$B55='DNSP Inputs General'!$A$41,E$87,IF('DNSP Inputs General'!$B55='DNSP Inputs General'!$A$42,E$88,E$89))*'DNSP Inputs General'!$D55*'DNSP Inputs General'!L55 -> 9199.098143 | F107: =IF('DNSP Inputs General'!$B55='DNSP Inputs General'!$A$41,F$87,IF('DNSP Inputs General'!$B55='DNSP Inputs General'!$A$42,F$88,F$89))*'DNSP Inputs General'!$D55*'DNSP Inputs General'!M55 -> 9620.005269 | G107: =IF('DNSP Inputs General'!$B55='DNSP Inputs General'!$A$41,G$87,IF('DNSP Inputs General'!$B55='DNSP Inputs General'!$A$42,G$88,G$89))*'DNSP Inputs General'!$D55*'DNSP Inputs General'!N55 -> 10027.29823 | H107: =IF('DNSP Inputs General'!$B55='DNSP Inputs General'!$A$41,H$87,IF('DNSP Inputs General'!$B55='DNSP Inputs General'!$A$42,H$88,H$89))*'DNSP Inputs General'!$D55*'DNSP Inputs General'!O55 -> 10410.09109 | K107: =D107/'Charges Summary'!D$4 -> 8577.681338 | L107: =E107/'Charges Summary'!E$4 -> 8751.745186 | M107: =F107/'Charges Summary'!F$4 -> 8926.874475 | N107: =G107/'Charges Summary'!G$4 -> 9075.75484 | O107: =H107/'Charges Summary'!H$4 -> 9190.265535
A108: ='DNSP Inputs General'!A$56 -> Metal Halide 70 watt | D108: =IF('DNSP Inputs General'!$B56='DNSP Inputs General'!$A$41,D$87,IF('DNSP Inputs General'!$B56='DNSP Inputs General'!$A$42,D$88,D$89))*'DNSP Inputs General'!$D56*'DNSP Inputs General'!K56 -> 602.8393408 | E108: =IF('DNSP Inputs General'!$B56='DNSP Inputs General'!$A$41,E$87,IF('DNSP Inputs General'!$B56='DNSP Inputs General'!$A$42,E$88,E$89))*'DNSP Inputs General'!$D56*'DNSP Inputs General'!L56 -> 632.34235 | F108: =IF('DNSP Inputs General'!$B56='DNSP Inputs General'!$A$41,F$87,IF('DNSP Inputs General'!$B56='DNSP Inputs General'!$A$42,F$88,F$89))*'DNSP Inputs General'!$D56*'DNSP Inputs General'!M56 -> 662.9467373 | G108: =IF('DNSP Inputs General'!$B56='DNSP Inputs General'!$A$41,G$87,IF('DNSP Inputs General'!$B56='DNSP Inputs General'!$A$42,G$88,G$89))*'DNSP Inputs General'!$D56*'DNSP Inputs General'!N56 -> 692.593127 | H108: =IF('DNSP Inputs General'!$B56='DNSP Inputs General'!$A$41,H$87,IF('DNSP Inputs General'!$B56='DNSP Inputs General'!$A$42,H$88,H$89))*'DNSP Inputs General'!$D56*'DNSP Inputs General'!O56 -> 720.5231159 | K108: =D108/'Charges Summary'!D$4 -> 587.9986003 | L108: =E108/'Charges Summary'!E$4 -> 601.5914855 | M108: =F108/'Charges Summary'!F$4 -> 615.1807762 | N108: =G108/'Charges Summary'!G$4 -> 626.8693003 | O108: =H108/'Charges Summary'!H$4 -> 636.0942191
A109: ='DNSP Inputs General'!A$57 -> Metal Halide 150 watt | D109: =IF('DNSP Inputs General'!$B57='DNSP Inputs General'!$A$41,D$87,IF('DNSP Inputs General'!$B57='DNSP Inputs General'!$A$42,D$88,D$89))*'DNSP Inputs General'!$D57*'DNSP Inputs General'!K57 -> 1608.471207 | E109: =IF('DNSP Inputs General'!$B57='DNSP Inputs General'!$A$41,E$87,IF('DNSP Inputs General'!$B57='DNSP Inputs General'!$A$42,E$88,E$89))*'DNSP Inputs General'!$D57*'DNSP Inputs General'!L57 -> 1683.751534 | F109: =IF('DNSP Inputs General'!$B57='DNSP Inputs General'!$A$41,F$87,IF('DNSP Inputs General'!$B57='DNSP Inputs General'!$A$42,F$88,F$89))*'DNSP Inputs General'!$D57*'DNSP Inputs General'!M57 -> 1761.959597 | G109: =IF('DNSP Inputs General'!$B57='DNSP Inputs General'!$A$41,G$87,IF('DNSP Inputs General'!$B57='DNSP Inputs General'!$A$42,G$88,G$89))*'DNSP Inputs General'!$D57*'DNSP Inputs General'!N57 -> 1837.660315 | H109: =IF('DNSP Inputs General'!$B57='DNSP Inputs General'!$A$41,H$87,IF('DNSP Inputs General'!$B57='DNSP Inputs General'!$A$42,H$88,H$89))*'DNSP Inputs General'!$D57*'DNSP Inputs General'!O57 -> 1908.854126 | K109: =D109/'Charges Summary'!D$4 -> 1568.873752 | L109: =E109/'Charges Summary'!E$4 -> 1601.870548 | M109: =F109/'Charges Summary'!F$4 -> 1635.008684 | N109: =G109/'Charges Summary'!G$4 -> 1663.275004 | O109: =H109/'Charges Summary'!H$4 -> 1685.179903
A110: ='DNSP Inputs General'!A$58 -> Metal Halide 250 watt | D110: =IF('DNSP Inputs General'!$B58='DNSP Inputs General'!$A$41,D$87,IF('DNSP Inputs General'!$B58='DNSP Inputs General'!$A$42,D$88,D$89))*'DNSP Inputs General'!$D58*'DNSP Inputs General'!K58 -> 3554.037695 | E110: =IF('DNSP Inputs General'!$B58='DNSP Inputs General'!$A$41,E$87,IF('DNSP Inputs General'!$B58='DNSP Inputs General'!$A$42,E$88,E$89))*'DNSP Inputs General'!$D58*'DNSP Inputs General'!L58 -> 3717.680641 | F110: =IF('DNSP Inputs General'!$B58='DNSP Inputs General'!$A$41,F$87,IF('DNSP Inputs General'!$B58='DNSP Inputs General'!$A$42,F$88,F$89))*'DNSP Inputs General'!$D58*'DNSP Inputs General'!M58 -> 3887.784084 | G110: =IF('DNSP Inputs General'!$B58='DNSP Inputs General'!$A$41,G$87,IF('DNSP Inputs General'!$B58='DNSP Inputs General'!$A$42,G$88,G$89))*'DNSP Inputs General'!$D58*'DNSP Inputs General'!N58 -> 4052.385563 | H110: =IF('DNSP Inputs General'!$B58='DNSP Inputs General'!$A$41,H$87,IF('DNSP Inputs General'!$B58='DNSP Inputs General'!$A$42,H$88,H$89))*'DNSP Inputs General'!$D58*'DNSP Inputs General'!O58 -> 4207.085683 | K110: =D110/'Charges Summary'!D$4 -> 3466.54415 | L110: =E110/'Charges Summary'!E$4 -> 3536.889502 | M110: =F110/'Charges Summary'!F$4 -> 3607.665436 | N110: =G110/'Charges Summary'!G$4 -> 3667.833253 | O110: =H110/'Charges Summary'!H$4 -> 3714.111071
A111: ='DNSP Inputs General'!A$59 -> Incandescent 100 watt | D111: =IF('DNSP Inputs General'!$B59='DNSP Inputs General'!$A$41,D$87,IF('DNSP Inputs General'!$B59='DNSP Inputs General'!$A$42,D$88,D$89))*'DNSP Inputs General'!$D59*'DNSP Inputs General'!K59 -> 0 | E111: =IF('DNSP Inputs General'!$B59='DNSP Inputs General'!$A$41,E$87,IF('DNSP Inputs General'!$B59='DNSP Inputs General'!$A$42,E$88,E$89))*'DNSP Inputs General'!$D59*'DNSP Inputs General'!L59 -> 0 | F111: =IF('DNSP Inputs General'!$B59='DNSP Inputs General'!$A$41,F$87,IF('DNSP Inputs General'!$B59='DNSP Inputs General'!$A$42,F$88,F$89))*'DNSP Inputs General'!$D59*'DNSP Inputs General'!M59 -> 0 | G111: =IF('DNSP Inputs General'!$B59='DNSP Inputs General'!$A$41,G$87,IF('DNSP Inputs General'!$B59='DNSP Inputs General'!$A$42,G$88,G$89))*'DNSP Inputs General'!$D59*'DNSP Inputs General'!N59 -> 0 | H111: =IF('DNSP Inputs General'!$B59='DNSP Inputs General'!$A$41,H$87,IF('DNSP Inputs General'!$B59='DNSP Inputs General'!$A$42,H$88,H$89))*'DNSP Inputs General'!$D59*'DNSP Inputs General'!O59 -> 0 | K111: =D111/'Charges Summary'!D$4 -> 0 | L111: =E111/'Charges Summary'!E$4 -> 0 | M111: =F111/'Charges Summary'!F$4 -> 0 | N111: =G111/'Charges Summary'!G$4 -> 0 | O111: =H111/'Charges Summary'!H$4 -> 0
A112: ='DNSP Inputs General'!A$60 -> Incandescent 150 watt | D112: =IF('DNSP Inputs General'!$B60='DNSP Inputs General'!$A$41,D$87,IF('DNSP Inputs General'!$B60='DNSP Inputs General'!$A$42,D$88,D$89))*'DNSP Inputs General'!$D60*'DNSP Inputs General'!K60 -> 0 | E112: =IF('DNSP Inputs General'!$B60='DNSP Inputs General'!$A$41,E$87,IF('DNSP Inputs General'!$B60='DNSP Inputs General'!$A$42,E$88,E$89))*'DNSP Inputs General'!$D60*'DNSP Inputs General'!L60 -> 0 | F112: =IF('DNSP Inputs General'!$B60='DNSP Inputs General'!$A$41,F$87,IF('DNSP Inputs General'!$B60='DNSP Inputs General'!$A$42,F$88,F$89))*'DNSP Inputs General'!$D60*'DNSP Inputs General'!M60 -> 0 | G112: =IF('DNSP Inputs General'!$B60='DNSP Inputs General'!$A$41,G$87,IF('DNSP Inputs General'!$B60='DNSP Inputs General'!$A$42,G$88,G$89))*'DNSP Inputs General'!$D60*'DNSP Inputs General'!N60 -> 0 | H112: =IF('DNSP Inputs General'!$B60='DNSP Inputs General'!$A$41,H$87,IF('DNSP Inputs General'!$B60='DNSP Inputs General'!$A$42,H$88,H$89))*'DNSP Inputs General'!$D60*'DNSP Inputs General'!O60 -> 0 | K112: =D112/'Charges Summary'!D$4 -> 0 | L112: =E112/'Charges Summary'!E$4 -> 0 | M112: =F112/'Charges Summary'!F$4 -> 0 | N112: =G112/'Charges Summary'!G$4 -> 0 | O112: =H112/'Charges Summary'!H$4 -> 0
A113: ='DNSP Inputs General'!A$61 -> Sodium High Pressure 250 watt (24 hrs) | D113: =IF('DNSP Inputs General'!$B61='DNSP Inputs General'!$A$41,D$87,IF('DNSP Inputs General'!$B61='DNSP Inputs General'!$A$42,D$88,D$89))*'DNSP Inputs General'!$D61*'DNSP Inputs General'!K61 -> 0 | E113: =IF('DNSP Inputs General'!$B61='DNSP Inputs General'!$A$41,E$87,IF('DNSP Inputs General'!$B61='DNSP Inputs General'!$A$42,E$88,E$89))*'DNSP Inputs General'!$D61*'DNSP Inputs General'!L61 -> 0 | F113: =IF('DNSP Inputs General'!$B61='DNSP Inputs General'!$A$41,F$87,IF('DNSP Inputs General'!$B61='DNSP Inputs General'!$A$42,F$88,F$89))*'DNSP Inputs General'!$D61*'DNSP Inputs General'!M61 -> 0 | G113: =IF('DNSP Inputs General'!$B61='DNSP Inputs General'!$A$41,G$87,IF('DNSP Inputs General'!$B61='DNSP Inputs General'!$A$42,G$88,G$89))*'DNSP Inputs General'!$D61*'DNSP Inputs General'!N61 -> 0 | H113: =IF('DNSP Inputs General'!$B61='DNSP Inputs General'!$A$41,H$87,IF('DNSP Inputs General'!$B61='DNSP Inputs General'!$A$42,H$88,H$89))*'DNSP Inputs General'!$D61*'DNSP Inputs General'!O61 -> 0 | K113: =D113/'Charges Summary'!D$4 -> 0 | L113: =E113/'Charges Summary'!E$4 -> 0 | M113: =F113/'Charges Summary'!F$4 -> 0 | N113: =G113/'Charges Summary'!G$4 -> 0 | O113: =H113/'Charges Summary'!H$4 -> 0
A114: ='DNSP Inputs General'!A$62 -> Metal Halide 100 watt | D114: =IF('DNSP Inputs General'!$B62='DNSP Inputs General'!$A$41,D$87,IF('DNSP Inputs General'!$B62='DNSP Inputs General'!$A$42,D$88,D$89))*'DNSP Inputs General'!$D62*'DNSP Inputs General'!K62 -> 0 | E114: =IF('DNSP Inputs General'!$B62='DNSP Inputs General'!$A$41,E$87,IF('DNSP Inputs General'!$B62='DNSP Inputs General'!$A$42,E$88,E$89))*'DNSP Inputs General'!$D62*'DNSP Inputs General'!L62 -> 0 | F114: =IF('DNSP Inputs General'!$B62='DNSP Inputs General'!$A$41,F$87,IF('DNSP Inputs General'!$B62='DNSP Inputs General'!$A$42,F$88,F$89))*'DNSP Inputs General'!$D62*'DNSP Inputs General'!M62 -> 0 | G114: =IF('DNSP Inputs General'!$B62='DNSP Inputs General'!$A$41,G$87,IF('DNSP Inputs General'!$B62='DNSP Inputs General'!$A$42,G$88,G$89))*'DNSP Inputs General'!$D62*'DNSP Inputs General'!N62 -> 0 | H114: =IF('DNSP Inputs General'!$B62='DNSP Inputs General'!$A$41,H$87,IF('DNSP Inputs General'!$B62='DNSP Inputs General'!$A$42,H$88,H$89))*'DNSP Inputs General'!$D62*'DNSP Inputs General'!O62 -> 0 | K114: =D114/'Charges Summary'!D$4 -> 0 | L114: =E114/'Charges Summary'!E$4 -> 0 | M114: =F114/'Charges Summary'!F$4 -> 0 | N114: =G114/'Charges Summary'!G$4 -> 0 | O114: =H114/'Charges Summary'!H$4 -> 0
A117: ='DNSP Inputs General'!A$67 -> Energy Efficient Lights
A118: ='DNSP Inputs General'!A$68 -> T5 2X14W | D118: =D90*'DNSP Inputs General'!K68 -> 298107.9265 | E118: =E90*'DNSP Inputs General'!L68 -> 348162.8457 | F118: =F90*'DNSP Inputs General'!M68 -> 400255.8428 | G118: =G90*'DNSP Inputs General'!N68 -> 452308.4194 | H118: =H90*'DNSP Inputs General'!O68 -> 503484.8854 | K118: =D118/'Charges Summary'!D$4 -> 290769.085 | L118: =E118/'Charges Summary'!E$4 -> 331231.6557 | M118: =F118/'Charges Summary'!F$4 -> 371417.0176 | N118: =G118/'Charges Summary'!G$4 -> 409386.4801 | O118: =H118/'Charges Summary'!H$4 -> 444487.9254
A119: ='DNSP Inputs General'!A$69 -> T5 (2x24W) | D119: =D$90*'DNSP Inputs General'!$D69*'DNSP Inputs General'!K69 -> 3186.516053 | E119: =E$90*'DNSP Inputs General'!$D69*'DNSP Inputs General'!L69 -> 3671.484396 | F119: =F$90*'DNSP Inputs General'!$D69*'DNSP Inputs General'!M69 -> 4164.781836 | G119: =G$90*'DNSP Inputs General'!$D69*'DNSP Inputs General'!N69 -> 4644.736951 | H119: =H$90*'DNSP Inputs General'!$D69*'DNSP Inputs General'!O69 -> 5103.396749 | K119: =D119/'Charges Summary'!D$4 -> 3108.070181 | L119: =E119/'Charges Summary'!E$4 -> 3492.939784 | M119: =F119/'Charges Summary'!F$4 -> 3864.705229 | N119: =G119/'Charges Summary'!G$4 -> 4203.973284 | O119: =H119/'Charges Summary'!H$4 -> 4505.394897
A120: ='DNSP Inputs General'!A$70 -> LED 18W | D120: =D$90*'DNSP Inputs General'!$D70*'DNSP Inputs General'!K70 -> 1507.750269 | E120: =E$90*'DNSP Inputs General'!$D70*'DNSP Inputs General'!L70 -> 2555.452388 | F120: =F$90*'DNSP Inputs General'!$D70*'DNSP Inputs General'!M70 -> 3813.60372 | G120: =G$90*'DNSP Inputs General'!$D70*'DNSP Inputs General'!N70 -> 5258.623451 | H120: =H$90*'DNSP Inputs General'!$D70*'DNSP Inputs General'!O70 -> 6866.823639 | K120: =D120/'Charges Summary'!D$4 -> 1470.632369 | L120: =E120/'Charges Summary'!E$4 -> 2431.180512 | M120: =F120/'Charges Summary'!F$4 -> 3538.82984 | N120: =G120/'Charges Summary'!G$4 -> 4759.604845 | O120: =H120/'Charges Summary'!H$4 -> 6062.188324
A121: ='DNSP Inputs General'!A$71 -> Compact Fluoro 32W | D121: =D$90*'DNSP Inputs General'!$D71*'DNSP Inputs General'!K71 -> 58.62816907 | E121: =E$90*'DNSP Inputs General'!$D71*'DNSP Inputs General'!L71 -> 67.55101947 | F121: =F$90*'DNSP Inputs General'!$D71*'DNSP Inputs General'!M71 -> 76.62711551 | G121: =G$90*'DNSP Inputs General'!$D71*'DNSP Inputs General'!N71 -> 85.45772836 | H121: =H$90*'DNSP Inputs General'!$D71*'DNSP Inputs General'!O71 -> 93.8965323 | K121: =D121/'Charges Summary'!D$4 -> 57.18485677 | L121: =E121/'Charges Summary'!E$4 -> 64.26600741 | M121: =F121/'Charges Summary'!F$4 -> 71.10605686 | N121: =G121/'Charges Summary'!G$4 -> 77.34819232 | O121: =H121/'Charges Summary'!H$4 -> 82.89399752
A122: ='DNSP Inputs General'!A$72 -> Compact Fluoro 42W | D122: =D$90*'DNSP Inputs General'!$D72*'DNSP Inputs General'!K72 -> 562.0205091 | E122: =E$90*'DNSP Inputs General'!$D72*'DNSP Inputs General'!L72 -> 647.5566089 | F122: =F$90*'DNSP Inputs General'!$D72*'DNSP Inputs General'!M72 -> 734.56175 | G122: =G$90*'DNSP Inputs General'!$D72*'DNSP Inputs General'!N72 -> 819.2136436 | H122: =H$90*'DNSP Inputs General'!$D72*'DNSP Inputs General'!O72 -> 900.1095842 | K122: =D122/'Charges Summary'!D$4 -> 548.1846495 | L122: =E122/'Charges Summary'!E$4 -> 616.0658737 | M122: =F122/'Charges Summary'!F$4 -> 681.6358571 | N122: =G122/'Charges Summary'!G$4 -> 741.4741261 | O122: =H122/'Charges Summary'!H$4 -> 794.6372439
A124: Total Capital Charge | D124: =SUM(D93:D123) -> 1086223.957 | E124: =SUM(E93:E123) -> 1174864.588 | F124: =SUM(F93:F123) -> 1267230.395 | G124: =SUM(G93:G123) -> 1358549.151 | H124: =SUM(H93:H123) -> 1446984.481 | K124: =SUM(K93:K123) -> 1059483.221 | L124: =SUM(L93:L123) -> 1117730.819 | M124: =SUM(M93:M123) -> 1175925.205 | N124: =SUM(N93:N123) -> 1229629.233 | O124: =SUM(O93:O123) -> 1277430.86
A126: Check | C126: =SUM(D126:O126) -> 8.381903172e-09 | D126: =ABS(D37-SUM(D80,D124)) -> 0 | E126: =ABS(E37-SUM(E80,E124)) -> 1.862645149e-09 | F126: =ABS(F37-SUM(F80,F124)) -> 0 | G126: =ABS(G37-SUM(G80,G124)) -> 0 | H126: =ABS(H37-SUM(H80,H124)) -> 0 | K126: =ABS(K37-SUM(K80,K124)) -> 1.862645149e-09 | L126: =ABS(L37-SUM(L80,L124)) -> 0 | M126: =ABS(M37-SUM(M80,M124)) -> 1.862645149e-09 | N126: =ABS(N37-SUM(N80,N124)) -> 1.862645149e-09 | O126: =ABS(O37-SUM(O80,O124)) -> 9.313225746e-10
A128: Public Lighting - Capital Expenditure | D128: Forecast Capital Expenditure - Nominal | K128: Forecast Capital Expenditure - Real 2015 $
D129: =D$2 -> 2016 | E129: 2017 | F129: 2018 | G129: 2019 | H129: 2020 | K129: =K$2 -> 2016 | L129: 2017 | M129: 2018 | N129: 2019 | O129: 2020
A131: Total Capital Expenditure | D131: =K131*'Charges Summary'!D$4 -> 1026329.763 | E131: =L131*'Charges Summary'!E$4 -> 1092429.888 | F131: =M131*'Charges Summary'!F$4 -> 1144386.815 | G131: =N131*'Charges Summary'!G$4 -> 1136429.417 | H131: =O131*'Charges Summary'!H$4 -> 1159829.71 | K131: ='DNSP Inputs General'!L14 -> 1001063.507 | L131: ='DNSP Inputs General'!M14 -> 1039304.926 | M131: ='DNSP Inputs General'!N14 -> 1061932.625 | N131: ='DNSP Inputs General'!O14 -> 1028587.616 | O131: ='DNSP Inputs General'!P14 -> 1023924.087
A132: Check | C132: =SUM(D132:H132) -> 3.492459655e-10 | D132: =ABS(D131-D139) -> 1.164153218e-10 | E132: =ABS(E131-E139) -> 0 | F132: =ABS(F131-F139) -> 2.328306437e-10 | G132: =ABS(G131-G139) -> 0 | H132: =ABS(H131-H139) -> 0
A135: Public Lighting - RAB | D135: RAB - Historical Cost ($)
D136: =D$2 -> 2016 | E136: 2017 | F136: 2018 | G136: 2019 | H136: 2020
A138: Opening RAB | D138: ='Toal RAB'!N139 -> 6834217.457 | E138: =D141 -> 7370313.609 | F138: =E141 -> 7929839.087 | G138: 8496195.156 | H138: 9008534.727
A139: Capex | D139: ='Toal RAB'!N140 -> 1026329.763 | E139: ='Toal RAB'!O140 -> 1092429.888 | F139: ='Toal RAB'!P140 -> 1144386.815 | G139: ='Toal RAB'!Q140 -> 1136429.417 | H139: ='Toal RAB'!R140 -> 1159829.71
A140: Depreciation | D140: ='Toal RAB'!N141 -> 490233.612 | E140: ='Toal RAB'!O141 -> 532904.4103 | F140: ='Toal RAB'!P141 -> 578030.746 | G140: ='Toal RAB'!Q141 -> 624089.8463 | H140: ='Toal RAB'!R141 -> 670497.2601
A141: Closing RAB | D141: =D138+D139-D140 -> 7370313.609 | E141: =E138+E139-E140 -> 7929839.087 | F141: =F138+F139-F140 -> 8496195.156 | G141: =G138+G139-G140 -> 9008534.727 | H141: =H138+H139-H140 -> 9497867.176
A143: Average RAB | D143: =SUM(D138,D141)/2 -> 7102265.533 | E143: =SUM(E138,E141)/2 -> 7650076.348 | F143: =SUM(F138,F141)/2 -> 8213017.121 | G143: =SUM(G138,G141)/2 -> 8752364.941 | H143: =SUM(H138,H141)/2 -> 9253200.951
A145: =WACC!A$8 -> Nominal Pre Tax WACC | D145: =WACC!E$8 -> 0.08391552561 | E145: =WACC!F$8 -> 0.08391552561 | F145: =WACC!G$8 -> 0.08391552561 | G145: =WACC!H$8 -> 0.08391552561 | H145: =WACC!I$8 -> 0.08391552561
A147: Capital Charge | D147: Capital Charge - Nominal
D148: =D$2 -> 2016 | E148: 2017 | F148: 2018 | G148: 2019 | H148: 2020
A150: Depreciation | D150: =D140 -> 490233.612 | E150: =E140 -> 532904.4103 | F150: =F140 -> 578030.746 | G150: =G140 -> 624089.8463 | H150: =H140 -> 670497.2601
A151: Return | D151: =D145*D143 -> 595990.3452 | E151: =E145*E143 -> 641960.1776 | F151: =F145*F143 -> 689199.6486 | G151: =G145*G143 -> 734459.3044 | H151: =H145*H143 -> 776487.2214
D153: =SUM(D150:D152) -> 1086223.957 | E153: =SUM(E150:E152) -> 1174864.588 | F153: =SUM(F150:F152) -> 1267230.395 | G153: =SUM(G150:G152) -> 1358549.151 | H153: =SUM(H150:H152) -> 1446984.481
A155: Check | C155: =SUM(D155:H155) -> 9.313225746e-10 | D155: =ABS(D124-D153)*IF('DNSP Inputs General'!K77=0,0,1) -> 0 | E155: =ABS(E124-E153)*IF('DNSP Inputs General'!L77=0,0,1) -> 0 | F155: =ABS(F124-F153)*IF('DNSP Inputs General'!M77=0,0,1) -> 2.328306437e-10 | G155: =ABS(G124-G153)*IF('DNSP Inputs General'!N77=0,0,1) -> 2.328306437e-10 | H155: =ABS(H124-H153)*IF('DNSP Inputs General'!O77=0,0,1) -> 4.656612873e-10

Sheet Charges Summary
A1: ='DNSP Inputs O & M'!$A$3 -> Jemena | D1: ='DNSP Inputs General'!L$2 -> 2016 | E1: ='DNSP Inputs General'!M$2 -> 2017 | F1: ='DNSP Inputs General'!N$2 -> 2018 | G1: ='DNSP Inputs General'!O$2 -> 2019 | H1: ='DNSP Inputs General'!P$2 -> 2020
A2: Nominal $
A4: ='Toal RAB'!A20 -> CPI Index | D4: =(1+WACC!E6) -> 1.025239415 | E4: =D4*(1+WACC!F6) -> 1.051115857 | F4: =E4*(1+WACC!G6) -> 1.077645406 | G4: =F4*(1+WACC!H6) -> 1.104844545 | H4: =G4*(1+WACC!I6) -> 1.132730175
A6: ='DNSP Inputs General'!$A$6 -> Poles and Brackets | D6: ='DNSP Inputs General'!G$2 -> 2011 | E6: ='DNSP Inputs General'!H$2 -> 2012 | F6: ='DNSP Inputs General'!I$2 -> 2013 | G6: ='DNSP Inputs General'!J$2 -> 2014 | H6: ='DNSP Inputs General'!K$2 -> 2015
A7: O & M
A8: ='O & M 2016-2020'!A$10 -> Dedicated poles - inspection | D8: ='O & M 2016-2020'!$B$10*D$4 -> 0.9442731105 | E8: ='O & M 2016-2020'!$Q$10*E$4 -> 0.983884442 | F8: ='O & M 2016-2020'!$AF$10*F$4 -> 1.026034165 | G8: ='O & M 2016-2020'!$AU$10*G$4 -> 1.064078859 | H8: ='O & M 2016-2020'!$BJ$10*H$4 -> 1.10573401
A10: Capital Charge
A11: Depreciation and Return | D11: ='Depn & WACC Post 2004'!H$80 -> 5.656533862 | E11: ='Depn & WACC Post 2004'!H$129 -> 6.20407155 | F11: ='Depn & WACC Post 2004'!H$178 -> 6.762803059 | G11: ='Depn & WACC Post 2004'!H$227 -> 7.308707757 | H11: ='Depn & WACC Post 2004'!H$276 -> 7.832781705
A13: Total Charge | D13: =SUM(D8,D11) -> 6.600806973 | E13: =SUM(E8,E11) -> 7.187955992 | F13: =SUM(F8,F11) -> 7.788837225 | G13: =SUM(G8,G11) -> 8.372786616 | H13: =SUM(H8,H11) -> 8.938515715
A18: ='DNSP Inputs General'!$A$8 -> Existing Lights
A20: ='O & M 2016-2020'!$A$8 -> MV80 | D20: =D$1 -> 2016 | E20: =E$1 -> 2017 | F20: 2018 | G20: 2019 | H20: 2020
A22: O & M Charge
A23: ='O & M 2016-2020'!A$9 -> Bulk change & repairs | D23: ='O & M 2016-2020'!$B$9*D$4 -> 34.41212304 | E23: ='O & M 2016-2020'!$Q$9*E$4 -> 36.10849718 | F23: ='O & M 2016-2020'!$AF$9*F$4 -> 37.61919398 | G23: ='O & M 2016-2020'!$AU$9*G$4 -> 38.08578463 | H23: ='O & M 2016-2020'!$BJ$9*H$4 -> 39.11414247
A24: ='O & M 2016-2020'!A$11 -> Other costs | D24: ='O & M 2016-2020'!$B$11*D$4 -> 4.914949458 | E24: ='O & M 2016-2020'!$Q$11*E$4 -> 4.992294377 | F24: ='O & M 2016-2020'!$AF$11*F$4 -> 5.071292125 | G24: ='O & M 2016-2020'!$AU$11*G$4 -> 5.151974446 | H24: ='O & M 2016-2020'!$BJ$11*H$4 -> 5.234373862
D25: =SUM(D23:D24) -> 39.3270725 | E25: =SUM(E23:E24) -> 41.10079155 | F25: =SUM(F23:F24) -> 42.69048611 | G25: =SUM(G23:G24) -> 43.23775908 | H25: =SUM(H23:H24) -> 44.34851633
A26: Capital Charge
A27: Depreciation and Return | D27: ='Depn & WACC Post 2004'!H$40 -> 13.89078588 | E27: ='Depn & WACC Post 2004'!H$89 -> 14.2998957 | F27: ='Depn & WACC Post 2004'!H$138 -> 14.73352435 | G27: ='Depn & WACC Post 2004'!H$187 -> 15.14891633 | H27: ='Depn & WACC Post 2004'!H$236 -> 15.53048405
A29: Poles & Brackets Charge | D29: =D$13 -> 6.600806973 | E29: =E$13 -> 7.187955992 | F29: =F$13 -> 7.788837225 | G29: =G$13 -> 8.372786616 | H29: =H$13 -> 8.938515715
A31: Total Charge | D31: =SUM(D25,D27,D29) -> 59.81866535 | E31: =SUM(E25,E27,E29) -> 62.58864324 | F31: =SUM(F25,F27,F29) -> 65.21284768 | G31: =SUM(G25,G27,G29) -> 66.75946203 | H31: =SUM(H25,H27,H29) -> 68.8175161
A33: WDV RAB - MV 80 Luminair
A34: RAB WDV | D34: ='Depn & WACC Post 2004'!$I$8 -> 71.87236274 | E34: ='Depn & WACC Post 2004'!I$40 -> 71.95383512 | F34: ='Depn & WACC Post 2004'!I$89 -> 72.05788181 | G34: ='Depn & WACC Post 2004'!I$138 -> 72.11728352 | H34: ='Depn & WACC Post 2004'!I$187 -> 71.63460749
A36: Avoided Costs - MV 80 O & M
A37: Materials & labour - bulk lamp change | D37: ='O & M 2016-2020'!$G$9*D$4 -> -25.65409831 | E37: ='O & M 2016-2020'!$V$9*E$4 -> -26.95736924 | F37: ='O & M 2016-2020'!$AK$9*F$4 -> -28.07971187 | G37: ='O & M 2016-2020'!$AZ$9*G$4 -> -28.28699665 | H37: ='O & M 2016-2020'!$BO$9*H$4 -> -28.97880999
A38: Materials & Labour - repair of faults | D38: ='O & M 2016-2020'!$G$10*D$4 -> -7.351324639 | E38: ='O & M 2016-2020'!$V$10*E$4 -> -7.704056561 | F38: ='O & M 2016-2020'!$AK$10*F$4 -> -8.027749626 | G38: ='O & M 2016-2020'!$AZ$10*G$4 -> -8.162564691 | H38: ='O & M 2016-2020'!$BO$10*H$4 -> -8.400954491
D39: =SUM(D37:D38) -> -33.00542295 | E39: =SUM(E37:E38) -> -34.6614258 | F39: =SUM(F37:F38) -> -36.10746149 | G39: =SUM(G37:G38) -> -36.44956134 | H39: =SUM(H37:H38) -> -37.37976448
A44: ='O & M 2016-2020'!$A$14 -> S-HP 150 | D44: =D$1 -> 2016 | E44: =E$1 -> 2017 | F44: 2018 | G44: 2019 | H44: 2020
A46: O & M Charge
A47: ='O & M 2016-2020'!A$15 -> Patrols and repairs | D47: ='O & M 2016-2020'!$B$15*D$4 -> 129.6735619 | E47: ='O & M 2016-2020'!$Q$15*E$4 -> 135.6786201 | F47: ='O & M 2016-2020'!$AF$15*F$4 -> 141.3552222 | G47: ='O & M 2016-2020'!$AU$15*G$4 -> 144.6327344 | H47: ='O & M 2016-2020'!$BJ$15*H$4 -> 149.4054518
A48: ='O & M 2016-2020'!A$17 -> Other costs | D48: ='O & M 2016-2020'!$B$17*D$4 -> 4.914949458 | E48: ='O & M 2016-2020'!$Q$17*E$4 -> 4.992294377 | F48: ='O & M 2016-2020'!$AF$17*F$4 -> 5.071292125 | G48: ='O & M 2016-2020'!$AU$17*G$4 -> 5.151974446 | H48: ='O & M 2016-2020'!$BJ$17*H$4 -> 5.234373862
D49: =SUM(D47:D48) -> 134.5885114 | E49: =SUM(E47:E48) -> 140.6709144 | F49: =SUM(F47:F48) -> 146.4265143 | G49: =SUM(G47:G48) -> 149.7847088 | H49: =SUM(H47:H48) -> 154.6398257
A50: Capital Charge
A51: Depreciation and Return | D51: ='Depn & WACC Post 2004'!H$41 -> 16.29912007 | E51: ='Depn & WACC Post 2004'!H$90 -> 16.77915987 | F51: ='Depn & WACC Post 2004'!H$139 -> 17.28796949 | G51: ='Depn & WACC Post 2004'!H$188 -> 17.77538063 | H51: ='Depn & WACC Post 2004'!H$237 -> 18.22310318
A53: Poles & Brackets Charge | D53: =D$13 -> 6.600806973 | E53: =E$13 -> 7.187955992 | F53: =F$13 -> 7.788837225 | G53: =G$13 -> 8.372786616 | H53: =H$13 -> 8.938515715
A55: Total Charge | D55: =SUM(D49,D51,D53) -> 157.4884384 | E55: =SUM(E49,E51,E53) -> 164.6380303 | F55: =SUM(F49,F51,F53) -> 171.503321 | G55: =SUM(G49,G51,G53) -> 175.9328761 | H55: =SUM(H49,H51,H53) -> 181.8014446
A60: ='O & M 2016-2020'!$A$20 -> S-HP 250 | D60: =D$1 -> 2016 | E60: =E$1 -> 2017 | F60: 2018 | G60: 2019 | H60: 2020
A62: O & M Charge
A63: ='O & M 2016-2020'!A$21 -> Patrols and repairs | D63: ='O & M 2016-2020'!$B$21*D$4 -> 130.2464001 | E63: ='O & M 2016-2020'!$Q$21*E$4 -> 136.2781595 | F63: ='O & M 2016-2020'!$AF$21*F$4 -> 141.9798298 | G63: ='O & M 2016-2020'!$AU$21*G$4 -> 145.2711707 | H63: ='O & M 2016-2020'!$BJ$21*H$4 -> 150.0646115
A64: ='O & M 2016-2020'!A$23 -> Other costs | D64: ='O & M 2016-2020'!$B$23*D$4 -> 4.914949458 | E64: ='O & M 2016-2020'!$Q$23*E$4 -> 4.992294377 | F64: ='O & M 2016-2020'!$AF$23*F$4 -> 5.071292125 | G64: ='O & M 2016-2020'!$AU$23*G$4 -> 5.151974446 | H64: ='O & M 2016-2020'!$BJ$23*H$4 -> 5.234373862
D65: =SUM(D63:D64) -> 135.1613496 | E65: =SUM(E63:E64) -> 141.2704539 | F65: =SUM(F63:F64) -> 147.0511219 | G65: =SUM(G63:G64) -> 150.4231452 | H65: =SUM(H63:H64) -> 155.2989854
A66: Capital Charge
A67: Depreciation and Return | D67: ='Depn & WACC Post 2004'!H$42 -> 17.30236597 | E67: ='Depn & WACC Post 2004'!H$91 -> 17.81195326 | F67: ='Depn & WACC Post 2004'!H$140 -> 18.35208121 | G67: ='Depn & WACC Post 2004'!H$189 -> 18.86949355 | H67: ='Depn & WACC Post 2004'!H$238 -> 19.34477439
A69: Poles & Brackets Charge | D69: =D$13 -> 6.600806973 | E69: =E$13 -> 7.187955992 | F69: =F$13 -> 7.788837225 | G69: =G$13 -> 8.372786616 | H69: =H$13 -> 8.938515715
A71: Total Charge | D71: =SUM(D65,D67,D69) -> 159.0645225 | E71: =SUM(E65,E67,E69) -> 166.2703632 | F71: =SUM(F65,F67,F69) -> 173.1920403 | G71: =SUM(G65,G67,G69) -> 177.6654254 | H71: =SUM(H65,H67,H69) -> 183.5822755
A76: ='DNSP Inputs General'!$A$11 -> Energy Efficient Lights
A78: ='O & M 2016-2020'!$A$26 -> T5 (2 X 14W) | D78: =D$1 -> 2016 | E78: =E$1 -> 2017 | F78: 2018 | G78: 2019 | H78: 2020
A80: O & M Charge
A81: ='O & M 2016-2020'!A$27 -> Bulk change & repairs | D81: ='O & M 2016-2020'!$B$27*D$4 -> 42.33308004 | E81: ='O & M 2016-2020'!$Q$27*E$4 -> 44.40318385 | F81: ='O & M 2016-2020'!$AF$27*F$4 -> 46.26329124 | G81: ='O & M 2016-2020'!$AU$27*G$4 -> 46.8981908 | H81: ='O & M 2016-2020'!$BJ$27*H$4 -> 48.1956795
A82: ='O & M 2016-2020'!A$29 -> Other costs | D82: ='O & M 2016-2020'!$B$29*D$4 -> 4.914949458 | E82: ='O & M 2016-2020'!$Q$29*E$4 -> 4.992294377 | F82: ='O & M 2016-2020'!$AF$29*F$4 -> 5.071292125 | G82: ='O & M 2016-2020'!$AU$29*G$4 -> 5.151974446 | H82: ='O & M 2016-2020'!$BJ$29*H$4 -> 5.234373862
D83: =SUM(D81:D82) -> 47.2480295 | E83: =SUM(E81:E82) -> 49.39547822 | F83: =SUM(F81:F82) -> 51.33458337 | G83: =SUM(G81:G82) -> 52.05016524 | H83: =SUM(H81:H82) -> 53.43005337
A84: Capital Charge
A85: Depreciation and Return | D85: ='Depn & WACC Post 2004'!$H$69 -> 2.839938999 | E85: ='Depn & WACC Post 2004'!$H$118 -> 3.585512752 | F85: ='Depn & WACC Post 2004'!$H$167 -> 4.342101249 | G85: ='Depn & WACC Post 2004'!$H$216 -> 5.075940805 | H85: ='Depn & WACC Post 2004'!$H$265 -> 5.774829636
A87: Poles & Brackets Charge | D87: =D$13 -> 6.600806973 | E87: =E$13 -> 7.187955992 | F87: =F$13 -> 7.788837225 | G87: =G$13 -> 8.372786616 | H87: =H$13 -> 8.938515715
A89: Total Charge | D89: =SUM(D83,D85,D87) -> 56.68877547 | E89: =SUM(E83,E85,E87) -> 60.16894697 | F89: =SUM(F83,F85,F87) -> 63.46552184 | G89: =SUM(G83,G85,G87) -> 65.49889266 | H89: =SUM(H83,H85,H87) -> 68.14339872

Sheet O & M 2016-2020
A1: ='DNSP Inputs O & M'!$A$3 -> Jemena
A3: Public Lighting O & M Costs | B3: Year | C3: 2016 | Q3: Year | R3: =C3+1 -> 2017 | AF3: Year | AG3: =R3+1 -> 2018 | AU3: Year | AV3: =AG3+1 -> 2019 | BJ3: Year | BK3: =AV3+1 -> 2020
A4: ='DNSP Inputs O & M'!C5 -> Real 2015 $
A6: Summary
A8: =$A$62 -> MV80 | D8: Avoided Costs - MV 80 O & M | S8: Avoided Costs - MV 80 O & M | AH8: Avoided Costs - MV 80 O & M | AW8: Avoided Costs - MV 80 O & M | BL8: Avoided Costs - MV 80 O & M
A9: =$A$63 -> Bulk change & repairs | B9: =G83*C32+N83*C33 -> 33.56496303 | D9: Materials & labour - bulk lamp change | G9: =-((G65+G74)*C32+(N65+N74)*C33)*2 -> -25.02254395 | Q9: =V83*R32+AC83*R33 -> 34.35253776 | S9: Materials & labour - bulk lamp change | V9: =-((V65+V74)*R32+(AC65+AC74)*R33)*2 -> -25.64642998 | AF9: =AK83*AG32+AR83*AG33 -> 34.90869424 | AH9: Materials & labour - bulk lamp change | AK9: =-((AK65+AK74)*AG32+(AR65+AR74)*AG33)*2 -> -26.05654115 | AU9: =AZ83*AV32+BG83*AV33 -> 34.471623 | AW9: Materials & labour - bulk lamp change | AZ9: =-((AZ65+AZ74)*AV32+(BG65+BG74)*AV33)*2 -> -25.60269385 | BJ9: =BO83*BK32+BV83*BK33 -> 34.53085593 | BL9: Materials & labour - bulk lamp change | BO9: =-((BO65+BO74)*BK32+(BV65+BV74)*BK33)*2 -> -25.58315355
A10: =A85 -> Dedicated poles - inspection | B10: =(G86*C32+N86*C33)*C35 -> 0.92102693 | D10: Materials & Labour - repair of faults | G10: =-((G69+G77+G79)*C32+(N69+N77+N79)*C33)/2 -> -7.170349223 | Q10: =(V86*R32+AC86*R33)*R35 -> 0.9360380545 | S10: Materials & Labour - repair of faults | V10: =-((V69+V77+V79)*R32+(AC69+AC77+AC79)*R33)/2 -> -7.329407609 | AF10: =(AK86*AG32+AR86*AG33)*AG35 -> 0.9521073996 | AH10: Materials & Labour - repair of faults | AK10: =-((AK69+AK77+AK79)*AG32+(AR69+AR77+AR79)*AG33)/2 -> -7.449342409 | AU10: =(AZ86*AV32+BG86*AV33)*AV35 -> 0.9631027854 | AW10: Materials & Labour - repair of faults | AZ10: =-((AZ69+AZ77+AZ79)*AV32+(BG69+BG77+BG79)*AV33)/2 -> -7.387975735 | BJ10: =(BO86*BK32+BV86*BK33)*BK35 -> 0.9761671709 | BL10: Materials & Labour - repair of faults | BO10: =-((BO69+BO77+BO79)*BK32+(BV69+BV77+BV79)*BK33)/2 -> -7.416553984
A11: Other costs | B11: =IF(C44=0,0,C42/C44) -> 4.793952894 | G11: =SUM(G9:G10) -> -32.19289317 | Q11: =IF(R44=0,0,R42/R44) -> 4.749518659 | V11: =SUM(V9:V10) -> -32.97583759 | AF11: =IF(AG44=0,0,AG42/AG44) -> 4.705900565 | AK11: =SUM(AK9:AK10) -> -33.50588356 | AU11: =IF(AV44=0,0,AV42/AV44) -> 4.663076329 | AZ11: =SUM(AZ9:AZ10) -> -32.99066959 | BJ11: =IF(BK44=0,0,BK42/BK44) -> 4.621024476 | BO11: =SUM(BO9:BO10) -> -32.99970753
A14: =$A$103 -> S-HP 150
A15: =$A$104 -> Patrols and repairs | B15: =G120*E32+N120*E33 -> 126.4812492 | Q15: =V120*T32+AC120*T33 -> 129.0805567 | AF15: =AK120*AI32+AR120*AI33 -> 131.1704401 | AU15: =AZ120*AX32+BG120*AX33 -> 130.9077689 | BJ15: =BO120*BM32+BV120*BM33 -> 131.8985361
A16: =$A$10 -> Dedicated poles - inspection | B16: =B10 -> 0.92102693 | Q16: =Q10 -> 0.9360380545 | AF16: =AF10 -> 0.9521073996 | AU16: =AU10 -> 0.9631027854 | BJ16: =BJ10 -> 0.9761671709
A17: =$A$11 -> Other costs | B17: =B11 -> 4.793952894 | Q17: =Q11 -> 4.749518659 | AF17: =AF11 -> 4.705900565 | AU17: =AU11 -> 4.663076329 | BJ17: =BJ11 -> 4.621024476
A20: =$A$135 -> S-HP 250
A21: =$A$136 -> Patrols and repairs | B21: =G152*G32+N152*G33 -> 127.0399853 | Q21: =V152*V32+AC152*V33 -> 129.6509406 | AF21: =AK152*AK32+AR152*AK33 -> 131.7500441 | AU21: =AZ152*AZ32+BG152*AZ33 -> 131.4856206 | BJ21: =BO152*BO32+BV152*BO33 -> 132.4804573
A22: =$A$10 -> Dedicated poles - inspection | B22: =B10 -> 0.92102693 | Q22: =Q10 -> 0.9360380545 | AF22: =AF10 -> 0.9521073996 | AU22: =AU10 -> 0.9631027854 | BJ22: =BJ10 -> 0.9761671709
A23: =$A$11 -> Other costs | B23: =B11 -> 4.793952894 | Q23: =Q11 -> 4.749518659 | AF23: =AF11 -> 4.705900565 | AU23: =AU11 -> 4.663076329 | BJ23: =BJ11 -> 4.621024476
A26: =$A$169 -> T5 (2 X 14W)
A27: =$A$170 -> Bulk change & repairs | B27: =$G$190*$I$32+$N$190*$I$33 -> 41.29092136 | Q27: =$V$190*$X$32+$AC$190*$X$33 -> 42.24385309 | AF27: =$AK$190*$AM$32+$AR$190*$AM$33 -> 42.92997584 | AU27: =$AZ$190*$BB$32+$BG$190*$BB$33 -> 42.44777331 | BJ27: =$BO$190*$BQ$32+$BV$190*$BQ$33 -> 42.54824368
A28: =$A$10 -> Dedicated poles - inspection | B28: =B10 -> 0.92102693 | Q28: =Q10 -> 0.9360380545 | AF28: =AF10 -> 0.9521073996 | AU28: =AU10 -> 0.9631027854 | BJ28: =BJ10 -> 0.9761671709
A29: =$A$11 -> Other costs | B29: =B11 -> 4.793952894 | Q29: =Q11 -> 4.749518659 | AF29: =AF11 -> 4.705900565 | AU29: =AU11 -> 4.663076329 | BJ29: =BJ11 -> 4.621024476
A31: ='DNSP Inputs O & M'!A51 -> Location of selected public lighting assets within distributors' areas (%) | C31: =$A$62 -> MV80 | E31: =$A$103 -> S-HP 150 | G31: =$A$135 -> S-HP 250 | I31: =$A$169 -> T5 (2 X 14W) | K31: LED18W | R31: =$A$62 -> MV80 | T31: =$A$103 -> S-HP 150 | V31: =$A$135 -> S-HP 250 | X31: =$A$169 -> T5 (2 X 14W) | Z31: LED18W | AG31: =$A$62 -> MV80 | AI31: =$A$103 -> S-HP 150 | AK31: =$A$135 -> S-HP 250 | AM31: =$A$169 -> T5 (2 X 14W) | AO31: LED18W | AV31: =$A$62 -> MV80 | AX31: =$A$103 -> S-HP 150 | AZ31: =$A$135 -> S-HP 250 | BB31: =$A$169 -> T5 (2 X 14W) | BD31: LED18W | BK31: =$A$62 -> MV80 | BM31: =$A$103 -> S-HP 150 | BO31: =$A$135 -> S-HP 250 | BQ31: =$A$169 -> T5 (2 X 14W) | BS31: LED18W
A32: ='DNSP Inputs O & M'!A52 -> Urban | C32: ='DNSP Inputs O & M'!$D$52 -> 0.97 | E32: ='DNSP Inputs O & M'!$D$83 -> 0.95 | G32: ='DNSP Inputs O & M'!$D$114 -> 0.92 | I32: ='DNSP Inputs O & M'!$D$172 -> 0.97 | K32: ='DNSP Inputs O & M'!$D$207 -> 1 | R32: ='DNSP Inputs O & M'!$E$52 -> 0.97 | T32: ='DNSP Inputs O & M'!$E$83 -> 0.95 | V32: ='DNSP Inputs O & M'!$E$114 -> 0.92 | X32: ='DNSP Inputs O & M'!$E$172 -> 0.97 | Z32: ='DNSP Inputs O & M'!$E$207 -> 1 | AG32: ='DNSP Inputs O & M'!$F$52 -> 0.97 | AI32: ='DNSP Inputs O & M'!$F$83 -> 0.95 | AK32: ='DNSP Inputs O & M'!$F$114 -> 0.92 | AM32: ='DNSP Inputs O & M'!$F$172 -> 0.97 | AO32: ='DNSP Inputs O & M'!$F$207 -> 1 | AV32: ='DNSP Inputs O & M'!$G$52 -> 0.97 | AX32: ='DNSP Inputs O & M'!$G$83 -> 0.95 | AZ32: ='DNSP Inputs O & M'!$G$114 -> 0.92 | BB32: ='DNSP Inputs O & M'!$G$172 -> 0.97 | BD32: ='DNSP Inputs O & M'!$G$207 -> 1 | BK32: ='DNSP Inputs O & M'!$H$52 -> 0.97 | BM32: ='DNSP Inputs O & M'!$H$83 -> 0.95 | BO32: ='DNSP Inputs O & M'!$H$114 -> 0.92 | BQ32: ='DNSP Inputs O & M'!$H$172 -> 0.97 | BS32: ='DNSP Inputs O & M'!$H$207 -> 1
A33: ='DNSP Inputs O & M'!A53 -> Rural | C33: ='DNSP Inputs O & M'!$D$53 -> 0.03 | E33: ='DNSP Inputs O & M'!$D$84 -> 0.05 | G33: ='DNSP Inputs O & M'!$D$115 -> 0.08 | I33: ='DNSP Inputs O & M'!$D$173 -> 0.03 | K33: ='DNSP Inputs O & M'!$D$208 -> 0 | R33: ='DNSP Inputs O & M'!$E$53 -> 0.03 | T33: ='DNSP Inputs O & M'!$E$84 -> 0.05 | V33: ='DNSP Inputs O & M'!$E$115 -> 0.08 | X33: ='DNSP Inputs O & M'!$E$173 -> 0.03 | Z33: ='DNSP Inputs O & M'!$E$208 -> 0 | AG33: ='DNSP Inputs O & M'!$F$53 -> 0.03 | AI33: ='DNSP Inputs O & M'!$F$84 -> 0.05 | AK33: ='DNSP Inputs O & M'!$F$115 -> 0.08 | AM33: ='DNSP Inputs O & M'!$F$173 -> 0.03 | AO33: ='DNSP Inputs O & M'!$F$208 -> 0 | AV33: ='DNSP Inputs O & M'!$G$53 -> 0.03 | AX33: ='DNSP Inputs O & M'!$G$84 -> 0.05 | AZ33: ='DNSP Inputs O & M'!$G$115 -> 0.08 | BB33: ='DNSP Inputs O & M'!$G$173 -> 0.03 | BD33: ='DNSP Inputs O & M'!$G$208 -> 0 | BK33: ='DNSP Inputs O & M'!$H$53 -> 0.03 | BM33: ='DNSP Inputs O & M'!$H$84 -> 0.05 | BO33: ='DNSP Inputs O & M'!$H$115 -> 0.08 | BQ33: ='DNSP Inputs O & M'!$H$173 -> 0.03 | BS33: ='DNSP Inputs O & M'!$H$208 -> 0
A35: ='DNSP Inputs O & M'!A124 -> Proportion of lights on dedicated poles | C35: ='DNSP Inputs O & M'!$D$124 -> 0.3383266143 | R35: ='DNSP Inputs O & M'!$E$124 -> 0.3383266143 | AG35: ='DNSP Inputs O & M'!$F$124 -> 0.3383266143 | AV35: ='DNSP Inputs O & M'!$G$124 -> 0.3383266143 | BK35: ='DNSP Inputs O & M'!$H$124 -> 0.3383266143
A37: ='DNSP Inputs O & M'!A128 -> Other direct costs
A38: ='DNSP Inputs O & M'!$A$129 -> Call centre | C38: ='DNSP Inputs O & M'!$D$132 -> 47895.44184 | R38: ='DNSP Inputs O & M'!$E$132 -> 47895.44184 | AG38: ='DNSP Inputs O & M'!$F$132 -> 47895.44184 | AV38: ='DNSP Inputs O & M'!$G$132 -> 47895.44184 | BK38: ='DNSP Inputs O & M'!$H$132 -> 47895.44184
A39: ='DNSP Inputs O & M'!$A$134 -> GIS and other | C39: ='DNSP Inputs O & M'!$D$134 -> 113442.5434 | R39: ='DNSP Inputs O & M'!$E$134 -> 113442.5434 | AG39: ='DNSP Inputs O & M'!$F$134 -> 113442.5434 | AV39: ='DNSP Inputs O & M'!$G$134 -> 113442.5434 | BK39: ='DNSP Inputs O & M'!$H$134 -> 113442.5434
A40: ='DNSP Inputs O & M'!A135 -> Complaints handling | C40: ='DNSP Inputs O & M'!$D$135 -> 34032.76303 | R40: ='DNSP Inputs O & M'!$E$135 -> 34032.76303 | AG40: ='DNSP Inputs O & M'!$F$135 -> 34032.76303 | AV40: ='DNSP Inputs O & M'!$G$135 -> 34032.76303 | BK40: ='DNSP Inputs O & M'!$H$135 -> 34032.76303
A41: Account management | C41: ='DNSP Inputs O & M'!$D$136 -> 150000 | R41: ='DNSP Inputs O & M'!$E$136 -> 150000 | AG41: ='DNSP Inputs O & M'!$F$136 -> 150000 | AV41: ='DNSP Inputs O & M'!$G$136 -> 150000 | BK41: ='DNSP Inputs O & M'!$H$136 -> 150000
C42: =SUM(C38:C41) -> 345370.7483 | R42: =SUM(R38:R41) -> 345370.7483 | AG42: =SUM(AG38:AG41) -> 345370.7483 | AV42: =SUM(AV38:AV41) -> 345370.7483 | BK42: =SUM(BK38:BK41) -> 345370.7483
A44: ='DNSP Inputs General'!A77 -> Total Number of Lights | C44: ='DNSP Inputs General'!$K$77 -> 72043 | R44: ='DNSP Inputs General'!$L$77 -> 72717 | AG44: ='DNSP Inputs General'!$M$77 -> 73391 | AV44: ='DNSP Inputs General'!$N$77 -> 74065 | BK44: ='DNSP Inputs General'!$O$77 -> 74739
A50: Mercury Vapour 80 Watt Standard Light Type - Cost build-up
A52: Addiitonal assumptions
A53: Proportion of lamps that will fail before bulk change | D53: ='DNSP Inputs O & M'!$D$27 -> 0.256 | S53: ='DNSP Inputs O & M'!$E$27 -> 0.256 | AH53: ='DNSP Inputs O & M'!$F$27 -> 0.256 | AW53: ='DNSP Inputs O & M'!$G$27 -> 0.256 | BL53: ='DNSP Inputs O & M'!$H$27 -> 0.256
A54: Proportion of lamps that will fail before bulk change (per year) | D54: =D53/'DNSP Inputs O & M'!$D$25 -> 0.064 | S54: =S53/'DNSP Inputs O & M'!$E$25 -> 0.064 | AH54: =AH53/'DNSP Inputs O & M'!$F$25 -> 0.064 | AW54: =AW53/'DNSP Inputs O & M'!$G$25 -> 0.064 | BL54: =BL53/'DNSP Inputs O & M'!$H$25 -> 0.064
A55: Overheads are applied to material and labour components
A56: All costs and charges are exclusive of GST
B58: Urban | I58: Rural | Q58: Urban | X58: Rural | AF58: Urban | AM58: Rural | AU58: Urban | BB58: Rural | BJ58: Urban | BQ58: Rural
B60: Unit rate | C60: Number | D60: Hours | E60: Cost | F60: Annualised | G60: Annualised | I60: Unit rate | J60: Number | K60: Hours | L60: Cost | M60: Annualised | N60: Annualised | Q60: Unit rate | R60: Number | S60: Hours | T60: Cost | U60: Annualised | V60: Annualised | X60: Unit rate | Y60: Number | Z60: Hours | AA60: Cost | AB60: Annualised | AC60: Annualised | AF60: Unit rate | AG60: Number | AH60: Hours | AI60: Cost | AJ60: Annualised | AK60: Annualised | AM60: Unit rate | AN60: Number | AO60: Hours | AP60: Cost | AQ60: Annualised | AR60: Annualised | AU60: Unit rate | AV60: Number | AW60: Hours | AX60: Cost | AY60: Annualised | AZ60: Annualised | BB60: Unit rate | BC60: Number | BD60: Hours | BE60: Cost | BF60: Annualised | BG60: Annualised | BJ60: Unit rate | BK60: Number | BL60: Hours | BM60: Cost | BN60: Annualised | BO60: Annualised | BQ60: Unit rate | BR60: Number | BS60: Hours | BT60: Cost | BU60: Annualised | BV60: Annualised
F61: cost | G61: unit cost | M61: cost | N61: unit cost | U61: cost | V61: unit cost | AB61: cost | AC61: unit cost | AJ61: cost | AK61: unit cost | AQ61: cost | AR61: unit cost | AY61: cost | AZ61: unit cost | BF61: cost | BG61: unit cost | BN61: cost | BO61: unit cost | BU61: cost | BV61: unit cost
A62: MV80
A63: Bulk change & repairs
A64: Materials - bulk lamp change
A65: Lamp | B65: ='DNSP Inputs O & M'!$D$29 -> 5.693358829 | C65: ='DNSP Inputs O & M'!$D$35 -> 65 | E65: =B65*C65 -> 370.0683239 | F65: =E65/'DNSP Inputs O & M'!$D$25*0.8 -> 74.01366478 | G65: =(F65+F66+F67)/C65 -> 4.260986988 | I65: ='DNSP Inputs O & M'!$D$29*(1+'DNSP Inputs O & M'!$D$11) -> 5.97802677 | J65: ='DNSP Inputs O & M'!$D$36 -> 55 | L65: =I65*J65 -> 328.7914724 | M65: =L65/'DNSP Inputs O & M'!$D$25*0.8 -> 65.75829447 | N65: =(M65+M66+M67)/J65 -> 4.474036337 | Q65: ='DNSP Inputs O & M'!$E$29 -> 5.910872079 | R65: ='DNSP Inputs O & M'!$E$35 -> 65 | T65: =Q65*R65 -> 384.2066851 | U65: =T65/'DNSP Inputs O & M'!$E$25*0.8 -> 76.84133702 | V65: =(U65+U66+U67)/R65 -> 4.423776855 | X65: ='DNSP Inputs O & M'!$E$29*(1+'DNSP Inputs O & M'!$E$11) -> 6.206415683 | Y65: ='DNSP Inputs O & M'!$E$36 -> 55 | AA65: =X65*Y65 -> 341.3528625 | AB65: =AA65/'DNSP Inputs O & M'!$E$25*0.8 -> 68.27057251 | AC65: =(AB65+AB66+AB67)/Y65 -> 4.644965698 | AF65: ='DNSP Inputs O & M'!$F$29 -> 5.994929995 | AG65: ='DNSP Inputs O & M'!$F$35 -> 65 | AI65: =AF65*AG65 -> 389.6704497 | AJ65: =AI65/'DNSP Inputs O & M'!$F$25*0.8 -> 77.93408993 | AK65: =(AJ65+AJ66+AJ67)/AG65 -> 4.48668694 | AM65: ='DNSP Inputs O & M'!$F$29*(1+'DNSP Inputs O & M'!$F$11) -> 6.294676494 | AN65: ='DNSP Inputs O & M'!$F$36 -> 55 | AP65: =AM65*AN65 -> 346.2072072 | AQ65: =AP65/'DNSP Inputs O & M'!$F$25*0.8 -> 69.24144144 | AR65: =(AQ65+AQ66+AQ67)/AN65 -> 4.711021287 | AU65: ='DNSP Inputs O & M'!$G$29 -> 5.6284787 | AV65: ='DNSP Inputs O & M'!$G$35 -> 65 | AX65: =AU65*AV65 -> 365.8511155 | AY65: =AX65/'DNSP Inputs O & M'!$G$25*0.8 -> 73.1702231 | AZ65: =(AY65+AY66+AY67)/AV65 -> 4.212429819 | BB65: ='DNSP Inputs O & M'!$G$29*(1+'DNSP Inputs O & M'!$G$11) -> 5.909902635 | BC65: ='DNSP Inputs O & M'!$G$36 -> 55 | BE65: =BB65*BC65 -> 325.0446449 | BF65: =BE65/'DNSP Inputs O & M'!$G$25*0.8 -> 65.00892898 | BG65: =(BF65+BF66+BF67)/BC65 -> 4.42305131 | BJ65: ='DNSP Inputs O & M'!$H$29 -> 5.493072062 | BK65: ='DNSP Inputs O & M'!$H$35 -> 65 | BM65: =BJ65*BK65 -> 357.049684 | BN65: =BM65/'DNSP Inputs O & M'!$H$25*0.8 -> 71.40993681 | BO65: =(BN65+BN66+BN67)/BK65 -> 4.111089655 | BQ65: ='DNSP Inputs O & M'!$H$29*(1+'DNSP Inputs O & M'!$H$11) -> 5.767725665 | BR65: ='DNSP Inputs O & M'!$H$36 -> 55 | BT65: =BQ65*BR65 -> 317.2249116 | BU65: =BT65/'DNSP Inputs O & M'!$H$25*0.8 -> 63.44498232 | BV65: =(BU65+BU66+BU67)/BR65 -> 4.316644137
A66: PE cell | B66: ='DNSP Inputs O & M'!$D$30 -> 22.98522328 | C66: =C65*'DNSP Inputs O & M'!$D$25/'DNSP Inputs O & M'!$D$26 -> 32.5 | E66: =B66*C66 -> 747.0197566 | F66: =E66/'DNSP Inputs O & M'!$D$25 -> 186.7549392 | I66: ='DNSP Inputs O & M'!$D$30*(1+'DNSP Inputs O & M'!$D$11) -> 24.13448445 | J66: =J65*'DNSP Inputs O & M'!$D$25/'DNSP Inputs O & M'!$D$26 -> 27.5 | L66: =I66*J66 -> 663.6983222 | M66: =L66/'DNSP Inputs O & M'!$D$25 -> 165.9245806 | Q66: ='DNSP Inputs O & M'!$E$30 -> 23.86336758 | R66: =R65*'DNSP Inputs O & M'!$E$25/'DNSP Inputs O & M'!$E$26 -> 32.5 | T66: =Q66*R66 -> 775.5594464 | U66: =T66/'DNSP Inputs O & M'!$E$25 -> 193.8898616 | X66: ='DNSP Inputs O & M'!$E$30*(1+'DNSP Inputs O & M'!$E$11) -> 25.05653596 | Y66: =Y65*'DNSP Inputs O & M'!$E$25/'DNSP Inputs O & M'!$E$26 -> 27.5 | AA66: =X66*Y66 -> 689.054739 | AB66: =AA66/'DNSP Inputs O & M'!$E$25 -> 172.2636847 | AF66: ='DNSP Inputs O & M'!$F$30 -> 24.20272613 | AG66: =AG65*'DNSP Inputs O & M'!$F$25/'DNSP Inputs O & M'!$F$26 -> 32.5 | AI66: =AF66*AG66 -> 786.5885991 | AJ66: =AI66/'DNSP Inputs O & M'!$F$25 -> 196.6471498 | AM66: ='DNSP Inputs O & M'!$F$30*(1+'DNSP Inputs O & M'!$F$11) -> 25.41286243 | AN66: =AN65*'DNSP Inputs O & M'!$F$25/'DNSP Inputs O & M'!$F$26 -> 27.5 | AP66: =AM66*AN66 -> 698.8537169 | AQ66: =AP66/'DNSP Inputs O & M'!$F$25 -> 174.7134292 | AU66: ='DNSP Inputs O & M'!$G$30 -> 22.72328928 | AV66: =AV65*'DNSP Inputs O & M'!$G$25/'DNSP Inputs O & M'!$G$26 -> 32.5 | AX66: =AU66*AV66 -> 738.5069016 | AY66: =AX66/'DNSP Inputs O & M'!$G$25 -> 184.6267254 | BB66: ='DNSP Inputs O & M'!$G$30*(1+'DNSP Inputs O & M'!$G$11) -> 23.85945375 | BC66: =BC65*'DNSP Inputs O & M'!$G$25/'DNSP Inputs O & M'!$G$26 -> 27.5 | BE66: =BB66*BC66 -> 656.134978 | BF66: =BE66/'DNSP Inputs O & M'!$G$25 -> 164.0337445 | BJ66: ='DNSP Inputs O & M'!$H$30 -> 22.17662572 | BK66: =BK65*'DNSP Inputs O & M'!$H$25/'DNSP Inputs O & M'!$H$26 -> 32.5 | BM66: =BJ66*BK66 -> 720.740336 | BN66: =BM66/'DNSP Inputs O & M'!$H$25 -> 180.185084 | BQ66: ='DNSP Inputs O & M'!$H$30*(1+'DNSP Inputs O & M'!$H$11) -> 23.28545701 | BR66: =BR65*'DNSP Inputs O & M'!$H$25/'DNSP Inputs O & M'!$H$26 -> 27.5 | BT66: =BQ66*BR66 -> 640.3500677 | BU66: =BT66/'DNSP Inputs O & M'!$H$25 -> 160.0875169
A67: Miscellaneous | B67: ='DNSP Inputs O & M'!$D$32 -> 1.24581156 | C67: ='DNSP Inputs O & M'!$D$35 -> 65 | E67: =B67*C67 -> 80.9777514 | F67: =E67/'DNSP Inputs O & M'!$D$25*0.8 -> 16.19555028 | I67: ='DNSP Inputs O & M'!$D$32*(1+'DNSP Inputs O & M'!$D$11) -> 1.308102138 | J67: ='DNSP Inputs O & M'!$D$36 -> 55 | L67: =I67*J67 -> 71.94561759 | M67: =L67/'DNSP Inputs O & M'!$D$25*0.8 -> 14.38912352 | Q67: ='DNSP Inputs O & M'!$E$32 -> 1.293407457 | R67: ='DNSP Inputs O & M'!$E$35 -> 65 | T67: =Q67*R67 -> 84.07148471 | U67: =T67/'DNSP Inputs O & M'!$E$25*0.8 -> 16.81429694 | X67: ='DNSP Inputs O & M'!$E$32*(1+'DNSP Inputs O & M'!$E$11) -> 1.35807783 | Y67: ='DNSP Inputs O & M'!$E$36 -> 55 | AA67: =X67*Y67 -> 74.69428065 | AB67: =AA67/'DNSP Inputs O & M'!$E$25*0.8 -> 14.93885613 | AF67: ='DNSP Inputs O & M'!$F$32 -> 1.311800874 | AG67: ='DNSP Inputs O & M'!$F$35 -> 65 | AI67: =AF67*AG67 -> 85.26705682 | AJ67: =AI67/'DNSP Inputs O & M'!$F$25*0.8 -> 17.05341136 | AM67: ='DNSP Inputs O & M'!$F$32*(1+'DNSP Inputs O & M'!$F$11) -> 1.377390918 | AN67: ='DNSP Inputs O & M'!$F$36 -> 55 | AP67: =AM67*AN67 -> 75.75650048 | AQ67: =AP67/'DNSP Inputs O & M'!$F$25*0.8 -> 15.1513001 | AU67: ='DNSP Inputs O & M'!$G$32 -> 1.231614595 | AV67: ='DNSP Inputs O & M'!$G$35 -> 65 | AX67: =AU67*AV67 -> 80.05494869 | AY67: =AX67/'DNSP Inputs O & M'!$G$25*0.8 -> 16.01098974 | BB67: ='DNSP Inputs O & M'!$G$32*(1+'DNSP Inputs O & M'!$G$11) -> 1.293195325 | BC67: ='DNSP Inputs O & M'!$G$36 -> 55 | BE67: =BB67*BC67 -> 71.12574287 | BF67: =BE67/'DNSP Inputs O & M'!$G$25*0.8 -> 14.22514857 | BJ67: ='DNSP Inputs O & M'!$H$32 -> 1.201985134 | BK67: ='DNSP Inputs O & M'!$H$35 -> 65 | BM67: =BJ67*BK67 -> 78.12903371 | BN67: =BM67/'DNSP Inputs O & M'!$H$25*0.8 -> 15.62580674 | BQ67: ='DNSP Inputs O & M'!$H$32*(1+'DNSP Inputs O & M'!$H$11) -> 1.262084391 | BR67: ='DNSP Inputs O & M'!$H$36 -> 55 | BT67: =BQ67*BR67 -> 69.41464149 | BU67: =BT67/'DNSP Inputs O & M'!$H$25*0.8 -> 13.8829283
A68: Materials - repair of faults
A69: Lamp | B69: ='DNSP Inputs O & M'!$D$29 -> 5.693358829 | C69: ='DNSP Inputs O & M'!$D$37*'DNSP Inputs O & M'!$D$39 -> 6 | E69: =B69*C69 -> 34.16015297 | F69: =(E69+E70+E71+E72)/'DNSP Inputs O & M'!$D$37 -> 45.78295192 | G69: =F69*D54 -> 2.930108923 | I69: ='DNSP Inputs O & M'!$D$29*(1+'DNSP Inputs O & M'!$D$11) -> 5.97802677 | J69: ='DNSP Inputs O & M'!$D$38*'DNSP Inputs O & M'!$D$39 -> 5.4 | L69: =I69*J69 -> 32.28134456 | M69: =(L69+L70+L71+L72)/'DNSP Inputs O & M'!$D$38 -> 48.07209952 | N69: =M69*D54 -> 3.076614369 | Q69: ='DNSP Inputs O & M'!$E$29 -> 5.910872079 | R69: ='DNSP Inputs O & M'!$E$37*'DNSP Inputs O & M'!$E$39 -> 6 | T69: =Q69*R69 -> 35.46523247 | U69: =(T69+T70+T71+T72)/'DNSP Inputs O & M'!$E$37 -> 47.53207734 | V69: =U69*S54 -> 3.04205295 | X69: ='DNSP Inputs O & M'!$E$29*(1+'DNSP Inputs O & M'!$E$11) -> 6.206415683 | Y69: ='DNSP Inputs O & M'!$E$38*'DNSP Inputs O & M'!$E$39 -> 5.4 | AA69: =X69*Y69 -> 33.51464469 | AB69: =(AA69+AA70+AA71+AA72)/'DNSP Inputs O & M'!$E$38 -> 49.90868121 | AC69: =AB69*S54 -> 3.194155597 | AF69: ='DNSP Inputs O & M'!$F$29 -> 5.994929995 | AG69: ='DNSP Inputs O & M'!$F$37*'DNSP Inputs O & M'!$F$39 -> 6 | AI69: =AF69*AG69 -> 35.96957997 | AJ69: =(AI69+AI70+AI71+AI72)/'DNSP Inputs O & M'!$F$37 -> 48.20802622 | AK69: =AJ69*AH54 -> 3.085313678 | AM69: ='DNSP Inputs O & M'!$F$29*(1+'DNSP Inputs O & M'!$F$11) -> 6.294676494 | AN69: ='DNSP Inputs O & M'!$F$38*'DNSP Inputs O & M'!$F$39 -> 5.4 | AP69: =AM69*AN69 -> 33.99125307 | AQ69: =(AP69+AP70+AP71+AP72)/'DNSP Inputs O & M'!$F$38 -> 50.61842753 | AR69: =AQ69*AH54 -> 3.239579362 | AU69: ='DNSP Inputs O & M'!$G$29 -> 5.6284787 | AV69: ='DNSP Inputs O & M'!$G$37*'DNSP Inputs O & M'!$G$39 -> 6 | AX69: =AU69*AV69 -> 33.7708722 | AY69: =(AX69+AX70+AX71+AX72)/'DNSP Inputs O & M'!$G$37 -> 45.26122057 | AZ69: =AY69*AW54 -> 2.896718116 | BB69: ='DNSP Inputs O & M'!$G$29*(1+'DNSP Inputs O & M'!$G$11) -> 5.909902635 | BC69: ='DNSP Inputs O & M'!$G$38*'DNSP Inputs O & M'!$G$39 -> 5.4 | BE69: =BB69*BC69 -> 31.91347423 | BF69: =(BE69+BE70+BE71+BE72)/'DNSP Inputs O & M'!$G$38 -> 47.52428159 | BG69: =BF69*AW54 -> 3.041554022 | BJ69: ='DNSP Inputs O & M'!$H$29 -> 5.493072062 | BK69: ='DNSP Inputs O & M'!$H$37*'DNSP Inputs O & M'!$H$39 -> 6 | BM69: =BJ69*BK69 -> 32.95843237 | BN69: =(BM69+BM70+BM71+BM72)/'DNSP Inputs O & M'!$H$37 -> 44.17235268 | BO69: =BN69*BL54 -> 2.827030572 | BQ69: ='DNSP Inputs O & M'!$H$29*(1+'DNSP Inputs O & M'!$H$11) -> 5.767725665 | BR69: ='DNSP Inputs O & M'!$H$38*'DNSP Inputs O & M'!$H$39 -> 5.4 | BT69: =BQ69*BR69 -> 31.14571859 | BU69: =(BT69+BT70+BT71+BT72)/'DNSP Inputs O & M'!$H$38 -> 46.38097032 | BV69: =BU69*BL54 -> 2.9683821
A70: PE cell | B70: ='DNSP Inputs O & M'!$D$30 -> 22.98522328 | C70: ='DNSP Inputs O & M'!$D$37*'DNSP Inputs O & M'!$D$40 -> 5 | E70: =B70*C70 -> 114.9261164 | I70: ='DNSP Inputs O & M'!$D$30*(1+'DNSP Inputs O & M'!$D$11) -> 24.13448445 | J70: ='DNSP Inputs O & M'!$D$38*'DNSP Inputs O & M'!$D$40 -> 4.5 | L70: =I70*J70 -> 108.60518 | Q70: ='DNSP Inputs O & M'!$E$30 -> 23.86336758 | R70: ='DNSP Inputs O & M'!$E$37*'DNSP Inputs O & M'!$E$40 -> 5 | T70: =Q70*R70 -> 119.3168379 | X70: ='DNSP Inputs O & M'!$E$30*(1+'DNSP Inputs O & M'!$E$11) -> 25.05653596 | Y70: ='DNSP Inputs O & M'!$E$38*'DNSP Inputs O & M'!$E$40 -> 4.5 | AA70: =X70*Y70 -> 112.7544118 | AF70: ='DNSP Inputs O & M'!$F$30 -> 24.20272613 | AG70: ='DNSP Inputs O & M'!$F$37*'DNSP Inputs O & M'!$F$40 -> 5 | AI70: =AF70*AG70 -> 121.0136306 | AM70: ='DNSP Inputs O & M'!$F$30*(1+'DNSP Inputs O & M'!$F$11) -> 25.41286243 | AN70: ='DNSP Inputs O & M'!$F$38*'DNSP Inputs O & M'!$F$40 -> 4.5 | AP70: =AM70*AN70 -> 114.357881 | AU70: ='DNSP Inputs O & M'!$G$30 -> 22.72328928 | AV70: ='DNSP Inputs O & M'!$G$37*'DNSP Inputs O & M'!$G$40 -> 5 | AX70: =AU70*AV70 -> 113.6164464 | BB70: ='DNSP Inputs O & M'!$G$30*(1+'DNSP Inputs O & M'!$G$11) -> 23.85945375 | BC70: ='DNSP Inputs O & M'!$G$38*'DNSP Inputs O & M'!$G$40 -> 4.5 | BE70: =BB70*BC70 -> 107.3675419 | BJ70: ='DNSP Inputs O & M'!$H$30 -> 22.17662572 | BK70: ='DNSP Inputs O & M'!$H$37*'DNSP Inputs O & M'!$H$40 -> 5 | BM70: =BJ70*BK70 -> 110.8831286 | BQ70: ='DNSP Inputs O & M'!$H$30*(1+'DNSP Inputs O & M'!$H$11) -> 23.28545701 | BR70: ='DNSP Inputs O & M'!$H$38*'DNSP Inputs O & M'!$H$40 -> 4.5 | BT70: =BQ70*BR70 -> 104.7845565
A71: Luminaire | B71: ='DNSP Inputs O & M'!$D$31 -> 197.5234228 | C71: ='DNSP Inputs O & M'!$D$37*'DNSP Inputs O & M'!$D$41 -> 1.5 | E71: =B71*C71 -> 296.2851342 | I71: ='DNSP Inputs O & M'!$D$31*(1+'DNSP Inputs O & M'!$D$11) -> 207.399594 | J71: ='DNSP Inputs O & M'!$D$38*'DNSP Inputs O & M'!$D$41 -> 1.35 | L71: =I71*J71 -> 279.9894519 | Q71: ='DNSP Inputs O & M'!$E$31 -> 205.0697523 | R71: ='DNSP Inputs O & M'!$E$37*'DNSP Inputs O & M'!$E$41 -> 1.5 | T71: =Q71*R71 -> 307.6046285 | X71: ='DNSP Inputs O & M'!$E$31*(1+'DNSP Inputs O & M'!$E$11) -> 215.3232399 | Y71: ='DNSP Inputs O & M'!$E$38*'DNSP Inputs O & M'!$E$41 -> 1.35 | AA71: =X71*Y71 -> 290.6863739 | AF71: ='DNSP Inputs O & M'!$F$31 -> 207.9860286 | AG71: ='DNSP Inputs O & M'!$F$37*'DNSP Inputs O & M'!$F$41 -> 1.5 | AI71: =AF71*AG71 -> 311.9790429 | AM71: ='DNSP Inputs O & M'!$F$31*(1+'DNSP Inputs O & M'!$F$11) -> 218.38533 | AN71: ='DNSP Inputs O & M'!$F$38*'DNSP Inputs O & M'!$F$41 -> 1.35 | AP71: =AM71*AN71 -> 294.8201955 | AU71: ='DNSP Inputs O & M'!$G$31 -> 195.2724941 | AV71: ='DNSP Inputs O & M'!$G$37*'DNSP Inputs O & M'!$G$41 -> 1.5 | AX71: =AU71*AV71 -> 292.9087411 | BB71: ='DNSP Inputs O & M'!$G$31*(1+'DNSP Inputs O & M'!$G$11) -> 205.0361188 | BC71: ='DNSP Inputs O & M'!$G$38*'DNSP Inputs O & M'!$G$41 -> 1.35 | BE71: =BB71*BC71 -> 276.7987603 | BJ71: ='DNSP Inputs O & M'!$H$31 -> 190.574743 | BK71: ='DNSP Inputs O & M'!$H$37*'DNSP Inputs O & M'!$H$41 -> 1.5 | BM71: =BJ71*BK71 -> 285.8621145 | BQ71: ='DNSP Inputs O & M'!$H$31*(1+'DNSP Inputs O & M'!$H$11) -> 200.1034801 | BR71: ='DNSP Inputs O & M'!$H$38*'DNSP Inputs O & M'!$H$41 -> 1.35 | BT71: =BQ71*BR71 -> 270.1396982
A72: Miscellaneous | B72: ='DNSP Inputs O & M'!$D$33 -> 12.4581156 | C72: ='DNSP Inputs O & M'!$D$37*'DNSP Inputs O & M'!$D$42 -> 1 | E72: =B72*C72 -> 12.4581156 | I72: ='DNSP Inputs O & M'!$D$33*(1+'DNSP Inputs O & M'!$D$11) -> 13.08102138 | J72: ='DNSP Inputs O & M'!$D$38*'DNSP Inputs O & M'!$D$42 -> 0.9 | L72: =I72*J72 -> 11.77291924 | Q72: ='DNSP Inputs O & M'!$E$33 -> 12.93407457 | R72: ='DNSP Inputs O & M'!$E$37*'DNSP Inputs O & M'!$E$42 -> 1 | T72: =Q72*R72 -> 12.93407457 | X72: ='DNSP Inputs O & M'!$E$33*(1+'DNSP Inputs O & M'!$E$11) -> 13.5807783 | Y72: ='DNSP Inputs O & M'!$E$38*'DNSP Inputs O & M'!$E$42 -> 0.9 | AA72: =X72*Y72 -> 12.22270047 | AF72: ='DNSP Inputs O & M'!$F$33 -> 13.11800874 | AG72: ='DNSP Inputs O & M'!$F$37*'DNSP Inputs O & M'!$F$42 -> 1 | AI72: =AF72*AG72 -> 13.11800874 | AM72: ='DNSP Inputs O & M'!$F$33*(1+'DNSP Inputs O & M'!$F$11) -> 13.77390918 | AN72: ='DNSP Inputs O & M'!$F$38*'DNSP Inputs O & M'!$F$42 -> 0.9 | AP72: =AM72*AN72 -> 12.39651826 | AU72: ='DNSP Inputs O & M'!$G$33 -> 12.31614595 | AV72: ='DNSP Inputs O & M'!$G$37*'DNSP Inputs O & M'!$G$42 -> 1 | AX72: =AU72*AV72 -> 12.31614595 | BB72: ='DNSP Inputs O & M'!$G$33*(1+'DNSP Inputs O & M'!$G$11) -> 12.93195325 | BC72: ='DNSP Inputs O & M'!$G$38*'DNSP Inputs O & M'!$G$42 -> 0.9 | BE72: =BB72*BC72 -> 11.63875792 | BJ72: ='DNSP Inputs O & M'!$H$33 -> 12.01985134 | BK72: ='DNSP Inputs O & M'!$H$37*'DNSP Inputs O & M'!$H$42 -> 1 | BM72: =BJ72*BK72 -> 12.01985134 | BQ72: ='DNSP Inputs O & M'!$H$33*(1+'DNSP Inputs O & M'!$H$11) -> 12.62084391 | BR72: ='DNSP Inputs O & M'!$H$38*'DNSP Inputs O & M'!$H$42 -> 0.9 | BT72: =BQ72*BR72 -> 11.35875952
A73: Labour - bulk lamp change
A74: Crew costs | B74: ='DNSP Inputs O & M'!$D$12 -> 90.43467502 | C74: ='DNSP Inputs O & M'!$D$34 -> 2 | D74: ='DNSP Inputs O & M'!$D$17 -> 8 | E74: =B74*C74*D74 -> 1446.9548 | F74: =E74/'DNSP Inputs O & M'!$D$25*(C65+C66)/C65*0.8 -> 434.0864401 | G74: =(F74+F75)/C65 -> 8.184000477 | I74: ='DNSP Inputs O & M'!$D$12 -> 90.43467502 | J74: ='DNSP Inputs O & M'!$D$34 -> 2 | K74: ='DNSP Inputs O & M'!$D$17 -> 8 | L74: =I74*J74*K74 -> 1446.9548 | M74: =L74/'DNSP Inputs O & M'!$D$25*(J65+J66)/J65*0.8 -> 434.0864401 | N74: =(M74+M75)/J65 -> 10.1804348 | Q74: ='DNSP Inputs O & M'!$E$12 -> 91.6533557 | R74: ='DNSP Inputs O & M'!$E$34 -> 2 | S74: ='DNSP Inputs O & M'!$E$17 -> 8 | T74: =Q74*R74*S74 -> 1466.453691 | U74: =T74/'DNSP Inputs O & M'!$E$25*(R65+R66)/R65*0.8 -> 439.9361074 | V74: =(U74+U75)/R65 -> 8.331522041 | X74: ='DNSP Inputs O & M'!$E$12 -> 91.6533557 | Y74: ='DNSP Inputs O & M'!$E$34 -> 2 | Z74: ='DNSP Inputs O & M'!$E$17 -> 8 | AA74: =X74*Y74*Z74 -> 1466.453691 | AB74: =AA74/'DNSP Inputs O & M'!$E$25*(Y65+Y66)/Y65*0.8 -> 439.9361074 | AC74: =(AB74+AB75)/Y65 -> 10.37420306 | AF74: ='DNSP Inputs O & M'!$F$12 -> 93.26244924 | AG74: ='DNSP Inputs O & M'!$F$34 -> 2 | AH74: ='DNSP Inputs O & M'!$F$17 -> 8 | AI74: =AF74*AG74*AH74 -> 1492.199188 | AJ74: =AI74/'DNSP Inputs O & M'!$F$25*(AG65+AG66)/AG65*0.8 -> 447.6597564 | AK74: =(AJ74+AJ75)/AG65 -> 8.472578575 | AM74: ='DNSP Inputs O & M'!$F$12 -> 93.26244924 | AN74: ='DNSP Inputs O & M'!$F$34 -> 2 | AO74: ='DNSP Inputs O & M'!$F$17 -> 8 | AP74: =AM74*AN74*AO74 -> 1492.199188 | AQ74: =AP74/'DNSP Inputs O & M'!$F$25*(AN65+AN66)/AN65*0.8 -> 447.6597564 | AR74: =(AQ74+AQ75)/AN65 -> 10.54841287 | AU74: ='DNSP Inputs O & M'!$G$12 -> 95.23112666 | AV74: ='DNSP Inputs O & M'!$G$34 -> 2 | AW74: ='DNSP Inputs O & M'!$G$17 -> 8 | AX74: =AU74*AV74*AW74 -> 1523.698027 | AY74: =AX74/'DNSP Inputs O & M'!$G$25*(AV65+AV66)/AV65*0.8 -> 457.109408 | AZ74: =(AY74+AY75)/AV65 -> 8.521040852 | BB74: ='DNSP Inputs O & M'!$G$12 -> 95.23112666 | BC74: ='DNSP Inputs O & M'!$G$34 -> 2 | BD74: ='DNSP Inputs O & M'!$G$17 -> 8 | BE74: =BB74*BC74*BD74 -> 1523.698027 | BF74: =BE74/'DNSP Inputs O & M'!$G$25*(BC65+BC66)/BC65*0.8 -> 457.109408 | BG74: =(BF74+BF75)/BC65 -> 10.57296125 | BJ74: ='DNSP Inputs O & M'!$H$12 -> 96.95629191 | BK74: ='DNSP Inputs O & M'!$H$34 -> 2 | BL74: ='DNSP Inputs O & M'!$H$17 -> 8 | BM74: =BJ74*BK74*BL74 -> 1551.300671 | BN74: =BM74/'DNSP Inputs O & M'!$H$25*(BK65+BK66)/BK65*0.8 -> 465.3902012 | BO74: =(BN74+BN75)/BK65 -> 8.612626083 | BQ74: ='DNSP Inputs O & M'!$H$12 -> 96.95629191 | BR74: ='DNSP Inputs O & M'!$H$34 -> 2 | BS74: ='DNSP Inputs O & M'!$H$17 -> 8 | BT74: =BQ74*BR74*BS74 -> 1551.300671 | BU74: =BT74/'DNSP Inputs O & M'!$H$25*(BR65+BR66)/BR65*0.8 -> 465.3902012 | BV74: =(BU74+BU75)/BR65 -> 10.66910612
A75: Elevated platform costs | B75: ='DNSP Inputs O & M'!$D$14 -> 40.7806629 | C75: 1 | D75: ='DNSP Inputs O & M'!$D$17 -> 8 | E75: =B75*C75*D75 -> 326.2453032 | F75: =E75/'DNSP Inputs O & M'!$D$25*(C65+C66)/C65*0.8 -> 97.87359095 | I75: ='DNSP Inputs O & M'!$D$15 -> 52.43228087 | J75: 1 | K75: ='DNSP Inputs O & M'!$D$17 -> 8 | L75: =I75*J75*K75 -> 419.4582469 | M75: =L75/'DNSP Inputs O & M'!$D$25*(J65+J66)/J65*0.8 -> 125.8374741 | Q75: ='DNSP Inputs O & M'!$E$14 -> 42.33867721 | R75: 1 | S75: ='DNSP Inputs O & M'!$E$17 -> 8 | T75: =Q75*R75*S75 -> 338.7094176 | U75: =T75/'DNSP Inputs O & M'!$E$25*(R65+R66)/R65*0.8 -> 101.6128253 | X75: ='DNSP Inputs O & M'!$E$15 -> 54.43544212 | Y75: 1 | Z75: ='DNSP Inputs O & M'!$E$17 -> 8 | AA75: =X75*Y75*Z75 -> 435.483537 | AB75: =AA75/'DNSP Inputs O & M'!$E$25*(Y65+Y66)/Y65*0.8 -> 130.6450611 | AF75: ='DNSP Inputs O & M'!$F$14 -> 42.94077127 | AG75: 1 | AH75: ='DNSP Inputs O & M'!$F$17 -> 8 | AI75: =AF75*AG75*AH75 -> 343.5261701 | AJ75: =AI75/'DNSP Inputs O & M'!$F$25*(AG65+AG66)/AG65*0.8 -> 103.057851 | AM75: ='DNSP Inputs O & M'!$F$15 -> 55.20956306 | AN75: 1 | AO75: ='DNSP Inputs O & M'!$F$17 -> 8 | AP75: =AM75*AN75*AO75 -> 441.6765044 | AQ75: =AP75/'DNSP Inputs O & M'!$F$25*(AN65+AN66)/AN65*0.8 -> 132.5029513 | AU75: ='DNSP Inputs O & M'!$G$14 -> 40.31593641 | AV75: 1 | AW75: ='DNSP Inputs O & M'!$G$17 -> 8 | AX75: =AU75*AV75*AW75 -> 322.5274913 | AY75: =AX75/'DNSP Inputs O & M'!$G$25*(AV65+AV66)/AV65*0.8 -> 96.75824738 | BB75: ='DNSP Inputs O & M'!$G$15 -> 51.83477538 | BC75: 1 | BD75: ='DNSP Inputs O & M'!$G$17 -> 8 | BE75: =BB75*BC75*BD75 -> 414.678203 | BF75: =BE75/'DNSP Inputs O & M'!$G$25*(BC65+BC66)/BC65*0.8 -> 124.4034609 | BJ75: ='DNSP Inputs O & M'!$H$14 -> 39.34603927 | BK75: 1 | BL75: ='DNSP Inputs O & M'!$H$17 -> 8 | BM75: =BJ75*BK75*BL75 -> 314.7683141 | BN75: =BM75/'DNSP Inputs O & M'!$H$25*(BK65+BK66)/BK65*0.8 -> 94.43049424 | BQ75: ='DNSP Inputs O & M'!$H$15 -> 50.58776477 | BR75: 1 | BS75: ='DNSP Inputs O & M'!$H$17 -> 8 | BT75: =BQ75*BR75*BS75 -> 404.7021182 | BU75: =BT75/'DNSP Inputs O & M'!$H$25*(BR65+BR66)/BR65*0.8 -> 121.4106355
A76: Labour - repair of faults
A77: Crew costs | B77: ='DNSP Inputs O & M'!$D$12 -> 90.43467502 | C77: ='DNSP Inputs O & M'!$D$34 -> 2 | D77: ='DNSP Inputs O & M'!$D$17 -> 8 | E77: =B77*C77*D77 -> 1446.9548 | F77: =(E77+E78)/'DNSP Inputs O & M'!$D$37 -> 177.3200103 | G77: =F77*D54 -> 11.34848066 | I77: ='DNSP Inputs O & M'!$D$12 -> 90.43467502 | J77: ='DNSP Inputs O & M'!$D$34 -> 2 | K77: ='DNSP Inputs O & M'!$D$17 -> 8 | L77: =I77*J77*K77 -> 1446.9548 | M77: =(L77+L78)/'DNSP Inputs O & M'!$D$38 -> 207.3792275 | N77: =M77*D54 -> 13.27227056 | Q77: ='DNSP Inputs O & M'!$E$12 -> 91.6533557 | R77: ='DNSP Inputs O & M'!$E$34 -> 2 | S77: ='DNSP Inputs O & M'!$E$17 -> 8 | T77: =Q77*R77*S77 -> 1466.453691 | U77: =(T77+T78)/'DNSP Inputs O & M'!$E$37 -> 180.5163109 | V77: =U77*S54 -> 11.5530439 | X77: ='DNSP Inputs O & M'!$E$12 -> 91.6533557 | Y77: ='DNSP Inputs O & M'!$E$34 -> 2 | Z77: ='DNSP Inputs O & M'!$E$17 -> 8 | AA77: =X77*Y77*Z77 -> 1466.453691 | AB77: =(AA77+AA78)/'DNSP Inputs O & M'!$E$38 -> 211.3263587 | AC77: =AB77*S54 -> 13.52488696 | AF77: ='DNSP Inputs O & M'!$F$12 -> 93.26244924 | AG77: ='DNSP Inputs O & M'!$F$34 -> 2 | AH77: ='DNSP Inputs O & M'!$F$17 -> 8 | AI77: =AF77*AG77*AH77 -> 1492.199188 | AJ77: =(AI77+AI78)/'DNSP Inputs O & M'!$F$37 -> 183.5725358 | AK77: =AJ77*AH54 -> 11.74864229 | AM77: ='DNSP Inputs O & M'!$F$12 -> 93.26244924 | AN77: ='DNSP Inputs O & M'!$F$34 -> 2 | AO77: ='DNSP Inputs O & M'!$F$17 -> 8 | AP77: =AM77*AN77*AO77 -> 1492.199188 | AQ77: =(AP77+AP78)/'DNSP Inputs O & M'!$F$38 -> 214.8750769 | AR77: =AQ77*AH54 -> 13.75200492 | AU77: ='DNSP Inputs O & M'!$G$12 -> 95.23112666 | AV77: ='DNSP Inputs O & M'!$G$34 -> 2 | AW77: ='DNSP Inputs O & M'!$G$17 -> 8 | AX77: =AU77*AV77*AW77 -> 1523.698027 | AY77: =(AX77+AX78)/'DNSP Inputs O & M'!$G$37 -> 184.6225518 | AZ77: =AY77*AW54 -> 11.81584331 | BB77: ='DNSP Inputs O & M'!$G$12 -> 95.23112666 | BC77: ='DNSP Inputs O & M'!$G$34 -> 2 | BD77: ='DNSP Inputs O & M'!$G$17 -> 8 | BE77: =BB77*BC77*BD77 -> 1523.698027 | BF77: =(BE77+BE78)/'DNSP Inputs O & M'!$G$38 -> 215.3751366 | BG77: =BF77*AW54 -> 13.78400874 | BJ77: ='DNSP Inputs O & M'!$H$12 -> 96.95629191 | BK77: ='DNSP Inputs O & M'!$H$34 -> 2 | BL77: ='DNSP Inputs O & M'!$H$17 -> 8 | BM77: =BJ77*BK77*BL77 -> 1551.300671 | BN77: =(BM77+BM78)/'DNSP Inputs O & M'!$H$37 -> 186.6068985 | BO77: =BN77*BL54 -> 11.9428415 | BQ77: ='DNSP Inputs O & M'!$H$12 -> 96.95629191 | BR77: ='DNSP Inputs O & M'!$H$34 -> 2 | BS77: ='DNSP Inputs O & M'!$H$17 -> 8 | BT77: =BQ77*BR77*BS77 -> 1551.300671 | BU77: =(BT77+BT78)/'DNSP Inputs O & M'!$H$38 -> 217.3336432 | BV77: =BU77*BL54 -> 13.90935316
A78: Elevated platform costs | B78: ='DNSP Inputs O & M'!$D$14 -> 40.7806629 | C78: 1 | D78: ='DNSP Inputs O & M'!$D$17 -> 8 | E78: =B78*C78*D78 -> 326.2453032 | I78: ='DNSP Inputs O & M'!$D$15 -> 52.43228087 | J78: 1 | K78: ='DNSP Inputs O & M'!$D$17 -> 8 | L78: =I78*J78*K78 -> 419.4582469 | Q78: ='DNSP Inputs O & M'!$E$14 -> 42.33867721 | R78: 1 | S78: ='DNSP Inputs O & M'!$E$17 -> 8 | T78: =Q78*R78*S78 -> 338.7094176 | X78: ='DNSP Inputs O & M'!$E$15 -> 54.43544212 | Y78: 1 | Z78: ='DNSP Inputs O & M'!$E$17 -> 8 | AA78: =X78*Y78*Z78 -> 435.483537 | AF78: ='DNSP Inputs O & M'!$F$14 -> 42.94077127 | AG78: 1 | AH78: ='DNSP Inputs O & M'!$F$17 -> 8 | AI78: =AF78*AG78*AH78 -> 343.5261701 | AM78: ='DNSP Inputs O & M'!$F$15 -> 55.20956306 | AN78: 1 | AO78: ='DNSP Inputs O & M'!$F$17 -> 8 | AP78: =AM78*AN78*AO78 -> 441.6765044 | AU78: ='DNSP Inputs O & M'!$G$14 -> 40.31593641 | AV78: 1 | AW78: ='DNSP Inputs O & M'!$G$17 -> 8 | AX78: =AU78*AV78*AW78 -> 322.5274913 | BB78: ='DNSP Inputs O & M'!$G$15 -> 51.83477538 | BC78: 1 | BD78: ='DNSP Inputs O & M'!$G$17 -> 8 | BE78: =BB78*BC78*BD78 -> 414.678203 | BJ78: ='DNSP Inputs O & M'!$H$14 -> 39.34603927 | BK78: 1 | BL78: ='DNSP Inputs O & M'!$H$17 -> 8 | BM78: =BJ78*BK78*BL78 -> 314.7683141 | BQ78: ='DNSP Inputs O & M'!$H$15 -> 50.58776477 | BR78: 1 | BS78: ='DNSP Inputs O & M'!$H$17 -> 8 | BT78: =BQ78*BR78*BS78 -> 404.7021182
A79: Other Maintenance and Repair costs | G79: ='DNSP Inputs O & M'!$D$49 -> 0 | N79: ='DNSP Inputs O & M'!$D$49 -> 0 | V79: ='DNSP Inputs O & M'!$E$49 -> 0 | AC79: ='DNSP Inputs O & M'!$E$49 -> 0 | AK79: ='DNSP Inputs O & M'!$F$49 -> 0 | AR79: ='DNSP Inputs O & M'!$F$49 -> 0 | AZ79: ='DNSP Inputs O & M'!$G$49 -> 0 | BG79: ='DNSP Inputs O & M'!$G$49 -> 0 | BO79: ='DNSP Inputs O & M'!$H$49 -> 0 | BV79: ='DNSP Inputs O & M'!$H$49 -> 0
A81: Overheads | B81: ='DNSP Inputs O & M'!$D$18 -> 0.25 | G81: =B81*SUM(G65:G79) -> 6.680894263 | I81: ='DNSP Inputs O & M'!$D$18 -> 0.25 | N81: =I81*SUM(N65:N79) -> 7.750839017 | Q81: ='DNSP Inputs O & M'!$E$18 -> 0.25 | V81: =Q81*SUM(V65:V79) -> 6.837598936 | X81: ='DNSP Inputs O & M'!$E$18 -> 0.25 | AC81: =X81*SUM(AC65:AC79) -> 7.934552828 | AF81: ='DNSP Inputs O & M'!$F$18 -> 0.25 | AK81: =AF81*SUM(AK65:AK79) -> 6.948305371 | AM81: ='DNSP Inputs O & M'!$F$18 -> 0.25 | AR81: =AM81*SUM(AR65:AR79) -> 8.06275461 | AU81: ='DNSP Inputs O & M'!$G$18 -> 0.25 | AZ81: =AU81*SUM(AZ65:AZ79) -> 6.861508025 | BB81: ='DNSP Inputs O & M'!$G$18 -> 0.25 | BG81: =BB81*SUM(BG65:BG79) -> 7.955393832 | BJ81: ='DNSP Inputs O & M'!$H$18 -> 0.25 | BO81: =BJ81*SUM(BO65:BO79) -> 6.873396953 | BQ81: ='DNSP Inputs O & M'!$H$18 -> 0.25 | BV81: =BQ81*SUM(BV65:BV79) -> 7.96587138
G83: =SUM(G65,G69,G74,G77,G79,G81) -> 33.40447131 | N83: =SUM(N65,N69,N74,N77,N79,N81) -> 38.75419508 | V83: =SUM(V65,V69,V74,V77,V79,V81) -> 34.18799468 | AC83: =SUM(AC65,AC69,AC74,AC77,AC79,AC81) -> 39.67276414 | AK83: =SUM(AK65,AK69,AK74,AK77,AK79,AK81) -> 34.74152686 | AR83: =SUM(AR65,AR69,AR74,AR77,AR79,AR81) -> 40.31377305 | AZ83: =SUM(AZ65,AZ69,AZ74,AZ77,AZ79,AZ81) -> 34.30754013 | BG83: =SUM(BG65,BG69,BG74,BG77,BG79,BG81) -> 39.77696916 | BO83: =SUM(BO65,BO69,BO74,BO77,BO79,BO81) -> 34.36698476 | BV83: =SUM(BV65,BV69,BV74,BV77,BV79,BV81) -> 39.8293569
A85: Dedicated poles - inspection
A86: Crew costs | B86: ='DNSP Inputs O & M'!$D$12 -> 90.43467502 | C86: 1 | D86: ='DNSP Inputs O & M'!$D$17 -> 8 | E86: =B86*C86*D86 -> 723.4774001 | F86: =(E86+E87+E88)/'DNSP Inputs O & M'!$D$121 -> 204.172586 | G86: =F86/'DNSP Inputs O & M'!$D$122 -> 2.722301146 | I86: ='DNSP Inputs O & M'!$D$12 -> 90.43467502 | J86: 1 | K86: ='DNSP Inputs O & M'!$D$17 -> 8 | L86: =I86*J86*K86 -> 723.4774001 | M86: =(L86+L87+L88)/'DNSP Inputs O & M'!$D$121 -> 204.172586 | N86: =M86/'DNSP Inputs O & M'!$D$122 -> 2.722301146 | Q86: ='DNSP Inputs O & M'!$E$12 -> 91.6533557 | R86: 1 | S86: ='DNSP Inputs O & M'!$E$17 -> 8 | T86: =Q86*R86*S86 -> 733.2268456 | U86: =(T86+T87+T88)/'DNSP Inputs O & M'!$E$121 -> 207.5002412 | V86: =U86/'DNSP Inputs O & M'!$E$122 -> 2.766669883 | X86: ='DNSP Inputs O & M'!$E$12 -> 91.6533557 | Y86: 1 | Z86: ='DNSP Inputs O & M'!$E$17 -> 8 | AA86: =X86*Y86*Z86 -> 733.2268456 | AB86: =(AA86+AA87+AA88)/'DNSP Inputs O & M'!$E$121 -> 207.5002412 | AC86: =AB86/'DNSP Inputs O & M'!$E$122 -> 2.766669883 | AF86: ='DNSP Inputs O & M'!$F$12 -> 93.26244924 | AG86: 1 | AH86: ='DNSP Inputs O & M'!$F$17 -> 8 | AI86: =AF86*AG86*AH86 -> 746.0995939 | AJ86: =(AI86+AI87+AI88)/'DNSP Inputs O & M'!$F$121 -> 211.0624821 | AK86: =AJ86/'DNSP Inputs O & M'!$F$122 -> 2.814166427 | AM86: ='DNSP Inputs O & M'!$F$12 -> 93.26244924 | AN86: 1 | AO86: ='DNSP Inputs O & M'!$F$17 -> 8 | AP86: =AM86*AN86*AO86 -> 746.0995939 | AQ86: =(AP86+AP87+AP88)/'DNSP Inputs O & M'!$F$121 -> 211.0624821 | AR86: =AQ86/'DNSP Inputs O & M'!$F$122 -> 2.814166427 | AU86: ='DNSP Inputs O & M'!$G$12 -> 95.23112666 | AV86: 1 | AW86: ='DNSP Inputs O & M'!$G$17 -> 8 | AX86: =AU86*AV86*AW86 -> 761.8490133 | AY86: =(AX86+AX87+AX88)/'DNSP Inputs O & M'!$G$121 -> 213.4999313 | AZ86: =AY86/'DNSP Inputs O & M'!$G$122 -> 2.84666575 | BB86: ='DNSP Inputs O & M'!$G$12 -> 95.23112666 | BC86: 1 | BD86: ='DNSP Inputs O & M'!$G$17 -> 8 | BE86: =BB86*BC86*BD86 -> 761.8490133 | BF86: =(BE86+BE87+BE88)/'DNSP Inputs O & M'!$G$121 -> 213.4999313 | BG86: =BF86/'DNSP Inputs O & M'!$G$122 -> 2.84666575 | BJ86: ='DNSP Inputs O & M'!$H$12 -> 96.95629191 | BK86: 1 | BL86: ='DNSP Inputs O & M'!$H$17 -> 8 | BM86: =BJ86*BK86*BL86 -> 775.6503353 | BN86: =(BM86+BM87+BM88)/'DNSP Inputs O & M'!$H$121 -> 216.3960348 | BO86: =BN86/'DNSP Inputs O & M'!$H$122 -> 2.885280464 | BQ86: ='DNSP Inputs O & M'!$H$12 -> 96.95629191 | BR86: 1 | BS86: ='DNSP Inputs O & M'!$H$17 -> 8 | BT86: =BQ86*BR86*BS86 -> 775.6503353 | BU86: =(BT86+BT87+BT88)/'DNSP Inputs O & M'!$H$121 -> 216.3960348 | BV86: =BU86/'DNSP Inputs O & M'!$H$122 -> 2.885280464
A87: Vehicle costs | B87: ='DNSP Inputs O & M'!$D$16 -> 11.65161797 | C87: 1 | D87: ='DNSP Inputs O & M'!$D$17 -> 8 | E87: =B87*C87*D87 -> 93.21294377 | I87: ='DNSP Inputs O & M'!$D$16 -> 11.65161797 | J87: 1 | K87: ='DNSP Inputs O & M'!$D$17 -> 8 | L87: =I87*J87*K87 -> 93.21294377 | Q87: ='DNSP Inputs O & M'!$E$16 -> 12.09676492 | R87: 1 | S87: ='DNSP Inputs O & M'!$E$17 -> 8 | T87: =Q87*R87*S87 -> 96.77411933 | X87: ='DNSP Inputs O & M'!$E$16 -> 12.09676492 | Y87: 1 | Z87: ='DNSP Inputs O & M'!$E$17 -> 8 | AA87: =X87*Y87*Z87 -> 96.77411933 | AF87: ='DNSP Inputs O & M'!$F$16 -> 12.26879179 | AG87: 1 | AH87: ='DNSP Inputs O & M'!$F$17 -> 8 | AI87: =AF87*AG87*AH87 -> 98.15033432 | AM87: ='DNSP Inputs O & M'!$F$16 -> 12.26879179 | AN87: 1 | AO87: ='DNSP Inputs O & M'!$F$17 -> 8 | AP87: =AM87*AN87*AO87 -> 98.15033432 | AU87: ='DNSP Inputs O & M'!$G$16 -> 11.51883897 | AV87: 1 | AW87: ='DNSP Inputs O & M'!$G$17 -> 8 | AX87: =AU87*AV87*AW87 -> 92.15071179 | BB87: ='DNSP Inputs O & M'!$G$16 -> 11.51883897 | BC87: 1 | BD87: ='DNSP Inputs O & M'!$G$17 -> 8 | BE87: =BB87*BC87*BD87 -> 92.15071179 | BJ87: ='DNSP Inputs O & M'!$H$16 -> 11.2417255 | BK87: 1 | BL87: ='DNSP Inputs O & M'!$H$17 -> 8 | BM87: =BJ87*BK87*BL87 -> 89.93380404 | BQ87: ='DNSP Inputs O & M'!$H$16 -> 11.2417255 | BR87: 1 | BS87: ='DNSP Inputs O & M'!$H$17 -> 8 | BT87: =BQ87*BR87*BS87 -> 89.93380404
A88: Overheads | B88: ='DNSP Inputs O & M'!$D$18 -> 0.25 | E88: =B88*(E86+E87) -> 204.172586 | I88: ='DNSP Inputs O & M'!$D$18 -> 0.25 | L88: =I88*(L86+L87) -> 204.172586 | Q88: ='DNSP Inputs O & M'!$E$18 -> 0.25 | T88: =Q88*(T86+T87) -> 207.5002412 | X88: ='DNSP Inputs O & M'!$E$18 -> 0.25 | AA88: =X88*(AA86+AA87) -> 207.5002412 | AF88: ='DNSP Inputs O & M'!$F$18 -> 0.25 | AI88: =AF88*(AI86+AI87) -> 211.0624821 | AM88: ='DNSP Inputs O & M'!$F$18 -> 0.25 | AP88: =AM88*(AP86+AP87) -> 211.0624821 | AU88: ='DNSP Inputs O & M'!$G$18 -> 0.25 | AX88: =AU88*(AX86+AX87) -> 213.4999313 | BB88: ='DNSP Inputs O & M'!$G$18 -> 0.25 | BE88: =BB88*(BE86+BE87) -> 213.4999313 | BJ88: ='DNSP Inputs O & M'!$H$18 -> 0.25 | BM88: =BJ88*(BM86+BM87) -> 216.3960348 | BQ88: ='DNSP Inputs O & M'!$H$18 -> 0.25 | BT88: =BQ88*(BT86+BT87) -> 216.3960348
A93: Sodium High Pressure 150 Watt Standard Light Type - Cost build-up
A95: Addiitonal assumptions
A96: Overheads are applied to material and labour components
A97: All costs and charges are exclusive of GST
B99: Urban | I99: Rural | Q99: Urban | X99: Rural | AF99: Urban | AM99: Rural | AU99: Urban | BB99: Rural | BJ99: Urban | BQ99: Rural
B101: Unit rate | C101: Number | D101: Hours | E101: Cost | F101: Annualised | G101: Annualised | I101: Unit rate | J101: Number | K101: Hours | L101: Cost | M101: Annualised | N101: Annualised | Q101: Unit rate | R101: Number | S101: Hours | T101: Cost | U101: Annualised | V101: Annualised | X101: Unit rate | Y101: Number | Z101: Hours | AA101: Cost | AB101: Annualised | AC101: Annualised | AF101: Unit rate | AG101: Number | AH101: Hours | AI101: Cost | AJ101: Annualised | AK101: Annualised | AM101: Unit rate | AN101: Number | AO101: Hours | AP101: Cost | AQ101: Annualised | AR101: Annualised | AU101: Unit rate | AV101: Number | AW101: Hours | AX101: Cost | AY101: Annualised | AZ101: Annualised | BB101: Unit rate | BC101: Number | BD101: Hours | BE101: Cost | BF101: Annualised | BG101: Annualised | BJ101: Unit rate | BK101: Number | BL101: Hours | BM101: Cost | BN101: Annualised | BO101: Annualised | BQ101: Unit rate | BR101: Number | BS101: Hours | BT101: Cost | BU101: Annualised | BV101: Annualised
F102: cost | G102: unit cost | M102: cost | N102: unit cost | U102: cost | V102: unit cost | AB102: cost | AC102: unit cost | AJ102: cost | AK102: unit cost | AQ102: cost | AR102: unit cost | AY102: cost | AZ102: unit cost | BF102: cost | BG102: unit cost | BN102: cost | BO102: unit cost | BU102: cost | BV102: unit cost
A103: S-HP 150
A104: Patrols and repairs
A105: Materials
A106: Lamp | B106: ='DNSP Inputs O & M'!$D$65 -> 41.17407206 | C106: ='DNSP Inputs O & M'!$D$72 -> 8 | E106: =B106*C106 -> 329.3925765 | F106: =(E106+E107+E108)/'DNSP Inputs O & M'!$D$72 -> 54.84685393 | G106: =F106/'DNSP Inputs O & M'!$D$61 -> 10.96937079 | I106: ='DNSP Inputs O & M'!$D$65*(1+'DNSP Inputs O & M'!$D$11) -> 43.23277566 | J106: ='DNSP Inputs O & M'!$D$73 -> 7 | L106: =I106*J106 -> 302.6294296 | M106: =(L106+L107+L108)/'DNSP Inputs O & M'!$D$73 -> 57.58919662 | N106: =M106/'DNSP Inputs O & M'!$D$61 -> 11.51783932 | Q106: ='DNSP Inputs O & M'!$E$65 -> 42.74711646 | R106: ='DNSP Inputs O & M'!$E$72 -> 8 | T106: =Q106*R106 -> 341.9769316 | U106: =(T106+T107+T108)/'DNSP Inputs O & M'!$E$72 -> 56.9422633 | V106: =U106/'DNSP Inputs O & M'!$E$61 -> 11.38845266 | X106: ='DNSP Inputs O & M'!$E$65*(1+'DNSP Inputs O & M'!$E$11) -> 44.88447228 | Y106: ='DNSP Inputs O & M'!$E$73 -> 7 | AA106: =X106*Y106 -> 314.1913059 | AB106: =(AA106+AA107+AA108)/'DNSP Inputs O & M'!$E$73 -> 59.78937646 | AC106: =AB106/'DNSP Inputs O & M'!$E$61 -> 11.95787529 | AF106: ='DNSP Inputs O & M'!$F$65 -> 43.35501889 | AG106: ='DNSP Inputs O & M'!$F$72 -> 8 | AI106: =AF106*AG106 -> 346.8401511 | AJ106: =(AI106+AI107+AI108)/'DNSP Inputs O & M'!$F$72 -> 57.75203348 | AK106: =AJ106/'DNSP Inputs O & M'!$F$61 -> 11.5504067 | AM106: ='DNSP Inputs O & M'!$F$65*(1+'DNSP Inputs O & M'!$F$11) -> 45.52276983 | AN106: ='DNSP Inputs O & M'!$F$73 -> 7 | AP106: =AM106*AN106 -> 318.6593888 | AQ106: =(AP106+AP107+AP108)/'DNSP Inputs O & M'!$F$73 -> 60.63963516 | AR106: =AQ106/'DNSP Inputs O & M'!$F$61 -> 12.12792703 | AU106: ='DNSP Inputs O & M'!$G$65 -> 40.70486237 | AV106: ='DNSP Inputs O & M'!$G$72 -> 8 | AX106: =AU106*AV106 -> 325.638899 | AY106: =(AX106+AX107+AX108)/'DNSP Inputs O & M'!$G$72 -> 54.22183255 | AZ106: =AY106/'DNSP Inputs O & M'!$G$61 -> 10.84436651 | BB106: ='DNSP Inputs O & M'!$G$65*(1+'DNSP Inputs O & M'!$G$11) -> 42.74010549 | BC106: ='DNSP Inputs O & M'!$G$73 -> 7 | BE106: =BB106*BC106 -> 299.1807384 | BF106: =(BE106+BE107+BE108)/'DNSP Inputs O & M'!$G$73 -> 56.93292418 | BG106: =BF106/'DNSP Inputs O & M'!$G$61 -> 11.38658484 | BJ106: ='DNSP Inputs O & M'!$H$65 -> 39.72560868 | BK106: ='DNSP Inputs O & M'!$H$72 -> 8 | BM106: =BJ106*BK106 -> 317.8048694 | BN106: =(BM106+BM107+BM108)/'DNSP Inputs O & M'!$H$72 -> 52.91739552 | BO106: =BN106/'DNSP Inputs O & M'!$H$61 -> 10.5834791 | BQ106: ='DNSP Inputs O & M'!$H$65*(1+'DNSP Inputs O & M'!$H$11) -> 41.71188911 | BR106: ='DNSP Inputs O & M'!$H$73 -> 7 | BT106: =BQ106*BR106 -> 291.9832238 | BU106: =(BT106+BT107+BT108)/'DNSP Inputs O & M'!$H$73 -> 55.5632653 | BV106: =BU106/'DNSP Inputs O & M'!$H$61 -> 11.11265306
A107: PE cell | B107: ='DNSP Inputs O & M'!$D$66 -> 22.3623175 | C107: =C106*'DNSP Inputs O & M'!$D$61/'DNSP Inputs O & M'!$D$62 -> 4 | E107: =B107*C107 -> 89.44927 | I107: ='DNSP Inputs O & M'!$D$66*(1+'DNSP Inputs O & M'!$D$11) -> 23.48043338 | J107: =J106*'DNSP Inputs O & M'!$D$61/'DNSP Inputs O & M'!$D$62 -> 3.5 | L107: =I107*J107 -> 82.18151682 | Q107: ='DNSP Inputs O & M'!$E$66 -> 23.21666385 | R107: =R106*'DNSP Inputs O & M'!$E$61/'DNSP Inputs O & M'!$E$62 -> 4 | T107: =Q107*R107 -> 92.86665542 | X107: ='DNSP Inputs O & M'!$E$66*(1+'DNSP Inputs O & M'!$E$11) -> 24.37749705 | Y107: =Y106*'DNSP Inputs O & M'!$E$61/'DNSP Inputs O & M'!$E$62 -> 3.5 | AA107: =X107*Y107 -> 85.32123966 | AF107: ='DNSP Inputs O & M'!$F$66 -> 23.54682569 | AG107: =AG106*'DNSP Inputs O & M'!$F$61/'DNSP Inputs O & M'!$F$62 -> 4 | AI107: =AF107*AG107 -> 94.18730276 | AM107: ='DNSP Inputs O & M'!$F$66*(1+'DNSP Inputs O & M'!$F$11) -> 24.72416697 | AN107: =AN106*'DNSP Inputs O & M'!$F$61/'DNSP Inputs O & M'!$F$62 -> 3.5 | AP107: =AM107*AN107 -> 86.53458441 | AU107: ='DNSP Inputs O & M'!$G$66 -> 22.10748198 | AV107: =AV106*'DNSP Inputs O & M'!$G$61/'DNSP Inputs O & M'!$G$62 -> 4 | AX107: =AU107*AV107 -> 88.42992793 | BB107: ='DNSP Inputs O & M'!$G$66*(1+'DNSP Inputs O & M'!$G$11) -> 23.21285608 | BC107: =BC106*'DNSP Inputs O & M'!$G$61/'DNSP Inputs O & M'!$G$62 -> 3.5 | BE107: =BB107*BC107 -> 81.24499629 | BJ107: ='DNSP Inputs O & M'!$H$66 -> 21.57563315 | BK107: =BK106*'DNSP Inputs O & M'!$H$61/'DNSP Inputs O & M'!$H$62 -> 4 | BM107: =BJ107*BK107 -> 86.30253262 | BQ107: ='DNSP Inputs O & M'!$H$66*(1+'DNSP Inputs O & M'!$H$11) -> 22.65441481 | BR107: =BR106*'DNSP Inputs O & M'!$H$61/'DNSP Inputs O & M'!$H$62 -> 3.5 | BT107: =BQ107*BR107 -> 79.29045184
A108: Miscellaneous | B108: ='DNSP Inputs O & M'!$D$67 -> 2.49162312 | C108: ='DNSP Inputs O & M'!$D$72 -> 8 | E108: =B108*C108 -> 19.93298496 | I108: ='DNSP Inputs O & M'!$D$67*(1+'DNSP Inputs O & M'!$D$11) -> 2.616204276 | J108: ='DNSP Inputs O & M'!$D$73 -> 7 | L108: =I108*J108 -> 18.31342993 | Q108: ='DNSP Inputs O & M'!$E$67 -> 2.586814914 | R108: ='DNSP Inputs O & M'!$E$72 -> 8 | T108: =Q108*R108 -> 20.69451931 | X108: ='DNSP Inputs O & M'!$E$67*(1+'DNSP Inputs O & M'!$E$11) -> 2.71615566 | Y108: ='DNSP Inputs O & M'!$E$73 -> 7 | AA108: =X108*Y108 -> 19.01308962 | AF108: ='DNSP Inputs O & M'!$F$67 -> 2.623601748 | AG108: ='DNSP Inputs O & M'!$F$72 -> 8 | AI108: =AF108*AG108 -> 20.98881399 | AM108: ='DNSP Inputs O & M'!$F$67*(1+'DNSP Inputs O & M'!$F$11) -> 2.754781836 | AN108: ='DNSP Inputs O & M'!$F$73 -> 7 | AP108: =AM108*AN108 -> 19.28347285 | AU108: ='DNSP Inputs O & M'!$G$67 -> 2.46322919 | AV108: ='DNSP Inputs O & M'!$G$72 -> 8 | AX108: =AU108*AV108 -> 19.70583352 | BB108: ='DNSP Inputs O & M'!$G$67*(1+'DNSP Inputs O & M'!$G$11) -> 2.58639065 | BC108: ='DNSP Inputs O & M'!$G$73 -> 7 | BE108: =BB108*BC108 -> 18.10473455 | BJ108: ='DNSP Inputs O & M'!$H$67 -> 2.403970268 | BK108: ='DNSP Inputs O & M'!$H$72 -> 8 | BM108: =BJ108*BK108 -> 19.23176214 | BQ108: ='DNSP Inputs O & M'!$H$67*(1+'DNSP Inputs O & M'!$H$11) -> 2.524168781 | BR108: ='DNSP Inputs O & M'!$H$73 -> 7 | BT108: =BQ108*BR108 -> 17.66918147
A109: Labour - Patrol
A110: Crew costs | B110: ='DNSP Inputs O & M'!$D$13 -> 103.9998763 | C110: ='DNSP Inputs O & M'!$D$68 -> 2 | D110: ='DNSP Inputs O & M'!$D$17 -> 8 | E110: =B110*C110*D110 -> 1663.99802 | F110: =(E110+E111)/'DNSP Inputs O & M'!$D$70 -> 0.7028843856 | G110: =F110*'DNSP Inputs O & M'!$D$60 -> 2.108653157 | I110: ='DNSP Inputs O & M'!$D$13 -> 103.9998763 | J110: ='DNSP Inputs O & M'!$D$68 -> 2 | K110: ='DNSP Inputs O & M'!$D$17 -> 8 | L110: =I110*J110*K110 -> 1663.99802 | M110: =(L110+L111)/'DNSP Inputs O & M'!$D$71 -> 0.878605482 | N110: =M110*'DNSP Inputs O & M'!$D$60 -> 2.635816446 | Q110: ='DNSP Inputs O & M'!$E$13 -> 105.4013591 | R110: ='DNSP Inputs O & M'!$E$68 -> 2 | S110: ='DNSP Inputs O & M'!$E$17 -> 8 | T110: =Q110*R110*S110 -> 1686.421745 | U110: =(T110+T111)/'DNSP Inputs O & M'!$E$70 -> 0.7132783457 | V110: =U110*'DNSP Inputs O & M'!$E$60 -> 2.139835037 | X110: ='DNSP Inputs O & M'!$E$13 -> 105.4013591 | Y110: ='DNSP Inputs O & M'!$E$68 -> 2 | Z110: ='DNSP Inputs O & M'!$E$17 -> 8 | AA110: =X110*Y110*Z110 -> 1686.421745 | AB110: =(AA110+AA111)/'DNSP Inputs O & M'!$E$71 -> 0.8915979321 | AC110: =AB110*'DNSP Inputs O & M'!$E$60 -> 2.674793796 | AF110: ='DNSP Inputs O & M'!$F$13 -> 107.2518166 | AG110: ='DNSP Inputs O & M'!$F$68 -> 2 | AH110: ='DNSP Inputs O & M'!$F$17 -> 8 | AI110: =AF110*AG110*AH110 -> 1716.029066 | AJ110: =(AI110+AI111)/'DNSP Inputs O & M'!$F$70 -> 0.7256717601 | AK110: =AJ110*'DNSP Inputs O & M'!$F$60 -> 2.17701528 | AM110: ='DNSP Inputs O & M'!$F$13 -> 107.2518166 | AN110: ='DNSP Inputs O & M'!$F$68 -> 2 | AO110: ='DNSP Inputs O & M'!$F$17 -> 8 | AP110: =AM110*AN110*AO110 -> 1716.029066 | AQ110: =(AP110+AP111)/'DNSP Inputs O & M'!$F$71 -> 0.9070897002 | AR110: =AQ110*'DNSP Inputs O & M'!$F$60 -> 2.721269101 | AU110: ='DNSP Inputs O & M'!$G$13 -> 109.5157957 | AV110: ='DNSP Inputs O & M'!$G$68 -> 2 | AW110: ='DNSP Inputs O & M'!$G$17 -> 8 | AX110: =AU110*AV110*AW110 -> 1752.252731 | AY110: =(AX110+AX111)/'DNSP Inputs O & M'!$G$70 -> 0.7377613769 | AZ110: =AY110*'DNSP Inputs O & M'!$G$60 -> 2.213284131 | BB110: ='DNSP Inputs O & M'!$G$13 -> 109.5157957 | BC110: ='DNSP Inputs O & M'!$G$68 -> 2 | BD110: ='DNSP Inputs O & M'!$G$17 -> 8 | BE110: =BB110*BC110*BD110 -> 1752.252731 | BF110: =(BE110+BE111)/'DNSP Inputs O & M'!$G$71 -> 0.9222017212 | BG110: =BF110*'DNSP Inputs O & M'!$G$60 -> 2.766605164 | BJ110: ='DNSP Inputs O & M'!$H$13 -> 111.4997357 | BK110: ='DNSP Inputs O & M'!$H$68 -> 2 | BL110: ='DNSP Inputs O & M'!$H$17 -> 8 | BM110: =BJ110*BK110*BL110 -> 1783.995771 | BN110: =(BM110+BM111)/'DNSP Inputs O & M'!$H$70 -> 0.74957183 | BO110: =BN110*'DNSP Inputs O & M'!$H$60 -> 2.24871549 | BQ110: ='DNSP Inputs O & M'!$H$13 -> 111.4997357 | BR110: ='DNSP Inputs O & M'!$H$68 -> 2 | BS110: ='DNSP Inputs O & M'!$H$17 -> 8 | BT110: =BQ110*BR110*BS110 -> 1783.995771 | BU110: =(BT110+BT111)/'DNSP Inputs O & M'!$H$71 -> 0.9369647876 | BV110: =BU110*'DNSP Inputs O & M'!$H$60 -> 2.810894363
A111: Vehicle costs | B111: ='DNSP Inputs O & M'!$D$16 -> 11.65161797 | C111: 1 | D111: ='DNSP Inputs O & M'!$D$17 -> 8 | E111: =B111*C111*D111 -> 93.21294377 | I111: ='DNSP Inputs O & M'!$D$16 -> 11.65161797 | J111: 1 | K111: ='DNSP Inputs O & M'!$D$17 -> 8 | L111: =I111*J111*K111 -> 93.21294377 | Q111: ='DNSP Inputs O & M'!$E$16 -> 12.09676492 | R111: 1 | S111: ='DNSP Inputs O & M'!$E$17 -> 8 | T111: =Q111*R111*S111 -> 96.77411933 | X111: ='DNSP Inputs O & M'!$E$16 -> 12.09676492 | Y111: 1 | Z111: ='DNSP Inputs O & M'!$E$17 -> 8 | AA111: =X111*Y111*Z111 -> 96.77411933 | AF111: ='DNSP Inputs O & M'!$F$16 -> 12.26879179 | AG111: 1 | AH111: ='DNSP Inputs O & M'!$F$17 -> 8 | AI111: =AF111*AG111*AH111 -> 98.15033432 | AM111: ='DNSP Inputs O & M'!$F$16 -> 12.26879179 | AN111: 1 | AO111: ='DNSP Inputs O & M'!$F$17 -> 8 | AP111: =AM111*AN111*AO111 -> 98.15033432 | AU111: ='DNSP Inputs O & M'!$G$16 -> 11.51883897 | AV111: 1 | AW111: ='DNSP Inputs O & M'!$G$17 -> 8 | AX111: =AU111*AV111*AW111 -> 92.15071179 | BB111: ='DNSP Inputs O & M'!$G$16 -> 11.51883897 | BC111: 1 | BD111: ='DNSP Inputs O & M'!$G$17 -> 8 | BE111: =BB111*BC111*BD111 -> 92.15071179 | BJ111: ='DNSP Inputs O & M'!$H$16 -> 11.2417255 | BK111: 1 | BL111: ='DNSP Inputs O & M'!$H$17 -> 8 | BM111: =BJ111*BK111*BL111 -> 89.93380404 | BQ111: ='DNSP Inputs O & M'!$H$16 -> 11.2417255 | BR111: 1 | BS111: ='DNSP Inputs O & M'!$H$17 -> 8 | BT111: =BQ111*BR111*BS111 -> 89.93380404
A112: Labour - Repair of faults
A113: Crew costs | B113: ='DNSP Inputs O & M'!$D$12 -> 90.43467502 | C113: ='DNSP Inputs O & M'!$D$69 -> 2 | D113: ='DNSP Inputs O & M'!$D$17 -> 8 | E113: =B113*C113*D113 -> 1446.9548 | F113: =(E113+E114)/'DNSP Inputs O & M'!$D$72*(C106+C107)/C106 -> 349.9524464 | G113: =F113/'DNSP Inputs O & M'!$D$61 -> 69.99048927 | I113: ='DNSP Inputs O & M'!$D$12 -> 90.43467502 | J113: ='DNSP Inputs O & M'!$D$69 -> 2 | K113: ='DNSP Inputs O & M'!$D$17 -> 8 | L113: =I113*J113*K113 -> 1446.9548 | M113: =(L113+L114)/'DNSP Inputs O & M'!$D$73*(J106+J107)/J106 -> 399.945653 | N113: =M113/'DNSP Inputs O & M'!$D$61 -> 79.98913059 | Q113: ='DNSP Inputs O & M'!$E$12 -> 91.6533557 | R113: ='DNSP Inputs O & M'!$E$69 -> 2 | S113: ='DNSP Inputs O & M'!$E$17 -> 8 | T113: =Q113*R113*S113 -> 1466.453691 | U113: =(T113+T114)/'DNSP Inputs O & M'!$E$72*(R106+R107)/R106 -> 356.6132303 | V113: =U113/'DNSP Inputs O & M'!$E$61 -> 71.32264606 | X113: ='DNSP Inputs O & M'!$E$12 -> 91.6533557 | Y113: ='DNSP Inputs O & M'!$E$69 -> 2 | Z113: ='DNSP Inputs O & M'!$E$17 -> 8 | AA113: =X113*Y113*Z113 -> 1466.453691 | AB113: =(AA113+AA114)/'DNSP Inputs O & M'!$E$73*(Y106+Y107)/Y106 -> 407.5579775 | AC113: =AB113/'DNSP Inputs O & M'!$E$61 -> 81.51159549 | AF113: ='DNSP Inputs O & M'!$F$12 -> 93.26244924 | AG113: ='DNSP Inputs O & M'!$F$69 -> 2 | AH113: ='DNSP Inputs O & M'!$F$17 -> 8 | AI113: =AF113*AG113*AH113 -> 1492.199188 | AJ113: =(AI113+AI114)/'DNSP Inputs O & M'!$F$72*(AG106+AG107)/AG106 -> 362.6016923 | AK113: =AJ113/'DNSP Inputs O & M'!$F$61 -> 72.52033846 | AM113: ='DNSP Inputs O & M'!$F$12 -> 93.26244924 | AN113: ='DNSP Inputs O & M'!$F$69 -> 2 | AO113: ='DNSP Inputs O & M'!$F$17 -> 8 | AP113: =AM113*AN113*AO113 -> 1492.199188 | AQ113: =(AP113+AP114)/'DNSP Inputs O & M'!$F$73*(AN106+AN107)/AN106 -> 414.4019341 | AR113: =AQ113/'DNSP Inputs O & M'!$F$61 -> 82.88038681 | AU113: ='DNSP Inputs O & M'!$G$12 -> 95.23112666 | AV113: ='DNSP Inputs O & M'!$G$69 -> 2 | AW113: ='DNSP Inputs O & M'!$G$17 -> 8 | AX113: =AU113*AV113*AW113 -> 1523.698027 | AY113: =(AX113+AX114)/'DNSP Inputs O & M'!$G$72*(AV106+AV107)/AV106 -> 363.4455431 | AZ113: =AY113/'DNSP Inputs O & M'!$G$61 -> 72.68910861 | BB113: ='DNSP Inputs O & M'!$G$12 -> 95.23112666 | BC113: ='DNSP Inputs O & M'!$G$69 -> 2 | BD113: ='DNSP Inputs O & M'!$G$17 -> 8 | BE113: =BB113*BC113*BD113 -> 1523.698027 | BF113: =(BE113+BE114)/'DNSP Inputs O & M'!$G$73*(BC106+BC107)/BC106 -> 415.3663349 | BG113: =BF113/'DNSP Inputs O & M'!$G$61 -> 83.07326698 | BJ113: ='DNSP Inputs O & M'!$H$12 -> 96.95629191 | BK113: ='DNSP Inputs O & M'!$H$69 -> 2 | BL113: ='DNSP Inputs O & M'!$H$17 -> 8 | BM113: =BJ113*BK113*BL113 -> 1551.300671 | BN113: =(BM113+BM114)/'DNSP Inputs O & M'!$H$72*(BK106+BK107)/BK106 -> 366.7505229 | BO113: =BN113/'DNSP Inputs O & M'!$H$61 -> 73.35010458 | BQ113: ='DNSP Inputs O & M'!$H$12 -> 96.95629191 | BR113: ='DNSP Inputs O & M'!$H$69 -> 2 | BS113: ='DNSP Inputs O & M'!$H$17 -> 8 | BT113: =BQ113*BR113*BS113 -> 1551.300671 | BU113: =(BT113+BT114)/'DNSP Inputs O & M'!$H$73*(BR106+BR107)/BR106 -> 419.1434547 | BV113: =BU113/'DNSP Inputs O & M'!$H$61 -> 83.82869094
A114: Elevated platform vehicle costs | B114: ='DNSP Inputs O & M'!$D$15 -> 52.43228087 | C114: 1 | D114: ='DNSP Inputs O & M'!$D$17 -> 8 | E114: =B114*C114*D114 -> 419.4582469 | I114: ='DNSP Inputs O & M'!$D$15 -> 52.43228087 | J114: 1 | K114: ='DNSP Inputs O & M'!$D$17 -> 8 | L114: =I114*J114*K114 -> 419.4582469 | Q114: ='DNSP Inputs O & M'!$E$15 -> 54.43544212 | R114: 1 | S114: ='DNSP Inputs O & M'!$E$17 -> 8 | T114: =Q114*R114*S114 -> 435.483537 | X114: ='DNSP Inputs O & M'!$E$15 -> 54.43544212 | Y114: 1 | Z114: ='DNSP Inputs O & M'!$E$17 -> 8 | AA114: =X114*Y114*Z114 -> 435.483537 | AF114: ='DNSP Inputs O & M'!$F$15 -> 55.20956306 | AG114: 1 | AH114: ='DNSP Inputs O & M'!$F$17 -> 8 | AI114: =AF114*AG114*AH114 -> 441.6765044 | AM114: ='DNSP Inputs O & M'!$F$15 -> 55.20956306 | AN114: 1 | AO114: ='DNSP Inputs O & M'!$F$17 -> 8 | AP114: =AM114*AN114*AO114 -> 441.6765044 | AU114: ='DNSP Inputs O & M'!$G$15 -> 51.83477538 | AV114: 1 | AW114: ='DNSP Inputs O & M'!$G$17 -> 8 | AX114: =AU114*AV114*AW114 -> 414.678203 | BB114: ='DNSP Inputs O & M'!$G$15 -> 51.83477538 | BC114: 1 | BD114: ='DNSP Inputs O & M'!$G$17 -> 8 | BE114: =BB114*BC114*BD114 -> 414.678203 | BJ114: ='DNSP Inputs O & M'!$H$15 -> 50.58776477 | BK114: 1 | BL114: ='DNSP Inputs O & M'!$H$17 -> 8 | BM114: =BJ114*BK114*BL114 -> 404.7021182 | BQ114: ='DNSP Inputs O & M'!$H$15 -> 50.58776477 | BR114: 1 | BS114: ='DNSP Inputs O & M'!$H$17 -> 8 | BT114: =BQ114*BR114*BS114 -> 404.7021182
A116: Traffic control costs | G116: ='DNSP Inputs O & M'!$D$80 -> 17.43821386 | N116: ='DNSP Inputs O & M'!$D$81 -> 19.92938727 | V116: ='DNSP Inputs O & M'!$E$80 -> 17.72225755 | AC116: ='DNSP Inputs O & M'!$E$81 -> 20.25400863 | AK116: ='DNSP Inputs O & M'!$F$80 -> 17.98602887 | AR116: ='DNSP Inputs O & M'!$F$81 -> 20.55546157 | AZ116: ='DNSP Inputs O & M'!$G$80 -> 18.27493572 | BG116: ='DNSP Inputs O & M'!$G$81 -> 20.88564082 | BO116: ='DNSP Inputs O & M'!$H$80 -> 18.62499705 | BV116: ='DNSP Inputs O & M'!$H$81 -> 21.28571091
A118: Overheads | B118: ='DNSP Inputs O & M'!$D$18 -> 0.25 | G118: =B118*(G106+G110+G113+G116) -> 25.12668177 | I118: ='DNSP Inputs O & M'!$D$18 -> 0.25 | N118: =I118*(N106+N110+N113+N116) -> 28.51804341 | Q118: ='DNSP Inputs O & M'!$E$18 -> 0.25 | V118: =Q118*(V106+V110+V113+V116) -> 25.64329783 | X118: ='DNSP Inputs O & M'!$E$18 -> 0.25 | AC118: =X118*(AC106+AC110+AC113+AC116) -> 29.0995683 | AF118: ='DNSP Inputs O & M'!$F$18 -> 0.25 | AK118: =AF118*(AK106+AK110+AK113+AK116) -> 26.05844733 | AM118: ='DNSP Inputs O & M'!$F$18 -> 0.25 | AR118: =AM118*(AR106+AR110+AR113+AR116) -> 29.57126113 | AU118: ='DNSP Inputs O & M'!$G$18 -> 0.25 | AZ118: =AU118*(AZ106+AZ110+AZ113+AZ116) -> 26.00542374 | BB118: ='DNSP Inputs O & M'!$G$18 -> 0.25 | BG118: =BB118*(BG106+BG110+BG113+BG116) -> 29.52802445 | BJ118: ='DNSP Inputs O & M'!$H$18 -> 0.25 | BO118: =BJ118*(BO106+BO110+BO113+BO116) -> 26.20182405 | BQ118: ='DNSP Inputs O & M'!$H$18 -> 0.25 | BV118: =BQ118*(BV106+BV110+BV113+BV116) -> 29.75948732
G120: =SUM(G106,G110,G113,G116,G118) -> 125.6334088 | N120: =SUM(N106,N110,N113,N116,N118) -> 142.590217 | V120: =SUM(V106,V110,V113,V116,V118) -> 128.2164891 | AC120: =SUM(AC106,AC110,AC113,AC116,AC118) -> 145.4978415 | AK120: =SUM(AK106,AK110,AK113,AK116,AK118) -> 130.2922366 | AR120: =SUM(AR106,AR110,AR113,AR116,AR118) -> 147.8563056 | AZ120: =SUM(AZ106,AZ110,AZ113,AZ116,AZ118) -> 130.0271187 | BG120: =SUM(BG106,BG110,BG113,BG116,BG118) -> 147.6401223 | BO120: =SUM(BO106,BO110,BO113,BO116,BO118) -> 131.0091203 | BV120: =SUM(BV106,BV110,BV113,BV116,BV118) -> 148.7974366
A125: Sodium High Pressure 250 Watt Standard Light Type - Cost build-up
A127: Addiitonal assumptions
A128: Overheads are applied to material and labour components
A129: All costs and charges are exclusive of GST
B131: Urban | I131: Rural | Q131: Urban | X131: Rural | AF131: Urban | AM131: Rural | AU131: Urban | BB131: Rural | BJ131: Urban | BQ131: Rural
B133: Unit rate | C133: Number | D133: Hours | E133: Cost | F133: Annualised | G133: Annualised | I133: Unit rate | J133: Number | K133: Hours | L133: Cost | M133: Annualised | N133: Annualised | Q133: Unit rate | R133: Number | S133: Hours | T133: Cost | U133: Annualised | V133: Annualised | X133: Unit rate | Y133: Number | Z133: Hours | AA133: Cost | AB133: Annualised | AC133: Annualised | AF133: Unit rate | AG133: Number | AH133: Hours | AI133: Cost | AJ133: Annualised | AK133: Annualised | AM133: Unit rate | AN133: Number | AO133: Hours | AP133: Cost | AQ133: Annualised | AR133: Annualised | AU133: Unit rate | AV133: Number | AW133: Hours | AX133: Cost | AY133: Annualised | AZ133: Annualised | BB133: Unit rate | BC133: Number | BD133: Hours | BE133: Cost | BF133: Annualised | BG133: Annualised | BJ133: Unit rate | BK133: Number | BL133: Hours | BM133: Cost | BN133: Annualised | BO133: Annualised | BQ133: Unit rate | BR133: Number | BS133: Hours | BT133: Cost | BU133: Annualised | BV133: Annualised
F134: cost | G134: unit cost | M134: cost | N134: unit cost | U134: cost | V134: unit cost | AB134: cost | AC134: unit cost | AJ134: cost | AK134: unit cost | AQ134: cost | AR134: unit cost | AY134: cost | AZ134: unit cost | BF134: cost | BG134: unit cost | BN134: cost | BO134: unit cost | BU134: cost | BV134: unit cost
A135: S-HP 250
A136: Patrols and repairs
A137: Materials
A138: Lamp | B138: ='DNSP Inputs O & M'!$D$96 -> 41.37340191 | C138: ='DNSP Inputs O & M'!$D$72 -> 8 | E138: =B138*C138 -> 330.9872152 | F138: =(E138+E139+E140)/'DNSP Inputs O & M'!$D$72 -> 55.04618378 | G138: =F138/'DNSP Inputs O & M'!$D$61 -> 11.00923676 | I138: ='DNSP Inputs O & M'!$D$96*(1+'DNSP Inputs O & M'!$D$11) -> 43.442072 | J138: ='DNSP Inputs O & M'!$D$73 -> 7 | L138: =I138*J138 -> 304.094504 | M138: =(L138+L139+L140)/'DNSP Inputs O & M'!$D$73 -> 57.79849297 | N138: =M138/'DNSP Inputs O & M'!$D$61 -> 11.55969859 | Q138: ='DNSP Inputs O & M'!$E$96 -> 42.95406165 | R138: ='DNSP Inputs O & M'!$E$72 -> 8 | T138: =Q138*R138 -> 343.6324932 | U138: =(T138+T139+T140)/'DNSP Inputs O & M'!$E$72 -> 57.14920849 | V138: =U138/'DNSP Inputs O & M'!$E$61 -> 11.4298417 | X138: ='DNSP Inputs O & M'!$E$96*(1+'DNSP Inputs O & M'!$E$11) -> 45.10176473 | Y138: ='DNSP Inputs O & M'!$E$73 -> 7 | AA138: =X138*Y138 -> 315.7123531 | AB138: =(AA138+AA139+AA140)/'DNSP Inputs O & M'!$E$73 -> 60.00666891 | AC138: =AB138/'DNSP Inputs O & M'!$E$61 -> 12.00133378 | AF138: ='DNSP Inputs O & M'!$F$96 -> 43.56490703 | AG138: ='DNSP Inputs O & M'!$F$72 -> 8 | AI138: =AF138*AG138 -> 348.5192562 | AJ138: =(AI138+AI139+AI140)/'DNSP Inputs O & M'!$F$72 -> 57.96192162 | AK138: =AJ138/'DNSP Inputs O & M'!$F$61 -> 11.59238432 | AM138: ='DNSP Inputs O & M'!$F$96*(1+'DNSP Inputs O & M'!$F$11) -> 45.74315238 | AN138: ='DNSP Inputs O & M'!$F$73 -> 7 | AP138: =AM138*AN138 -> 320.2020667 | AQ138: =(AP138+AP139+AP140)/'DNSP Inputs O & M'!$F$73 -> 60.8600177 | AR138: =AQ138/'DNSP Inputs O & M'!$F$61 -> 12.17200354 | AU138: ='DNSP Inputs O & M'!$G$96 -> 40.90192071 | AV138: ='DNSP Inputs O & M'!$G$72 -> 8 | AX138: =AU138*AV138 -> 327.2153656 | AY138: =(AX138+AX139+AX140)/'DNSP Inputs O & M'!$G$72 -> 54.41889089 | AZ138: =AY138/'DNSP Inputs O & M'!$G$61 -> 10.88377818 | BB138: ='DNSP Inputs O & M'!$G$96*(1+'DNSP Inputs O & M'!$G$11) -> 42.94701674 | BC138: ='DNSP Inputs O & M'!$G$73 -> 7 | BE138: =BB138*BC138 -> 300.6291172 | BF138: =(BE138+BE139+BE140)/'DNSP Inputs O & M'!$G$73 -> 57.13983543 | BG138: =BF138/'DNSP Inputs O & M'!$G$61 -> 11.42796709 | BJ138: ='DNSP Inputs O & M'!$H$96 -> 39.9179263 | BK138: ='DNSP Inputs O & M'!$H$72 -> 8 | BM138: =BJ138*BK138 -> 319.3434104 | BN138: =(BM138+BM139+BM140)/'DNSP Inputs O & M'!$H$72 -> 53.10971314 | BO138: =BN138/'DNSP Inputs O & M'!$H$61 -> 10.62194263 | BQ138: ='DNSP Inputs O & M'!$H$96*(1+'DNSP Inputs O & M'!$H$11) -> 41.91382261 | BR138: ='DNSP Inputs O & M'!$H$73 -> 7 | BT138: =BQ138*BR138 -> 293.3967583 | BU138: =(BT138+BT139+BT140)/'DNSP Inputs O & M'!$H$73 -> 55.7651988 | BV138: =BU138/'DNSP Inputs O & M'!$H$61 -> 11.15303976
A139: PE cell | B139: ='DNSP Inputs O & M'!$D$97 -> 22.3623175 | C139: =C138*'DNSP Inputs O & M'!$D$61/'DNSP Inputs O & M'!$D$62 -> 4 | E139: =B139*C139 -> 89.44927 | I139: ='DNSP Inputs O & M'!$D$97*(1+'DNSP Inputs O & M'!$D$11) -> 23.48043338 | J139: =J138*'DNSP Inputs O & M'!$D$61/'DNSP Inputs O & M'!$D$62 -> 3.5 | L139: =I139*J139 -> 82.18151682 | Q139: ='DNSP Inputs O & M'!$E$97 -> 23.21666385 | R139: =R138*'DNSP Inputs O & M'!$E$61/'DNSP Inputs O & M'!$E$62 -> 4 | T139: =Q139*R139 -> 92.86665542 | X139: ='DNSP Inputs O & M'!$E$97*(1+'DNSP Inputs O & M'!$E$11) -> 24.37749705 | Y139: =Y138*'DNSP Inputs O & M'!$E$61/'DNSP Inputs O & M'!$E$62 -> 3.5 | AA139: =X139*Y139 -> 85.32123966 | AF139: ='DNSP Inputs O & M'!$F$97 -> 23.54682569 | AG139: =AG138*'DNSP Inputs O & M'!$F$61/'DNSP Inputs O & M'!$F$62 -> 4 | AI139: =AF139*AG139 -> 94.18730276 | AM139: ='DNSP Inputs O & M'!$F$97*(1+'DNSP Inputs O & M'!$F$11) -> 24.72416697 | AN139: =AN138*'DNSP Inputs O & M'!$F$61/'DNSP Inputs O & M'!$F$62 -> 3.5 | AP139: =AM139*AN139 -> 86.53458441 | AU139: ='DNSP Inputs O & M'!$G$97 -> 22.10748198 | AV139: =AV138*'DNSP Inputs O & M'!$G$61/'DNSP Inputs O & M'!$G$62 -> 4 | AX139: =AU139*AV139 -> 88.42992793 | BB139: ='DNSP Inputs O & M'!$G$97*(1+'DNSP Inputs O & M'!$G$11) -> 23.21285608 | BC139: =BC138*'DNSP Inputs O & M'!$G$61/'DNSP Inputs O & M'!$G$62 -> 3.5 | BE139: =BB139*BC139 -> 81.24499629 | BJ139: ='DNSP Inputs O & M'!$H$97 -> 21.57563315 | BK139: =BK138*'DNSP Inputs O & M'!$H$61/'DNSP Inputs O & M'!$H$62 -> 4 | BM139: =BJ139*BK139 -> 86.30253262 | BQ139: ='DNSP Inputs O & M'!$H$97*(1+'DNSP Inputs O & M'!$H$11) -> 22.65441481 | BR139: =BR138*'DNSP Inputs O & M'!$H$61/'DNSP Inputs O & M'!$H$62 -> 3.5 | BT139: =BQ139*BR139 -> 79.29045184
A140: Miscellaneous | B140: ='DNSP Inputs O & M'!$D$98 -> 2.49162312 | C140: ='DNSP Inputs O & M'!$D$72 -> 8 | E140: =B140*C140 -> 19.93298496 | I140: ='DNSP Inputs O & M'!$D$98*(1+'DNSP Inputs O & M'!$D$11) -> 2.616204276 | J140: ='DNSP Inputs O & M'!$D$73 -> 7 | L140: =I140*J140 -> 18.31342993 | Q140: ='DNSP Inputs O & M'!$E$98 -> 2.586814914 | R140: ='DNSP Inputs O & M'!$E$72 -> 8 | T140: =Q140*R140 -> 20.69451931 | X140: ='DNSP Inputs O & M'!$E$98*(1+'DNSP Inputs O & M'!$E$11) -> 2.71615566 | Y140: ='DNSP Inputs O & M'!$E$73 -> 7 | AA140: =X140*Y140 -> 19.01308962 | AF140: ='DNSP Inputs O & M'!$F$98 -> 2.623601748 | AG140: ='DNSP Inputs O & M'!$F$72 -> 8 | AI140: =AF140*AG140 -> 20.98881399 | AM140: ='DNSP Inputs O & M'!$F$98*(1+'DNSP Inputs O & M'!$F$11) -> 2.754781836 | AN140: ='DNSP Inputs O & M'!$F$73 -> 7 | AP140: =AM140*AN140 -> 19.28347285 | AU140: ='DNSP Inputs O & M'!$G$98 -> 2.46322919 | AV140: ='DNSP Inputs O & M'!$G$72 -> 8 | AX140: =AU140*AV140 -> 19.70583352 | BB140: ='DNSP Inputs O & M'!$G$98*(1+'DNSP Inputs O & M'!$G$11) -> 2.58639065 | BC140: ='DNSP Inputs O & M'!$G$73 -> 7 | BE140: =BB140*BC140 -> 18.10473455 | BJ140: ='DNSP Inputs O & M'!$H$98 -> 2.403970268 | BK140: ='DNSP Inputs O & M'!$H$72 -> 8 | BM140: =BJ140*BK140 -> 19.23176214 | BQ140: ='DNSP Inputs O & M'!$H$98*(1+'DNSP Inputs O & M'!$H$11) -> 2.524168781 | BR140: ='DNSP Inputs O & M'!$H$73 -> 7 | BT140: =BQ140*BR140 -> 17.66918147
A141: Labour - Patrol
A142: Crew costs | B142: ='DNSP Inputs O & M'!$D$13 -> 103.9998763 | C142: ='DNSP Inputs O & M'!$D$68 -> 2 | D142: ='DNSP Inputs O & M'!$D$17 -> 8 | E142: =B142*C142*D142 -> 1663.99802 | F142: =(E142+E143)/'DNSP Inputs O & M'!$D$70 -> 0.7028843856 | G142: =F142*'DNSP Inputs O & M'!$D$60 -> 2.108653157 | I142: ='DNSP Inputs O & M'!$D$13 -> 103.9998763 | J142: ='DNSP Inputs O & M'!$D$68 -> 2 | K142: ='DNSP Inputs O & M'!$D$17 -> 8 | L142: =I142*J142*K142 -> 1663.99802 | M142: =(L142+L143)/'DNSP Inputs O & M'!$D$71 -> 0.878605482 | N142: =M142*'DNSP Inputs O & M'!$D$60 -> 2.635816446 | Q142: ='DNSP Inputs O & M'!$E$13 -> 105.4013591 | R142: ='DNSP Inputs O & M'!$E$68 -> 2 | S142: ='DNSP Inputs O & M'!$E$17 -> 8 | T142: =Q142*R142*S142 -> 1686.421745 | U142: =(T142+T143)/'DNSP Inputs O & M'!$E$70 -> 0.7132783457 | V142: =U142*'DNSP Inputs O & M'!$E$60 -> 2.139835037 | X142: ='DNSP Inputs O & M'!$E$13 -> 105.4013591 | Y142: ='DNSP Inputs O & M'!$E$68 -> 2 | Z142: ='DNSP Inputs O & M'!$E$17 -> 8 | AA142: =X142*Y142*Z142 -> 1686.421745 | AB142: =(AA142+AA143)/'DNSP Inputs O & M'!$E$71 -> 0.8915979321 | AC142: =AB142*'DNSP Inputs O & M'!$E$60 -> 2.674793796 | AF142: ='DNSP Inputs O & M'!$F$13 -> 107.2518166 | AG142: ='DNSP Inputs O & M'!$F$68 -> 2 | AH142: ='DNSP Inputs O & M'!$F$17 -> 8 | AI142: =AF142*AG142*AH142 -> 1716.029066 | AJ142: =(AI142+AI143)/'DNSP Inputs O & M'!$F$70 -> 0.7256717601 | AK142: =AJ142*'DNSP Inputs O & M'!$F$60 -> 2.17701528 | AM142: ='DNSP Inputs O & M'!$F$13 -> 107.2518166 | AN142: ='DNSP Inputs O & M'!$F$68 -> 2 | AO142: ='DNSP Inputs O & M'!$F$17 -> 8 | AP142: =AM142*AN142*AO142 -> 1716.029066 | AQ142: =(AP142+AP143)/'DNSP Inputs O & M'!$F$71 -> 0.9070897002 | AR142: =AQ142*'DNSP Inputs O & M'!$F$60 -> 2.721269101 | AU142: ='DNSP Inputs O & M'!$G$13 -> 109.5157957 | AV142: ='DNSP Inputs O & M'!$G$68 -> 2 | AW142: ='DNSP Inputs O & M'!$G$17 -> 8 | AX142: =AU142*AV142*AW142 -> 1752.252731 | AY142: =(AX142+AX143)/'DNSP Inputs O & M'!$G$70 -> 0.7377613769 | AZ142: =AY142*'DNSP Inputs O & M'!$G$60 -> 2.213284131 | BB142: ='DNSP Inputs O & M'!$G$13 -> 109.5157957 | BC142: ='DNSP Inputs O & M'!$G$68 -> 2 | BD142: ='DNSP Inputs O & M'!$G$17 -> 8 | BE142: =BB142*BC142*BD142 -> 1752.252731 | BF142: =(BE142+BE143)/'DNSP Inputs O & M'!$G$71 -> 0.9222017212 | BG142: =BF142*'DNSP Inputs O & M'!$G$60 -> 2.766605164 | BJ142: ='DNSP Inputs O & M'!$H$13 -> 111.4997357 | BK142: ='DNSP Inputs O & M'!$H$68 -> 2 | BL142: ='DNSP Inputs O & M'!$H$17 -> 8 | BM142: =BJ142*BK142*BL142 -> 1783.995771 | BN142: =(BM142+BM143)/'DNSP Inputs O & M'!$H$70 -> 0.74957183 | BO142: =BN142*'DNSP Inputs O & M'!$H$60 -> 2.24871549 | BQ142: ='DNSP Inputs O & M'!$H$13 -> 111.4997357 | BR142: ='DNSP Inputs O & M'!$H$68 -> 2 | BS142: ='DNSP Inputs O & M'!$H$17 -> 8 | BT142: =BQ142*BR142*BS142 -> 1783.995771 | BU142: =(BT142+BT143)/'DNSP Inputs O & M'!$H$71 -> 0.9369647876 | BV142: =BU142*'DNSP Inputs O & M'!$H$60 -> 2.810894363
A143: Vehicle costs | B143: ='DNSP Inputs O & M'!$D$16 -> 11.65161797 | C143: 1 | D143: ='DNSP Inputs O & M'!$D$17 -> 8 | E143: =B143*C143*D143 -> 93.21294377 | I143: ='DNSP Inputs O & M'!$D$16 -> 11.65161797 | J143: 1 | K143: ='DNSP Inputs O & M'!$D$17 -> 8 | L143: =I143*J143*K143 -> 93.21294377 | Q143: ='DNSP Inputs O & M'!$E$16 -> 12.09676492 | R143: 1 | S143: ='DNSP Inputs O & M'!$E$17 -> 8 | T143: =Q143*R143*S143 -> 96.77411933 | X143: ='DNSP Inputs O & M'!$E$16 -> 12.09676492 | Y143: 1 | Z143: ='DNSP Inputs O & M'!$E$17 -> 8 | AA143: =X143*Y143*Z143 -> 96.77411933 | AF143: ='DNSP Inputs O & M'!$F$16 -> 12.26879179 | AG143: 1 | AH143: ='DNSP Inputs O & M'!$F$17 -> 8 | AI143: =AF143*AG143*AH143 -> 98.15033432 | AM143: ='DNSP Inputs O & M'!$F$16 -> 12.26879179 | AN143: 1 | AO143: ='DNSP Inputs O & M'!$F$17 -> 8 | AP143: =AM143*AN143*AO143 -> 98.15033432 | AU143: ='DNSP Inputs O & M'!$G$16 -> 11.51883897 | AV143: 1 | AW143: ='DNSP Inputs O & M'!$G$17 -> 8 | AX143: =AU143*AV143*AW143 -> 92.15071179 | BB143: ='DNSP Inputs O & M'!$G$16 -> 11.51883897 | BC143: 1 | BD143: ='DNSP Inputs O & M'!$G$17 -> 8 | BE143: =BB143*BC143*BD143 -> 92.15071179 | BJ143: ='DNSP Inputs O & M'!$H$16 -> 11.2417255 | BK143: 1 | BL143: ='DNSP Inputs O & M'!$H$17 -> 8 | BM143: =BJ143*BK143*BL143 -> 89.93380404 | BQ143: ='DNSP Inputs O & M'!$H$16 -> 11.2417255 | BR143: 1 | BS143: ='DNSP Inputs O & M'!$H$17 -> 8 | BT143: =BQ143*BR143*BS143 -> 89.93380404
A144: Labour - Repair of faults
A145: Crew costs | B145: ='DNSP Inputs O & M'!$D$12 -> 90.43467502 | C145: ='DNSP Inputs O & M'!$D$69 -> 2 | D145: ='DNSP Inputs O & M'!$D$17 -> 8 | E145: =B145*C145*D145 -> 1446.9548 | F145: =(E145+E146)/'DNSP Inputs O & M'!$D$72*(C138+C139)/C138 -> 349.9524464 | G145: =F145/'DNSP Inputs O & M'!$D$61 -> 69.99048927 | I145: ='DNSP Inputs O & M'!$D$12 -> 90.43467502 | J145: ='DNSP Inputs O & M'!$D$69 -> 2 | K145: ='DNSP Inputs O & M'!$D$17 -> 8 | L145: =I145*J145*K145 -> 1446.9548 | M145: =(L145+L146)/'DNSP Inputs O & M'!$D$73*(J138+J139)/J138 -> 399.945653 | N145: =M145/'DNSP Inputs O & M'!$D$61 -> 79.98913059 | Q145: ='DNSP Inputs O & M'!$E$12 -> 91.6533557 | R145: ='DNSP Inputs O & M'!$E$69 -> 2 | S145: ='DNSP Inputs O & M'!$E$17 -> 8 | T145: =Q145*R145*S145 -> 1466.453691 | U145: =(T145+T146)/'DNSP Inputs O & M'!$E$72*(R138+R139)/R138 -> 356.6132303 | V145: =U145/'DNSP Inputs O & M'!$E$61 -> 71.32264606 | X145: ='DNSP Inputs O & M'!$E$12 -> 91.6533557 | Y145: ='DNSP Inputs O & M'!$E$69 -> 2 | Z145: ='DNSP Inputs O & M'!$E$17 -> 8 | AA145: =X145*Y145*Z145 -> 1466.453691 | AB145: =(AA145+AA146)/'DNSP Inputs O & M'!$E$73*(Y138+Y139)/Y138 -> 407.5579775 | AC145: =AB145/'DNSP Inputs O & M'!$E$61 -> 81.51159549 | AF145: ='DNSP Inputs O & M'!$F$12 -> 93.26244924 | AG145: ='DNSP Inputs O & M'!$F$69 -> 2 | AH145: ='DNSP Inputs O & M'!$F$17 -> 8 | AI145: =AF145*AG145*AH145 -> 1492.199188 | AJ145: =(AI145+AI146)/'DNSP Inputs O & M'!$F$72*(AG138+AG139)/AG138 -> 362.6016923 | AK145: =AJ145/'DNSP Inputs O & M'!$F$61 -> 72.52033846 | AM145: ='DNSP Inputs O & M'!$F$12 -> 93.26244924 | AN145: ='DNSP Inputs O & M'!$F$69 -> 2 | AO145: ='DNSP Inputs O & M'!$F$17 -> 8 | AP145: =AM145*AN145*AO145 -> 1492.199188 | AQ145: =(AP145+AP146)/'DNSP Inputs O & M'!$F$73*(AN138+AN139)/AN138 -> 414.4019341 | AR145: =AQ145/'DNSP Inputs O & M'!$F$61 -> 82.88038681 | AU145: ='DNSP Inputs O & M'!$G$12 -> 95.23112666 | AV145: ='DNSP Inputs O & M'!$G$69 -> 2 | AW145: ='DNSP Inputs O & M'!$G$17 -> 8 | AX145: =AU145*AV145*AW145 -> 1523.698027 | AY145: =(AX145+AX146)/'DNSP Inputs O & M'!$G$72*(AV138+AV139)/AV138 -> 363.4455431 | AZ145: =AY145/'DNSP Inputs O & M'!$G$61 -> 72.68910861 | BB145: ='DNSP Inputs O & M'!$G$12 -> 95.23112666 | BC145: ='DNSP Inputs O & M'!$G$69 -> 2 | BD145: ='DNSP Inputs O & M'!$G$17 -> 8 | BE145: =BB145*BC145*BD145 -> 1523.698027 | BF145: =(BE145+BE146)/'DNSP Inputs O & M'!$G$73*(BC138+BC139)/BC138 -> 415.3663349 | BG145: =BF145/'DNSP Inputs O & M'!$G$61 -> 83.07326698 | BJ145: ='DNSP Inputs O & M'!$H$12 -> 96.95629191 | BK145: ='DNSP Inputs O & M'!$H$69 -> 2 | BL145: ='DNSP Inputs O & M'!$H$17 -> 8 | BM145: =BJ145*BK145*BL145 -> 1551.300671 | BN145: =(BM145+BM146)/'DNSP Inputs O & M'!$H$72*(BK138+BK139)/BK138 -> 366.7505229 | BO145: =BN145/'DNSP Inputs O & M'!$H$61 -> 73.35010458 | BQ145: ='DNSP Inputs O & M'!$H$12 -> 96.95629191 | BR145: ='DNSP Inputs O & M'!$H$69 -> 2 | BS145: ='DNSP Inputs O & M'!$H$17 -> 8 | BT145: =BQ145*BR145*BS145 -> 1551.300671 | BU145: =(BT145+BT146)/'DNSP Inputs O & M'!$H$73*(BR138+BR139)/BR138 -> 419.1434547 | BV145: =BU145/'DNSP Inputs O & M'!$H$61 -> 83.82869094
A146: Elevated platform vehicle costs | B146: ='DNSP Inputs O & M'!$D$15 -> 52.43228087 | C146: 1 | D146: ='DNSP Inputs O & M'!$D$17 -> 8 | E146: =B146*C146*D146 -> 419.4582469 | I146: ='DNSP Inputs O & M'!$D$15 -> 52.43228087 | J146: 1 | K146: ='DNSP Inputs O & M'!$D$17 -> 8 | L146: =I146*J146*K146 -> 419.4582469 | Q146: ='DNSP Inputs O & M'!$E$15 -> 54.43544212 | R146: 1 | S146: ='DNSP Inputs O & M'!$E$17 -> 8 | T146: =Q146*R146*S146 -> 435.483537 | X146: ='DNSP Inputs O & M'!$E$15 -> 54.43544212 | Y146: 1 | Z146: ='DNSP Inputs O & M'!$E$17 -> 8 | AA146: =X146*Y146*Z146 -> 435.483537 | AF146: ='DNSP Inputs O & M'!$F$15 -> 55.20956306 | AG146: 1 | AH146: ='DNSP Inputs O & M'!$F$17 -> 8 | AI146: =AF146*AG146*AH146 -> 441.6765044 | AM146: ='DNSP Inputs O & M'!$F$15 -> 55.20956306 | AN146: 1 | AO146: ='DNSP Inputs O & M'!$F$17 -> 8 | AP146: =AM146*AN146*AO146 -> 441.6765044 | AU146: ='DNSP Inputs O & M'!$G$15 -> 51.83477538 | AV146: 1 | AW146: ='DNSP Inputs O & M'!$G$17 -> 8 | AX146: =AU146*AV146*AW146 -> 414.678203 | BB146: ='DNSP Inputs O & M'!$G$15 -> 51.83477538 | BC146: 1 | BD146: ='DNSP Inputs O & M'!$G$17 -> 8 | BE146: =BB146*BC146*BD146 -> 414.678203 | BJ146: ='DNSP Inputs O & M'!$H$15 -> 50.58776477 | BK146: 1 | BL146: ='DNSP Inputs O & M'!$H$17 -> 8 | BM146: =BJ146*BK146*BL146 -> 404.7021182 | BQ146: ='DNSP Inputs O & M'!$H$15 -> 50.58776477 | BR146: 1 | BS146: ='DNSP Inputs O & M'!$H$17 -> 8 | BT146: =BQ146*BR146*BS146 -> 404.7021182
A148: Traffic control costs | G148: ='DNSP Inputs O & M'!$D$111 -> 17.43821386 | N148: ='DNSP Inputs O & M'!$D$112 -> 19.92938727 | V148: ='DNSP Inputs O & M'!$E$111 -> 17.72225755 | AC148: ='DNSP Inputs O & M'!$E$112 -> 20.25400863 | AK148: ='DNSP Inputs O & M'!$F$111 -> 17.98602887 | AR148: ='DNSP Inputs O & M'!$F$112 -> 20.55546157 | AZ148: ='DNSP Inputs O & M'!$G$111 -> 18.27493572 | BG148: ='DNSP Inputs O & M'!$G$112 -> 20.88564082 | BO148: ='DNSP Inputs O & M'!$H$111 -> 18.62499705 | BV148: ='DNSP Inputs O & M'!$H$112 -> 21.28571091
A150: Overheads | B150: ='DNSP Inputs O & M'!$D$18 -> 0.25 | G150: =B150*(G138+G142+G145+G148) -> 25.13664826 | I150: ='DNSP Inputs O & M'!$D$18 -> 0.25 | N150: =I150*(N138+N142+N145+N148) -> 28.52850823 | Q150: ='DNSP Inputs O & M'!$E$18 -> 0.25 | V150: =Q150*(V138+V142+V145+V148) -> 25.65364509 | X150: ='DNSP Inputs O & M'!$E$18 -> 0.25 | AC150: =X150*(AC138+AC142+AC145+AC148) -> 29.11043293 | AF150: ='DNSP Inputs O & M'!$F$18 -> 0.25 | AK150: =AF150*(AK138+AK142+AK145+AK148) -> 26.06894173 | AM150: ='DNSP Inputs O & M'!$F$18 -> 0.25 | AR150: =AM150*(AR138+AR142+AR145+AR148) -> 29.58228026 | AU150: ='DNSP Inputs O & M'!$G$18 -> 0.25 | AZ150: =AU150*(AZ138+AZ142+AZ145+AZ148) -> 26.01527666 | BB150: ='DNSP Inputs O & M'!$G$18 -> 0.25 | BG150: =BB150*(BG138+BG142+BG145+BG148) -> 29.53837001 | BJ150: ='DNSP Inputs O & M'!$H$18 -> 0.25 | BO150: =BJ150*(BO138+BO142+BO145+BO148) -> 26.21143994 | BQ150: ='DNSP Inputs O & M'!$H$18 -> 0.25 | BV150: =BQ150*(BV138+BV142+BV145+BV148) -> 29.76958399
G152: =SUM(G138,G142,G145,G148,G150) -> 125.6832413 | N152: =SUM(N138,N142,N145,N148,N150) -> 142.6425411 | V152: =SUM(V138,V142,V145,V148,V150) -> 128.2682254 | AC152: =SUM(AC138,AC142,AC145,AC148,AC150) -> 145.5521646 | AK152: =SUM(AK138,AK142,AK145,AK148,AK150) -> 130.3447087 | AR152: =SUM(AR138,AR142,AR145,AR148,AR150) -> 147.9114013 | AZ152: =SUM(AZ138,AZ142,AZ145,AZ148,AZ150) -> 130.0763833 | BG152: =SUM(BG138,BG142,BG145,BG148,BG150) -> 147.6918501 | BO152: =SUM(BO138,BO142,BO145,BO148,BO150) -> 131.0571997 | BV152: =SUM(BV138,BV142,BV145,BV148,BV150) -> 148.84792
A157: T5 (2 X 14W) - Cost build-up
A159: Addiitonal assumptions
A160: Proportion of luminaire that will fail before bulk change | D160: ='DNSP Inputs O & M'!$D$147 -> 0.256 | S160: ='DNSP Inputs O & M'!$E$147 -> 0.256 | AH160: ='DNSP Inputs O & M'!$F$147 -> 0.256 | AW160: ='DNSP Inputs O & M'!$G$147 -> 0.256 | BL160: ='DNSP Inputs O & M'!$H$147 -> 0.256
A161: Proportion of lamps that will fail before bulk change (per year) | D161: =D160/'DNSP Inputs O & M'!$D$144 -> 0.064 | S161: =S160/'DNSP Inputs O & M'!$E$144 -> 0.064 | AH161: =AH160/'DNSP Inputs O & M'!$F$144 -> 0.064 | AW161: =AW160/'DNSP Inputs O & M'!$G$144 -> 0.064 | BL161: =BL160/'DNSP Inputs O & M'!$H$144 -> 0.064
A162: Overheads are applied to material and labour components
A163: All costs and charges are exclusive of GST
B165: Urban | I165: Rural | Q165: Urban | X165: Rural | AF165: Urban | AM165: Rural | AU165: Urban | BB165: Rural | BJ165: Urban | BQ165: Rural
B167: Unit rate | C167: Number | D167: Hours | E167: Cost | F167: Annualised | G167: Annualised | I167: Unit rate | J167: Number | K167: Hours | L167: Cost | M167: Annualised | N167: Annualised | Q167: Unit rate | R167: Number | S167: Hours | T167: Cost | U167: Annualised | V167: Annualised | X167: Unit rate | Y167: Number | Z167: Hours | AA167: Cost | AB167: Annualised | AC167: Annualised | AF167: Unit rate | AG167: Number | AH167: Hours | AI167: Cost | AJ167: Annualised | AK167: Annualised | AM167: Unit rate | AN167: Number | AO167: Hours | AP167: Cost | AQ167: Annualised | AR167: Annualised | AU167: Unit rate | AV167: Number | AW167: Hours | AX167: Cost | AY167: Annualised | AZ167: Annualised | BB167: Unit rate | BC167: Number | BD167: Hours | BE167: Cost | BF167: Annualised | BG167: Annualised | BJ167: Unit rate | BK167: Number | BL167: Hours | BM167: Cost | BN167: Annualised | BO167: Annualised | BQ167: Unit rate | BR167: Number | BS167: Hours | BT167: Cost | BU167: Annualised | BV167: Annualised
F168: cost | G168: unit cost | M168: cost | N168: unit cost | U168: cost | V168: unit cost | AB168: cost | AC168: unit cost | AJ168: cost | AK168: unit cost | AQ168: cost | AR168: unit cost | AY168: cost | AZ168: unit cost | BF168: cost | BG168: unit cost | BN168: cost | BO168: unit cost | BU168: cost | BV168: unit cost
A169: T5 (2 X 14W)
A170: Bulk change & repairs
A171: Materials - bulk lamp change
A172: Lamp | B172: ='DNSP Inputs O & M'!$D$149 -> 9.96649248 | C172: ='DNSP Inputs O & M'!$D$155 -> 50 | E172: =B172*C172 -> 498.324624 | F172: =E172/'DNSP Inputs O & M'!$D$144 -> 124.581156 | G172: =(F172+F173+F174)/C172 -> 4.905383017 | I172: ='DNSP Inputs O & M'!$D$149*(1+'DNSP Inputs O & M'!$D$11) -> 10.4648171 | J172: ='DNSP Inputs O & M'!$D$156 -> 42 | L172: =I172*J172 -> 439.5223184 | M172: =L172/'DNSP Inputs O & M'!$D$144 -> 109.8805796 | N172: =(M172+M173+M174)/J172 -> 5.150652168 | Q172: ='DNSP Inputs O & M'!$E$149 -> 10.34725966 | R172: ='DNSP Inputs O & M'!$E$155 -> 50 | T172: =Q172*R172 -> 517.3629828 | U172: =T172/'DNSP Inputs O & M'!$E$144 -> 129.3407457 | V172: =(U172+U173+U174)/R172 -> 5.092791862 | X172: ='DNSP Inputs O & M'!$E$149*(1+'DNSP Inputs O & M'!$E$11) -> 10.86462264 | Y172: ='DNSP Inputs O & M'!$E$156 -> 42 | AA172: =X172*Y172 -> 456.3141509 | AB172: =AA172/'DNSP Inputs O & M'!$E$144 -> 114.0785377 | AC172: =(AB172+AB173+AB174)/Y172 -> 5.347431455 | AF172: ='DNSP Inputs O & M'!$F$149 -> 10.49440699 | AG172: ='DNSP Inputs O & M'!$F$155 -> 50 | AI172: =AF172*AG172 -> 524.7203496 | AJ172: =AI172/'DNSP Inputs O & M'!$F$144 -> 131.1800874 | AK172: =(AJ172+AJ173+AJ174)/AG172 -> 5.165215942 | AM172: ='DNSP Inputs O & M'!$F$149*(1+'DNSP Inputs O & M'!$F$11) -> 11.01912734 | AN172: ='DNSP Inputs O & M'!$F$156 -> 42 | AP172: =AM172*AN172 -> 462.8033484 | AQ172: =AP172/'DNSP Inputs O & M'!$F$144 -> 115.7008371 | AR172: =(AQ172+AQ173+AQ174)/AN172 -> 5.423476739 | AU172: ='DNSP Inputs O & M'!$G$149 -> 9.852916761 | AV172: ='DNSP Inputs O & M'!$G$155 -> 50 | AX172: =AU172*AV172 -> 492.6458381 | AY172: =AX172/'DNSP Inputs O & M'!$G$144 -> 123.1614595 | AZ172: =(AY172+AY173+AY174)/AV172 -> 4.849482469 | BB172: ='DNSP Inputs O & M'!$G$149*(1+'DNSP Inputs O & M'!$G$11) -> 10.3455626 | BC172: ='DNSP Inputs O & M'!$G$156 -> 42 | BE172: =BB172*BC172 -> 434.5136292 | BF172: =BE172/'DNSP Inputs O & M'!$G$144 -> 108.6284073 | BG172: =(BF172+BF173+BF174)/BC172 -> 5.091956592 | BJ172: ='DNSP Inputs O & M'!$H$149 -> 9.615881072 | BK172: ='DNSP Inputs O & M'!$H$155 -> 50 | BM172: =BJ172*BK172 -> 480.7940536 | BN172: =BM172/'DNSP Inputs O & M'!$H$144 -> 120.1985134 | BO172: =(BN172+BN173+BN174)/BK172 -> 4.732816465 | BQ172: ='DNSP Inputs O & M'!$H$149*(1+'DNSP Inputs O & M'!$H$11) -> 10.09667513 | BR172: ='DNSP Inputs O & M'!$H$156 -> 42 | BT172: =BQ172*BR172 -> 424.0603553 | BU172: =BT172/'DNSP Inputs O & M'!$H$144 -> 106.0150888 | BV172: =(BU172+BU173+BU174)/BR172 -> 4.969457288
A173: PE cell | B173: ='DNSP Inputs O & M'!$D$150 -> 16.81845606 | C173: =C172*'DNSP Inputs O & M'!$D$144/'DNSP Inputs O & M'!$D$145 -> 25 | E173: =B173*C173 -> 420.4614015 | F173: =E173/'DNSP Inputs O & M'!$D$144 -> 105.1153504 | I173: ='DNSP Inputs O & M'!$D$150*(1+'DNSP Inputs O & M'!$D$11) -> 17.65937886 | J173: =J172*'DNSP Inputs O & M'!$D$144/'DNSP Inputs O & M'!$D$145 -> 21 | L173: =I173*J173 -> 370.8469561 | M173: =L173/'DNSP Inputs O & M'!$D$144 -> 92.71173903 | Q173: ='DNSP Inputs O & M'!$E$150 -> 17.46100067 | R173: =R172*'DNSP Inputs O & M'!$E$144/'DNSP Inputs O & M'!$E$145 -> 25 | T173: =Q173*R173 -> 436.5250168 | U173: =T173/'DNSP Inputs O & M'!$E$144 -> 109.1312542 | X173: ='DNSP Inputs O & M'!$E$150*(1+'DNSP Inputs O & M'!$E$11) -> 18.3340507 | Y173: =Y172*'DNSP Inputs O & M'!$E$144/'DNSP Inputs O & M'!$E$145 -> 21 | AA173: =X173*Y173 -> 385.0150648 | AB173: =AA173/'DNSP Inputs O & M'!$E$144 -> 96.25376619 | AF173: ='DNSP Inputs O & M'!$F$150 -> 17.7093118 | AG173: =AG172*'DNSP Inputs O & M'!$F$144/'DNSP Inputs O & M'!$F$145 -> 25 | AI173: =AF173*AG173 -> 442.732795 | AJ173: =AI173/'DNSP Inputs O & M'!$F$144 -> 110.6831988 | AM173: ='DNSP Inputs O & M'!$F$150*(1+'DNSP Inputs O & M'!$F$11) -> 18.59477739 | AN173: =AN172*'DNSP Inputs O & M'!$F$144/'DNSP Inputs O & M'!$F$145 -> 21 | AP173: =AM173*AN173 -> 390.4903252 | AQ173: =AP173/'DNSP Inputs O & M'!$F$144 -> 97.6225813 | AU173: ='DNSP Inputs O & M'!$G$150 -> 16.62679703 | AV173: =AV172*'DNSP Inputs O & M'!$G$144/'DNSP Inputs O & M'!$G$145 -> 25 | AX173: =AU173*AV173 -> 415.6699259 | AY173: =AX173/'DNSP Inputs O & M'!$G$144 -> 103.9174815 | BB173: ='DNSP Inputs O & M'!$G$150*(1+'DNSP Inputs O & M'!$G$11) -> 17.45813689 | BC173: =BC172*'DNSP Inputs O & M'!$G$144/'DNSP Inputs O & M'!$G$145 -> 21 | BE173: =BB173*BC173 -> 366.6208746 | BF173: =BE173/'DNSP Inputs O & M'!$G$144 -> 91.65521865 | BJ173: ='DNSP Inputs O & M'!$H$150 -> 16.22679931 | BK173: =BK172*'DNSP Inputs O & M'!$H$144/'DNSP Inputs O & M'!$H$145 -> 25 | BM173: =BJ173*BK173 -> 405.6699827 | BN173: =BM173/'DNSP Inputs O & M'!$H$144 -> 101.4174957 | BQ173: ='DNSP Inputs O & M'!$H$150*(1+'DNSP Inputs O & M'!$H$11) -> 17.03813927 | BR173: =BR172*'DNSP Inputs O & M'!$H$144/'DNSP Inputs O & M'!$H$145 -> 21 | BT173: =BQ173*BR173 -> 357.8009248 | BU173: =BT173/'DNSP Inputs O & M'!$H$144 -> 89.45023119
A174: Miscellaneous | B174: ='DNSP Inputs O & M'!$D$152 -> 1.24581156 | C174: ='DNSP Inputs O & M'!$D$155 -> 50 | E174: =B174*C174 -> 62.290578 | F174: =E174/'DNSP Inputs O & M'!$D$144 -> 15.5726445 | I174: ='DNSP Inputs O & M'!$D$152*(1+'DNSP Inputs O & M'!$D$11) -> 1.308102138 | J174: ='DNSP Inputs O & M'!$D$156 -> 42 | L174: =I174*J174 -> 54.94028979 | M174: =L174/'DNSP Inputs O & M'!$D$144 -> 13.73507245 | Q174: ='DNSP Inputs O & M'!$E$152 -> 1.293407457 | R174: ='DNSP Inputs O & M'!$E$155 -> 50 | T174: =Q174*R174 -> 64.67037285 | U174: =T174/'DNSP Inputs O & M'!$E$144 -> 16.16759321 | X174: ='DNSP Inputs O & M'!$E$152*(1+'DNSP Inputs O & M'!$E$11) -> 1.35807783 | Y174: ='DNSP Inputs O & M'!$E$156 -> 42 | AA174: =X174*Y174 -> 57.03926886 | AB174: =AA174/'DNSP Inputs O & M'!$E$144 -> 14.25981721 | AF174: ='DNSP Inputs O & M'!$F$152 -> 1.311800874 | AG174: ='DNSP Inputs O & M'!$F$155 -> 50 | AI174: =AF174*AG174 -> 65.59004371 | AJ174: =AI174/'DNSP Inputs O & M'!$F$144 -> 16.39751093 | AM174: ='DNSP Inputs O & M'!$F$152*(1+'DNSP Inputs O & M'!$F$11) -> 1.377390918 | AN174: ='DNSP Inputs O & M'!$F$156 -> 42 | AP174: =AM174*AN174 -> 57.85041855 | AQ174: =AP174/'DNSP Inputs O & M'!$F$144 -> 14.46260464 | AU174: ='DNSP Inputs O & M'!$G$152 -> 1.231614595 | AV174: ='DNSP Inputs O & M'!$G$155 -> 50 | AX174: =AU174*AV174 -> 61.58072976 | AY174: =AX174/'DNSP Inputs O & M'!$G$144 -> 15.39518244 | BB174: ='DNSP Inputs O & M'!$G$152*(1+'DNSP Inputs O & M'!$G$11) -> 1.293195325 | BC174: ='DNSP Inputs O & M'!$G$156 -> 42 | BE174: =BB174*BC174 -> 54.31420365 | BF174: =BE174/'DNSP Inputs O & M'!$G$144 -> 13.57855091 | BJ174: ='DNSP Inputs O & M'!$H$152 -> 1.201985134 | BK174: ='DNSP Inputs O & M'!$H$155 -> 50 | BM174: =BJ174*BK174 -> 60.0992567 | BN174: =BM174/'DNSP Inputs O & M'!$H$144 -> 15.02481417 | BQ174: ='DNSP Inputs O & M'!$H$152*(1+'DNSP Inputs O & M'!$H$11) -> 1.262084391 | BR174: ='DNSP Inputs O & M'!$H$156 -> 42 | BT174: =BQ174*BR174 -> 53.00754441 | BU174: =BT174/'DNSP Inputs O & M'!$H$144 -> 13.2518861
A175: Materials - repair of faults
A176: Lamp | B176: ='DNSP Inputs O & M'!$D$149 -> 9.96649248 | C176: ='DNSP Inputs O & M'!$D$157*'DNSP Inputs O & M'!$D$159 -> 6 | E176: =B176*C176 -> 59.79895488 | F176: =(E176+E177+E178+E179)/'DNSP Inputs O & M'!$D$157 -> 51.70117974 | G176: =F176*D161 -> 3.308875503 | I176: ='DNSP Inputs O & M'!$D$149*(1+'DNSP Inputs O & M'!$D$11) -> 10.4648171 | J176: ='DNSP Inputs O & M'!$D$158*'DNSP Inputs O & M'!$D$159 -> 5.4 | L176: =I176*J176 -> 56.51001236 | M176: =(L176+L177+L178+L179)/'DNSP Inputs O & M'!$D$158 -> 54.28623872 | N176: =M176*D161 -> 3.474319278 | Q176: ='DNSP Inputs O & M'!$E$149 -> 10.34725966 | R176: ='DNSP Inputs O & M'!$E$157*'DNSP Inputs O & M'!$E$159 -> 6 | T176: =Q176*R176 -> 62.08355794 | U176: =(T176+T177+T178+T179)/'DNSP Inputs O & M'!$E$157 -> 53.67640947 | V176: =U176*S161 -> 3.435290206 | X176: ='DNSP Inputs O & M'!$E$149*(1+'DNSP Inputs O & M'!$E$11) -> 10.86462264 | Y176: ='DNSP Inputs O & M'!$E$158*'DNSP Inputs O & M'!$E$159 -> 5.4 | AA176: =X176*Y176 -> 58.66896225 | AB176: =(AA176+AA177+AA178+AA179)/'DNSP Inputs O & M'!$E$158 -> 56.36022994 | AC176: =AB176*S161 -> 3.607054716 | AF176: ='DNSP Inputs O & M'!$F$149 -> 10.49440699 | AG176: ='DNSP Inputs O & M'!$F$157*'DNSP Inputs O & M'!$F$159 -> 6 | AI176: =AF176*AG176 -> 62.96644196 | AJ176: =(AI176+AI177+AI178+AI179)/'DNSP Inputs O & M'!$F$157 -> 54.43973628 | AK176: =AJ176*AH161 -> 3.484143122 | AM176: ='DNSP Inputs O & M'!$F$149*(1+'DNSP Inputs O & M'!$F$11) -> 11.01912734 | AN176: ='DNSP Inputs O & M'!$F$158*'DNSP Inputs O & M'!$F$159 -> 5.4 | AP176: =AM176*AN176 -> 59.50328765 | AQ176: =(AP176+AP177+AP178+AP179)/'DNSP Inputs O & M'!$F$158 -> 57.16172309 | AR176: =AQ176*AH161 -> 3.658350278 | AU176: ='DNSP Inputs O & M'!$G$149 -> 9.852916761 | AV176: ='DNSP Inputs O & M'!$G$157*'DNSP Inputs O & M'!$G$159 -> 6 | AX176: =AU176*AV176 -> 59.11750057 | AY176: =(AX176+AX177+AX178+AX179)/'DNSP Inputs O & M'!$G$157 -> 51.1120057 | AZ176: =AY176*AW161 -> 3.271168365 | BB176: ='DNSP Inputs O & M'!$G$149*(1+'DNSP Inputs O & M'!$G$11) -> 10.3455626 | BC176: ='DNSP Inputs O & M'!$G$158*'DNSP Inputs O & M'!$G$159 -> 5.4 | BE176: =BB176*BC176 -> 55.86603804 | BF176: =(BE176+BE177+BE178+BE179)/'DNSP Inputs O & M'!$G$158 -> 53.66760598 | BG176: =BF176*AW161 -> 3.434726783 | BJ176: ='DNSP Inputs O & M'!$H$149 -> 9.615881072 | BK176: ='DNSP Inputs O & M'!$H$157*'DNSP Inputs O & M'!$H$159 -> 6 | BM176: =BJ176*BK176 -> 57.69528643 | BN176: =(BM176+BM177+BM178+BM179)/'DNSP Inputs O & M'!$H$157 -> 49.88238306 | BO176: =BN176*BL161 -> 3.192472516 | BQ176: ='DNSP Inputs O & M'!$H$149*(1+'DNSP Inputs O & M'!$H$11) -> 10.09667513 | BR176: ='DNSP Inputs O & M'!$H$158*'DNSP Inputs O & M'!$H$159 -> 5.4 | BT176: =BQ176*BR176 -> 54.52204568 | BU176: =(BT176+BT177+BT178+BT179)/'DNSP Inputs O & M'!$H$158 -> 52.37650221 | BV176: =BU176*BL161 -> 3.352096142
A177: PE cell | B177: ='DNSP Inputs O & M'!$D$150 -> 16.81845606 | C177: ='DNSP Inputs O & M'!$D$157*'DNSP Inputs O & M'!$D$160 -> 5 | E177: =B177*C177 -> 84.0922803 | I177: ='DNSP Inputs O & M'!$D$150*(1+'DNSP Inputs O & M'!$D$11) -> 17.65937886 | J177: ='DNSP Inputs O & M'!$D$158*'DNSP Inputs O & M'!$D$160 -> 4.5 | L177: =I177*J177 -> 79.46720488 | Q177: ='DNSP Inputs O & M'!$E$150 -> 17.46100067 | R177: ='DNSP Inputs O & M'!$E$157*'DNSP Inputs O & M'!$E$160 -> 5 | T177: =Q177*R177 -> 87.30500335 | X177: ='DNSP Inputs O & M'!$E$150*(1+'DNSP Inputs O & M'!$E$11) -> 18.3340507 | Y177: ='DNSP Inputs O & M'!$E$158*'DNSP Inputs O & M'!$E$160 -> 4.5 | AA177: =X177*Y177 -> 82.50322817 | AF177: ='DNSP Inputs O & M'!$F$150 -> 17.7093118 | AG177: ='DNSP Inputs O & M'!$F$157*'DNSP Inputs O & M'!$F$160 -> 5 | AI177: =AF177*AG177 -> 88.546559 | AM177: ='DNSP Inputs O & M'!$F$150*(1+'DNSP Inputs O & M'!$F$11) -> 18.59477739 | AN177: ='DNSP Inputs O & M'!$F$158*'DNSP Inputs O & M'!$F$160 -> 4.5 | AP177: =AM177*AN177 -> 83.67649826 | AU177: ='DNSP Inputs O & M'!$G$150 -> 16.62679703 | AV177: ='DNSP Inputs O & M'!$G$157*'DNSP Inputs O & M'!$G$160 -> 5 | AX177: =AU177*AV177 -> 83.13398517 | BB177: ='DNSP Inputs O & M'!$G$150*(1+'DNSP Inputs O & M'!$G$11) -> 17.45813689 | BC177: ='DNSP Inputs O & M'!$G$158*'DNSP Inputs O & M'!$G$160 -> 4.5 | BE177: =BB177*BC177 -> 78.56161599 | BJ177: ='DNSP Inputs O & M'!$H$150 -> 16.22679931 | BK177: ='DNSP Inputs O & M'!$H$157*'DNSP Inputs O & M'!$H$160 -> 5 | BM177: =BJ177*BK177 -> 81.13399654 | BQ177: ='DNSP Inputs O & M'!$H$150*(1+'DNSP Inputs O & M'!$H$11) -> 17.03813927 | BR177: ='DNSP Inputs O & M'!$H$158*'DNSP Inputs O & M'!$H$160 -> 4.5 | BT177: =BQ177*BR177 -> 76.67162673
A178: Luminaire | B178: ='DNSP Inputs O & M'!$D$151 -> 240.4416311 | C178: ='DNSP Inputs O & M'!$D$157*'DNSP Inputs O & M'!$D$161 -> 1.5 | E178: =B178*C178 -> 360.6624466 | I178: ='DNSP Inputs O & M'!$D$151*(1+'DNSP Inputs O & M'!$D$11) -> 252.4637126 | J178: ='DNSP Inputs O & M'!$D$158*'DNSP Inputs O & M'!$D$161 -> 1.35 | L178: =I178*J178 -> 340.826012 | Q178: ='DNSP Inputs O & M'!$E$151 -> 249.6276392 | R178: ='DNSP Inputs O & M'!$E$157*'DNSP Inputs O & M'!$E$161 -> 1.5 | T178: =Q178*R178 -> 374.4414588 | X178: ='DNSP Inputs O & M'!$E$151*(1+'DNSP Inputs O & M'!$E$11) -> 262.1090212 | Y178: ='DNSP Inputs O & M'!$E$158*'DNSP Inputs O & M'!$E$161 -> 1.35 | AA178: =X178*Y178 -> 353.8471786 | AF178: ='DNSP Inputs O & M'!$F$151 -> 253.1775687 | AG178: ='DNSP Inputs O & M'!$F$157*'DNSP Inputs O & M'!$F$161 -> 1.5 | AI178: =AF178*AG178 -> 379.7663531 | AM178: ='DNSP Inputs O & M'!$F$151*(1+'DNSP Inputs O & M'!$F$11) -> 265.8364471 | AN178: ='DNSP Inputs O & M'!$F$158*'DNSP Inputs O & M'!$F$161 -> 1.35 | AP178: =AM178*AN178 -> 358.8792036 | AU178: ='DNSP Inputs O & M'!$G$151 -> 237.7016169 | AV178: ='DNSP Inputs O & M'!$G$157*'DNSP Inputs O & M'!$G$161 -> 1.5 | AX178: =AU178*AV178 -> 356.5524253 | BB178: ='DNSP Inputs O & M'!$G$151*(1+'DNSP Inputs O & M'!$G$11) -> 249.5866977 | BC178: ='DNSP Inputs O & M'!$G$158*'DNSP Inputs O & M'!$G$161 -> 1.35 | BE178: =BB178*BC178 -> 336.9420419 | BJ178: ='DNSP Inputs O & M'!$H$151 -> 231.9831309 | BK178: ='DNSP Inputs O & M'!$H$157*'DNSP Inputs O & M'!$H$161 -> 1.5 | BM178: =BJ178*BK178 -> 347.9746963 | BQ178: ='DNSP Inputs O & M'!$H$151*(1+'DNSP Inputs O & M'!$H$11) -> 243.5822874 | BR178: ='DNSP Inputs O & M'!$H$158*'DNSP Inputs O & M'!$H$161 -> 1.35 | BT178: =BQ178*BR178 -> 328.836088
A179: Miscellaneous | B179: ='DNSP Inputs O & M'!$D$153 -> 12.4581156 | C179: ='DNSP Inputs O & M'!$D$157*'DNSP Inputs O & M'!$D$162 -> 1 | E179: =B179*C179 -> 12.4581156 | I179: ='DNSP Inputs O & M'!$D$153*(1+'DNSP Inputs O & M'!$D$11) -> 13.08102138 | J179: ='DNSP Inputs O & M'!$D$158*'DNSP Inputs O & M'!$D$162 -> 0.9 | L179: =I179*J179 -> 11.77291924 | Q179: ='DNSP Inputs O & M'!$E$153 -> 12.93407457 | R179: ='DNSP Inputs O & M'!$E$157*'DNSP Inputs O & M'!$E$162 -> 1 | T179: =Q179*R179 -> 12.93407457 | X179: ='DNSP Inputs O & M'!$E$153*(1+'DNSP Inputs O & M'!$E$11) -> 13.5807783 | Y179: ='DNSP Inputs O & M'!$E$158*'DNSP Inputs O & M'!$E$162 -> 0.9 | AA179: =X179*Y179 -> 12.22270047 | AF179: ='DNSP Inputs O & M'!$F$153 -> 13.11800874 | AG179: ='DNSP Inputs O & M'!$F$157*'DNSP Inputs O & M'!$F$162 -> 1 | AI179: =AF179*AG179 -> 13.11800874 | AM179: ='DNSP Inputs O & M'!$F$153*(1+'DNSP Inputs O & M'!$F$11) -> 13.77390918 | AN179: ='DNSP Inputs O & M'!$F$158*'DNSP Inputs O & M'!$F$162 -> 0.9 | AP179: =AM179*AN179 -> 12.39651826 | AU179: ='DNSP Inputs O & M'!$G$153 -> 12.31614595 | AV179: ='DNSP Inputs O & M'!$G$157*'DNSP Inputs O & M'!$G$162 -> 1 | AX179: =AU179*AV179 -> 12.31614595 | BB179: ='DNSP Inputs O & M'!$G$153*(1+'DNSP Inputs O & M'!$G$11) -> 12.93195325 | BC179: ='DNSP Inputs O & M'!$G$158*'DNSP Inputs O & M'!$G$162 -> 0.9 | BE179: =BB179*BC179 -> 11.63875792 | BJ179: ='DNSP Inputs O & M'!$H$153 -> 12.01985134 | BK179: ='DNSP Inputs O & M'!$H$157*'DNSP Inputs O & M'!$H$162 -> 1 | BM179: =BJ179*BK179 -> 12.01985134 | BQ179: ='DNSP Inputs O & M'!$H$153*(1+'DNSP Inputs O & M'!$H$11) -> 12.62084391 | BR179: ='DNSP Inputs O & M'!$H$158*'DNSP Inputs O & M'!$H$162 -> 0.9 | BT179: =BQ179*BR179 -> 11.35875952
A180: Labour - bulk lamp change
A181: Crew costs | B181: ='DNSP Inputs O & M'!$D$12 -> 90.43467502 | C181: ='DNSP Inputs O & M'!$D$154 -> 2 | D181: ='DNSP Inputs O & M'!$D$17 -> 8 | E181: =B181*C181*D181 -> 1446.9548 | F181: =E181/'DNSP Inputs O & M'!$D$144*(C172+C173)/C172 -> 542.6080501 | G181: =(F181+F182)/C172 -> 13.29900078 | I181: ='DNSP Inputs O & M'!$D$12 -> 90.43467502 | J181: ='DNSP Inputs O & M'!$D$154 -> 2 | K181: ='DNSP Inputs O & M'!$D$17 -> 8 | L181: =I181*J181*K181 -> 1446.9548 | M181: =L181/'DNSP Inputs O & M'!$D$144*(J172+J173)/J172 -> 542.6080501 | N181: =(M181+M182)/J172 -> 16.66440221 | Q181: ='DNSP Inputs O & M'!$E$12 -> 91.6533557 | R181: ='DNSP Inputs O & M'!$E$154 -> 2 | S181: ='DNSP Inputs O & M'!$E$17 -> 8 | T181: =Q181*R181*S181 -> 1466.453691 | U181: =T181/'DNSP Inputs O & M'!$E$144*(R172+R173)/R172 -> 549.9201342 | V181: =(U181+U182)/R172 -> 13.53872332 | X181: ='DNSP Inputs O & M'!$E$12 -> 91.6533557 | Y181: ='DNSP Inputs O & M'!$E$154 -> 2 | Z181: ='DNSP Inputs O & M'!$E$17 -> 8 | AA181: =X181*Y181*Z181 -> 1466.453691 | AB181: =AA181/'DNSP Inputs O & M'!$E$144*(Y172+Y173)/Y172 -> 549.9201342 | AC181: =(AB181+AB182)/Y172 -> 16.98158239 | AF181: ='DNSP Inputs O & M'!$F$12 -> 93.26244924 | AG181: ='DNSP Inputs O & M'!$F$154 -> 2 | AH181: ='DNSP Inputs O & M'!$F$17 -> 8 | AI181: =AF181*AG181*AH181 -> 1492.199188 | AJ181: =AI181/'DNSP Inputs O & M'!$F$144*(AG172+AG173)/AG172 -> 559.5746954 | AK181: =(AJ181+AJ182)/AG172 -> 13.76794018 | AM181: ='DNSP Inputs O & M'!$F$12 -> 93.26244924 | AN181: ='DNSP Inputs O & M'!$F$154 -> 2 | AO181: ='DNSP Inputs O & M'!$F$17 -> 8 | AP181: =AM181*AN181*AO181 -> 1492.199188 | AQ181: =AP181/'DNSP Inputs O & M'!$F$144*(AN172+AN173)/AN172 -> 559.5746954 | AR181: =(AQ181+AQ182)/AN172 -> 17.26674725 | AU181: ='DNSP Inputs O & M'!$G$12 -> 95.23112666 | AV181: ='DNSP Inputs O & M'!$G$154 -> 2 | AW181: ='DNSP Inputs O & M'!$G$17 -> 8 | AX181: =AU181*AV181*AW181 -> 1523.698027 | AY181: =AX181/'DNSP Inputs O & M'!$G$144*(AV172+AV173)/AV172 -> 571.38676 | AZ181: =(AY181+AY182)/AV172 -> 13.84669138 | BB181: ='DNSP Inputs O & M'!$G$12 -> 95.23112666 | BC181: ='DNSP Inputs O & M'!$G$154 -> 2 | BD181: ='DNSP Inputs O & M'!$G$17 -> 8 | BE181: =BB181*BC181*BD181 -> 1523.698027 | BF181: =BE181/'DNSP Inputs O & M'!$G$144*(BC172+BC173)/BC172 -> 571.38676 | BG181: =(BF181+BF182)/BC172 -> 17.30693062 | BJ181: ='DNSP Inputs O & M'!$H$12 -> 96.95629191 | BK181: ='DNSP Inputs O & M'!$H$154 -> 2 | BL181: ='DNSP Inputs O & M'!$H$17 -> 8 | BM181: =BJ181*BK181*BL181 -> 1551.300671 | BN181: =BM181/'DNSP Inputs O & M'!$H$144*(BK172+BK173)/BK172 -> 581.7377514 | BO181: =(BN181+BN182)/BK172 -> 13.99551738 | BQ181: ='DNSP Inputs O & M'!$H$12 -> 96.95629191 | BR181: ='DNSP Inputs O & M'!$H$154 -> 2 | BS181: ='DNSP Inputs O & M'!$H$17 -> 8 | BT181: =BQ181*BR181*BS181 -> 1551.300671 | BU181: =BT181/'DNSP Inputs O & M'!$H$144*(BR172+BR173)/BR172 -> 581.7377514 | BV181: =(BU181+BU182)/BR172 -> 17.46431061
